{"text_format":"1","workbook":"xlsx","n_sheets":8,"sheets":["Vorrunde 01-24","Vorrunde 25-48","Vorrunde 49-72","Vorrunde (Tabellen)","KO-Runde 073-088","KO-Runde 089-104","Tippmodus","Teilnehmer - Austragungsorte"],"not_rendered":{"charts":0,"images":98,"macros":1,"external_links":1,"defined_names":19,"comments":0,"pivot_tables":0},"unopened":[],"bounds":{"document_bytes":16777216,"sheet_cells":100000,"rows_first":2000,"rows_last":500,"rows_between":2000,"halvings":0,"cell_chars":16384,"cell_head_chars":4096},"cells_cut":0,"cells_raw":0,"read":"whole","date_system":"1900"}

{"sheet":"Vorrunde 01-24","index":0,"n_rows":27,"n_cols":13,"rows_kept":27,"cut":false,"hidden":false,"merged":[[0,4,0,6],[0,7,0,9],[26,3,26,4],[26,5,26,9]]}
["Spiele 1-24   (chronologisch)","Anstoßzeit","Ortszeit","Spiel-Nr.","Spielpaarungen / Gruppen",null,null,"Ergebnis",null,null,"Austragungsort / Stadion","Vorrunde","Live-TV Übertragungsrechte"]
["2026-06-11T21:00:00",46184.875,"2026-06-11T13:00:00",1,"Mexiko (A1)","-","Südafrika (A2)",null,":",null,"Mexiko / Azteca (Mexico City)","1. Gruppenspiel","ZDF und MagentaTV"]
["2026-06-12T04:00:00",46185.166666666664,"2026-06-11T20:00:00",2,"Südkorea (A3)","-","Tschechien (A4)",null,":",null,"Mexiko / Estadio Akron (Guadalajara)","1. Gruppenspiel","MagentaTV (Telekom) Free-TV"]
["2026-06-12T21:00:00",46185.875,"2026-06-12T15:00:00",3,"Kanada (B1)","-","Bosnien-Herzegowina (B2)",null,":",null,"Kanada / BMO Field (Toronto)","1. Gruppenspiel","ARD und MagentaTV"]
["2026-06-13T03:00:00",46186.125,"2026-06-12T18:00:00",4,"USA (D1)","-","Paraguay (D2)",null,":",null,"USA / SoFi Stadium (Los Angeles)","1. Gruppenspiel","MagentaTV (Telekom) exklusiv"]
["2026-06-13T21:00:00",46186.875,"2026-06-13T12:00:00",8,"Katar (B3)","-","Schweiz (B4)",null,":",null,"USA / Levi's Stadium (San Francisco Bay Area)","1. Gruppenspiel","ZDF und MagentaTV"]
["2026-06-14",46187,"2026-06-13T18:00:00",7,"Brasilien (C1)","-","Marokko (C2)",null,":",null,"USA / MetLife Stadium (New York/New Jersey)","1. Gruppenspiel","ZDF und MagentaTV"]
["2026-06-14T03:00:00",46187.125,"2026-06-13T21:00:00",5,"Haiti (C3)","-","Schottland (C4)",null,":",null,"USA / Gillette Stadium (Boston)","1. Gruppenspiel","ARD und MagentaTV"]
["2026-06-14T06:00:00",46187.25,"2026-06-13T21:00:00",6,"Australien (D3)","-","Türkei (D4)",null,":",null,"Kanada / BC Place Stadium (Vancouver)","1. Gruppenspiel","MagentaTV (Telekom) exklusiv"]
["2026-06-14T19:00:00",46187.791666666664,"2026-06-14T12:00:00",10,"Deutschland (E1)","-","Curaçao (E2)",null,":",null,"USA / NRG Stadium (Houston)","1. Gruppenspiel","ARD und MagentaTV"]
["2026-06-14T22:00:00",46187.916666666664,"2026-06-14T15:00:00",11,"Niederlande (F1)","-","Japan (F2)",null,":",null,"USA / AT&T Stadium (Dallas)","1. Gruppenspiel","MagentaTV (Telekom) exklusiv"]
["2026-06-15T01:00:00",46188.041666666664,"2026-06-14T19:00:00",9,"Elfenbeinküste (E3)","-","Ecuador (E4)",null,":",null,"USA / Lincoln Financial Field (Philadelphia)","1. Gruppenspiel","ARD und MagentaTV"]
["2026-06-15T04:00:00",46188.166666666664,"2026-06-14T20:00:00",12,"Schweden (F3)","-","Tunesien (F4)",null,":",null,"Mexiko / Estadio BBVA (Monterrey)","1. Gruppenspiel","MagentaTV (Telekom) exklusiv"]
["2026-06-15T18:00:00",46188.75,"2026-06-15T12:00:00",14,"Spanien (H1)","-","Kap Verde (H2)",null,":",null,"USA / Mercedes-Benz Stadium (Atlanta)","1. Gruppenspiel","ARD und MagentaTV"]
["2026-06-15T21:00:00",46188.875,"2026-06-15T12:00:00",16,"Belgien (G1)","-","Ägypten (G2)",null,":",null,"USA / Lumen Field (Seattle)","1. Gruppenspiel","ARD und MagentaTV"]
["2026-06-16",46189,"2026-06-15T18:00:00",13,"Saudi-Arabien (H3)","-","Uruguay (H4)",null,":",null,"USA / Hard Rock Stadium (Miami)","1. Gruppenspiel","ZDF und MagentaTV"]
["2026-06-16T03:00:00",46189.125,"2026-06-15T18:00:00",15,"Iran (G3)","-","Neuseeland (G4)",null,":",null,"USA / SoFi Stadium (Los Angeles)","1. Gruppenspiel","ZDF und MagentaTV"]
["2026-06-16T21:00:00",46189.875,"2026-06-16T15:00:00",17,"Frankreich (I1)","-","Senegal (I2)",null,":",null,"USA / MetLife Stadium (New York/New Jersey)","1. Gruppenspiel","MagentaTV (Telekom) exklusiv"]
["2026-06-17",46190,"2026-06-16T18:00:00",18,"Irak (I3)","-","Norwegen (I4)",null,":",null,"USA / Gillette Stadium (Boston)","1. Gruppenspiel","MagentaTV (Telekom) exklusiv"]
["2026-06-17T03:00:00",46190.125,"2026-06-16T20:00:00",19,"Argentinien (J1)","-","Algerien (J2)",null,":",null,"USA / Arrowhead Stadium (Kansas City)","1. Gruppenspiel","ARD und MagentaTV"]
["2026-06-17T06:00:00",46190.25,"2026-06-16T21:00:00",20,"Österreich (J3)","-","Jordanien (J4)",null,":",null,"USA / Levi's Stadium (San Francisco Bay Area)","1. Gruppenspiel","ZDF und MagentaTV"]
["2026-06-17T19:00:00",46190.791666666664,"2026-06-17T12:00:00",23,"Portugal (K1)","-","DR Kongo (K2)",null,":",null,"USA / NRG Stadium (Houston)","1. Gruppenspiel","ZDF und MagentaTV"]
["2026-06-17T22:00:00",46190.916666666664,"2026-06-17T15:00:00",22,"England (L1)","-","Kroatien (L2)",null,":",null,"USA / AT&T Stadium (Dallas)","1. Gruppenspiel","ZDF und MagentaTV"]
["2026-06-18T01:00:00",46191.041666666664,"2026-06-17T19:00:00",21,"Ghana (L3)","-","Panama (L4)",null,":",null,"Kanada / BMO Field (Toronto)","1. Gruppenspiel","MagentaTV (Telekom) exklusiv"]
["2026-06-18T04:00:00",46191.166666666664,"2026-06-17T20:00:00",24,"Usbekistan (K3)","-","Kolumbien (K4)",null,":",null,"Mexiko / Azteca (Mexico City)","1. Gruppenspiel","MagentaTV (Telekom) exklusiv"]
[]
[null,null,null,"Vor- und Nachname :",null,"Bitte hier eintragen !"]

{"sheet":"Vorrunde 25-48","index":1,"n_rows":25,"n_cols":13,"rows_kept":25,"cut":false,"hidden":false,"merged":[[0,4,0,6],[0,7,0,9]]}
["Spiele 25-48   (chronologisch)","Anstoßzeit","Ortszeit","Spiel-Nr.","Spielpaarungen / Gruppen",null,null,"Ergebnis",null,null,"Austragungsort / Stadion","Vorrunde","Live-TV Übertragungsrechte"]
["2026-06-18T18:00:00",46191.75,"2026-06-18T12:00:00",25,"Tschechien (A4)","-","Südafrika (A2)",null,":",null,"USA / Mercedes-Benz Stadium (Atlanta)","2. Gruppenspiel","ZDF und MagentaTV"]
["2026-06-18T21:00:00",46191.875,"2026-06-18T12:00:00",26,"Schweiz (B4)","-","Bosnien-Herzegowina (B2)",null,":",null,"USA / SoFi Stadium (Los Angeles)","2. Gruppenspiel","MagentaTV (Telekom) exklusiv"]
["2026-06-19",46192,"2026-06-18T15:00:00",27,"Kanada (B1)","-","Katar (B3)",null,":",null,"Kanada / BC Place Stadium (Vancouver)","2. Gruppenspiel","ZDF und MagentaTV"]
["2026-06-19T03:00:00",46192.125,"2026-06-18T19:00:00",28,"Mexiko (A1)","-","Südkorea (A3)",null,":",null,"Mexiko / Estadio Akron (Guadalajara)","2. Gruppenspiel","MagentaTV (Telekom) exklusiv"]
["2026-06-19T21:00:00",46192.875,"2026-06-19T12:00:00",32,"USA (D1)","-","Australien (D3)",null,":",null,"USA / Lumen Field (Seattle)","2. Gruppenspiel","ARD und MagentaTV"]
["2026-06-20",46193,"2026-06-19T18:00:00",30,"Schottland (C4)","-","Marokko (C2)",null,":",null,"USA / Gillette Stadium (Boston)","2. Gruppenspiel","MagentaTV (Telekom) exklusiv"]
["2026-06-20T03:00:00",46193.125,"2026-06-19T21:00:00",29,"Brasilien (C1)","-","Haiti (C3)",null,":",null,"USA / Lincoln Financial Field (Philadelphia)","2. Gruppenspiel","ARD und MagentaTV"]
["2026-06-20T06:00:00",46193.25,"2026-06-19T21:00:00",31,"Türkei (D4)","-","Paraguay (D2)",null,":",null,"USA / Levi's Stadium (San Francisco Bay Area)","2. Gruppenspiel","MagentaTV (Telekom) exklusiv"]
["2026-06-20T19:00:00",46193.791666666664,"2026-06-20T12:00:00",35,"Niederlande (F1)","-","Schweden (F3)",null,":",null,"USA / NRG Stadium (Houston)","2. Gruppenspiel","ZDF und MagentaTV"]
["2026-06-20T22:00:00",46193.916666666664,"2026-06-20T16:00:00",33,"Deutschland (E1)","-","Elfenbeinküste (E3)",null,":",null,"Kanada / BMO Field (Toronto)","2. Gruppenspiel","ZDF und MagentaTV"]
["2026-06-21T02:00:00",46194.083333333336,"2026-06-20T19:00:00",34,"Ecuador (E4)","-","Curaçao (E2)",null,":",null,"USA / Arrowhead Stadium (Kansas City)","2. Gruppenspiel","ZDF und MagentaTV"]
["2026-06-21T06:00:00",46194.25,"2026-06-20T22:00:00",36,"Tunesien (F4)","-","Japan (F2)",null,":",null,"Mexiko / Estadio BBVA (Monterrey)","2. Gruppenspiel","MagentaTV (Telekom) Free-TV"]
["2026-06-21T18:00:00",46194.75,"2026-06-21T12:00:00",38,"Spanien (H1)","-","Saudi-Arabien (H3)",null,":",null,"USA / Mercedes-Benz Stadium (Atlanta)","2. Gruppenspiel","MagentaTV (Telekom) exklusiv"]
["2026-06-21T21:00:00",46194.875,"2026-06-21T12:00:00",39,"Belgien (G1)","-","Iran (G3)",null,":",null,"USA / SoFi Stadium (Los Angeles)","2. Gruppenspiel","ZDF und MagentaTV"]
["2026-06-22",46195,"2026-06-21T18:00:00",37,"Uruguay (H4)","-","Kap Verde (H2)",null,":",null,"USA / Hard Rock Stadium (Miami)","2. Gruppenspiel","ARD und MagentaTV"]
["2026-06-22T03:00:00",46195.125,"2026-06-21T18:00:00",40,"Neuseeland (G4)","-","Ägypten (G2)",null,":",null,"Kanada / BC Place Stadium (Vancouver)","2. Gruppenspiel","MagentaTV (Telekom) exklusiv"]
["2026-06-22T19:00:00",46195.791666666664,"2026-06-22T12:00:00",43,"Argentinien (J1)","-","Österreich (J3)",null,":",null,"USA / AT&T Stadium (Dallas)","2. Gruppenspiel","ARD und MagentaTV"]
["2026-06-22T23:00:00",46195.958333333336,"2026-06-22T17:00:00",42,"Frankreich (I1)","-","Irak (I3)",null,":",null,"USA / Lincoln Financial Field (Philadelphia)","2. Gruppenspiel","ARD und MagentaTV"]
["2026-06-23T02:00:00",46196.083333333336,"2026-06-22T20:00:00",41,"Norwegen (I4)","-","Senegal (I2)",null,":",null,"USA / MetLife Stadium (New York/New Jersey)","2. Gruppenspiel","MagentaTV (Telekom) exklusiv"]
["2026-06-23T05:00:00",46196.208333333336,"2026-06-22T20:00:00",44,"Jordanien (J4)","-","Algerien (J2)",null,":",null,"USA / Levi's Stadium (San Francisco Bay Area)","2. Gruppenspiel","ZDF und MagentaTV"]
["2026-06-23T19:00:00",46196.791666666664,"2026-06-23T12:00:00",47,"Portugal (K1)","-","Usbekistan (K3)",null,":",null,"USA / NRG Stadium (Houston)","2. Gruppenspiel","ARD und MagentaTV"]
["2026-06-23T22:00:00",46196.916666666664,"2026-06-23T16:00:00",45,"England (L1)","-","Ghana (L3)",null,":",null,"USA / Gillette Stadium (Boston)","2. Gruppenspiel","ARD und MagentaTV"]
["2026-06-24T01:00:00",46197.041666666664,"2026-06-23T19:00:00",46,"Panama (L4)","-","Kroatien (L2)",null,":",null,"Kanada / BMO Field (Toronto)","2. Gruppenspiel","MagentaTV (Telekom) exklusiv"]
["2026-06-24T04:00:00",46197.166666666664,"2026-06-23T20:00:00",48,"Kolumbien (K4)","-","DR Kongo (K2)",null,":",null,"Mexiko / Estadio Akron (Guadalajara)","2. Gruppenspiel","ARD und MagentaTV"]

{"sheet":"Vorrunde 49-72","index":2,"n_rows":25,"n_cols":13,"rows_kept":25,"cut":false,"hidden":false,"merged":[[0,4,0,6],[0,7,0,9]]}
["Spiele 49-72   (chronologisch)","Anstoßzeit","Ortszeit","Spiel-Nr.","Spielpaarungen / Gruppen",null,null,"Ergebnis",null,null,"Austragungsort / Stadion","Vorrunde","Live-TV Übertragungsrechte"]
["2026-06-24T21:00:00",46197.875,"2026-06-24T12:00:00",51,"Schweiz (B4)","-","Kanada (B1)",null,":",null,"Kanada / BC Place Stadium (Vancouver)","3. Gruppenspiel","ARD 1 Spiel Gr. B und MagentaTV"]
["2026-06-24T21:00:00",46197.875,"2026-06-24T12:00:00",52,"Bosnien-Herzegowina (B2)","-","Katar (B3)",null,":",null,"USA / Lumen Field (Seattle)","3. Gruppenspiel","ARD 1 Spiel Gr. B und MagentaTV"]
["2026-06-25",46198,"2026-06-24T18:00:00",49,"Schottland (C4)","-","Brasilien (C1)",null,":",null,"USA / Hard Rock Stadium (Miami)","3. Gruppenspiel","MagentaTV (Telekom) exklusiv"]
["2026-06-25",46198,"2026-06-24T18:00:00",50,"Marokko (C2)","-","Haiti (C3)",null,":",null,"USA / Mercedes-Benz Stadium (Atlanta)","3. Gruppenspiel","ZDF und MagentaTV"]
["2026-06-25T03:00:00",46198.125,"2026-06-24T19:00:00",53,"Tschechien (A4)","-","Mexiko (A1)",null,":",null,"Mexiko / Azteca (Mexico City)","3. Gruppenspiel","MagentaTV (Telekom) exklusiv"]
["2026-06-25T03:00:00",46198.125,"2026-06-24T19:00:00",54,"Südafrika (A2)","-","Südkorea (A3)",null,":",null,"Mexiko / Estadio BBVA (Monterrey)","3. Gruppenspiel","MagentaTV (Telekom) exklusiv"]
["2026-06-25T22:00:00",46198.916666666664,"2026-06-25T16:00:00",55,"Curaçao (E2)","-","Elfenbeinküste (E3)",null,":",null,"USA / Lincoln Financial Field (Philadelphia)","3. Gruppenspiel","MagentaTV (Telekom) exklusiv"]
["2026-06-25T22:00:00",46198.916666666664,"2026-06-25T16:00:00",56,"Ecuador (E4)","-","Deutschland (E1)",null,":",null,"USA / MetLife Stadium (New York/New Jersey)","3. Gruppenspiel","ARD und MagentaTV"]
["2026-06-26T01:00:00",46199.041666666664,"2026-06-25T18:00:00",57,"Japan (F2)","-","Schweden (F3)",null,":",null,"USA / AT&T Stadium (Dallas)","3. Gruppenspiel","ARD 1 Spiel Gr. F und MagentaTV"]
["2026-06-26T01:00:00",46199.041666666664,"2026-06-25T18:00:00",58,"Tunesien (F4)","-","Niederlande (F1)",null,":",null,"USA / Arrowhead Stadium (Kansas City)","3. Gruppenspiel","ARD 1 Spiel Gr. F und MagentaTV"]
["2026-06-26T04:00:00",46199.166666666664,"2026-06-25T19:00:00",59,"Türkei (D4)","-","USA (D1)",null,":",null,"USA / SoFi Stadium (Los Angeles)","3. Gruppenspiel","MagentaTV (Telekom) exklusiv"]
["2026-06-26T04:00:00",46199.166666666664,"2026-06-25T19:00:00",60,"Paraguay (D2)","-","Australien (D3)",null,":",null,"USA / Levi's Stadium (San Francisco Bay Area)","3. Gruppenspiel","ARD und MagentaTV"]
["2026-06-26T21:00:00",46199.875,"2026-06-26T15:00:00",61,"Norwegen (I4)","-","Frankreich (I1)",null,":",null,"USA / Gillette Stadium (Boston)","3. Gruppenspiel","ZDF 1 Spiel Gr. I und MagentaTV"]
["2026-06-26T21:00:00",46199.875,"2026-06-26T15:00:00",62,"Senegal (I2)","-","Irak (I3)",null,":",null,"Kanada / BMO Field (Toronto)","3. Gruppenspiel","ZDF 1 Spiel Gr. I und MagentaTV"]
["2026-06-27T02:00:00",46200.083333333336,"2026-06-26T19:00:00",65,"Kap Verde (H2)","-","Saudi-Arabien (H3)",null,":",null,"USA / NRG Stadium (Houston)","3. Gruppenspiel","ARD 1 Spiel Gr. H und MagentaTV"]
["2026-06-27T02:00:00",46200.083333333336,"2026-06-26T18:00:00",66,"Uruguay (H4)","-","Spanien (H1)",null,":",null,"Mexiko / Estadio Akron (Guadalajara)","3. Gruppenspiel","ARD 1 Spiel Gr. H und MagentaTV"]
["2026-06-27T05:00:00",46200.208333333336,"2026-06-26T20:00:00",63,"Ägypten (G2)","-","Iran (G3)",null,":",null,"USA / Lumen Field (Seattle)","3. Gruppenspiel","MagentaTV (Telekom) exklusiv"]
["2026-06-27T05:00:00",46200.208333333336,"2026-06-26T20:00:00",64,"Neuseeland (G4)","-","Belgien (G1)",null,":",null,"Kanada / BC Place Stadium (Vancouver)","3. Gruppenspiel","MagentaTV (Telekom) exklusiv"]
["2026-06-27T23:00:00",46200.958333333336,"2026-06-27T17:00:00",67,"Panama (L4)","-","England (L1)",null,":",null,"USA / MetLife Stadium (New York/New Jersey)","3. Gruppenspiel","MagentaTV (Telekom) exklusiv"]
["2026-06-27T23:00:00",46200.958333333336,"2026-06-27T17:00:00",68,"Kroatien (L2)","-","Ghana (L3)",null,":",null,"USA / Lincoln Financial Field (Philadelphia)","3. Gruppenspiel","ZDF und MagentaTV"]
["2026-06-28T01:30:00",46201.0625,"2026-06-27T19:30:00",71,"Kolumbien (K4)","-","Portugal (K1)",null,":",null,"USA / Hard Rock Stadium (Miami)","3. Gruppenspiel","ZDF 1 Spiel Gr. K und MagentaTV"]
["2026-06-28T01:30:00",46201.0625,"2026-06-27T19:30:00",72,"DR Kongo (K2)","-","Usbekistan (K3)",null,":",null,"USA / Mercedes-Benz Stadium (Atlanta)","3. Gruppenspiel","ZDF 1 Spiel Gr. K und MagentaTV"]
["2026-06-28T04:00:00",46201.166666666664,"2026-06-27T21:00:00",69,"Algerien (J2)","-","Österreich (J3)",null,":",null,"USA / Arrowhead Stadium (Kansas City)","3. Gruppenspiel","ZDF 1 Spiel Gr. J und MagentaTV"]
["2026-06-28T04:00:00",46201.166666666664,"2026-06-27T21:00:00",70,"Jordanien (J4)","-","Argentinien (J1)",null,":",null,"USA / AT&T Stadium (Dallas)","3. Gruppenspiel","ZDF 1 Spiel Gr. J und MagentaTV"]

{"sheet":"Vorrunde (Tabellen)","index":3,"n_rows":497,"n_cols":101,"rows_kept":497,"cut":false,"hidden":false,"merged":[[114,9,114,29],[62,9,62,29],[51,9,51,29],[52,9,52,29],[53,9,53,29],[54,9,54,29],[55,9,55,29],[56,9,56,29],[57,9,57,29],[58,9,58,29],[59,9,59,29],[60,9,60,29],[61,9,61,29],[63,9,63,29],[64,9,64,29],[65,9,65,29],[66,9,66,29],[67,9,67,29],[68,9,68,29],[69,9,69,29],[70,9,70,29],[71,9,71,29],[72,9,72,29],[73,9,73,29],[105,9,105,29],[106,9,106,29],[107,9,107,29],[108,9,108,29],[109,9,109,29],[110,9,110,29],[111,9,111,29],[112,9,112,29],[113,9,113,29],[96,9,96,29],[97,9,97,29],[98,9,98,29],[99,9,99,29],[100,9,100,29],[101,9,101,29],[102,9,102,29],[103,9,103,29],[104,9,104,29],[87,9,87,29],[88,9,88,29],[89,9,89,29],[90,9,90,29],[91,9,91,29],[92,9,92,29],[93,9,93,29],[94,9,94,29],[95,9,95,29],[78,9,78,29],[79,9,79,29],[80,9,80,29],[81,9,81,29],[82,9,82,29],[83,9,83,29],[84,9,84,29],[85,9,85,29],[86,9,86,29],[74,9,74,29],[75,9,75,29],[76,9,76,29],[77,9,77,29],[57,37,57,40],[57,41,57,43],[57,58,57,63],[58,37,58,40],[58,41,58,43],[58,58,58,63],[59,41,59,43],[50,37,50,40],[50,41,50,63],[51,37,51,40],[51,41,51,43],[51,58,51,63],[52,37,52,40],[52,41,52,43],[52,58,52,63],[53,37,53,40],[53,41,53,43],[53,58,53,63],[54,37,54,40],[54,41,54,43],[54,58,54,63],[55,37,55,40],[55,41,55,43],[55,58,55,63],[56,37,56,40],[56,41,56,43],[56,58,56,63],[25,30,25,31],[26,30,26,31],[21,29,21,31],[21,32,21,35],[22,30,22,31],[22,32,22,34],[23,30,23,31],[24,30,24,31],[0,32,0,35],[1,30,1,31],[1,32,1,34],[2,30,2,31],[3,30,3,31],[12,30,12,31],[4,30,4,31],[5,30,5,31],[6,29,6,35],[7,29,7,31],[7,32,7,35],[8,30,8,31],[8,32,8,34],[9,30,9,31],[10,30,10,31],[11,30,11,31],[13,0,13,6],[14,0,14,2],[14,3,14,6],[3,1,3,2],[4,1,4,2],[5,1,5,2],[0,29,0,31],[0,0,0,2],[0,3,0,6],[1,1,1,2],[1,3,1,5],[2,1,2,2],[13,29,13,35],[14,29,14,31],[14,32,14,35],[6,0,6,6],[7,0,7,2],[7,3,7,6],[8,1,8,2],[8,3,8,5],[9,1,9,2],[10,1,10,2],[11,1,11,2],[12,1,12,2],[15,1,15,2],[15,3,15,5],[15,59,15,60],[15,61,15,63],[25,1,25,2],[26,1,26,2],[19,1,19,2],[20,0,20,6],[21,0,21,2],[21,3,21,6],[22,1,22,2],[22,3,22,5],[23,1,23,2],[24,1,24,2],[16,1,16,2],[17,1,17,2],[18,1,18,2],[20,29,20,35],[15,30,15,31],[15,32,15,34],[16,30,16,31],[17,30,17,31],[18,30,18,31],[19,30,19,31],[16,59,16,60],[17,59,17,60],[18,59,18,60],[12,59,12,60],[13,58,13,64],[14,58,14,60],[14,61,14,64],[26,59,26,60],[0,61,0,64],[1,59,1,60],[1,61,1,63],[2,59,2,60],[3,59,3,60],[0,58,0,60],[4,59,4,60],[5,59,5,60],[6,58,6,64],[7,58,7,60],[7,61,7,64],[8,59,8,60],[8,61,8,63],[9,59,9,60],[10,59,10,60],[11,59,11,60],[22,59,22,60],[22,61,22,63],[23,59,23,60],[24,59,24,60],[25,59,25,60],[19,59,19,60],[20,58,20,64],[21,58,21,60],[21,61,21,64],[45,6,45,7],[45,9,45,11],[43,1,43,2],[43,6,43,7],[43,9,43,11],[41,1,41,2],[41,6,41,7],[41,9,41,11],[42,1,42,2],[42,6,42,7],[42,9,42,11],[35,0,35,11],[36,1,36,2],[36,3,36,5],[36,6,36,7],[36,9,36,11],[37,9,37,11],[37,1,37,2],[37,6,37,7],[46,1,46,2],[46,6,46,7],[46,9,46,11],[44,1,44,2],[44,6,44,7],[44,9,44,11],[38,1,38,2],[38,6,38,7],[38,9,38,11],[39,1,39,2],[39,6,39,7],[39,9,39,11],[40,1,40,2],[40,6,40,7],[40,9,40,11],[45,1,45,2],[55,1,55,5],[51,1,51,5],[52,1,52,5],[53,1,53,5],[54,1,54,5],[47,1,47,2],[47,6,47,7],[47,9,47,11],[48,1,48,2],[48,6,48,7],[48,9,48,11],[50,1,50,5],[50,9,50,29],[73,1,73,5],[56,1,56,5],[57,1,57,5],[58,1,58,5],[59,1,59,5],[60,1,60,5],[61,1,61,5],[62,1,62,5],[63,1,63,5],[64,1,64,5],[65,1,65,5],[66,1,66,5],[67,1,67,5],[68,1,68,5],[69,1,69,5],[70,1,70,5],[71,1,71,5],[72,1,72,5],[74,1,74,5],[75,1,75,5],[76,1,76,5],[77,1,77,5],[78,1,78,5],[79,1,79,5],[80,1,80,5],[81,1,81,5],[106,1,106,5],[82,1,82,5],[83,1,83,5],[84,1,84,5],[85,1,85,5],[86,1,86,5],[87,1,87,5],[88,1,88,5],[89,1,89,5],[113,1,113,5],[114,1,114,5],[90,1,90,5],[91,1,91,5],[92,1,92,5],[93,1,93,5],[94,1,94,5],[95,1,95,5],[96,1,96,5],[97,1,97,5],[98,1,98,5],[99,1,99,5],[100,1,100,5],[101,1,101,5],[102,1,102,5],[103,1,103,5],[104,1,104,5],[105,1,105,5],[111,1,111,5],[112,1,112,5],[107,1,107,5],[108,1,108,5],[109,1,109,5],[110,1,110,5]]}
[null,null,null,"Gruppe A",null,null,null," / ","Mexiko","-","Südafrika",{"$f":"IF('Vorrunde 01-24'!$H$2<>\"\",'Vorrunde 01-24'!$H$2,\"\")","v":""},":",{"$f":"IF('Vorrunde 01-24'!$J$2<>\"\",'Vorrunde 01-24'!$J$2,\"\")","v":""},null,null,null,null,null,null,null,null,null,null,null,null,null,null,null,null,null,null,"Gruppe E",null,null,null,null,"Deutschland","-","Curaçao",{"$f":"IF('Vorrunde 01-24'!$H$10<>\"\",'Vorrunde 01-24'!$H$10,\"\")","v":""},":",{"$f":"IF('Vorrunde 01-24'!$J$10<>\"\",'Vorrunde 01-24'!$J$10,\"\")","v":""},null,null,null,null,null,null,null,null,null,null,null,null,null,null,null,null,null,null,"Gruppe I",null,null,null,null,"Frankreich","-","Senegal",{"$f":"IF('Vorrunde 01-24'!$H$18<>\"\",'Vorrunde 01-24'!$H$18,\"\")","v":""},":",{"$f":"IF('Vorrunde 01-24'!$J$18<>\"\",'Vorrunde 01-24'!$J$18,\"\")","v":""},null,null,null,null,null,null,null,null,null,null,null,null,null,null,null,null,null,null,null,null,"Zuordnung","1. Gruppe A  vs.  3. Gruppe","1. Gruppe B  vs.  3. Gruppe","1. Gruppe D  vs.  3. Gruppe","1. Gruppe E  vs.  3. Gruppe","1. Gruppe G  vs.  3. Gruppe","1. Gruppe I  vs.  3. Gruppe","1. Gruppe K  vs.  3. Gruppe","1. Gruppe L  vs.  3. Gruppe"]
["PLATZ","MANNSCHAFT",null,"TORE",null,null,"PUNKTE",null,"Südkorea","-","Tschechien",{"$f":"IF('Vorrunde 01-24'!$H$3<>\"\",'Vorrunde 01-24'!$H$3,\"\")","v":""},":",{"$f":"IF('Vorrunde 01-24'!$J$3<>\"\",'Vorrunde 01-24'!$J$3,\"\")","v":""},null,null,null,null,null,null,null,null,null,null,null,null,null,null,null,"PLATZ","MANNSCHAFT",null,"TORE",null,null,"PUNKTE",null,"Elfenbeinküste","-","Ecuador",{"$f":"IF('Vorrunde 01-24'!$H$12<>\"\",'Vorrunde 01-24'!$H$12,\"\")","v":""},":",{"$f":"IF('Vorrunde 01-24'!$J$12<>\"\",'Vorrunde 01-24'!$J$12,\"\")","v":""},null,null,null,null,null,null,null,null,null,null,null,null,null,null,null,"PLATZ","MANNSCHAFT",null,"TORE",null,null,"PUNKTE",null,"Irak","-","Norwegen",{"$f":"IF('Vorrunde 01-24'!$H$19<>\"\",'Vorrunde 01-24'!$H$19,\"\")","v":""},":",{"$f":"IF('Vorrunde 01-24'!$J$19<>\"\",'Vorrunde 01-24'!$J$19,\"\")","v":""},null,null,null,null,null,null,null,null,null,null,null,null,null,null,null,null,null,null,null,null,"ABCDEFGH",{"$f":"$BB$26","v":"Saudi-Arabien"},{"$f":"$BB$19","v":"Iran"},{"$f":"$Y$12","v":"Katar"},{"$f":"$Y$19","v":"Haiti"},{"$f":"$Y$5","v":"Südkorea"},{"$f":"$BB$12","v":"Schweden"},{"$f":"$Y$26","v":"Australien"},{"$f":"$BB$5","v":"Elfenbeinküste"}]
[{"$f":"IF(L1<>\"\",\"1.\",\"\")","v":""},{"$f":"IF(Y3<>\"\",Y3,\"\")","v":"Mexiko"},null,{"$f":"IF(L1<>\"\",Z3,\"\")","v":""},":",{"$f":"IF(L1<>\"\",AA3,\"\")","v":""},{"$f":"IF(AC3<>\"\",AC3,\"\")","v":0},null,"Tschechien","-","Südafrika",{"$f":"IF('Vorrunde 25-48'!$H$2<>\"\",'Vorrunde 25-48'!$H$2,\"\")","v":""},":",{"$f":"IF('Vorrunde 25-48'!$J$2<>\"\",'Vorrunde 25-48'!$J$2,\"\")","v":""},null,{"$f":"SUM(L1,L4,N5)","v":0},{"$f":"SUM(N1,N4,L5)","v":0},{"$f":"IF(L1>N1,3,0)","v":0},{"$f":"IF(AND(L1=N1,N1<>\"\"),1,0)","v":0},{"$f":"IF(L4>N4,3,0)","v":0},{"$f":"IF(AND(L4=N4,N4<>\"\"),1,0)","v":0},{"$f":"IF(N5>L5,3,0)","v":0},{"$f":"IF(AND(N5=L5,N5<>\"\"),1,0)","v":0},{"$f":"SUM(R3:W3)","v":0},"Mexiko",{"$f":"$P$3","v":0},{"$f":"$Q$3","v":0},{"$f":"Z3-AA3","v":0},{"$f":"$X$3","v":0},{"$f":"IF(AO1<>\"\",\"1.\",\"\")","v":""},{"$f":"IF(BB3<>\"\",BB3,\"\")","v":"Deutschland"},null,{"$f":"IF(AO1<>\"\",BC3,\"\")","v":""},":",{"$f":"IF(AO1<>\"\",BD3,\"\")","v":""},{"$f":"IF(BF3<>\"\",BF3,\"\")","v":0},null,"Ecuador","-","Curaçao",{"$f":"IF('Vorrunde 25-48'!$H$12<>\"\",'Vorrunde 25-48'!$H$12,\"\")","v":""},":",{"$f":"IF('Vorrunde 25-48'!$J$12<>\"\",'Vorrunde 25-48'!$J$12,\"\")","v":""},null,{"$f":"SUM(AO1,AO4,AQ5)","v":0},{"$f":"SUM(AQ1,AQ4,AO5)","v":0},{"$f":"IF(AO1>AQ1,3,0)","v":0},{"$f":"IF(AND(AO1=AQ1,AQ1<>\"\"),1,0)","v":0},{"$f":"IF(AO4>AQ4,3,0)","v":0},{"$f":"IF(AND(AO4=AQ4,AQ4<>\"\"),1,0)","v":0},{"$f":"IF(AQ5>AO5,3,0)","v":0},{"$f":"IF(AND(AQ5=AO5,AQ5<>\"\"),1,0)","v":0},{"$f":"SUM(AU3:AZ3)","v":0},"Deutschland",{"$f":"$AS$3","v":0},{"$f":"$AT$3","v":0},{"$f":"BC3-BD3","v":0},{"$f":"$BA$3","v":0},{"$f":"IF(BR1<>\"\",\"1.\",\"\")","v":""},{"$f":"IF(CE3<>\"\",CE3,\"\")","v":"Frankreich"},null,{"$f":"IF(BR1<>\"\",CF3,\"\")","v":""},":",{"$f":"IF(BR1<>\"\",CG3,\"\")","v":""},{"$f":"IF(CI3<>\"\",CI3,\"\")","v":0},null,"Norwegen","-","Senegal",{"$f":"IF('Vorrunde 25-48'!$H$20<>\"\",'Vorrunde 25-48'!$H$20,\"\")","v":""},":",{"$f":"IF('Vorrunde 25-48'!$J$20<>\"\",'Vorrunde 25-48'!$J$20,\"\")","v":""},null,{"$f":"SUM(BR1,BR4,BT5)","v":0},{"$f":"SUM(BT1,BT4,BR5)","v":0},{"$f":"IF(BR1>BT1,3,0)","v":0},{"$f":"IF(AND(BR1=BT1,BT1<>\"\"),1,0)","v":0},{"$f":"IF(BR4>BT4,3,0)","v":0},{"$f":"IF(AND(BR4=BT4,BT4<>\"\"),1,0)","v":0},{"$f":"IF(BT5>BR5,3,0)","v":0},{"$f":"IF(AND(BT5=BR5,BT5<>\"\"),1,0)","v":0},{"$f":"SUM(BX3:CC3)","v":0},"Frankreich",{"$f":"$BV$3","v":0},{"$f":"$BW$3","v":0},{"$f":"CF3-CG3","v":0},{"$f":"$CD$3","v":0},null,null,null,null,null,"ABCDEFGI",{"$f":"$Y$19","v":"Haiti"},{"$f":"$BB$19","v":"Iran"},"Katar",{"$f":"$Y$26","v":"Australien"},"Südkorea","Schweden",{"$f":"$BB$5","v":"Elfenbeinküste"},{"$f":"$CE$5","v":"Irak"}]
[{"$f":"IF(L1<>\"\",\"2.\",\"\")","v":""},{"$f":"IF(Y4<>\"\",Y4,\"\")","v":"Südafrika"},null,{"$f":"IF(L1<>\"\",Z4,\"\")","v":""},":",{"$f":"IF(L1<>\"\",AA4,\"\")","v":""},{"$f":"IF(AC4<>\"\",AC4,\"\")","v":0},null,"Mexiko","-","Südkorea",{"$f":"IF('Vorrunde 25-48'!$H$5<>\"\",'Vorrunde 25-48'!$H$5,\"\")","v":""},":",{"$f":"IF('Vorrunde 25-48'!$J$5<>\"\",'Vorrunde 25-48'!$J$5,\"\")","v":""},null,{"$f":"SUM(N1,N3,L6)","v":0},{"$f":"SUM(L1,L3,N6)","v":0},{"$f":"IF(N1>L1,3,0)","v":0},{"$f":"IF(AND(N1=L1,N1<>\"\"),1,0)","v":0},{"$f":"IF(N3>L3,3,0)","v":0},{"$f":"IF(AND(N3=L3,N3<>\"\"),1,0)","v":0},{"$f":"IF(L6>N6,3,0)","v":0},{"$f":"IF(AND(L6=N6,N6<>\"\"),1,0)","v":0},{"$f":"SUM(R4:W4)","v":0},"Südafrika",{"$f":"$P$4","v":0},{"$f":"$Q$4","v":0},{"$f":"Z4-AA4","v":0},{"$f":"$X$4","v":0},{"$f":"IF(AO1<>\"\",\"2.\",\"\")","v":""},{"$f":"IF(BB4<>\"\",BB4,\"\")","v":"Curaçao"},null,{"$f":"IF(AO1<>\"\",BC4,\"\")","v":""},":",{"$f":"IF(AO1<>\"\",BD4,\"\")","v":""},{"$f":"IF(BF4<>\"\",BF4,\"\")","v":0},null,"Deutschland","-","Elfenbeinküste",{"$f":"IF('Vorrunde 25-48'!$H$11<>\"\",'Vorrunde 25-48'!$H$11,\"\")","v":""},":",{"$f":"IF('Vorrunde 25-48'!$J$11<>\"\",'Vorrunde 25-48'!$J$11,\"\")","v":""},null,{"$f":"SUM(AQ1,AQ3,AO6)","v":0},{"$f":"SUM(AO1,AO3,AQ6)","v":0},{"$f":"IF(AQ1>AO1,3,0)","v":0},{"$f":"IF(AND(AQ1=AO1,AQ1<>\"\"),1,0)","v":0},{"$f":"IF(AQ3>AO3,3,0)","v":0},{"$f":"IF(AND(AQ3=AO3,AQ3<>\"\"),1,0)","v":0},{"$f":"IF(AO6>AQ6,3,0)","v":0},{"$f":"IF(AND(AO6=AQ6,AQ6<>\"\"),1,0)","v":0},{"$f":"SUM(AU4:AZ4)","v":0},"Curaçao",{"$f":"$AS$4","v":0},{"$f":"$AT$4","v":0},{"$f":"BC4-BD4","v":0},{"$f":"$BA$4","v":0},{"$f":"IF(BR1<>\"\",\"2.\",\"\")","v":""},{"$f":"IF(CE4<>\"\",CE4,\"\")","v":"Senegal"},null,{"$f":"IF(BR1<>\"\",CF4,\"\")","v":""},":",{"$f":"IF(BR1<>\"\",CG4,\"\")","v":""},{"$f":"IF(CI4<>\"\",CI4,\"\")","v":0},null,"Frankreich","-","Irak",{"$f":"IF('Vorrunde 25-48'!$H$19<>\"\",'Vorrunde 25-48'!$H$19,\"\")","v":""},":",{"$f":"IF('Vorrunde 25-48'!$J$19<>\"\",'Vorrunde 25-48'!$J$19,\"\")","v":""},null,{"$f":"SUM(BT1,BT3,BR6)","v":0},{"$f":"SUM(BR1,BR3,BT6)","v":0},{"$f":"IF(BT1>BR1,3,0)","v":0},{"$f":"IF(AND(BT1=BR1,BT1<>\"\"),1,0)","v":0},{"$f":"IF(BT3>BR3,3,0)","v":0},{"$f":"IF(AND(BT3=BR3,BT3<>\"\"),1,0)","v":0},{"$f":"IF(BR6>BT6,3,0)","v":0},{"$f":"IF(AND(BR6=BT6,BT6<>\"\"),1,0)","v":0},{"$f":"SUM(BX4:CC4)","v":0},"Senegal",{"$f":"$BV$4","v":0},{"$f":"$BW$4","v":0},{"$f":"CF4-CG4","v":0},{"$f":"$CD$4","v":0},null,null,null,null,null,"ABCDEFGJ",{"$f":"$Y$19","v":"Haiti"},{"$f":"$BB$19","v":"Iran"},"Katar",{"$f":"$Y$26","v":"Australien"},"Südkorea","Schweden",{"$f":"$BB$5","v":"Elfenbeinküste"},{"$f":"$CE$12","v":"Österreich"}]
[{"$f":"IF(L1<>\"\",\"3.\",\"\")","v":""},{"$f":"IF(Y5<>\"\",Y5,\"\")","v":"Südkorea"},null,{"$f":"IF(L1<>\"\",Z5,\"\")","v":""},":",{"$f":"IF(L1<>\"\",AA5,\"\")","v":""},{"$f":"IF(AC5<>\"\",AC5,\"\")","v":0},null,"Tschechien","-","Mexiko",{"$f":"IF('Vorrunde 49-72'!$H$6<>\"\",'Vorrunde 49-72'!$H$6,\"\")","v":""},":",{"$f":"IF('Vorrunde 49-72'!$J$6<>\"\",'Vorrunde 49-72'!$J$6,\"\")","v":""},null,{"$f":"SUM(L2,N4,N6)","v":0},{"$f":"SUM(N2,L4,L6)","v":0},{"$f":"IF(L2>N2,3,0)","v":0},{"$f":"IF(AND(L2=N2,N2<>\"\"),1,0)","v":0},{"$f":"IF(N4>L4,3,0)","v":0},{"$f":"IF(AND(N4=L4,N4<>\"\"),1,0)","v":0},{"$f":"IF(N6>L6,3,0)","v":0},{"$f":"IF(AND(N6=L6,N6<>\"\"),1,0)","v":0},{"$f":"SUM(R5:W5)","v":0},"Südkorea",{"$f":"$P$5","v":0},{"$f":"$Q$5","v":0},{"$f":"Z5-AA5","v":0},{"$f":"$X$5","v":0},{"$f":"IF(AO1<>\"\",\"3.\",\"\")","v":""},{"$f":"IF(BB5<>\"\",BB5,\"\")","v":"Elfenbeinküste"},null,{"$f":"IF(AO1<>\"\",BC5,\"\")","v":""},":",{"$f":"IF(AO1<>\"\",BD5,\"\")","v":""},{"$f":"IF(BF5<>\"\",BF5,\"\")","v":0},null,"Ecuador","-","Deutschland",{"$f":"IF('Vorrunde 49-72'!$H$9<>\"\",'Vorrunde 49-72'!$H$9,\"\")","v":""},":",{"$f":"IF('Vorrunde 49-72'!$J$9<>\"\",'Vorrunde 49-72'!$J$9,\"\")","v":""},null,{"$f":"SUM(AO2,AQ4,AQ6)","v":0},{"$f":"SUM(AQ2,AO4,AO6)","v":0},{"$f":"IF(AO2>AQ2,3,0)","v":0},{"$f":"IF(AND(AO2=AQ2,AQ2<>\"\"),1,0)","v":0},{"$f":"IF(AQ4>AO4,3,0)","v":0},{"$f":"IF(AND(AQ4=AO4,AQ4<>\"\"),1,0)","v":0},{"$f":"IF(AQ6>AO6,3,0)","v":0},{"$f":"IF(AND(AQ6=AO6,AQ6<>\"\"),1,0)","v":0},{"$f":"SUM(AU5:AZ5)","v":0},"Elfenbeinküste",{"$f":"$AS$5","v":0},{"$f":"$AT$5","v":0},{"$f":"BC5-BD5","v":0},{"$f":"$BA$5","v":0},{"$f":"IF(BR1<>\"\",\"3.\",\"\")","v":""},{"$f":"IF(CE5<>\"\",CE5,\"\")","v":"Irak"},null,{"$f":"IF(BR1<>\"\",CF5,\"\")","v":""},":",{"$f":"IF(BR1<>\"\",CG5,\"\")","v":""},{"$f":"IF(CI5<>\"\",CI5,\"\")","v":0},null,"Norwegen","-","Frankreich",{"$f":"IF('Vorrunde 49-72'!$H$14<>\"\",'Vorrunde 49-72'!$H$14,\"\")","v":""},":",{"$f":"IF('Vorrunde 49-72'!$J$14<>\"\",'Vorrunde 49-72'!$J$14,\"\")","v":""},null,{"$f":"SUM(BR2,BT4,BT6)","v":0},{"$f":"SUM(BT2,BR4,BR6)","v":0},{"$f":"IF(BR2>BT2,3,0)","v":0},{"$f":"IF(AND(BR2=BT2,BT2<>\"\"),1,0)","v":0},{"$f":"IF(BT4>BR4,3,0)","v":0},{"$f":"IF(AND(BT4=BR4,BT4<>\"\"),1,0)","v":0},{"$f":"IF(BT6>BR6,3,0)","v":0},{"$f":"IF(AND(BT6=BR6,BT6<>\"\"),1,0)","v":0},{"$f":"SUM(BX5:CC5)","v":0},"Irak",{"$f":"$BV$5","v":0},{"$f":"$BW$5","v":0},{"$f":"CF5-CG5","v":0},{"$f":"$CD$5","v":0},null,null,null,null,null,"ABCDEFGK",{"$f":"$Y$19","v":"Haiti"},{"$f":"$BB$19","v":"Iran"},"Katar",{"$f":"$Y$26","v":"Australien"},"Südkorea","Schweden",{"$f":"$BB$5","v":"Elfenbeinküste"},{"$f":"$CE$19","v":"Usbekistan"}]
[{"$f":"IF(L1<>\"\",\"4.\",\"\")","v":""},{"$f":"IF(Y6<>\"\",Y6,\"\")","v":"Tschechien"},null,{"$f":"IF(L1<>\"\",Z6,\"\")","v":""},":",{"$f":"IF(L1<>\"\",AA6,\"\")","v":""},{"$f":"IF(AC6<>\"\",AC6,\"\")","v":0},null,"Südafrika","-","Südkorea",{"$f":"IF('Vorrunde 49-72'!$H$7<>\"\",'Vorrunde 49-72'!$H$7,\"\")","v":""},":",{"$f":"IF('Vorrunde 49-72'!$J$7<>\"\",'Vorrunde 49-72'!$J$7,\"\")","v":""},null,{"$f":"SUM(N2,L3,L5)","v":0},{"$f":"SUM(L2,N3,N5)","v":0},{"$f":"IF(N2>L2,3,0)","v":0},{"$f":"IF(AND(N2=L2,N2<>\"\"),1,0)","v":0},{"$f":"IF(L3>N3,3,0)","v":0},{"$f":"IF(AND(L3=N3,N3<>\"\"),1,0)","v":0},{"$f":"IF(L5>N5,3,0)","v":0},{"$f":"IF(AND(L5=N5,N5<>\"\"),1,0)","v":0},{"$f":"SUM(R6:W6)","v":0},"Tschechien",{"$f":"$P$6","v":0},{"$f":"$Q$6","v":0},{"$f":"Z6-AA6","v":0},{"$f":"$X$6","v":0},{"$f":"IF(AO1<>\"\",\"4.\",\"\")","v":""},{"$f":"IF(BB6<>\"\",BB6,\"\")","v":"Ecuador"},null,{"$f":"IF(AO1<>\"\",BC6,\"\")","v":""},":",{"$f":"IF(AO1<>\"\",BD6,\"\")","v":""},{"$f":"IF(BF6<>\"\",BF6,\"\")","v":0},null,"Curaçao","-","Elfenbeinküste",{"$f":"IF('Vorrunde 49-72'!$H$8<>\"\",'Vorrunde 49-72'!$H$8,\"\")","v":""},":",{"$f":"IF('Vorrunde 49-72'!$J$8<>\"\",'Vorrunde 49-72'!$J$8,\"\")","v":""},null,{"$f":"SUM(AQ2,AO3,AO5)","v":0},{"$f":"SUM(AO2,AQ3,AQ5)","v":0},{"$f":"IF(AQ2>AO2,3,0)","v":0},{"$f":"IF(AND(AQ2=AO2,AQ2<>\"\"),1,0)","v":0},{"$f":"IF(AO3>AQ3,3,0)","v":0},{"$f":"IF(AND(AO3=AQ3,AQ3<>\"\"),1,0)","v":0},{"$f":"IF(AO5>AQ5,3,0)","v":0},{"$f":"IF(AND(AO5=AQ5,AQ5<>\"\"),1,0)","v":0},{"$f":"SUM(AU6:AZ6)","v":0},"Ecuador",{"$f":"$AS$6","v":0},{"$f":"$AT$6","v":0},{"$f":"BC6-BD6","v":0},{"$f":"$BA$6","v":0},{"$f":"IF(BR1<>\"\",\"4.\",\"\")","v":""},{"$f":"IF(CE6<>\"\",CE6,\"\")","v":"Norwegen"},null,{"$f":"IF(BR1<>\"\",CF6,\"\")","v":""},":",{"$f":"IF(BR1<>\"\",CG6,\"\")","v":""},{"$f":"IF(CI6<>\"\",CI6,\"\")","v":0},null,"Senegal","-","Irak",{"$f":"IF('Vorrunde 49-72'!$H$15<>\"\",'Vorrunde 49-72'!$H$15,\"\")","v":""},":",{"$f":"IF('Vorrunde 49-72'!$J$15<>\"\",'Vorrunde 49-72'!$J$15,\"\")","v":""},null,{"$f":"SUM(BT2,BR3,BR5)","v":0},{"$f":"SUM(BR2,BT3,BT5)","v":0},{"$f":"IF(BT2>BR2,3,0)","v":0},{"$f":"IF(AND(BT2=BR2,BT2<>\"\"),1,0)","v":0},{"$f":"IF(BR3>BT3,3,0)","v":0},{"$f":"IF(AND(BR3=BT3,BT3<>\"\"),1,0)","v":0},{"$f":"IF(BR5>BT5,3,0)","v":0},{"$f":"IF(AND(BR5=BT5,BT5<>\"\"),1,0)","v":0},{"$f":"SUM(BX6:CC6)","v":0},"Norwegen",{"$f":"$BV$6","v":0},{"$f":"$BW$6","v":0},{"$f":"CF6-CG6","v":0},{"$f":"$CD$6","v":0},null,null,null,null,null,"ABCDEFGL",{"$f":"$Y$19","v":"Haiti"},{"$f":"$BB$19","v":"Iran"},"Katar",{"$f":"$Y$26","v":"Australien"},"Südkorea","Schweden",{"$f":"$CE$26","v":"Ghana"},{"$f":"$BB$5","v":"Elfenbeinküste"}]
[null,null,null,null,null,null,null,null,"",null,"",null,null,null,null,null,null,null,null,null,null,null,null,null,null,null,null,null,null,null,null,null,null,null,null,null,null,"",null,"",null,null,null,null,null,null,null,null,null,null,null,null,null,null,null,null,null,null,null,null,null,null,null,null,null,null,"",null,"",null,null,null,null,null,null,null,null,null,null,null,null,null,null,null,null,null,null,null,null,null,null,null,"ABCDEFHI",{"$f":"$BB$26","v":"Saudi-Arabien"},{"$f":"$BB$5","v":"Elfenbeinküste"},"Katar",{"$f":"$Y$19","v":"Haiti"},"Südkorea","Schweden",{"$f":"$Y$26","v":"Australien"},{"$f":"$CE$5","v":"Irak"}]
[null,null,null,"Gruppe B",null,null,null,null,"Kanada","-","Bosnien-Herzegowina",{"$f":"IF('Vorrunde 01-24'!$H$4<>\"\",'Vorrunde 01-24'!$H$4,\"\")","v":""},":",{"$f":"IF('Vorrunde 01-24'!$J$4<>\"\",'Vorrunde 01-24'!$J$4,\"\")","v":""},null,null,null,null,null,null,null,null,null,null,null,null,null,null,null,null,null,null,"Gruppe F",null,null,null,null,"Niederlande","-","Japan",{"$f":"IF('Vorrunde 01-24'!$H$11<>\"\",'Vorrunde 01-24'!$H$11,\"\")","v":""},":",{"$f":"IF('Vorrunde 01-24'!$J$11<>\"\",'Vorrunde 01-24'!$J$11,\"\")","v":""},null,null,null,null,null,null,null,null,null,null,null,null,null,null,null,null,null,null,"Gruppe J",null,null,null,null,"Argentinien","-","Algerien",{"$f":"IF('Vorrunde 01-24'!$H$20<>\"\",'Vorrunde 01-24'!$H$20,\"\")","v":""},":",{"$f":"IF('Vorrunde 01-24'!$J$20<>\"\",'Vorrunde 01-24'!$J$20,\"\")","v":""},null,null,null,null,null,null,null,null,null,null,null,null,null,null,null,null,null,null,null,null,"ABCDEFHJ",{"$f":"$BB$26","v":"Saudi-Arabien"},{"$f":"$CE$12","v":"Österreich"},"Katar",{"$f":"$Y$19","v":"Haiti"},"Südkorea","Schweden",{"$f":"$Y$26","v":"Australien"},{"$f":"$BB$5","v":"Elfenbeinküste"}]
["PLATZ","MANNSCHAFT",null,"TORE",null,null,"PUNKTE",null,"Katar","-","Schweiz",{"$f":"IF('Vorrunde 01-24'!$H$6<>\"\",'Vorrunde 01-24'!$H$6,\"\")","v":""},":",{"$f":"IF('Vorrunde 01-24'!$J$6<>\"\",'Vorrunde 01-24'!$J$6,\"\")","v":""},null,null,null,null,null,null,null,null,null,null,null,null,null,null,null,"PLATZ","MANNSCHAFT",null,"TORE",null,null,"PUNKTE",null,"Schweden","-","Tunesien",{"$f":"IF('Vorrunde 01-24'!$H$13<>\"\",'Vorrunde 01-24'!$H$13,\"\")","v":""},":",{"$f":"IF('Vorrunde 01-24'!$J$13<>\"\",'Vorrunde 01-24'!$J$13,\"\")","v":""},null,null,null,null,null,null,null,null,null,null,null,null,null,null,null,"PLATZ","MANNSCHAFT",null,"TORE",null,null,"PUNKTE",null,"Österreich","-","Jordanien",{"$f":"IF('Vorrunde 01-24'!$H$21<>\"\",'Vorrunde 01-24'!$H$21,\"\")","v":""},":",{"$f":"IF('Vorrunde 01-24'!$J$21<>\"\",'Vorrunde 01-24'!$J$21,\"\")","v":""},null,null,null,null,null,null,null,null,null,null,null,null,null,null,null,null,null,null,null,null,"ABCDEFHK",{"$f":"$BB$26","v":"Saudi-Arabien"},{"$f":"$BB$5","v":"Elfenbeinküste"},"Katar",{"$f":"$Y$19","v":"Haiti"},"Südkorea","Schweden",{"$f":"$Y$26","v":"Australien"},{"$f":"$CE$19","v":"Usbekistan"}]
[{"$f":"IF(L8<>\"\",\"1.\",\"\")","v":""},{"$f":"IF(Y10<>\"\",Y10,\"\")","v":"Kanada"},null,{"$f":"IF(L8<>\"\",Z10,\"\")","v":""},":",{"$f":"IF(L8<>\"\",AA10,\"\")","v":""},{"$f":"IF(AC10<>\"\",AC10,\"\")","v":0},null,"Schweiz","-","Bosnien-Herzegowina",{"$f":"IF('Vorrunde 25-48'!$H$3<>\"\",'Vorrunde 25-48'!$H$3,\"\")","v":""},":",{"$f":"IF('Vorrunde 25-48'!$J$3<>\"\",'Vorrunde 25-48'!$J$3,\"\")","v":""},null,{"$f":"SUM(L8,L11,N12)","v":0},{"$f":"SUM(N8,N11,L12)","v":0},{"$f":"IF(L8>N8,3,0)","v":0},{"$f":"IF(AND(L8=N8,N8<>\"\"),1,0)","v":0},{"$f":"IF(L11>N11,3,0)","v":0},{"$f":"IF(AND(L11=N11,N11<>\"\"),1,0)","v":0},{"$f":"IF(N12>L12,3,0)","v":0},{"$f":"IF(AND(N12=L12,N12<>\"\"),1,0)","v":0},{"$f":"SUM(R10:W10)","v":0},"Kanada",{"$f":"$P$10","v":0},{"$f":"$Q$10","v":0},{"$f":"Z10-AA10","v":0},{"$f":"$X$10","v":0},{"$f":"IF(AO8<>\"\",\"1.\",\"\")","v":""},{"$f":"IF(BB10<>\"\",BB10,\"\")","v":"Niederlande"},null,{"$f":"IF(AO8<>\"\",BC10,\"\")","v":""},":",{"$f":"IF(AO8<>\"\",BD10,\"\")","v":""},{"$f":"IF(BF10<>\"\",BF10,\"\")","v":0},null,"Tunesien","-","Japan",{"$f":"IF('Vorrunde 25-48'!$H$13<>\"\",'Vorrunde 25-48'!$H$13,\"\")","v":""},":",{"$f":"IF('Vorrunde 25-48'!$J$13<>\"\",'Vorrunde 25-48'!$J$13,\"\")","v":""},null,{"$f":"SUM(AO8,AO11,AQ12)","v":0},{"$f":"SUM(AQ8,AQ11,AO12)","v":0},{"$f":"IF(AO8>AQ8,3,0)","v":0},{"$f":"IF(AND(AO8=AQ8,AQ8<>\"\"),1,0)","v":0},{"$f":"IF(AO11>AQ11,3,0)","v":0},{"$f":"IF(AND(AO11=AQ11,AQ11<>\"\"),1,0)","v":0},{"$f":"IF(AQ12>AO12,3,0)","v":0},{"$f":"IF(AND(AQ12=AO12,AQ12<>\"\"),1,0)","v":0},{"$f":"SUM(AU10:AZ10)","v":0},"Niederlande",{"$f":"$AS$10","v":0},{"$f":"$AT$10","v":0},{"$f":"BC10-BD10","v":0},{"$f":"$BA$10","v":0},{"$f":"IF(BR8<>\"\",\"1.\",\"\")","v":""},{"$f":"IF(CE10<>\"\",CE10,\"\")","v":"Argentinien"},null,{"$f":"IF(BR8<>\"\",CF10,\"\")","v":""},":",{"$f":"IF(BR8<>\"\",CG10,\"\")","v":""},{"$f":"IF(CI10<>\"\",CI10,\"\")","v":0},null,"Jordanien","-","Algerien",{"$f":"IF('Vorrunde 25-48'!$H$21<>\"\",'Vorrunde 25-48'!$H$21,\"\")","v":""},":",{"$f":"IF('Vorrunde 25-48'!$J$21<>\"\",'Vorrunde 25-48'!$J$21,\"\")","v":""},null,{"$f":"SUM(BR8,BR11,BT12)","v":0},{"$f":"SUM(BT8,BT11,BR12)","v":0},{"$f":"IF(BR8>BT8,3,0)","v":0},{"$f":"IF(AND(BR8=BT8,BT8<>\"\"),1,0)","v":0},{"$f":"IF(BR11>BT11,3,0)","v":0},{"$f":"IF(AND(BR11=BT11,BT11<>\"\"),1,0)","v":0},{"$f":"IF(BT12>BR12,3,0)","v":0},{"$f":"IF(AND(BT12=BR12,BT12<>\"\"),1,0)","v":0},{"$f":"SUM(BX10:CC10)","v":0},"Argentinien",{"$f":"$BV$10","v":0},{"$f":"$BW$10","v":0},{"$f":"CF10-CG10","v":0},{"$f":"$CD$10","v":0},null,null,null,null,null,"ABCDEFHL",{"$f":"$BB$26","v":"Saudi-Arabien"},{"$f":"$BB$12","v":"Schweden"},"Katar",{"$f":"$Y$19","v":"Haiti"},"Südkorea",{"$f":"$Y$26","v":"Australien"},{"$f":"$CE$26","v":"Ghana"},{"$f":"$BB$5","v":"Elfenbeinküste"}]
[{"$f":"IF(L8<>\"\",\"2.\",\"\")","v":""},{"$f":"IF(Y11<>\"\",Y11,\"\")","v":"Bosnien-Herzegowina"},null,{"$f":"IF(L8<>\"\",Z11,\"\")","v":""},":",{"$f":"IF(L8<>\"\",AA11,\"\")","v":""},{"$f":"IF(AC11<>\"\",AC11,\"\")","v":0},null,"Kanada","-","Katar",{"$f":"IF('Vorrunde 25-48'!$H$4<>\"\",'Vorrunde 25-48'!$H$4,\"\")","v":""},":",{"$f":"IF('Vorrunde 25-48'!$J$4<>\"\",'Vorrunde 25-48'!$J$4,\"\")","v":""},null,{"$f":"SUM(N8,N10,L13)","v":0},{"$f":"SUM(L8,L10,N13)","v":0},{"$f":"IF(N8>L8,3,0)","v":0},{"$f":"IF(AND(N8=L8,N8<>\"\"),1,0)","v":0},{"$f":"IF(N10>L10,3,0)","v":0},{"$f":"IF(AND(N10=L10,N10<>\"\"),1,0)","v":0},{"$f":"IF(L13>N13,3,0)","v":0},{"$f":"IF(AND(L13=N13,N13<>\"\"),1,0)","v":0},{"$f":"SUM(R11:W11)","v":0},"Bosnien-Herzegowina",{"$f":"$P$11","v":0},{"$f":"$Q$11","v":0},{"$f":"Z11-AA11","v":0},{"$f":"$X$11","v":0},{"$f":"IF(AO8<>\"\",\"2.\",\"\")","v":""},{"$f":"IF(BB11<>\"\",BB11,\"\")","v":"Japan"},null,{"$f":"IF(AO8<>\"\",BC11,\"\")","v":""},":",{"$f":"IF(AO8<>\"\",BD11,\"\")","v":""},{"$f":"IF(BF11<>\"\",BF11,\"\")","v":0},null,"Niederlande","-","Schweden",{"$f":"IF('Vorrunde 25-48'!$H$10<>\"\",'Vorrunde 25-48'!$H$10,\"\")","v":""},":",{"$f":"IF('Vorrunde 25-48'!$J$10<>\"\",'Vorrunde 25-48'!$J$10,\"\")","v":""},null,{"$f":"SUM(AQ8,AQ10,AO13)","v":0},{"$f":"SUM(AO8,AO10,AQ13)","v":0},{"$f":"IF(AQ8>AO8,3,0)","v":0},{"$f":"IF(AND(AQ8=AO8,AQ8<>\"\"),1,0)","v":0},{"$f":"IF(AQ10>AO10,3,0)","v":0},{"$f":"IF(AND(AQ10=AO10,AQ10<>\"\"),1,0)","v":0},{"$f":"IF(AO13>AQ13,3,0)","v":0},{"$f":"IF(AND(AO13=AQ13,AQ13<>\"\"),1,0)","v":0},{"$f":"SUM(AU11:AZ11)","v":0},"Japan",{"$f":"$AS$11","v":0},{"$f":"$AT$11","v":0},{"$f":"BC11-BD11","v":0},{"$f":"$BA$11","v":0},{"$f":"IF(BR8<>\"\",\"2.\",\"\")","v":""},{"$f":"IF(CE11<>\"\",CE11,\"\")","v":"Algerien"},null,{"$f":"IF(BR8<>\"\",CF11,\"\")","v":""},":",{"$f":"IF(BR8<>\"\",CG11,\"\")","v":""},{"$f":"IF(CI11<>\"\",CI11,\"\")","v":0},null,"Argentinien","-","Österreich",{"$f":"IF('Vorrunde 25-48'!$H$18<>\"\",'Vorrunde 25-48'!$H$18,\"\")","v":""},":",{"$f":"IF('Vorrunde 25-48'!$J$18<>\"\",'Vorrunde 25-48'!$J$18,\"\")","v":""},null,{"$f":"SUM(BT8,BT10,BR13)","v":0},{"$f":"SUM(BR8,BR10,BT13)","v":0},{"$f":"IF(BT8>BR8,3,0)","v":0},{"$f":"IF(AND(BT8=BR8,BT8<>\"\"),1,0)","v":0},{"$f":"IF(BT10>BR10,3,0)","v":0},{"$f":"IF(AND(BT10=BR10,BT10<>\"\"),1,0)","v":0},{"$f":"IF(BR13>BT13,3,0)","v":0},{"$f":"IF(AND(BR13=BT13,BT13<>\"\"),1,0)","v":0},{"$f":"SUM(BX11:CC11)","v":0},"Algerien",{"$f":"$BV$11","v":0},{"$f":"$BW$11","v":0},{"$f":"CF11-CG11","v":0},{"$f":"$CD$11","v":0},null,null,null,null,null,"ABCDEFIJ",{"$f":"$Y$19","v":"Haiti"},{"$f":"$CE$12","v":"Österreich"},"Katar",{"$f":"$Y$26","v":"Australien"},"Südkorea",{"$f":"$BB$12","v":"Schweden"},{"$f":"$BB$5","v":"Elfenbeinküste"},{"$f":"$CE$5","v":"Irak"}]
[{"$f":"IF(L8<>\"\",\"3.\",\"\")","v":""},{"$f":"IF(Y12<>\"\",Y12,\"\")","v":"Katar"},null,{"$f":"IF(L8<>\"\",Z12,\"\")","v":""},":",{"$f":"IF(L8<>\"\",AA12,\"\")","v":""},{"$f":"IF(AC12<>\"\",AC12,\"\")","v":0},null,"Schweiz","-","Kanada",{"$f":"IF('Vorrunde 49-72'!$H$2<>\"\",'Vorrunde 49-72'!$H$2,\"\")","v":""},":",{"$f":"IF('Vorrunde 49-72'!$J$2<>\"\",'Vorrunde 49-72'!$J$2,\"\")","v":""},null,{"$f":"SUM(L9,N11,N13)","v":0},{"$f":"SUM(N9,L11,L13)","v":0},{"$f":"IF(L9>N9,3,0)","v":0},{"$f":"IF(AND(L9=N9,N9<>\"\"),1,0)","v":0},{"$f":"IF(N11>L11,3,0)","v":0},{"$f":"IF(AND(N11=L11,N11<>\"\"),1,0)","v":0},{"$f":"IF(N13>L13,3,0)","v":0},{"$f":"IF(AND(N13=L13,N13<>\"\"),1,0)","v":0},{"$f":"SUM(R12:W12)","v":0},"Katar",{"$f":"$P$12","v":0},{"$f":"$Q$12","v":0},{"$f":"Z12-AA12","v":0},{"$f":"$X$12","v":0},{"$f":"IF(AO8<>\"\",\"3.\",\"\")","v":""},{"$f":"IF(BB12<>\"\",BB12,\"\")","v":"Schweden"},null,{"$f":"IF(AO8<>\"\",BC12,\"\")","v":""},":",{"$f":"IF(AO8<>\"\",BD12,\"\")","v":""},{"$f":"IF(BF12<>\"\",BF12,\"\")","v":0},null,"Tunesien","-","Niederlande",{"$f":"IF('Vorrunde 49-72'!$H$11<>\"\",'Vorrunde 49-72'!$H$11,\"\")","v":""},":",{"$f":"IF('Vorrunde 49-72'!$J$11<>\"\",'Vorrunde 49-72'!$J$11,\"\")","v":""},null,{"$f":"SUM(AO9,AQ11,AQ13)","v":0},{"$f":"SUM(AQ9,AO11,AO13)","v":0},{"$f":"IF(AO9>AQ9,3,0)","v":0},{"$f":"IF(AND(AO9=AQ9,AQ9<>\"\"),1,0)","v":0},{"$f":"IF(AQ11>AO11,3,0)","v":0},{"$f":"IF(AND(AQ11=AO11,AQ11<>\"\"),1,0)","v":0},{"$f":"IF(AQ13>AO13,3,0)","v":0},{"$f":"IF(AND(AQ13=AO13,AQ13<>\"\"),1,0)","v":0},{"$f":"SUM(AU12:AZ12)","v":0},"Schweden",{"$f":"$AS$12","v":0},{"$f":"$AT$12","v":0},{"$f":"BC12-BD12","v":0},{"$f":"$BA$12","v":0},{"$f":"IF(BR8<>\"\",\"3.\",\"\")","v":""},{"$f":"IF(CE12<>\"\",CE12,\"\")","v":"Österreich"},null,{"$f":"IF(BR8<>\"\",CF12,\"\")","v":""},":",{"$f":"IF(BR8<>\"\",CG12,\"\")","v":""},{"$f":"IF(CI12<>\"\",CI12,\"\")","v":0},null,"Jordanien","-","Argentinien",{"$f":"IF('Vorrunde 49-72'!$H$25<>\"\",'Vorrunde 49-72'!$H$25,\"\")","v":""},":",{"$f":"IF('Vorrunde 49-72'!$J$25<>\"\",'Vorrunde 49-72'!$J$25,\"\")","v":""},null,{"$f":"SUM(BR9,BT11,BT13)","v":0},{"$f":"SUM(BT9,BR11,BR13)","v":0},{"$f":"IF(BR9>BT9,3,0)","v":0},{"$f":"IF(AND(BR9=BT9,BT9<>\"\"),1,0)","v":0},{"$f":"IF(BT11>BR11,3,0)","v":0},{"$f":"IF(AND(BT11=BR11,BT11<>\"\"),1,0)","v":0},{"$f":"IF(BT13>BR13,3,0)","v":0},{"$f":"IF(AND(BT13=BR13,BT13<>\"\"),1,0)","v":0},{"$f":"SUM(BX12:CC12)","v":0},"Österreich",{"$f":"$BV$12","v":0},{"$f":"$BW$12","v":0},{"$f":"CF12-CG12","v":0},{"$f":"$CD$12","v":0},null,null,null,null,null,"ABCDEFIK","Haiti",{"$f":"$BB$5","v":"Elfenbeinküste"},"Katar","Australien","Südkorea","Schweden",{"$f":"$CE$5","v":"Irak"},{"$f":"$CE$19","v":"Usbekistan"}]
[{"$f":"IF(L8<>\"\",\"4.\",\"\")","v":""},{"$f":"IF(Y13<>\"\",Y13,\"\")","v":"Schweiz"},null,{"$f":"IF(L8<>\"\",Z13,\"\")","v":""},":",{"$f":"IF(L8<>\"\",AA13,\"\")","v":""},{"$f":"IF(AC13<>\"\",AC13,\"\")","v":0},null,"Bosnien-Herzegowina","-","Katar",{"$f":"IF('Vorrunde 49-72'!$H$3<>\"\",'Vorrunde 49-72'!$H$3,\"\")","v":""},":",{"$f":"IF('Vorrunde 49-72'!$J$3<>\"\",'Vorrunde 49-72'!$J$3,\"\")","v":""},null,{"$f":"SUM(N9,L10,L12)","v":0},{"$f":"SUM(L9,N10,N12)","v":0},{"$f":"IF(N9>L9,3,0)","v":0},{"$f":"IF(AND(N9=L9,N9<>\"\"),1,0)","v":0},{"$f":"IF(L10>N10,3,0)","v":0},{"$f":"IF(AND(L10=N10,N10<>\"\"),1,0)","v":0},{"$f":"IF(L12>N12,3,0)","v":0},{"$f":"IF(AND(L12=N12,N12<>\"\"),1,0)","v":0},{"$f":"SUM(R13:W13)","v":0},"Schweiz",{"$f":"$P$13","v":0},{"$f":"$Q$13","v":0},{"$f":"Z13-AA13","v":0},{"$f":"$X$13","v":0},{"$f":"IF(AO8<>\"\",\"4.\",\"\")","v":""},{"$f":"IF(BB13<>\"\",BB13,\"\")","v":"Tunesien"},null,{"$f":"IF(AO8<>\"\",BC13,\"\")","v":""},":",{"$f":"IF(AO8<>\"\",BD13,\"\")","v":""},{"$f":"IF(BF13<>\"\",BF13,\"\")","v":0},null,"Japan","-","Schweden",{"$f":"IF('Vorrunde 49-72'!$H$10<>\"\",'Vorrunde 49-72'!$H$10,\"\")","v":""},":",{"$f":"IF('Vorrunde 49-72'!$J$10<>\"\",'Vorrunde 49-72'!$J$10,\"\")","v":""},null,{"$f":"SUM(AQ9,AO10,AO12)","v":0},{"$f":"SUM(AO9,AQ10,AQ12)","v":0},{"$f":"IF(AQ9>AO9,3,0)","v":0},{"$f":"IF(AND(AQ9=AO9,AQ9<>\"\"),1,0)","v":0},{"$f":"IF(AO10>AQ10,3,0)","v":0},{"$f":"IF(AND(AO10=AQ10,AQ10<>\"\"),1,0)","v":0},{"$f":"IF(AO12>AQ12,3,0)","v":0},{"$f":"IF(AND(AO12=AQ12,AQ12<>\"\"),1,0)","v":0},{"$f":"SUM(AU13:AZ13)","v":0},"Tunesien",{"$f":"$AS$13","v":0},{"$f":"$AT$13","v":0},{"$f":"BC13-BD13","v":0},{"$f":"$BA$13","v":0},{"$f":"IF(BR8<>\"\",\"4.\",\"\")","v":""},{"$f":"IF(CE13<>\"\",CE13,\"\")","v":"Jordanien"},null,{"$f":"IF(BR8<>\"\",CF13,\"\")","v":""},":",{"$f":"IF(BR8<>\"\",CG13,\"\")","v":""},{"$f":"IF(CI13<>\"\",CI13,\"\")","v":0},null,"Algerien","-","Österreich",{"$f":"IF('Vorrunde 49-72'!$H$24<>\"\",'Vorrunde 49-72'!$H$24,\"\")","v":""},":",{"$f":"IF('Vorrunde 49-72'!$J$24<>\"\",'Vorrunde 49-72'!$J$24,\"\")","v":""},null,{"$f":"SUM(BT9,BR10,BR12)","v":0},{"$f":"SUM(BR9,BT10,BT12)","v":0},{"$f":"IF(BT9>BR9,3,0)","v":0},{"$f":"IF(AND(BT9=BR9,BT9<>\"\"),1,0)","v":0},{"$f":"IF(BR10>BT10,3,0)","v":0},{"$f":"IF(AND(BR10=BT10,BT10<>\"\"),1,0)","v":0},{"$f":"IF(BR12>BT12,3,0)","v":0},{"$f":"IF(AND(BR12=BT12,BT12<>\"\"),1,0)","v":0},{"$f":"SUM(BX13:CC13)","v":0},"Jordanien",{"$f":"$BV$13","v":0},{"$f":"$BW$13","v":0},{"$f":"CF13-CG13","v":0},{"$f":"$CD$13","v":0},null,null,null,null,null,"ABCDEFIL","Haiti",{"$f":"$BB$5","v":"Elfenbeinküste"},"Katar","Australien","Südkorea","Schweden",{"$f":"$CE$26","v":"Ghana"},{"$f":"$CE$5","v":"Irak"}]
[null,null,null,null,null,null,null,null,"",null,"",null,null,null,null,null,null,null,null,null,null,null,null,null,null,null,null,null,null,null,null,null,null,null,null,null,null,"",null,"",null,null,null,null,null,null,null,null,null,null,null,null,null,null,null,null,null,null,null,null,null,null,null,null,null,null,"",null,"",null,null,null,null,null,null,null,null,null,null,null,null,null,null,null,null,null,null,null,null,null,null,null,"ABCDEFJK","Haiti",{"$f":"$CE$12","v":"Österreich"},"Katar","Australien","Südkorea","Schweden",{"$f":"$BB$5","v":"Elfenbeinküste"},{"$f":"$CE$19","v":"Usbekistan"}]
[null,null,null,"Gruppe C",null,null,null,null,"Brasilien","-","Marokko",{"$f":"IF('Vorrunde 01-24'!$H$7<>\"\",'Vorrunde 01-24'!$H$7,\"\")","v":""},":",{"$f":"IF('Vorrunde 01-24'!$J$7<>\"\",'Vorrunde 01-24'!$J$7,\"\")","v":""},null,null,null,null,null,null,null,null,null,null,null,null,null,null,null,null,null,null,"Gruppe G",null,null,null,null,"Belgien","-","Ägypten",{"$f":"IF('Vorrunde 01-24'!$H$15<>\"\",'Vorrunde 01-24'!$H$15,\"\")","v":""},":",{"$f":"IF('Vorrunde 01-24'!$J$15<>\"\",'Vorrunde 01-24'!$J$15,\"\")","v":""},null,null,null,null,null,null,null,null,null,null,null,null,null,null,null,null,null,null,"Gruppe K",null,null,null,null,"Portugal","-","DR Kongo",{"$f":"IF('Vorrunde 01-24'!$H$22<>\"\",'Vorrunde 01-24'!$H$22,\"\")","v":""},":",{"$f":"IF('Vorrunde 01-24'!$J$22<>\"\",'Vorrunde 01-24'!$J$22,\"\")","v":""},null,null,null,null,null,null,null,null,null,null,null,null,null,null,null,null,null,null,null,null,"ABCDEFJL","Haiti",{"$f":"$CE$12","v":"Österreich"},"Katar","Australien","Südkorea","Schweden",{"$f":"$CE$26","v":"Ghana"},{"$f":"$BB$5","v":"Elfenbeinküste"}]
["PLATZ","MANNSCHAFT",null,"TORE",null,null,"PUNKTE",null,"Haiti","-","Schottland",{"$f":"IF('Vorrunde 01-24'!$H$8<>\"\",'Vorrunde 01-24'!$H$8,\"\")","v":""},":",{"$f":"IF('Vorrunde 01-24'!$J$8<>\"\",'Vorrunde 01-24'!$J$8,\"\")","v":""},null,null,null,null,null,null,null,null,null,null,null,null,null,null,null,"PLATZ","MANNSCHAFT",null,"TORE",null,null,"PUNKTE",null,"Iran","-","Neuseeland",{"$f":"IF('Vorrunde 01-24'!$H$17<>\"\",'Vorrunde 01-24'!$H$17,\"\")","v":""},":",{"$f":"IF('Vorrunde 01-24'!$J$17<>\"\",'Vorrunde 01-24'!$J$17,\"\")","v":""},null,null,null,null,null,null,null,null,null,null,null,null,null,null,null,"PLATZ","MANNSCHAFT",null,"TORE",null,null,"PUNKTE",null,"Usbekistan","-","Kolumbien",{"$f":"IF('Vorrunde 01-24'!$H$25<>\"\",'Vorrunde 01-24'!$H$25,\"\")","v":""},":",{"$f":"IF('Vorrunde 01-24'!$J$25<>\"\",'Vorrunde 01-24'!$J$25,\"\")","v":""},null,null,null,null,null,null,null,null,null,null,null,null,null,null,null,null,null,null,null,null,"ABCDEFKL","Haiti",{"$f":"$BB$5","v":"Elfenbeinküste"},"Katar","Australien","Südkorea","Schweden",{"$f":"$CE$26","v":"Ghana"},{"$f":"$CE$19","v":"Usbekistan"}]
[{"$f":"IF(L15<>\"\",\"1.\",\"\")","v":""},{"$f":"IF(Y17<>\"\",Y17,\"\")","v":"Brasilien"},null,{"$f":"IF(L15<>\"\",Z17,\"\")","v":""},":",{"$f":"IF(L15<>\"\",AA17,\"\")","v":""},{"$f":"IF(AC17<>\"\",AC17,\"\")","v":0},null,"Schottland","-","Marokko",{"$f":"IF('Vorrunde 25-48'!$H$7<>\"\",'Vorrunde 25-48'!$H$7,\"\")","v":""},":",{"$f":"IF('Vorrunde 25-48'!$J$7<>\"\",'Vorrunde 25-48'!$J$7,\"\")","v":""},null,{"$f":"SUM(L15,L18,N19)","v":0},{"$f":"SUM(N15,N18,L19)","v":0},{"$f":"IF(L15>N15,3,0)","v":0},{"$f":"IF(AND(L15=N15,N15<>\"\"),1,0)","v":0},{"$f":"IF(L18>N18,3,0)","v":0},{"$f":"IF(AND(L18=N18,N18<>\"\"),1,0)","v":0},{"$f":"IF(N19>L19,3,0)","v":0},{"$f":"IF(AND(N19=L19,N19<>\"\"),1,0)","v":0},{"$f":"SUM(R17:W17)","v":0},"Brasilien",{"$f":"$P$17","v":0},{"$f":"$Q$17","v":0},{"$f":"Z17-AA17","v":0},{"$f":"$X$17","v":0},{"$f":"IF(AO15<>\"\",\"1.\",\"\")","v":""},{"$f":"IF(BB17<>\"\",BB17,\"\")","v":"Belgien"},null,{"$f":"IF(AO15<>\"\",BC17,\"\")","v":""},":",{"$f":"IF(AO15<>\"\",BD17,\"\")","v":""},{"$f":"IF(BF17<>\"\",BF17,\"\")","v":0},null,"Neuseeland","-","Ägypten",{"$f":"IF('Vorrunde 25-48'!$H$17<>\"\",'Vorrunde 25-48'!$H$17,\"\")","v":""},":",{"$f":"IF('Vorrunde 25-48'!$J$17<>\"\",'Vorrunde 25-48'!$J$17,\"\")","v":""},null,{"$f":"SUM(AO15,AO18,AQ19)","v":0},{"$f":"SUM(AQ15,AQ18,AO19)","v":0},{"$f":"IF(AO15>AQ15,3,0)","v":0},{"$f":"IF(AND(AO15=AQ15,AQ15<>\"\"),1,0)","v":0},{"$f":"IF(AO18>AQ18,3,0)","v":0},{"$f":"IF(AND(AO18=AQ18,AQ18<>\"\"),1,0)","v":0},{"$f":"IF(AQ19>AO19,3,0)","v":0},{"$f":"IF(AND(AQ19=AO19,AQ19<>\"\"),1,0)","v":0},{"$f":"SUM(AU17:AZ17)","v":0},"Belgien",{"$f":"$AS$17","v":0},{"$f":"$AT$17","v":0},{"$f":"BC17-BD17","v":0},{"$f":"$BA$17","v":0},{"$f":"IF(BR15<>\"\",\"1.\",\"\")","v":""},{"$f":"IF(CE17<>\"\",CE17,\"\")","v":"Portugal"},null,{"$f":"IF(BR15<>\"\",CF17,\"\")","v":""},":",{"$f":"IF(BR15<>\"\",CG17,\"\")","v":""},{"$f":"IF(CI17<>\"\",CI17,\"\")","v":0},null,"Kolumbien","-","DR Kongo",{"$f":"IF('Vorrunde 25-48'!$H$25<>\"\",'Vorrunde 25-48'!$H$25,\"\")","v":""},":",{"$f":"IF('Vorrunde 25-48'!$J$25<>\"\",'Vorrunde 25-48'!$J$25,\"\")","v":""},null,{"$f":"SUM(BR15,BR18,BT19)","v":0},{"$f":"SUM(BT15,BT18,BR19)","v":0},{"$f":"IF(BR15>BT15,3,0)","v":0},{"$f":"IF(AND(BR15=BT15,BT15<>\"\"),1,0)","v":0},{"$f":"IF(BR18>BT18,3,0)","v":0},{"$f":"IF(AND(BR18=BT18,BT18<>\"\"),1,0)","v":0},{"$f":"IF(BT19>BR19,3,0)","v":0},{"$f":"IF(AND(BT19=BR19,BT19<>\"\"),1,0)","v":0},{"$f":"SUM(BX17:CC17)","v":0},"Portugal",{"$f":"$BV$17","v":0},{"$f":"$BW$17","v":0},{"$f":"CF17-CG17","v":0},{"$f":"$CD$17","v":0},null,null,null,null,null,"ABCDEGHI",{"$f":"$BB$26","v":"Saudi-Arabien"},{"$f":"$BB$19","v":"Iran"},"Katar",{"$f":"$Y$19","v":"Haiti"},"Südkorea",{"$f":"$Y$26","v":"Australien"},{"$f":"$BB$5","v":"Elfenbeinküste"},{"$f":"$CE$5","v":"Irak"}]
[{"$f":"IF(L15<>\"\",\"2.\",\"\")","v":""},{"$f":"IF(Y18<>\"\",Y18,\"\")","v":"Marokko"},null,{"$f":"IF(L15<>\"\",Z18,\"\")","v":""},":",{"$f":"IF(L15<>\"\",AA18,\"\")","v":""},{"$f":"IF(AC18<>\"\",AC18,\"\")","v":0},null,"Brasilien","-","Haiti",{"$f":"IF('Vorrunde 25-48'!$H$8<>\"\",'Vorrunde 25-48'!$H$8,\"\")","v":""},":",{"$f":"IF('Vorrunde 25-48'!$J$8<>\"\",'Vorrunde 25-48'!$J$8,\"\")","v":""},null,{"$f":"SUM(N15,N17,L20)","v":0},{"$f":"SUM(L15,L17,N20)","v":0},{"$f":"IF(N15>L15,3,0)","v":0},{"$f":"IF(AND(N15=L15,N15<>\"\"),1,0)","v":0},{"$f":"IF(N17>L17,3,0)","v":0},{"$f":"IF(AND(N17=L17,N17<>\"\"),1,0)","v":0},{"$f":"IF(L20>N20,3,0)","v":0},{"$f":"IF(AND(L20=N20,N20<>\"\"),1,0)","v":0},{"$f":"SUM(R18:W18)","v":0},"Marokko",{"$f":"$P$18","v":0},{"$f":"$Q$18","v":0},{"$f":"Z18-AA18","v":0},{"$f":"$X$18","v":0},{"$f":"IF(AO15<>\"\",\"2.\",\"\")","v":""},{"$f":"IF(BB18<>\"\",BB18,\"\")","v":"Ägypten"},null,{"$f":"IF(AO15<>\"\",BC18,\"\")","v":""},":",{"$f":"IF(AO15<>\"\",BD18,\"\")","v":""},{"$f":"IF(BF18<>\"\",BF18,\"\")","v":0},null,"Belgien","-","Iran",{"$f":"IF('Vorrunde 25-48'!$H$15<>\"\",'Vorrunde 25-48'!$H$15,\"\")","v":""},":",{"$f":"IF('Vorrunde 25-48'!$J$15<>\"\",'Vorrunde 25-48'!$J$15,\"\")","v":""},null,{"$f":"SUM(AQ15,AQ17,AO20)","v":0},{"$f":"SUM(AO15,AO17,AQ20)","v":0},{"$f":"IF(AQ15>AO15,3,0)","v":0},{"$f":"IF(AND(AQ15=AO15,AQ15<>\"\"),1,0)","v":0},{"$f":"IF(AQ17>AO17,3,0)","v":0},{"$f":"IF(AND(AQ17=AO17,AQ17<>\"\"),1,0)","v":0},{"$f":"IF(AO20>AQ20,3,0)","v":0},{"$f":"IF(AND(AO20=AQ20,AQ20<>\"\"),1,0)","v":0},{"$f":"SUM(AU18:AZ18)","v":0},"Ägypten",{"$f":"$AS$18","v":0},{"$f":"$AT$18","v":0},{"$f":"BC18-BD18","v":0},{"$f":"$BA$18","v":0},{"$f":"IF(BR15<>\"\",\"2.\",\"\")","v":""},{"$f":"IF(CE18<>\"\",CE18,\"\")","v":"DR Kongo"},null,{"$f":"IF(BR15<>\"\",CF18,\"\")","v":""},":",{"$f":"IF(BR15<>\"\",CG18,\"\")","v":""},{"$f":"IF(CI18<>\"\",CI18,\"\")","v":0},null,"Portugal","-","Usbekistan",{"$f":"IF('Vorrunde 25-48'!$H$22<>\"\",'Vorrunde 25-48'!$H$22,\"\")","v":""},":",{"$f":"IF('Vorrunde 25-48'!$J$22<>\"\",'Vorrunde 25-48'!$J$22,\"\")","v":""},null,{"$f":"SUM(BT15,BT17,BR20)","v":0},{"$f":"SUM(BR15,BR17,BT20)","v":0},{"$f":"IF(BT15>BR15,3,0)","v":0},{"$f":"IF(AND(BT15=BR15,BT15<>\"\"),1,0)","v":0},{"$f":"IF(BT17>BR17,3,0)","v":0},{"$f":"IF(AND(BT17=BR17,BT17<>\"\"),1,0)","v":0},{"$f":"IF(BR20>BT20,3,0)","v":0},{"$f":"IF(AND(BR20=BT20,BT20<>\"\"),1,0)","v":0},{"$f":"SUM(BX18:CC18)","v":0},"DR Kongo",{"$f":"$BV$18","v":0},{"$f":"$BW$18","v":0},{"$f":"CF18-CG18","v":0},{"$f":"$CD$18","v":0},null,null,null,null,null,"ABCDEGHJ",{"$f":"$BB$26","v":"Saudi-Arabien"},"Iran","Katar","Haiti","Südkorea","Australien",{"$f":"$BB$5","v":"Elfenbeinküste"},{"$f":"$CE$12","v":"Österreich"}]
[{"$f":"IF(L15<>\"\",\"3.\",\"\")","v":""},{"$f":"IF(Y19<>\"\",Y19,\"\")","v":"Haiti"},null,{"$f":"IF(L15<>\"\",Z19,\"\")","v":""},":",{"$f":"IF(L15<>\"\",AA19,\"\")","v":""},{"$f":"IF(AC19<>\"\",AC19,\"\")","v":0},null,"Schottland","-","Brasilien",{"$f":"IF('Vorrunde 49-72'!$H$4<>\"\",'Vorrunde 49-72'!$H$4,\"\")","v":""},":",{"$f":"IF('Vorrunde 49-72'!$J$4<>\"\",'Vorrunde 49-72'!$J$4,\"\")","v":""},null,{"$f":"SUM(L16,N18,N20)","v":0},{"$f":"SUM(N16,L18,L20)","v":0},{"$f":"IF(L16>N16,3,0)","v":0},{"$f":"IF(AND(L16=N16,N16<>\"\"),1,0)","v":0},{"$f":"IF(N18>L18,3,0)","v":0},{"$f":"IF(AND(N18=L18,N18<>\"\"),1,0)","v":0},{"$f":"IF(N20>L20,3,0)","v":0},{"$f":"IF(AND(N20=L20,N20<>\"\"),1,0)","v":0},{"$f":"SUM(R19:W19)","v":0},"Haiti",{"$f":"$P$19","v":0},{"$f":"$Q$19","v":0},{"$f":"Z19-AA19","v":0},{"$f":"$X$19","v":0},{"$f":"IF(AO15<>\"\",\"3.\",\"\")","v":""},{"$f":"IF(BB19<>\"\",BB19,\"\")","v":"Iran"},null,{"$f":"IF(AO15<>\"\",BC19,\"\")","v":""},":",{"$f":"IF(AO15<>\"\",BD19,\"\")","v":""},{"$f":"IF(BF19<>\"\",BF19,\"\")","v":0},null,"Neuseeland","-","Belgien",{"$f":"IF('Vorrunde 49-72'!$H$19<>\"\",'Vorrunde 49-72'!$H$19,\"\")","v":""},":",{"$f":"IF('Vorrunde 49-72'!$J$19<>\"\",'Vorrunde 49-72'!$J$19,\"\")","v":""},null,{"$f":"SUM(AO16,AQ18,AQ20)","v":0},{"$f":"SUM(AQ16,AO18,AO20)","v":0},{"$f":"IF(AO16>AQ16,3,0)","v":0},{"$f":"IF(AND(AO16=AQ16,AQ16<>\"\"),1,0)","v":0},{"$f":"IF(AQ18>AO18,3,0)","v":0},{"$f":"IF(AND(AQ18=AO18,AQ18<>\"\"),1,0)","v":0},{"$f":"IF(AQ20>AO20,3,0)","v":0},{"$f":"IF(AND(AQ20=AO20,AQ20<>\"\"),1,0)","v":0},{"$f":"SUM(AU19:AZ19)","v":0},"Iran",{"$f":"$AS$19","v":0},{"$f":"$AT$19","v":0},{"$f":"BC19-BD19","v":0},{"$f":"$BA$19","v":0},{"$f":"IF(BR15<>\"\",\"3.\",\"\")","v":""},{"$f":"IF(CE19<>\"\",CE19,\"\")","v":"Usbekistan"},null,{"$f":"IF(BR15<>\"\",CF19,\"\")","v":""},":",{"$f":"IF(BR15<>\"\",CG19,\"\")","v":""},{"$f":"IF(CI19<>\"\",CI19,\"\")","v":0},null,"Kolumbien","-","Portugal",{"$f":"IF('Vorrunde 49-72'!$H$22<>\"\",'Vorrunde 49-72'!$H$22,\"\")","v":""},":",{"$f":"IF('Vorrunde 49-72'!$J$22<>\"\",'Vorrunde 49-72'!$J$22,\"\")","v":""},null,{"$f":"SUM(BR16,BT18,BT20)","v":0},{"$f":"SUM(BT16,BR18,BR20)","v":0},{"$f":"IF(BR16>BT16,3,0)","v":0},{"$f":"IF(AND(BR16=BT16,BT16<>\"\"),1,0)","v":0},{"$f":"IF(BT18>BR18,3,0)","v":0},{"$f":"IF(AND(BT18=BR18,BT18<>\"\"),1,0)","v":0},{"$f":"IF(BT20>BR20,3,0)","v":0},{"$f":"IF(AND(BT20=BR20,BT20<>\"\"),1,0)","v":0},{"$f":"SUM(BX19:CC19)","v":0},"Usbekistan",{"$f":"$BV$19","v":0},{"$f":"$BW$19","v":0},{"$f":"CF19-CG19","v":0},{"$f":"$CD$19","v":0},null,null,null,null,null,"ABCDEGHK",{"$f":"$BB$26","v":"Saudi-Arabien"},"Iran","Katar","Haiti","Südkorea","Australien",{"$f":"$BB$5","v":"Elfenbeinküste"},{"$f":"$CE$19","v":"Usbekistan"}]
[{"$f":"IF(L15<>\"\",\"4.\",\"\")","v":""},{"$f":"IF(Y20<>\"\",Y20,\"\")","v":"Schottland"},null,{"$f":"IF(L15<>\"\",Z20,\"\")","v":""},":",{"$f":"IF(L15<>\"\",AA20,\"\")","v":""},{"$f":"IF(AC20<>\"\",AC20,\"\")","v":0},null,"Marokko","-","Haiti",{"$f":"IF('Vorrunde 49-72'!$H$5<>\"\",'Vorrunde 49-72'!$H$5,\"\")","v":""},":",{"$f":"IF('Vorrunde 49-72'!$J$5<>\"\",'Vorrunde 49-72'!$J$5,\"\")","v":""},null,{"$f":"SUM(N16,L17,L19)","v":0},{"$f":"SUM(L16,N17,N19)","v":0},{"$f":"IF(N16>L16,3,0)","v":0},{"$f":"IF(AND(N16=L16,N16<>\"\"),1,0)","v":0},{"$f":"IF(L17>N17,3,0)","v":0},{"$f":"IF(AND(L17=N17,N17<>\"\"),1,0)","v":0},{"$f":"IF(L19>N19,3,0)","v":0},{"$f":"IF(AND(L19=N19,N19<>\"\"),1,0)","v":0},{"$f":"SUM(R20:W20)","v":0},"Schottland",{"$f":"$P$20","v":0},{"$f":"$Q$20","v":0},{"$f":"Z20-AA20","v":0},{"$f":"$X$20","v":0},{"$f":"IF(AO15<>\"\",\"4.\",\"\")","v":""},{"$f":"IF(BB20<>\"\",BB20,\"\")","v":"Neuseeland"},null,{"$f":"IF(AO15<>\"\",BC20,\"\")","v":""},":",{"$f":"IF(AO15<>\"\",BD20,\"\")","v":""},{"$f":"IF(BF20<>\"\",BF20,\"\")","v":0},null,"Ägypten","-","Iran",{"$f":"IF('Vorrunde 49-72'!$H$18<>\"\",'Vorrunde 49-72'!$H$18,\"\")","v":""},":",{"$f":"IF('Vorrunde 49-72'!$J$18<>\"\",'Vorrunde 49-72'!$J$18,\"\")","v":""},null,{"$f":"SUM(AQ16,AO17,AO19)","v":0},{"$f":"SUM(AO16,AQ17,AQ19)","v":0},{"$f":"IF(AQ16>AO16,3,0)","v":0},{"$f":"IF(AND(AQ16=AO16,AQ16<>\"\"),1,0)","v":0},{"$f":"IF(AO17>AQ17,3,0)","v":0},{"$f":"IF(AND(AO17=AQ17,AQ17<>\"\"),1,0)","v":0},{"$f":"IF(AO19>AQ19,3,0)","v":0},{"$f":"IF(AND(AO19=AQ19,AQ19<>\"\"),1,0)","v":0},{"$f":"SUM(AU20:AZ20)","v":0},"Neuseeland",{"$f":"$AS$20","v":0},{"$f":"$AT$20","v":0},{"$f":"BC20-BD20","v":0},{"$f":"$BA$20","v":0},{"$f":"IF(BR15<>\"\",\"4.\",\"\")","v":""},{"$f":"IF(CE20<>\"\",CE20,\"\")","v":"Kolumbien"},null,{"$f":"IF(BR15<>\"\",CF20,\"\")","v":""},":",{"$f":"IF(BR15<>\"\",CG20,\"\")","v":""},{"$f":"IF(CI20<>\"\",CI20,\"\")","v":0},null,"DR Kongo","-","Usbekistan",{"$f":"IF('Vorrunde 49-72'!$H$23<>\"\",'Vorrunde 49-72'!$H$23,\"\")","v":""},":",{"$f":"IF('Vorrunde 49-72'!$J$23<>\"\",'Vorrunde 49-72'!$J$23,\"\")","v":""},null,{"$f":"SUM(BT16,BR17,BR19)","v":0},{"$f":"SUM(BR16,BT17,BT19)","v":0},{"$f":"IF(BT16>BR16,3,0)","v":0},{"$f":"IF(AND(BT16=BR16,BT16<>\"\"),1,0)","v":0},{"$f":"IF(BR17>BT17,3,0)","v":0},{"$f":"IF(AND(BR17=BT17,BT17<>\"\"),1,0)","v":0},{"$f":"IF(BR19>BT19,3,0)","v":0},{"$f":"IF(AND(BR19=BT19,BT19<>\"\"),1,0)","v":0},{"$f":"SUM(BX20:CC20)","v":0},"Kolumbien",{"$f":"$BV$20","v":0},{"$f":"$BW$20","v":0},{"$f":"CF20-CG20","v":0},{"$f":"$CD$20","v":0},null,null,null,null,null,"ABCDEGHL",{"$f":"$BB$26","v":"Saudi-Arabien"},"Iran","Katar","Haiti","Südkorea","Australien",{"$f":"$CE$26","v":"Ghana"},{"$f":"$BB$5","v":"Elfenbeinküste"}]
[null,null,null,null,null,null,null,null,"",null,"",null,null,null,null,null,null,null,null,null,null,null,null,null,null,null,null,null,null,null,null,null,null,null,null,null,null,"",null,"",null,null,null,null,null,null,null,null,null,null,null,null,null,null,null,null,null,null,null,null,null,null,null,null,null,null,"",null,"",null,null,null,null,null,null,null,null,null,null,null,null,null,null,null,null,null,null,null,null,null,null,null,"ABCDEGIJ",{"$f":"$BB$5","v":"Elfenbeinküste"},"Iran","Katar","Haiti","Südkorea","Australien",{"$f":"$CE$5","v":"Irak"},{"$f":"$CE$12","v":"Österreich"}]
[null,null,null,"Gruppe D",null,null,null,null,"USA","-","Paraguay",{"$f":"IF('Vorrunde 01-24'!$H$5<>\"\",'Vorrunde 01-24'!$H$5,\"\")","v":""},":",{"$f":"IF('Vorrunde 01-24'!$J$5<>\"\",'Vorrunde 01-24'!$J$5,\"\")","v":""},null,null,null,null,null,null,null,null,null,null,null,null,null,null,null,null,null,null,"Gruppe H",null,null,null,null,"Spanien","-","Kap Verde",{"$f":"IF('Vorrunde 01-24'!$H$14<>\"\",'Vorrunde 01-24'!$H$14,\"\")","v":""},":",{"$f":"IF('Vorrunde 01-24'!$J$14<>\"\",'Vorrunde 01-24'!$J$14,\"\")","v":""},null,null,null,null,null,null,null,null,null,null,null,null,null,null,null,null,null,null,"Gruppe L",null,null,null,null,"England","-","Kroatien",{"$f":"IF('Vorrunde 01-24'!$H$23<>\"\",'Vorrunde 01-24'!$H$23,\"\")","v":""},":",{"$f":"IF('Vorrunde 01-24'!$J$23<>\"\",'Vorrunde 01-24'!$J$23,\"\")","v":""},null,null,null,null,null,null,null,null,null,null,null,null,null,null,null,null,null,null,null,null,"ABCDEGIK","Elfenbeinküste","Iran","Katar","Haiti","Südkorea","Australien",{"$f":"$CE$5","v":"Irak"},{"$f":"$CE$19","v":"Usbekistan"}]
["PLATZ","MANNSCHAFT",null,"TORE",null,null,"PUNKTE",null,"Australien","-","Türkei",{"$f":"IF('Vorrunde 01-24'!$H$9<>\"\",'Vorrunde 01-24'!$H$9,\"\")","v":""},":",{"$f":"IF('Vorrunde 01-24'!$J$9<>\"\",'Vorrunde 01-24'!$J$9,\"\")","v":""},null,null,null,null,null,null,null,null,null,null,null,null,null,null,null,"PLATZ","MANNSCHAFT",null,"TORE",null,null,"PUNKTE",null,"Saudi-Arabien","-","Uruguay",{"$f":"IF('Vorrunde 01-24'!$H$16<>\"\",'Vorrunde 01-24'!$H$16,\"\")","v":""},":",{"$f":"IF('Vorrunde 01-24'!$J$16<>\"\",'Vorrunde 01-24'!$J$16,\"\")","v":""},null,null,null,null,null,null,null,null,null,null,null,null,null,null,null,"PLATZ","MANNSCHAFT",null,"TORE",null,null,"PUNKTE",null,"Ghana","-","Panama",{"$f":"IF('Vorrunde 01-24'!$H$24<>\"\",'Vorrunde 01-24'!$H$24,\"\")","v":""},":",{"$f":"IF('Vorrunde 01-24'!$J$24<>\"\",'Vorrunde 01-24'!$J$24,\"\")","v":""},null,null,null,null,null,null,null,null,null,null,null,null,null,null,null,null,null,null,null,null,"ABCDEGIL","Elfenbeinküste","Iran","Katar","Haiti","Südkorea","Australien",{"$f":"$CE$26","v":"Ghana"},{"$f":"$CE$5","v":"Irak"}]
[{"$f":"IF(L22<>\"\",\"1.\",\"\")","v":""},{"$f":"IF(Y24<>\"\",Y24,\"\")","v":"USA"},null,{"$f":"IF(L22<>\"\",Z24,\"\")","v":""},":",{"$f":"IF(L22<>\"\",AA24,\"\")","v":""},{"$f":"IF(AC24<>\"\",AC24,\"\")","v":0},null,"Türkei","-","Paraguay",{"$f":"IF('Vorrunde 25-48'!$H$9<>\"\",'Vorrunde 25-48'!$H$9,\"\")","v":""},":",{"$f":"IF('Vorrunde 25-48'!$J$9<>\"\",'Vorrunde 25-48'!$J$9,\"\")","v":""},null,{"$f":"SUM(L22,L25,N26)","v":0},{"$f":"SUM(N22,N25,L26)","v":0},{"$f":"IF(L22>N22,3,0)","v":0},{"$f":"IF(AND(L22=N22,N22<>\"\"),1,0)","v":0},{"$f":"IF(L25>N25,3,0)","v":0},{"$f":"IF(AND(L25=N25,N25<>\"\"),1,0)","v":0},{"$f":"IF(N26>L26,3,0)","v":0},{"$f":"IF(AND(N26=L26,N26<>\"\"),1,0)","v":0},{"$f":"SUM(R24:W24)","v":0},"USA",{"$f":"$P$24","v":0},{"$f":"$Q$24","v":0},{"$f":"Z24-AA24","v":0},{"$f":"$X$24","v":0},{"$f":"IF(AO22<>\"\",\"1.\",\"\")","v":""},{"$f":"IF(BB24<>\"\",BB24,\"\")","v":"Spanien"},null,{"$f":"IF(AO22<>\"\",BC24,\"\")","v":""},":",{"$f":"IF(AO22<>\"\",BD24,\"\")","v":""},{"$f":"IF(BF24<>\"\",BF24,\"\")","v":0},null,"Uruguay","-","Kap Verde",{"$f":"IF('Vorrunde 25-48'!$H$16<>\"\",'Vorrunde 25-48'!$H$16,\"\")","v":""},":",{"$f":"IF('Vorrunde 25-48'!$J$16<>\"\",'Vorrunde 25-48'!$J$16,\"\")","v":""},null,{"$f":"SUM(AO22,AO25,AQ26)","v":0},{"$f":"SUM(AQ22,AQ25,AO26)","v":0},{"$f":"IF(AO22>AQ22,3,0)","v":0},{"$f":"IF(AND(AO22=AQ22,AQ22<>\"\"),1,0)","v":0},{"$f":"IF(AO25>AQ25,3,0)","v":0},{"$f":"IF(AND(AO25=AQ25,AQ25<>\"\"),1,0)","v":0},{"$f":"IF(AQ26>AO26,3,0)","v":0},{"$f":"IF(AND(AQ26=AO26,AQ26<>\"\"),1,0)","v":0},{"$f":"SUM(AU24:AZ24)","v":0},"Spanien",{"$f":"$AS$24","v":0},{"$f":"$AT$24","v":0},{"$f":"BC24-BD24","v":0},{"$f":"$BA$24","v":0},{"$f":"IF(BR22<>\"\",\"1.\",\"\")","v":""},{"$f":"IF(CE24<>\"\",CE24,\"\")","v":"England"},null,{"$f":"IF(BR22<>\"\",CF24,\"\")","v":""},":",{"$f":"IF(BR22<>\"\",CG24,\"\")","v":""},{"$f":"IF(CI24<>\"\",CI24,\"\")","v":0},null,"Panama","-","Kroatien",{"$f":"IF('Vorrunde 25-48'!$H$24<>\"\",'Vorrunde 25-48'!$H$24,\"\")","v":""},":",{"$f":"IF('Vorrunde 25-48'!$J$24<>\"\",'Vorrunde 25-48'!$J$24,\"\")","v":""},null,{"$f":"SUM(BR22,BR25,BT26)","v":0},{"$f":"SUM(BT22,BT25,BR26)","v":0},{"$f":"IF(BR22>BT22,3,0)","v":0},{"$f":"IF(AND(BR22=BT22,BT22<>\"\"),1,0)","v":0},{"$f":"IF(BR25>BT25,3,0)","v":0},{"$f":"IF(AND(BR25=BT25,BT25<>\"\"),1,0)","v":0},{"$f":"IF(BT26>BR26,3,0)","v":0},{"$f":"IF(AND(BT26=BR26,BT26<>\"\"),1,0)","v":0},{"$f":"SUM(BX24:CC24)","v":0},"England",{"$f":"$BV$24","v":0},{"$f":"$BW$24","v":0},{"$f":"CF24-CG24","v":0},{"$f":"$CD$24","v":0},null,null,null,null,null,"ABCDEGJK","Elfenbeinküste","Iran","Katar","Haiti","Südkorea","Australien",{"$f":"$CE$12","v":"Österreich"},{"$f":"$CE$19","v":"Usbekistan"}]
[{"$f":"IF(L22<>\"\",\"2.\",\"\")","v":""},{"$f":"IF(Y25<>\"\",Y25,\"\")","v":"Paraguay"},null,{"$f":"IF(L22<>\"\",Z25,\"\")","v":""},":",{"$f":"IF(L22<>\"\",AA25,\"\")","v":""},{"$f":"IF(AC25<>\"\",AC25,\"\")","v":0},null,"USA","-","Australien",{"$f":"IF('Vorrunde 25-48'!$H$6<>\"\",'Vorrunde 25-48'!$H$6,\"\")","v":""},":",{"$f":"IF('Vorrunde 25-48'!$J$6<>\"\",'Vorrunde 25-48'!$J$6,\"\")","v":""},null,{"$f":"SUM(N22,N24,L27)","v":0},{"$f":"SUM(L22,L24,N27)","v":0},{"$f":"IF(N22>L22,3,0)","v":0},{"$f":"IF(AND(N22=L22,N22<>\"\"),1,0)","v":0},{"$f":"IF(N24>L24,3,0)","v":0},{"$f":"IF(AND(N24=L24,N24<>\"\"),1,0)","v":0},{"$f":"IF(L27>N27,3,0)","v":0},{"$f":"IF(AND(L27=N27,N27<>\"\"),1,0)","v":0},{"$f":"SUM(R25:W25)","v":0},"Paraguay",{"$f":"$P$25","v":0},{"$f":"$Q$25","v":0},{"$f":"Z25-AA25","v":0},{"$f":"$X$25","v":0},{"$f":"IF(AO22<>\"\",\"2.\",\"\")","v":""},{"$f":"IF(BB25<>\"\",BB25,\"\")","v":"Kap Verde"},null,{"$f":"IF(AO22<>\"\",BC25,\"\")","v":""},":",{"$f":"IF(AO22<>\"\",BD25,\"\")","v":""},{"$f":"IF(BF25<>\"\",BF25,\"\")","v":0},null,"Spanien","-","Saudi-Arabien",{"$f":"IF('Vorrunde 25-48'!$H$14<>\"\",'Vorrunde 25-48'!$H$14,\"\")","v":""},":",{"$f":"IF('Vorrunde 25-48'!$J$14<>\"\",'Vorrunde 25-48'!$J$14,\"\")","v":""},null,{"$f":"SUM(AQ22,AQ24,AO27)","v":0},{"$f":"SUM(AO22,AO24,AQ27)","v":0},{"$f":"IF(AQ22>AO22,3,0)","v":0},{"$f":"IF(AND(AQ22=AO22,AQ22<>\"\"),1,0)","v":0},{"$f":"IF(AQ24>AO24,3,0)","v":0},{"$f":"IF(AND(AQ24=AO24,AQ24<>\"\"),1,0)","v":0},{"$f":"IF(AO27>AQ27,3,0)","v":0},{"$f":"IF(AND(AO27=AQ27,AQ27<>\"\"),1,0)","v":0},{"$f":"SUM(AU25:AZ25)","v":0},"Kap Verde",{"$f":"$AS$25","v":0},{"$f":"$AT$25","v":0},{"$f":"BC25-BD25","v":0},{"$f":"$BA$25","v":0},{"$f":"IF(BR22<>\"\",\"2.\",\"\")","v":""},{"$f":"IF(CE25<>\"\",CE25,\"\")","v":"Kroatien"},null,{"$f":"IF(BR22<>\"\",CF25,\"\")","v":""},":",{"$f":"IF(BR22<>\"\",CG25,\"\")","v":""},{"$f":"IF(CI25<>\"\",CI25,\"\")","v":0},null,"England","-","Ghana",{"$f":"IF('Vorrunde 25-48'!$H$23<>\"\",'Vorrunde 25-48'!$H$23,\"\")","v":""},":",{"$f":"IF('Vorrunde 25-48'!$J$23<>\"\",'Vorrunde 25-48'!$J$23,\"\")","v":""},null,{"$f":"SUM(BT22,BT24,BR27)","v":0},{"$f":"SUM(BR22,BR24,BT27)","v":0},{"$f":"IF(BT22>BR22,3,0)","v":0},{"$f":"IF(AND(BT22=BR22,BT22<>\"\"),1,0)","v":0},{"$f":"IF(BT24>BR24,3,0)","v":0},{"$f":"IF(AND(BT24=BR24,BT24<>\"\"),1,0)","v":0},{"$f":"IF(BR27>BT27,3,0)","v":0},{"$f":"IF(AND(BR27=BT27,BT27<>\"\"),1,0)","v":0},{"$f":"SUM(BX25:CC25)","v":0},"Kroatien",{"$f":"$BV$25","v":0},{"$f":"$BW$25","v":0},{"$f":"CF25-CG25","v":0},{"$f":"$CD$25","v":0},null,null,null,null,null,"ABCDEGJL","Elfenbeinküste","Iran","Katar","Haiti","Südkorea","Australien",{"$f":"$CE$26","v":"Ghana"},{"$f":"$CE$12","v":"Österreich"}]
[{"$f":"IF(L22<>\"\",\"3.\",\"\")","v":""},{"$f":"IF(Y26<>\"\",Y26,\"\")","v":"Australien"},null,{"$f":"IF(L22<>\"\",Z26,\"\")","v":""},":",{"$f":"IF(L22<>\"\",AA26,\"\")","v":""},{"$f":"IF(AC26<>\"\",AC26,\"\")","v":0},null,"Türkei","-","USA",{"$f":"IF('Vorrunde 49-72'!$H$12<>\"\",'Vorrunde 49-72'!$H$12,\"\")","v":""},":",{"$f":"IF('Vorrunde 49-72'!$J$12<>\"\",'Vorrunde 49-72'!$J$12,\"\")","v":""},null,{"$f":"SUM(L23,N25,N27)","v":0},{"$f":"SUM(N23,L25,L27)","v":0},{"$f":"IF(L23>N23,3,0)","v":0},{"$f":"IF(AND(L23=N23,N23<>\"\"),1,0)","v":0},{"$f":"IF(N25>L25,3,0)","v":0},{"$f":"IF(AND(N25=L25,N25<>\"\"),1,0)","v":0},{"$f":"IF(N27>L27,3,0)","v":0},{"$f":"IF(AND(N27=L27,N27<>\"\"),1,0)","v":0},{"$f":"SUM(R26:W26)","v":0},"Australien",{"$f":"$P$26","v":0},{"$f":"$Q$26","v":0},{"$f":"Z26-AA26","v":0},{"$f":"$X$26","v":0},{"$f":"IF(AO22<>\"\",\"3.\",\"\")","v":""},{"$f":"IF(BB26<>\"\",BB26,\"\")","v":"Saudi-Arabien"},null,{"$f":"IF(AO22<>\"\",BC26,\"\")","v":""},":",{"$f":"IF(AO22<>\"\",BD26,\"\")","v":""},{"$f":"IF(BF26<>\"\",BF26,\"\")","v":0},null,"Uruguay","-","Spanien",{"$f":"IF('Vorrunde 49-72'!$H$17<>\"\",'Vorrunde 49-72'!$H$17,\"\")","v":""},":",{"$f":"IF('Vorrunde 49-72'!$J$17<>\"\",'Vorrunde 49-72'!$J$17,\"\")","v":""},null,{"$f":"SUM(AO23,AQ25,AQ27)","v":0},{"$f":"SUM(AQ23,AO25,AO27)","v":0},{"$f":"IF(AO23>AQ23,3,0)","v":0},{"$f":"IF(AND(AO23=AQ23,AQ23<>\"\"),1,0)","v":0},{"$f":"IF(AQ25>AO25,3,0)","v":0},{"$f":"IF(AND(AQ25=AO25,AQ25<>\"\"),1,0)","v":0},{"$f":"IF(AQ27>AO27,3,0)","v":0},{"$f":"IF(AND(AQ27=AO27,AQ27<>\"\"),1,0)","v":0},{"$f":"SUM(AU26:AZ26)","v":0},"Saudi-Arabien",{"$f":"$AS$26","v":0},{"$f":"$AT$26","v":0},{"$f":"BC26-BD26","v":0},{"$f":"$BA$26","v":0},{"$f":"IF(BR22<>\"\",\"3.\",\"\")","v":""},{"$f":"IF(CE26<>\"\",CE26,\"\")","v":"Ghana"},null,{"$f":"IF(BR22<>\"\",CF26,\"\")","v":""},":",{"$f":"IF(BR22<>\"\",CG26,\"\")","v":""},{"$f":"IF(CI26<>\"\",CI26,\"\")","v":0},null,"Panama","-","England",{"$f":"IF('Vorrunde 49-72'!$H$20<>\"\",'Vorrunde 49-72'!$H$20,\"\")","v":""},":",{"$f":"IF('Vorrunde 49-72'!$J$20<>\"\",'Vorrunde 49-72'!$J$20,\"\")","v":""},null,{"$f":"SUM(BR23,BT25,BT27)","v":0},{"$f":"SUM(BT23,BR25,BR27)","v":0},{"$f":"IF(BR23>BT23,3,0)","v":0},{"$f":"IF(AND(BR23=BT23,BT23<>\"\"),1,0)","v":0},{"$f":"IF(BT25>BR25,3,0)","v":0},{"$f":"IF(AND(BT25=BR25,BT25<>\"\"),1,0)","v":0},{"$f":"IF(BT27>BR27,3,0)","v":0},{"$f":"IF(AND(BT27=BR27,BT27<>\"\"),1,0)","v":0},{"$f":"SUM(BX26:CC26)","v":0},"Ghana",{"$f":"$BV$26","v":0},{"$f":"$BW$26","v":0},{"$f":"CF26-CG26","v":0},{"$f":"$CD$26","v":0},null,null,null,null,null,"ABCDEGKL","Elfenbeinküste","Iran","Katar","Haiti","Südkorea","Australien",{"$f":"$CE$26","v":"Ghana"},{"$f":"$CE$19","v":"Usbekistan"}]
[{"$f":"IF(L22<>\"\",\"4.\",\"\")","v":""},{"$f":"IF(Y27<>\"\",Y27,\"\")","v":"Türkei"},null,{"$f":"IF(L22<>\"\",Z27,\"\")","v":""},":",{"$f":"IF(L22<>\"\",AA27,\"\")","v":""},{"$f":"IF(AC27<>\"\",AC27,\"\")","v":0},null,"Paraguay","-","Australien",{"$f":"IF('Vorrunde 49-72'!$H$13<>\"\",'Vorrunde 49-72'!$H$13,\"\")","v":""},":",{"$f":"IF('Vorrunde 49-72'!$J$13<>\"\",'Vorrunde 49-72'!$J$13,\"\")","v":""},null,{"$f":"SUM(N23,L24,L26)","v":0},{"$f":"SUM(L23,N24,N26)","v":0},{"$f":"IF(N23>L23,3,0)","v":0},{"$f":"IF(AND(N23=L23,N23<>\"\"),1,0)","v":0},{"$f":"IF(L24>N24,3,0)","v":0},{"$f":"IF(AND(L24=N24,N24<>\"\"),1,0)","v":0},{"$f":"IF(L26>N26,3,0)","v":0},{"$f":"IF(AND(L26=N26,N26<>\"\"),1,0)","v":0},{"$f":"SUM(R27:W27)","v":0},"Türkei",{"$f":"$P$27","v":0},{"$f":"$Q$27","v":0},{"$f":"Z27-AA27","v":0},{"$f":"$X$27","v":0},{"$f":"IF(AO22<>\"\",\"4.\",\"\")","v":""},{"$f":"IF(BB27<>\"\",BB27,\"\")","v":"Uruguay"},null,{"$f":"IF(AO22<>\"\",BC27,\"\")","v":""},":",{"$f":"IF(AO22<>\"\",BD27,\"\")","v":""},{"$f":"IF(BF27<>\"\",BF27,\"\")","v":0},null,"Kap Verde","-","Saudi-Arabien",{"$f":"IF('Vorrunde 49-72'!$H$16<>\"\",'Vorrunde 49-72'!$H$16,\"\")","v":""},":",{"$f":"IF('Vorrunde 49-72'!$J$16<>\"\",'Vorrunde 49-72'!$J$16,\"\")","v":""},null,{"$f":"SUM(AQ23,AO24,AO26)","v":0},{"$f":"SUM(AO23,AQ24,AQ26)","v":0},{"$f":"IF(AQ23>AO23,3,0)","v":0},{"$f":"IF(AND(AQ23=AO23,AQ23<>\"\"),1,0)","v":0},{"$f":"IF(AO24>AQ24,3,0)","v":0},{"$f":"IF(AND(AO24=AQ24,AQ24<>\"\"),1,0)","v":0},{"$f":"IF(AO26>AQ26,3,0)","v":0},{"$f":"IF(AND(AO26=AQ26,AQ26<>\"\"),1,0)","v":0},{"$f":"SUM(AU27:AZ27)","v":0},"Uruguay",{"$f":"$AS$27","v":0},{"$f":"$AT$27","v":0},{"$f":"BC27-BD27","v":0},{"$f":"$BA$27","v":0},{"$f":"IF(BR22<>\"\",\"4.\",\"\")","v":""},{"$f":"IF(CE27<>\"\",CE27,\"\")","v":"Panama"},null,{"$f":"IF(BR22<>\"\",CF27,\"\")","v":""},":",{"$f":"IF(BR22<>\"\",CG27,\"\")","v":""},{"$f":"IF(CI27<>\"\",CI27,\"\")","v":0},null,"Kroatien","-","Ghana",{"$f":"IF('Vorrunde 49-72'!$H$21<>\"\",'Vorrunde 49-72'!$H$21,\"\")","v":""},":",{"$f":"IF('Vorrunde 49-72'!$J$21<>\"\",'Vorrunde 49-72'!$J$21,\"\")","v":""},null,{"$f":"SUM(BT23,BR24,BR26)","v":0},{"$f":"SUM(BR23,BT24,BT26)","v":0},{"$f":"IF(BT23>BR23,3,0)","v":0},{"$f":"IF(AND(BT23=BR23,BT23<>\"\"),1,0)","v":0},{"$f":"IF(BR24>BT24,3,0)","v":0},{"$f":"IF(AND(BR24=BT24,BT24<>\"\"),1,0)","v":0},{"$f":"IF(BR26>BT26,3,0)","v":0},{"$f":"IF(AND(BR26=BT26,BT26<>\"\"),1,0)","v":0},{"$f":"SUM(BX27:CC27)","v":0},"Panama",{"$f":"$BV$27","v":0},{"$f":"$BW$27","v":0},{"$f":"CF27-CG27","v":0},{"$f":"$CD$27","v":0},null,null,null,null,null,"ABCDEHIJ",{"$f":"$BB$26","v":"Saudi-Arabien"},{"$f":"$CE$12","v":"Österreich"},"Katar","Haiti","Südkorea","Australien",{"$f":"$BB$5","v":"Elfenbeinküste"},{"$f":"$CE$5","v":"Irak"}]
[null,null,null,null,null,null,null,null,null,null,null,null,null,null,null,null,null,null,null,null,null,null,null,null,null,null,null,null,null,null,null,null,null,null,null,null,null,null,null,null,null,null,null,null,null,null,null,null,null,null,null,null,null,null,null,null,null,null,null,null,null,null,null,null,null,null,null,null,null,null,null,null,null,null,null,null,null,null,null,null,null,null,null,null,null,null,null,null,null,null,null,null,"ABCDEHIK","Saudi-Arabien",{"$f":"$BB$5","v":"Elfenbeinküste"},"Katar","Haiti","Südkorea","Australien",{"$f":"$CE$5","v":"Irak"},{"$f":"$CE$19","v":"Usbekistan"}]
[null,null,null,null,null,null,null,null,null,null,null,null,null,null,null,null,null,null,null,null,null,null,null,null,null,null,null,null,null,null,null,null,null,null,null,null,null,null,null,null,null,null,null,null,null,null,null,null,null,null,null,null,null,null,null,null,null,null,null,null,null,null,null,null,null,null,null,null,null,null,null,null,null,null,null,null,null,null,null,null,null,null,null,null,null,null,null,null,null,null,null,null,"ABCDEHIL","Saudi-Arabien",{"$f":"$BB$5","v":"Elfenbeinküste"},"Katar","Haiti","Südkorea","Australien",{"$f":"$CE$26","v":"Ghana"},{"$f":"$CE$5","v":"Irak"}]
[null,null,null,null,null,null,null,null,null,null,null,null,null,null,null,null,null,null,null,null,null,null,null,null,null,null,null,null,null,null,null,null,null,null,null,null,null,null,null,null,null,null,null,null,null,null,null,null,null,null,null,null,null,null,null,null,null,null,null,null,null,null,null,null,null,null,null,null,null,null,null,null,null,null,null,null,null,null,null,null,null,null,null,null,null,null,null,null,null,null,null,null,"ABCDEHJK","Saudi-Arabien",{"$f":"$CE$12","v":"Österreich"},"Katar","Haiti","Südkorea","Australien",{"$f":"$BB$5","v":"Elfenbeinküste"},{"$f":"$CE$19","v":"Usbekistan"}]
[null,null,null,null,null,null,null,null,null,null,null,null,null,null,null,null,null,null,null,null,null,null,null,null,null,null,null,null,null,null,null,null,null,null,null,null,null,null,null,null,null,null,null,null,null,null,null,null,null,null,null,null,null,null,null,null,null,null,null,null,null,null,null,null,null,null,null,null,null,null,null,null,null,null,null,null,null,null,null,null,null,null,null,null,null,null,null,null,null,null,null,null,"ABCDEHJL","Saudi-Arabien",{"$f":"$CE$12","v":"Österreich"},"Katar","Haiti","Südkorea","Australien",{"$f":"$CE$26","v":"Ghana"},{"$f":"$BB$5","v":"Elfenbeinküste"}]
[null,null,null,null,null,null,null,null,null,null,null,null,null,null,null,null,null,null,null,null,null,null,null,null,null,null,null,null,null,null,null,null,null,null,null,null,null,null,null,null,null,null,null,null,null,null,null,null,null,null,null,null,null,null,null,null,null,null,null,null,null,null,null,null,null,null,null,null,null,null,null,null,null,null,null,null,null,null,null,null,null,null,null,null,null,null,null,null,null,null,null,null,"ABCDEHKL","Saudi-Arabien",{"$f":"$BB$5","v":"Elfenbeinküste"},"Katar","Haiti","Südkorea","Australien",{"$f":"$CE$26","v":"Ghana"},{"$f":"$CE$19","v":"Usbekistan"}]
[null,null,null,null,null,null,null,null,null,null,null,null,null,null,null,null,null,null,null,null,null,null,null,null,null,null,null,null,null,null,null,null,null,null,null,null,null,null,null,null,null,null,null,null,null,null,null,null,null,null,null,null,null,null,null,null,null,null,null,null,null,null,null,null,null,null,null,null,null,null,null,null,null,null,null,null,null,null,null,null,null,null,null,null,null,null,null,null,null,null,null,null,"ABCDEIJK",{"$f":"$BB$5","v":"Elfenbeinküste"},{"$f":"$CE$12","v":"Österreich"},"Katar","Haiti","Südkorea","Australien",{"$f":"$CE$5","v":"Irak"},{"$f":"$CE$19","v":"Usbekistan"}]
[null,{"$f":"A38&A39&A40&A41&A42&A43&A44&A45","v":""},null,null,null,null,null,null,null,null,{"$f":"A38&A39&A40&A41&A42&A43&A44&A45","v":""},null,null,null,null,null,null,null,null,null,null,null,null,null,null,null,null,null,null,null,null,null,null,null,null,null,null,null,null,null,null,null,null,null,null,null,null,null,null,null,null,null,null,null,null,null,null,null,null,null,null,null,null,null,null,null,null,null,null,null,null,null,null,null,null,null,null,null,null,null,null,null,null,null,null,null,null,null,null,null,null,null,"ABCDEIJL",{"$f":"$BB$5","v":"Elfenbeinküste"},{"$f":"$CE$12","v":"Österreich"},"Katar","Haiti",{"$f":"$Y$5","v":"Südkorea"},"Australien",{"$f":"$CE$26","v":"Ghana"},{"$f":"$CE$5","v":"Irak"}]
[null,null,null,null,null,null,null,null,null,null,null,null,null,null,null,null,null,null,null,null,null,null,null,null,null,null,null,null,null,null,null,null,null,null,null,null,null,null,null,null,null,null,null,null,null,null,null,null,null,null,null,null,null,null,null,null,null,null,null,null,null,null,null,null,null,null,null,null,null,null,null,null,null,null,null,null,null,null,null,null,null,null,null,null,null,null,null,null,null,null,null,null,"ABCDEIKL",{"$f":"$BB$5","v":"Elfenbeinküste"},{"$f":"$CE$5","v":"Irak"},"Katar","Haiti","Südkorea","Australien",{"$f":"$CE$26","v":"Ghana"},{"$f":"$CE$19","v":"Usbekistan"}]
["Die Rangliste aller 3. Plätze ( die Ränge 1 bis 4 sind qualifiziert für das Achtelfinale )",null,null,null,null,null,null,null,null,null,null,null,null,null,null,null,null,null,null,null,null,null,null,null,null,null,null,null,null,null,null,null,null,null,null,null,null,null,null,null,null,null,null,null,null,null,null,null,null,null,null,null,null,null,null,null,null,null,null,null,null,null,null,null,null,null,null,null,null,null,null,null,null,null,null,null,null,null,null,null,null,null,null,null,null,null,null,null,null,null,null,null,"ABCDEJKL",{"$f":"$BB$5","v":"Elfenbeinküste"},{"$f":"$CE$12","v":"Österreich"},"Katar","Haiti","Südkorea","Australien",{"$f":"$CE$26","v":"Ghana"},{"$f":"$CE$19","v":"Usbekistan"}]
["Gruppe","MANNSCHAFT",null,"TORE",null,null,"Tordifferenz",null,"PUNKTE",{"$f":"A38&$H$1&A39&$H$1&A40&$H$1&A41&$H$1&A42&$H$1&A43&$H$1&A44&$H$1&A45","v":" /  /  /  /  /  /  / "},null,null,null,null,null,null,null,null,null,null,null,null,null,null,null,null,null,null,null,null,null,null,null,null,null,null,null,null,null,null,null,null,null,null,null,null,null,null,null,null,null,null,null,null,null,null,null,null,null,null,null,null,null,null,null,null,null,null,null,null,null,null,null,null,null,null,null,null,null,null,null,null,null,null,null,null,null,null,null,null,null,null,"ABCDFGHI",{"$f":"$BB$26","v":"Saudi-Arabien"},{"$f":"$BB$19","v":"Iran"},"Katar","Haiti","Südkorea",{"$f":"$BB$12","v":"Schweden"},{"$f":"$Y$26","v":"Australien"},{"$f":"$CE$5","v":"Irak"}]
[{"$f":"IF($L$5=\"\",\"\",$X$38)","v":""},{"$f":"IF($L$5=\"\",\"\",$Y$38)","v":""},null,{"$f":"IF($L$5=\"\",\"\",$Z$38)","v":""},":",{"$f":"IF($L$5=\"\",\"\",$AA$38)","v":""},{"$f":"IF($L$5=\"\",\"\",$AB$38)","v":""},null,{"$f":"IF($L$5=\"\",\"\",$AC$38)","v":""},"Rang 1",null,null,null,null,null,null,null,null,null,null,null,null,null,"A",{"$f":"$Y$5","v":"Südkorea"},{"$f":"$Z$5","v":0},{"$f":"$AA$5","v":0},{"$f":"$AB$5","v":0},{"$f":"$AC$5","v":0},null,null,null,null,null,null,null,null,null,null,null,null,null,null,null,null,null,null,null,null,null,null,null,null,null,null,null,null,null,null,null,null,null,null,null,null,null,null,null,null,null,null,null,null,null,null,null,null,null,null,null,null,null,null,null,null,null,null,null,null,null,null,null,"ABCDFGHJ",{"$f":"$BB$26","v":"Saudi-Arabien"},"Iran","Katar","Haiti","Südkorea","Schweden",{"$f":"$Y$26","v":"Australien"},{"$f":"$CE$12","v":"Österreich"}]
[{"$f":"IF($L$5=\"\",\"\",$X$39)","v":""},{"$f":"IF($L$5=\"\",\"\",$Y$39)","v":""},null,{"$f":"IF($L$5=\"\",\"\",$Z$39)","v":""},":",{"$f":"IF($L$5=\"\",\"\",$AA$39)","v":""},{"$f":"IF($L$5=\"\",\"\",$AB$39)","v":""},null,{"$f":"IF($L$5=\"\",\"\",$AC$39)","v":""},"Rang 2",null,null,null,null,null,null,null,null,null,null,null,null,null,"B",{"$f":"$Y$12","v":"Katar"},{"$f":"$Z$12","v":0},{"$f":"$AA$12","v":0},{"$f":"$AB$12","v":0},{"$f":"$AC$12","v":0},null,null,null,null,null,null,null,null,null,null,null,null,null,null,null,null,null,null,null,null,null,null,null,null,null,null,null,null,null,null,null,null,null,null,null,null,null,null,null,null,null,null,null,null,null,null,null,null,null,null,null,null,null,null,null,null,null,null,null,null,null,null,null,"ABCDFGHK",{"$f":"$BB$26","v":"Saudi-Arabien"},"Iran","Katar","Haiti","Südkorea","Schweden",{"$f":"$Y$26","v":"Australien"},{"$f":"$CE$19","v":"Usbekistan"}]
[{"$f":"IF($L$5=\"\",\"\",$X$40)","v":""},{"$f":"IF($L$5=\"\",\"\",$Y$40)","v":""},null,{"$f":"IF($L$5=\"\",\"\",$Z$40)","v":""},":",{"$f":"IF($L$5=\"\",\"\",$AA$40)","v":""},{"$f":"IF($L$5=\"\",\"\",$AB$40)","v":""},null,{"$f":"IF($L$5=\"\",\"\",$AC$40)","v":""},"Rang 3",null,null,null,null,null,null,null,null,null,null,null,null,null,"C",{"$f":"$Y$19","v":"Haiti"},{"$f":"$Z$19","v":0},{"$f":"$AA$19","v":0},{"$f":"$AB$19","v":0},{"$f":"$AC$19","v":0},null,null,null,null,null,null,null,null,null,null,null,null,null,null,null,null,null,null,null,null,null,null,null,null,null,null,null,null,null,null,null,null,null,null,null,null,null,null,null,null,null,null,null,null,null,null,null,null,null,null,null,null,null,null,null,null,null,null,null,null,null,null,null,"ABCDFGHL",{"$f":"$Y$19","v":"Haiti"},"Iran","Katar",{"$f":"$Y$26","v":"Australien"},"Südkorea","Schweden",{"$f":"$CE$26","v":"Ghana"},{"$f":"$BB$26","v":"Saudi-Arabien"}]
[{"$f":"IF($L$5=\"\",\"\",$X$41)","v":""},{"$f":"IF($L$5=\"\",\"\",$Y$41)","v":""},null,{"$f":"IF($L$5=\"\",\"\",$Z$41)","v":""},":",{"$f":"IF($L$5=\"\",\"\",$AA$41)","v":""},{"$f":"IF($L$5=\"\",\"\",$AB$41)","v":""},null,{"$f":"IF($L$5=\"\",\"\",$AC$41)","v":""},"Rang 4",null,null,null,null,null,null,null,null,null,null,null,null,null,"D",{"$f":"$Y$26","v":"Australien"},{"$f":"$Z$26","v":0},{"$f":"$AA$26","v":0},{"$f":"$AB$26","v":0},{"$f":"$AC$26","v":0},null,null,null,null,null,null,null,null,null,null,null,null,null,null,null,null,null,null,null,null,null,null,null,null,null,null,null,null,null,null,null,null,null,null,null,null,null,null,null,null,null,null,null,null,null,null,null,null,null,null,null,null,null,null,null,null,null,null,null,null,null,null,null,"ABCDFGIJ","Haiti","Iran","Katar","Australien","Südkorea","Schweden",{"$f":"$CE$5","v":"Irak"},{"$f":"$CE$12","v":"Österreich"}]
[{"$f":"IF($L$5=\"\",\"\",$X$42)","v":""},{"$f":"IF($L$5=\"\",\"\",$Y$42)","v":""},null,{"$f":"IF($L$5=\"\",\"\",$Z$42)","v":""},":",{"$f":"IF($L$5=\"\",\"\",$AA$42)","v":""},{"$f":"IF($L$5=\"\",\"\",$AB$42)","v":""},null,{"$f":"IF($L$5=\"\",\"\",$AC$42)","v":""},"Rang 5",null,null,null,null,null,null,null,null,null,null,null,null,null,"E",{"$f":"$BB$5","v":"Elfenbeinküste"},{"$f":"$BC$5","v":0},{"$f":"$BD$5","v":0},{"$f":"$BE$5","v":0},{"$f":"$BF$5","v":0},null,null,null,null,null,null,null,null,null,null,null,null,null,null,null,null,null,null,null,null,null,null,null,null,null,null,null,null,null,null,null,null,null,null,null,null,null,null,null,null,null,null,null,null,null,null,null,null,null,null,null,null,null,null,null,null,null,null,null,null,null,null,null,"ABCDFGIK","Haiti","Iran","Katar","Australien","Südkorea","Schweden",{"$f":"$CE$5","v":"Irak"},{"$f":"$CE$19","v":"Usbekistan"}]
[{"$f":"IF($L$5=\"\",\"\",$X$43)","v":""},{"$f":"IF($L$5=\"\",\"\",$Y$43)","v":""},null,{"$f":"IF($L$5=\"\",\"\",$Z$43)","v":""},":",{"$f":"IF($L$5=\"\",\"\",$AA$43)","v":""},{"$f":"IF($L$5=\"\",\"\",$AB$43)","v":""},null,{"$f":"IF($L$5=\"\",\"\",$AC$43)","v":""},"Rang 6",null,null,null,null,null,null,null,null,null,null,null,null,null,"F",{"$f":"$BB$12","v":"Schweden"},{"$f":"$BC$12","v":0},{"$f":"$BD$12","v":0},{"$f":"$BE$12","v":0},{"$f":"$BF$12","v":0},null,null,null,null,null,null,null,null,null,null,null,null,null,null,null,null,null,null,null,null,null,null,null,null,null,null,null,null,null,null,null,null,null,null,null,null,null,null,null,null,null,null,null,null,null,null,null,null,null,null,null,null,null,null,null,null,null,null,null,null,null,null,null,"ABCDFGIL","Haiti","Iran","Katar","Australien","Südkorea","Schweden",{"$f":"$CE$26","v":"Ghana"},{"$f":"$CE$5","v":"Irak"}]
[{"$f":"IF($L$5=\"\",\"\",$X$44)","v":""},{"$f":"IF($L$5=\"\",\"\",$Y$44)","v":""},null,{"$f":"IF($L$5=\"\",\"\",$Z$44)","v":""},":",{"$f":"IF($L$5=\"\",\"\",$AA$44)","v":""},{"$f":"IF($L$5=\"\",\"\",$AB$44)","v":""},null,{"$f":"IF($L$5=\"\",\"\",$AC$44)","v":""},"Rang 7",null,null,null,null,null,null,null,null,null,null,null,null,null,"G",{"$f":"$BB$19","v":"Iran"},{"$f":"$BC$19","v":0},{"$f":"$BD$19","v":0},{"$f":"$BE$19","v":0},{"$f":"$BF$19","v":0},null,null,null,null,null,null,null,null,null,null,null,null,null,null,null,null,null,null,null,null,null,null,null,null,null,null,null,null,null,null,null,null,null,null,null,null,null,null,null,null,null,null,null,null,null,null,null,null,null,null,null,null,null,null,null,null,null,null,null,null,null,null,null,"ABCDFGJK","Haiti","Iran","Katar","Australien","Südkorea","Schweden",{"$f":"$CE$12","v":"Österreich"},{"$f":"$CE$19","v":"Usbekistan"}]
[{"$f":"IF($L$5=\"\",\"\",$X$45)","v":""},{"$f":"IF($L$5=\"\",\"\",$Y$45)","v":""},null,{"$f":"IF($L$5=\"\",\"\",$Z$45)","v":""},":",{"$f":"IF($L$5=\"\",\"\",$AA$45)","v":""},{"$f":"IF($L$5=\"\",\"\",$AB$45)","v":""},null,{"$f":"IF($L$5=\"\",\"\",$AC$45)","v":""},"Rang 8",null,null,null,null,null,null,null,null,null,null,null,null,null,"H",{"$f":"$BB$26","v":"Saudi-Arabien"},{"$f":"$BC$26","v":0},{"$f":"$BD$26","v":0},{"$f":"$BE$26","v":0},{"$f":"$BF$26","v":0},null,null,null,null,null,null,null,null,null,null,null,null,null,null,null,null,null,null,null,null,null,null,null,null,null,null,null,null,null,null,null,null,null,null,null,null,null,null,null,null,null,null,null,null,null,null,null,null,null,null,null,null,null,null,null,null,null,null,null,null,null,null,null,"ABCDFGJL","Haiti","Iran","Katar","Australien","Südkorea","Schweden",{"$f":"$CE$26","v":"Ghana"},{"$f":"$CE$12","v":"Österreich"}]
[{"$f":"IF($L$5=\"\",\"\",$X$46)","v":""},{"$f":"IF($L$5=\"\",\"\",$Y$46)","v":""},null,{"$f":"IF($L$5=\"\",\"\",$Z$46)","v":""},":",{"$f":"IF($L$5=\"\",\"\",$AA$46)","v":""},{"$f":"IF($L$5=\"\",\"\",$AB$46)","v":""},null,{"$f":"IF($L$5=\"\",\"\",$AC$46)","v":""},"Rang 9",null,null,null,null,null,null,null,null,null,null,null,null,null,"I",{"$f":"$CE$5","v":"Irak"},{"$f":"$CF$5","v":0},{"$f":"$CG$5","v":0},{"$f":"$CH$5","v":0},{"$f":"$CI$5","v":0},null,null,null,null,null,null,null,null,null,null,null,null,null,null,null,null,null,null,null,null,null,null,null,null,null,null,null,null,null,null,null,null,null,null,null,null,null,null,null,null,null,null,null,null,null,null,null,null,null,null,null,null,null,null,null,null,null,null,null,null,null,null,null,"ABCDFGKL","Haiti","Iran","Katar","Australien","Südkorea","Schweden",{"$f":"$CE$26","v":"Ghana"},{"$f":"$CE$19","v":"Usbekistan"}]
[{"$f":"IF($L$5=\"\",\"\",$X$47)","v":""},{"$f":"IF($L$5=\"\",\"\",$Y$47)","v":""},null,{"$f":"IF($L$5=\"\",\"\",$Z$47)","v":""},":",{"$f":"IF($L$5=\"\",\"\",$AA$47)","v":""},{"$f":"IF($L$5=\"\",\"\",$AB$47)","v":""},null,{"$f":"IF($L$5=\"\",\"\",$AC$47)","v":""},"Rang 10",null,null,null,null,null,null,null,null,null,null,null,null,null,"J",{"$f":"$CE$12","v":"Österreich"},{"$f":"$CF$12","v":0},{"$f":"$CG$12","v":0},{"$f":"$CH$12","v":0},{"$f":"$CI$12","v":0},null,null,null,null,null,null,null,null,null,null,null,null,null,null,null,null,null,null,null,null,null,null,null,null,null,null,null,null,null,null,null,null,null,null,null,null,null,null,null,null,null,null,null,null,null,null,null,null,null,null,null,null,null,null,null,null,null,null,null,null,null,null,null,"ABCDFHIJ",{"$f":"$BB$26","v":"Saudi-Arabien"},{"$f":"$CE$12","v":"Österreich"},"Katar",{"$f":"$Y$19","v":"Haiti"},"Südkorea","Schweden",{"$f":"$Y$26","v":"Australien"},{"$f":"$CE$5","v":"Irak"}]
[{"$f":"IF($L$5=\"\",\"\",$X$48)","v":""},{"$f":"IF($L$5=\"\",\"\",$Y$48)","v":""},null,{"$f":"IF($L$5=\"\",\"\",$Z$48)","v":""},":",{"$f":"IF($L$5=\"\",\"\",$AA$48)","v":""},{"$f":"IF($L$5=\"\",\"\",$AB$48)","v":""},null,{"$f":"IF($L$5=\"\",\"\",$AC$48)","v":""},"Rang 11",null,null,null,null,null,null,null,null,null,null,null,null,null,"K",{"$f":"$CE$19","v":"Usbekistan"},{"$f":"$CF$19","v":0},{"$f":"$CG$19","v":0},{"$f":"$CH$19","v":0},{"$f":"$CI$19","v":0},null,null,null,null,null,null,null,null,null,null,null,null,null,null,null,null,null,null,null,null,null,null,null,null,null,null,null,null,null,null,null,null,null,null,null,null,null,null,null,null,null,null,null,null,null,null,null,null,null,null,null,null,null,null,null,null,null,null,null,null,null,null,null,"ABCDFHIK",{"$f":"$BB$26","v":"Saudi-Arabien"},{"$f":"$BB$12","v":"Schweden"},"Katar",{"$f":"$Y$19","v":"Haiti"},"Südkorea",{"$f":"$Y$26","v":"Australien"},{"$f":"$CE$5","v":"Irak"},{"$f":"$CE$19","v":"Usbekistan"}]
[{"$f":"IF($L$5=\"\",\"\",$X$49)","v":""},{"$f":"IF($L$5=\"\",\"\",$Y$49)","v":""},null,{"$f":"IF($L$5=\"\",\"\",$Z$49)","v":""},":",{"$f":"IF($L$5=\"\",\"\",$AA$49)","v":""},{"$f":"IF($L$5=\"\",\"\",$AB$49)","v":""},null,{"$f":"IF($L$5=\"\",\"\",$AC$49)","v":""},"Rang 12",null,null,null,null,null,null,null,null,null,null,null,null,null,"L",{"$f":"$CE$26","v":"Ghana"},{"$f":"$CF$26","v":0},{"$f":"$CG$26","v":0},{"$f":"$CH$26","v":0},{"$f":"$CI$26","v":0},null,null,null,null,null,null,null,null,null,null,null,null,null,null,null,null,null,null,null,null,null,null,null,null,null,null,null,null,null,null,null,null,null,null,null,null,null,null,null,null,null,null,null,null,null,null,null,null,null,null,null,null,null,null,null,null,null,null,null,null,null,null,null,"ABCDFHIL",{"$f":"$BB$26","v":"Saudi-Arabien"},{"$f":"$BB$12","v":"Schweden"},"Katar",{"$f":"$Y$19","v":"Haiti"},"Südkorea",{"$f":"$Y$26","v":"Australien"},{"$f":"$CE$26","v":"Ghana"},{"$f":"$CE$5","v":"Irak"}]
[null,null,null,null,null,null,null,null,null,null,null,null,null,null,null,null,null,null,null,null,null,null,null,null,null,null,null,null,null,null,null,null,null,null,null,null,null,null,null,null,null,null,null,null,null,null,null,null,null,null,null,null,null,null,null,null,null,null,null,null,null,null,null,null,null,null,null,null,null,null,null,null,null,null,null,null,null,null,null,null,null,null,null,null,null,null,null,null,null,null,null,null,"ABCDFHJK",{"$f":"$BB$26","v":"Saudi-Arabien"},{"$f":"$CE$12","v":"Österreich"},"Katar",{"$f":"$Y$19","v":"Haiti"},"Südkorea",{"$f":"$BB$12","v":"Schweden"},{"$f":"$Y$26","v":"Australien"},{"$f":"$CE$19","v":"Usbekistan"}]
["Nr.","Team-Name",null,null,null,null,"Kürzel","Nr.","Kürzel","Team-Name",null,null,null,null,null,null,null,null,null,null,null,null,null,null,null,null,null,null,null,null,null,null,null,null,null,null,null,"Team-Name",null,null,null,"Anzahl und Jahre der Titelgewinne",null,null,null,null,null,null,null,null,null,null,null,null,null,null,null,null,null,null,null,null,null,null,null,null,null,null,null,null,null,null,null,null,null,null,null,null,null,null,null,null,null,null,null,null,null,null,null,null,null,null,"ABCDFHJL",{"$f":"$Y$19","v":"Haiti"},{"$f":"$CE$12","v":"Österreich"},"Katar",{"$f":"$Y$26","v":"Australien"},"Südkorea",{"$f":"$BB$12","v":"Schweden"},{"$f":"$CE$26","v":"Ghana"},{"$f":"$BB$26","v":"Saudi-Arabien"}]
[1,"Ägypten",null,null,null,null,"ÄGY",1,"ÄGY","Ägypten",null,null,null,null,null,null,null,null,null,null,null,null,null,null,null,null,null,null,null,null,null,null,null,null,null,null,null,"Brasilien",null,null,null,5,null,null,null,null,null,null,null,null,null,null,null,null,null,null,null,null,"1958 / 1962 / 1970 / 1994 / 2002",null,null,null,null,null,null,null,null,null,null,null,null,null,null,null,null,null,null,null,null,null,null,null,null,null,null,null,null,null,null,null,null,null,"ABCDFHKL",{"$f":"$BB$26","v":"Saudi-Arabien"},{"$f":"$BB$12","v":"Schweden"},"Katar",{"$f":"$Y$19","v":"Haiti"},"Südkorea",{"$f":"$Y$26","v":"Australien"},{"$f":"$CE$26","v":"Ghana"},{"$f":"$CE$19","v":"Usbekistan"}]
[2,"Albanien",null,null,null,null,"ALB",2,"ALB","Albanien",null,null,null,null,null,null,null,null,null,null,null,null,null,null,null,null,null,null,null,null,null,null,null,null,null,null,null,"Deutschland",null,null,null,4,null,null,null,null,null,null,null,null,null,null,null,null,null,null,null,null,"1954 / 1974 / 1990 / 2014",null,null,null,null,null,null,null,null,null,null,null,null,null,null,null,null,null,null,null,null,null,null,null,null,null,null,null,null,null,null,null,null,null,"ABCDFIJK",{"$f":"$Y$19","v":"Haiti"},{"$f":"$CE$12","v":"Österreich"},"Katar",{"$f":"$Y$26","v":"Australien"},"Südkorea",{"$f":"$BB$12","v":"Schweden"},{"$f":"$CE$5","v":"Irak"},{"$f":"$CE$19","v":"Usbekistan"}]
[3,"Algerien",null,null,null,null,"ALG",3,"ALG","Algerien",null,null,null,null,null,null,null,null,null,null,null,null,null,null,null,null,null,null,null,null,null,null,null,null,null,null,null,"Italien",null,null,null,4,null,null,null,null,null,null,null,null,null,null,null,null,null,null,null,null,"1934 / 1938 / 1982 / 2006",null,null,null,null,null,null,null,null,null,null,null,null,null,null,null,null,null,null,null,null,null,null,null,null,null,null,null,null,null,null,null,null,null,"ABCDFIJL",{"$f":"$Y$19","v":"Haiti"},{"$f":"$CE$12","v":"Österreich"},"Katar",{"$f":"$Y$26","v":"Australien"},"Südkorea",{"$f":"$BB$12","v":"Schweden"},{"$f":"$CE$26","v":"Ghana"},{"$f":"$CE$5","v":"Irak"}]
[4,"Argentinien",null,null,null,null,"ARG",4,"ARG","Argentinien",null,null,null,null,null,null,null,null,null,null,null,null,null,null,null,null,null,null,null,null,null,null,null,null,null,null,null,"Argentinien",null,null,null,3,null,null,null,null,null,null,null,null,null,null,null,null,null,null,null,null,"1978 / 1986 / 2022",null,null,null,null,null,null,null,null,null,null,null,null,null,null,null,null,null,null,null,null,null,null,null,null,null,null,null,null,null,null,null,null,null,"ABCDFIKL",{"$f":"$Y$19","v":"Haiti"},{"$f":"$CE$5","v":"Irak"},"Katar",{"$f":"$Y$26","v":"Australien"},"Südkorea",{"$f":"$BB$12","v":"Schweden"},{"$f":"$CE$26","v":"Ghana"},{"$f":"$CE$19","v":"Usbekistan"}]
[5,"Australien",null,null,null,null,"AUS",5,"AUS","Australien",null,null,null,null,null,null,null,null,null,null,null,null,null,null,null,null,null,null,null,null,null,null,null,null,null,null,null,"Frankreich",null,null,null,2,null,null,null,null,null,null,null,null,null,null,null,null,null,null,null,null,"1998 / 2018",null,null,null,null,null,null,null,null,null,null,null,null,null,null,null,null,null,null,null,null,null,null,null,null,null,null,null,null,null,null,null,null,null,"ABCDFJKL",{"$f":"$Y$19","v":"Haiti"},{"$f":"$CE$12","v":"Österreich"},"Katar",{"$f":"$Y$26","v":"Australien"},"Südkorea",{"$f":"$BB$12","v":"Schweden"},{"$f":"$CE$26","v":"Ghana"},{"$f":"$CE$19","v":"Usbekistan"}]
[6,"Belgien",null,null,null,null,"BEL",6,"BEL","Belgien",null,null,null,null,null,null,null,null,null,null,null,null,null,null,null,null,null,null,null,null,null,null,null,null,null,null,null,"Uruguay",null,null,null,2,null,null,null,null,null,null,null,null,null,null,null,null,null,null,null,null,"1930 / 1950",null,null,null,null,null,null,null,null,null,null,null,null,null,null,null,null,null,null,null,null,null,null,null,null,null,null,null,null,null,null,null,null,null,"ABCDGHIJ",{"$f":"$BB$26","v":"Saudi-Arabien"},{"$f":"$BB$19","v":"Iran"},"Katar",{"$f":"$Y$19","v":"Haiti"},"Südkorea",{"$f":"$Y$26","v":"Australien"},{"$f":"$CE$5","v":"Irak"},{"$f":"$CE$12","v":"Österreich"}]
[7,"Irak",null,null,null,null,"BOL",7,"BOH","Bosnien und Herzegowina",null,null,null,null,null,null,null,null,null,null,null,null,null,null,null,null,null,null,null,null,null,null,null,null,null,null,null,"Spanien",null,null,null,1,null,null,null,null,null,null,null,null,null,null,null,null,null,null,null,null,2010,null,null,null,null,null,null,null,null,null,null,null,null,null,null,null,null,null,null,null,null,null,null,null,null,null,null,null,null,null,null,null,null,null,"ABCDGHIK","Saudi-Arabien","Iran","Katar","Haiti","Südkorea","Australien",{"$f":"$CE$5","v":"Irak"},{"$f":"$CE$19","v":"Usbekistan"}]
[8,"Bosnien und Herzegowina",null,null,null,null,"BOH",8,"BOL","Irak",null,null,null,null,null,null,null,null,null,null,null,null,null,null,null,null,null,null,null,null,null,null,null,null,null,null,null,"England",null,null,null,1,null,null,null,null,null,null,null,null,null,null,null,null,null,null,null,null,1966,null,null,null,null,null,null,null,null,null,null,null,null,null,null,null,null,null,null,null,null,null,null,null,null,null,null,null,null,null,null,null,null,null,"ABCDGHIL","Saudi-Arabien","Iran","Katar","Haiti","Südkorea","Australien",{"$f":"$CE$26","v":"Ghana"},{"$f":"$CE$5","v":"Irak"}]
[9,"Brasilien",null,null,null,null,"BRA",9,"BRA","Brasilien",null,null,null,null,null,null,null,null,null,null,null,null,null,null,null,null,null,null,null,null,null,null,null,null,null,null,null,null,null,null,null,{"$f":"SUM(AP52:AP59)","v":22},null,null,null,null,null,null,null,null,null,null,null,null,null,null,null,null,null,null,null,null,null,null,null,null,null,null,null,null,null,null,null,null,null,null,null,null,null,null,null,null,null,null,null,null,null,null,null,null,null,null,"ABCDGHJK","Saudi-Arabien","Iran","Katar","Haiti","Südkorea","Australien",{"$f":"$CE$12","v":"Österreich"},{"$f":"$CE$19","v":"Usbekistan"}]
[10,"Curaçao",null,null,null,null,"CUR",10,"CUR","Curaçao",null,null,null,null,null,null,null,null,null,null,null,null,null,null,null,null,null,null,null,null,null,null,null,null,null,null,null,null,null,null,null,null,null,null,null,null,null,null,null,null,null,null,null,null,null,null,null,null,null,null,null,null,null,null,null,null,null,null,null,null,null,null,null,null,null,null,null,null,null,null,null,null,null,null,null,null,null,null,null,null,null,null,"ABCDGHJL","Saudi-Arabien","Iran","Katar","Haiti","Südkorea","Australien",{"$f":"$CE$26","v":"Ghana"},{"$f":"$CE$12","v":"Österreich"}]
[11,"Tschechien",null,null,null,null,"DÄN",11,"DÄN","Tschechien",null,null,null,null,null,null,null,null,null,null,null,null,null,null,null,null,null,null,null,null,null,null,null,null,null,null,null,null,null,null,null,null,null,null,null,null,null,null,null,null,null,null,null,null,null,null,null,null,null,null,null,null,null,null,null,null,null,null,null,null,null,null,null,null,null,null,null,null,null,null,null,null,null,null,null,null,null,null,null,null,null,null,"ABCDGHKL","Saudi-Arabien","Iran","Katar","Haiti","Südkorea","Australien",{"$f":"$CE$26","v":"Ghana"},{"$f":"$CE$19","v":"Usbekistan"}]
[12,"Demokratische Republik Kongo",null,null,null,null,"KON",12,"DEU","Deutschland",null,null,null,null,null,null,null,null,null,null,null,null,null,null,null,null,null,null,null,null,null,null,null,null,null,null,null,null,null,null,null,null,null,null,null,null,null,null,null,null,null,null,null,null,null,null,null,null,null,null,null,null,null,null,null,null,null,null,null,null,null,null,null,null,null,null,null,null,null,null,null,null,null,null,null,null,null,null,null,null,null,null,"ABCDGIJK",{"$f":"$Y$19","v":"Haiti"},{"$f":"$CE$12","v":"Österreich"},"Katar",{"$f":"$Y$26","v":"Australien"},"Südkorea",{"$f":"$BB$19","v":"Iran"},{"$f":"$CE$5","v":"Irak"},{"$f":"$CE$19","v":"Usbekistan"}]
[13,"Deutschland",null,null,null,null,"DEU",13,"ECU","Ecuador",null,null,null,null,null,null,null,null,null,null,null,null,null,null,null,null,null,null,null,null,null,null,null,null,null,null,null,null,null,null,null,null,null,null,null,null,null,null,null,null,null,null,null,null,null,null,null,null,null,null,null,null,null,null,null,null,null,null,null,null,null,null,null,null,null,null,null,null,null,null,null,null,null,null,null,null,null,null,null,null,null,null,"ABCDGIJL",{"$f":"$Y$19","v":"Haiti"},{"$f":"$CE$12","v":"Österreich"},"Katar",{"$f":"$Y$26","v":"Australien"},"Südkorea",{"$f":"$BB$19","v":"Iran"},{"$f":"$CE$26","v":"Ghana"},{"$f":"$CE$5","v":"Irak"}]
[14,"Ecuador",null,null,null,null,"ECU",14,"ELF","Elfenbeinküste",null,null,null,null,null,null,null,null,null,null,null,null,null,null,null,null,null,null,null,null,null,null,null,null,null,null,null,null,null,null,null,null,null,null,null,null,null,null,null,null,null,null,null,null,null,null,null,null,null,null,null,null,null,null,null,null,null,null,null,null,null,null,null,null,null,null,null,null,null,null,null,null,null,null,null,null,null,null,null,null,null,null,"ABCDGIKL",{"$f":"$CE$5","v":"Irak"},{"$f":"$BB$19","v":"Iran"},"Katar",{"$f":"$Y$19","v":"Haiti"},"Südkorea",{"$f":"$Y$26","v":"Australien"},{"$f":"$CE$26","v":"Ghana"},{"$f":"$CE$19","v":"Usbekistan"}]
[15,"Elfenbeinküste",null,null,null,null,"ELF",15,"ENG","England",null,null,null,null,null,null,null,null,null,null,null,null,null,null,null,null,null,null,null,null,null,null,null,null,null,null,null,null,null,null,null,null,null,null,null,null,null,null,null,null,null,null,null,null,null,null,null,null,null,null,null,null,null,null,null,null,null,null,null,null,null,null,null,null,null,null,null,null,null,null,null,null,null,null,null,null,null,null,null,null,null,null,"ABCDGJKL",{"$f":"$Y$19","v":"Haiti"},{"$f":"$CE$12","v":"Österreich"},{"$f":"$Y$12","v":"Katar"},{"$f":"$Y$26","v":"Australien"},{"$f":"$Y$5","v":"Südkorea"},{"$f":"$BB$19","v":"Iran"},{"$f":"$CE$26","v":"Ghana"},{"$f":"$CE$19","v":"Usbekistan"}]
[16,"England",null,null,null,null,"ENG",16,"FRA","Frankreich",null,null,null,null,null,null,null,null,null,null,null,null,null,null,null,null,null,null,null,null,null,null,null,null,null,null,null,null,null,null,null,null,null,null,null,null,null,null,null,null,null,null,null,null,null,null,null,null,null,null,null,null,null,null,null,null,null,null,null,null,null,null,null,null,null,null,null,null,null,null,null,null,null,null,null,null,null,null,null,null,null,null,"ABCDHIJK",{"$f":"$BB$26","v":"Saudi-Arabien"},{"$f":"$CE$12","v":"Österreich"},"Katar",{"$f":"$Y$19","v":"Haiti"},"Südkorea",{"$f":"$Y$26","v":"Australien"},{"$f":"$CE$5","v":"Irak"},{"$f":"$CE$19","v":"Usbekistan"}]
[17,"Frankreich",null,null,null,null,"FRA",17,"GAN","Ghana",null,null,null,null,null,null,null,null,null,null,null,null,null,null,null,null,null,null,null,null,null,null,null,null,null,null,null,null,null,null,null,null,null,null,null,null,null,null,null,null,null,null,null,null,null,null,null,null,null,null,null,null,null,null,null,null,null,null,null,null,null,null,null,null,null,null,null,null,null,null,null,null,null,null,null,null,null,null,null,null,null,null,"ABCDHIJL",{"$f":"$BB$26","v":"Saudi-Arabien"},{"$f":"$CE$12","v":"Österreich"},"Katar","Haiti","Südkorea",{"$f":"$Y$26","v":"Australien"},{"$f":"$CE$26","v":"Ghana"},{"$f":"$CE$5","v":"Irak"}]
[18,"Ghana",null,null,null,null,"GAN",18,"HAI","Haiti",null,null,null,null,null,null,null,null,null,null,null,null,null,null,null,null,null,null,null,null,null,null,null,null,null,null,null,null,null,null,null,null,null,null,null,null,null,null,null,null,null,null,null,null,null,null,null,null,null,null,null,null,null,null,null,null,null,null,null,null,null,null,null,null,null,null,null,null,null,null,null,null,null,null,null,null,null,null,null,null,null,null,"ABCDHIKL",{"$f":"$BB$26","v":"Saudi-Arabien"},{"$f":"$CE$5","v":"Irak"},"Katar","Haiti","Südkorea",{"$f":"$Y$26","v":"Australien"},{"$f":"$CE$26","v":"Ghana"},{"$f":"$CE$19","v":"Usbekistan"}]
[19,"Haiti",null,null,null,null,"HAI",19,"HOL","Niederlande",null,null,null,null,null,null,null,null,null,null,null,null,null,null,null,null,null,null,null,null,null,null,null,null,null,null,null,null,null,null,null,null,null,null,null,null,null,null,null,null,null,null,null,null,null,null,null,null,null,null,null,null,null,null,null,null,null,null,null,null,null,null,null,null,null,null,null,null,null,null,null,null,null,null,null,null,null,null,null,null,null,null,"ABCDHJKL",{"$f":"$BB$26","v":"Saudi-Arabien"},{"$f":"$CE$12","v":"Österreich"},"Katar","Haiti","Südkorea",{"$f":"$Y$26","v":"Australien"},{"$f":"$CE$26","v":"Ghana"},{"$f":"$CE$19","v":"Usbekistan"}]
[20,"Irak",null,null,null,null,"IRK",20,"IRK","Irak",null,null,null,null,null,null,null,null,null,null,null,null,null,null,null,null,null,null,null,null,null,null,null,null,null,null,null,null,null,null,null,null,null,null,null,null,null,null,null,null,null,null,null,null,null,null,null,null,null,null,null,null,null,null,null,null,null,null,null,null,null,null,null,null,null,null,null,null,null,null,null,null,null,null,null,null,null,null,null,null,null,null,"ABCDIJKL",{"$f":"$CE$5","v":"Irak"},{"$f":"$CE$12","v":"Österreich"},"Katar","Haiti","Südkorea",{"$f":"$Y$26","v":"Australien"},{"$f":"$CE$26","v":"Ghana"},{"$f":"$CE$19","v":"Usbekistan"}]
[21,"Iran",null,null,null,null,"IRN",21,"IRL","Irland",null,null,null,null,null,null,null,null,null,null,null,null,null,null,null,null,null,null,null,null,null,null,null,null,null,null,null,null,null,null,null,null,null,null,null,null,null,null,null,null,null,null,null,null,null,null,null,null,null,null,null,null,null,null,null,null,null,null,null,null,null,null,null,null,null,null,null,null,null,null,null,null,null,null,null,null,null,null,null,null,null,null,"ABCEFGHI",{"$f":"$BB$26","v":"Saudi-Arabien"},{"$f":"$BB$19","v":"Iran"},"Katar","Haiti","Südkorea",{"$f":"$BB$12","v":"Schweden"},{"$f":"$BB$5","v":"Elfenbeinküste"},{"$f":"$CE$5","v":"Irak"}]
[22,"Irland",null,null,null,null,"IRL",22,"IRN","Iran",null,null,null,null,null,null,null,null,null,null,null,null,null,null,null,null,null,null,null,null,null,null,null,null,null,null,null,null,null,null,null,null,null,null,null,null,null,null,null,null,null,null,null,null,null,null,null,null,null,null,null,null,null,null,null,null,null,null,null,null,null,null,null,null,null,null,null,null,null,null,null,null,null,null,null,null,null,null,null,null,null,null,"ABCEFGHJ",{"$f":"$BB$26","v":"Saudi-Arabien"},"Iran","Katar","Haiti","Südkorea","Schweden",{"$f":"$BB$5","v":"Elfenbeinküste"},{"$f":"$CE$12","v":"Österreich"}]
[23,"Bosnien-Herzegowina",null,null,null,null,"ITA",23,"ITA","Bosnien-Herzegowina",null,null,null,null,null,null,null,null,null,null,null,null,null,null,null,null,null,null,null,null,null,null,null,null,null,null,null,null,null,null,null,null,null,null,null,null,null,null,null,null,null,null,null,null,null,null,null,null,null,null,null,null,null,null,null,null,null,null,null,null,null,null,null,null,null,null,null,null,null,null,null,null,null,null,null,null,null,null,null,null,null,null,"ABCEFGHK",{"$f":"$BB$26","v":"Saudi-Arabien"},"Iran","Katar","Haiti","Südkorea","Schweden",{"$f":"$BB$5","v":"Elfenbeinküste"},{"$f":"$CE$19","v":"Usbekistan"}]
[24,"DR Kongo",null,null,null,null,"JAM",24,"JAM","DR Kongo",null,null,null,null,null,null,null,null,null,null,null,null,null,null,null,null,null,null,null,null,null,null,null,null,null,null,null,null,null,null,null,null,null,null,null,null,null,null,null,null,null,null,null,null,null,null,null,null,null,null,null,null,null,null,null,null,null,null,null,null,null,null,null,null,null,null,null,null,null,null,null,null,null,null,null,null,null,null,null,null,null,null,"ABCEFGHL",{"$f":"$BB$26","v":"Saudi-Arabien"},"Iran","Katar","Haiti","Südkorea","Schweden",{"$f":"$CE$26","v":"Ghana"},{"$f":"$BB$5","v":"Elfenbeinküste"}]
[25,"Japan",null,null,null,null,"JAP",25,"JAP","Japan",null,null,null,null,null,null,null,null,null,null,null,null,null,null,null,null,null,null,null,null,null,null,null,null,null,null,null,null,null,null,null,null,null,null,null,null,null,null,null,null,null,null,null,null,null,null,null,null,null,null,null,null,null,null,null,null,null,null,null,null,null,null,null,null,null,null,null,null,null,null,null,null,null,null,null,null,null,null,null,null,null,null,"ABCEFGIJ",{"$f":"$BB$5","v":"Elfenbeinküste"},"Iran","Katar","Haiti","Südkorea","Schweden",{"$f":"$CE$5","v":"Irak"},{"$f":"$CE$12","v":"Österreich"}]
[26,"Jordanien",null,null,null,null,"JOR",26,"JOR","Jordanien",null,null,null,null,null,null,null,null,null,null,null,null,null,null,null,null,null,null,null,null,null,null,null,null,null,null,null,null,null,null,null,null,null,null,null,null,null,null,null,null,null,null,null,null,null,null,null,null,null,null,null,null,null,null,null,null,null,null,null,null,null,null,null,null,null,null,null,null,null,null,null,null,null,null,null,null,null,null,null,null,null,null,"ABCEFGIK","Elfenbeinküste","Iran","Katar","Haiti","Südkorea","Schweden",{"$f":"$CE$5","v":"Irak"},{"$f":"$CE$19","v":"Usbekistan"}]
[27,"Kanada",null,null,null,null,"KAN",27,"KAN","Kanada",null,null,null,null,null,null,null,null,null,null,null,null,null,null,null,null,null,null,null,null,null,null,null,null,null,null,null,null,null,null,null,null,null,null,null,null,null,null,null,null,null,null,null,null,null,null,null,null,null,null,null,null,null,null,null,null,null,null,null,null,null,null,null,null,null,null,null,null,null,null,null,null,null,null,null,null,null,null,null,null,null,null,"ABCEFGIL","Elfenbeinküste","Iran","Katar","Haiti","Südkorea","Schweden",{"$f":"$CE$26","v":"Ghana"},{"$f":"$CE$5","v":"Irak"}]
[28,"Kap Verde",null,null,null,null,"KVD",28,"KAT","Katar",null,null,null,null,null,null,null,null,null,null,null,null,null,null,null,null,null,null,null,null,null,null,null,null,null,null,null,null,null,null,null,null,null,null,null,null,null,null,null,null,null,null,null,null,null,null,null,null,null,null,null,null,null,null,null,null,null,null,null,null,null,null,null,null,null,null,null,null,null,null,null,null,null,null,null,null,null,null,null,null,null,null,"ABCEFGJK","Elfenbeinküste","Iran","Katar","Haiti","Südkorea","Schweden",{"$f":"$CE$12","v":"Österreich"},{"$f":"$CE$19","v":"Usbekistan"}]
[29,"Katar",null,null,null,null,"KAT",29,"KOL","Kolumbien",null,null,null,null,null,null,null,null,null,null,null,null,null,null,null,null,null,null,null,null,null,null,null,null,null,null,null,null,null,null,null,null,null,null,null,null,null,null,null,null,null,null,null,null,null,null,null,null,null,null,null,null,null,null,null,null,null,null,null,null,null,null,null,null,null,null,null,null,null,null,null,null,null,null,null,null,null,null,null,null,null,null,"ABCEFGJL","Elfenbeinküste","Iran","Katar","Haiti","Südkorea","Schweden",{"$f":"$CE$26","v":"Ghana"},{"$f":"$CE$12","v":"Österreich"}]
[30,"Kolumbien",null,null,null,null,"KOL",30,"KON","Demokratische Republik Kongo",null,null,null,null,null,null,null,null,null,null,null,null,null,null,null,null,null,null,null,null,null,null,null,null,null,null,null,null,null,null,null,null,null,null,null,null,null,null,null,null,null,null,null,null,null,null,null,null,null,null,null,null,null,null,null,null,null,null,null,null,null,null,null,null,null,null,null,null,null,null,null,null,null,null,null,null,null,null,null,null,null,null,"ABCEFGKL","Elfenbeinküste","Iran","Katar","Haiti","Südkorea","Schweden",{"$f":"$CE$26","v":"Ghana"},{"$f":"$CE$19","v":"Usbekistan"}]
[31,"Kosovo",null,null,null,null,"KOS",31,"KOR","Südkorea",null,null,null,null,null,null,null,null,null,null,null,null,null,null,null,null,null,null,null,null,null,null,null,null,null,null,null,null,null,null,null,null,null,null,null,null,null,null,null,null,null,null,null,null,null,null,null,null,null,null,null,null,null,null,null,null,null,null,null,null,null,null,null,null,null,null,null,null,null,null,null,null,null,null,null,null,null,null,null,null,null,null,"ABCEFHIJ",{"$f":"$BB$26","v":"Saudi-Arabien"},{"$f":"$CE$12","v":"Österreich"},"Katar","Haiti","Südkorea","Schweden",{"$f":"$BB$5","v":"Elfenbeinküste"},{"$f":"$CE$5","v":"Irak"}]
[32,"Kroatien",null,null,null,null,"KRO",32,"KOS","Kosovo",null,null,null,null,null,null,null,null,null,null,null,null,null,null,null,null,null,null,null,null,null,null,null,null,null,null,null,null,null,null,null,null,null,null,null,null,null,null,null,null,null,null,null,null,null,null,null,null,null,null,null,null,null,null,null,null,null,null,null,null,null,null,null,null,null,null,null,null,null,null,null,null,null,null,null,null,null,null,null,null,null,null,"ABCEFHIK","Saudi-Arabien",{"$f":"$BB$5","v":"Elfenbeinküste"},"Katar","Haiti","Südkorea","Schweden",{"$f":"$CE$5","v":"Irak"},{"$f":"$CE$19","v":"Usbekistan"}]
[33,"Marokko",null,null,null,null,"MAR",33,"KRO","Kroatien",null,null,null,null,null,null,null,null,null,null,null,null,null,null,null,null,null,null,null,null,null,null,null,null,null,null,null,null,null,null,null,null,null,null,null,null,null,null,null,null,null,null,null,null,null,null,null,null,null,null,null,null,null,null,null,null,null,null,null,null,null,null,null,null,null,null,null,null,null,null,null,null,null,null,null,null,null,null,null,null,null,null,"ABCEFHIL","Saudi-Arabien",{"$f":"$BB$5","v":"Elfenbeinküste"},"Katar","Haiti","Südkorea","Schweden",{"$f":"$CE$26","v":"Ghana"},{"$f":"$CE$5","v":"Irak"}]
[34,"Mexiko",null,null,null,null,"MEX",34,"KVD","Kap Verde",null,null,null,null,null,null,null,null,null,null,null,null,null,null,null,null,null,null,null,null,null,null,null,null,null,null,null,null,null,null,null,null,null,null,null,null,null,null,null,null,null,null,null,null,null,null,null,null,null,null,null,null,null,null,null,null,null,null,null,null,null,null,null,null,null,null,null,null,null,null,null,null,null,null,null,null,null,null,null,null,null,null,"ABCEFHJK","Saudi-Arabien",{"$f":"$CE$12","v":"Österreich"},"Katar","Haiti","Südkorea","Schweden",{"$f":"$BB$5","v":"Elfenbeinküste"},{"$f":"$CE$19","v":"Usbekistan"}]
[35,"Neukaledonien",null,null,null,null,"NKA",35,"MAR","Marokko",null,null,null,null,null,null,null,null,null,null,null,null,null,null,null,null,null,null,null,null,null,null,null,null,null,null,null,null,null,null,null,null,null,null,null,null,null,null,null,null,null,null,null,null,null,null,null,null,null,null,null,null,null,null,null,null,null,null,null,null,null,null,null,null,null,null,null,null,null,null,null,null,null,null,null,null,null,null,null,null,null,null,"ABCEFHJL","Saudi-Arabien",{"$f":"$CE$12","v":"Österreich"},"Katar","Haiti","Südkorea","Schweden",{"$f":"$CE$26","v":"Ghana"},{"$f":"$BB$5","v":"Elfenbeinküste"}]
[36,"Neuseeland",null,null,null,null,"NEU",36,"MAZ","Nordmazedonien",null,null,null,null,null,null,null,null,null,null,null,null,null,null,null,null,null,null,null,null,null,null,null,null,null,null,null,null,null,null,null,null,null,null,null,null,null,null,null,null,null,null,null,null,null,null,null,null,null,null,null,null,null,null,null,null,null,null,null,null,null,null,null,null,null,null,null,null,null,null,null,null,null,null,null,null,null,null,null,null,null,null,"ABCEFHKL","Saudi-Arabien",{"$f":"$BB$5","v":"Elfenbeinküste"},"Katar","Haiti","Südkorea","Schweden",{"$f":"$CE$26","v":"Ghana"},{"$f":"$CE$19","v":"Usbekistan"}]
[37,"Niederlande",null,null,null,null,"HOL",37,"MEX","Mexiko",null,null,null,null,null,null,null,null,null,null,null,null,null,null,null,null,null,null,null,null,null,null,null,null,null,null,null,null,null,null,null,null,null,null,null,null,null,null,null,null,null,null,null,null,null,null,null,null,null,null,null,null,null,null,null,null,null,null,null,null,null,null,null,null,null,null,null,null,null,null,null,null,null,null,null,null,null,null,null,null,null,null,"ABCEFIJK",{"$f":"$BB$5","v":"Elfenbeinküste"},{"$f":"$CE$12","v":"Österreich"},"Katar","Haiti","Südkorea","Schweden",{"$f":"$CE$5","v":"Irak"},{"$f":"$CE$19","v":"Usbekistan"}]
[38,"Nordirland",null,null,null,null,"NIR",38,"NEU","Neuseeland",null,null,null,null,null,null,null,null,null,null,null,null,null,null,null,null,null,null,null,null,null,null,null,null,null,null,null,null,null,null,null,null,null,null,null,null,null,null,null,null,null,null,null,null,null,null,null,null,null,null,null,null,null,null,null,null,null,null,null,null,null,null,null,null,null,null,null,null,null,null,null,null,null,null,null,null,null,null,null,null,null,null,"ABCEFIJL",{"$f":"$BB$5","v":"Elfenbeinküste"},{"$f":"$CE$12","v":"Österreich"},"Katar","Haiti","Südkorea","Schweden",{"$f":"$CE$26","v":"Ghana"},{"$f":"$CE$5","v":"Irak"}]
[39,"Nordmazedonien",null,null,null,null,"MAZ",39,"NIR","Nordirland",null,null,null,null,null,null,null,null,null,null,null,null,null,null,null,null,null,null,null,null,null,null,null,null,null,null,null,null,null,null,null,null,null,null,null,null,null,null,null,null,null,null,null,null,null,null,null,null,null,null,null,null,null,null,null,null,null,null,null,null,null,null,null,null,null,null,null,null,null,null,null,null,null,null,null,null,null,null,null,null,null,null,"ABCEFIKL",{"$f":"$BB$5","v":"Elfenbeinküste"},{"$f":"$CE$5","v":"Irak"},"Katar","Haiti","Südkorea","Schweden",{"$f":"$CE$26","v":"Ghana"},{"$f":"$CE$19","v":"Usbekistan"}]
[40,"Norwegen",null,null,null,null,"NOR",40,"NKA","Neukaledonien",null,null,null,null,null,null,null,null,null,null,null,null,null,null,null,null,null,null,null,null,null,null,null,null,null,null,null,null,null,null,null,null,null,null,null,null,null,null,null,null,null,null,null,null,null,null,null,null,null,null,null,null,null,null,null,null,null,null,null,null,null,null,null,null,null,null,null,null,null,null,null,null,null,null,null,null,null,null,null,null,null,null,"ABCEFJKL",{"$f":"$BB$5","v":"Elfenbeinküste"},{"$f":"$CE$12","v":"Österreich"},"Katar","Haiti","Südkorea","Schweden",{"$f":"$CE$26","v":"Ghana"},{"$f":"$CE$19","v":"Usbekistan"}]
[41,"Österreich",null,null,null,null,"ÖST",41,"NOR","Norwegen",null,null,null,null,null,null,null,null,null,null,null,null,null,null,null,null,null,null,null,null,null,null,null,null,null,null,null,null,null,null,null,null,null,null,null,null,null,null,null,null,null,null,null,null,null,null,null,null,null,null,null,null,null,null,null,null,null,null,null,null,null,null,null,null,null,null,null,null,null,null,null,null,null,null,null,null,null,null,null,null,null,null,"ABCEGHIJ",{"$f":"$BB$26","v":"Saudi-Arabien"},{"$f":"$CE$12","v":"Österreich"},"Katar","Haiti","Südkorea",{"$f":"$BB$19","v":"Iran"},{"$f":"$BB$5","v":"Elfenbeinküste"},{"$f":"$CE$5","v":"Irak"}]
[42,"Panama",null,null,null,null,"PAN",42,"ÖST","Österreich",null,null,null,null,null,null,null,null,null,null,null,null,null,null,null,null,null,null,null,null,null,null,null,null,null,null,null,null,null,null,null,null,null,null,null,null,null,null,null,null,null,null,null,null,null,null,null,null,null,null,null,null,null,null,null,null,null,null,null,null,null,null,null,null,null,null,null,null,null,null,null,null,null,null,null,null,null,null,null,null,null,null,"ABCEGHIK",{"$f":"$BB$5","v":"Elfenbeinküste"},{"$f":"$BB$19","v":"Iran"},"Katar","Haiti","Südkorea",{"$f":"$BB$26","v":"Saudi-Arabien"},{"$f":"$CE$5","v":"Irak"},{"$f":"$CE$19","v":"Usbekistan"}]
[43,"Paraguay",null,null,null,null,"PAR",43,"PAN","Panama",null,null,null,null,null,null,null,null,null,null,null,null,null,null,null,null,null,null,null,null,null,null,null,null,null,null,null,null,null,null,null,null,null,null,null,null,null,null,null,null,null,null,null,null,null,null,null,null,null,null,null,null,null,null,null,null,null,null,null,null,null,null,null,null,null,null,null,null,null,null,null,null,null,null,null,null,null,null,null,null,null,null,"ABCEGHIL",{"$f":"$BB$5","v":"Elfenbeinküste"},{"$f":"$BB$19","v":"Iran"},"Katar","Haiti","Südkorea",{"$f":"$BB$26","v":"Saudi-Arabien"},{"$f":"$CE$26","v":"Ghana"},{"$f":"$CE$5","v":"Irak"}]
[44,"Polen",null,null,null,null,"POL",44,"PAR","Paraguay",null,null,null,null,null,null,null,null,null,null,null,null,null,null,null,null,null,null,null,null,null,null,null,null,null,null,null,null,null,null,null,null,null,null,null,null,null,null,null,null,null,null,null,null,null,null,null,null,null,null,null,null,null,null,null,null,null,null,null,null,null,null,null,null,null,null,null,null,null,null,null,null,null,null,null,null,null,null,null,null,null,null,"ABCEGHJK",{"$f":"$BB$26","v":"Saudi-Arabien"},{"$f":"$CE$12","v":"Österreich"},"Katar","Haiti","Südkorea",{"$f":"$BB$19","v":"Iran"},{"$f":"$BB$5","v":"Elfenbeinküste"},{"$f":"$CE$19","v":"Usbekistan"}]
[45,"Portugal",null,null,null,null,"POR",45,"POL","Polen",null,null,null,null,null,null,null,null,null,null,null,null,null,null,null,null,null,null,null,null,null,null,null,null,null,null,null,null,null,null,null,null,null,null,null,null,null,null,null,null,null,null,null,null,null,null,null,null,null,null,null,null,null,null,null,null,null,null,null,null,null,null,null,null,null,null,null,null,null,null,null,null,null,null,null,null,null,null,null,null,null,null,"ABCEGHJL",{"$f":"$BB$26","v":"Saudi-Arabien"},{"$f":"$CE$12","v":"Österreich"},"Katar","Haiti","Südkorea",{"$f":"$BB$19","v":"Iran"},{"$f":"$CE$26","v":"Ghana"},{"$f":"$BB$5","v":"Elfenbeinküste"}]
[46,"Rumänien",null,null,null,null,"RUM",46,"POR","Portugal",null,null,null,null,null,null,null,null,null,null,null,null,null,null,null,null,null,null,null,null,null,null,null,null,null,null,null,null,null,null,null,null,null,null,null,null,null,null,null,null,null,null,null,null,null,null,null,null,null,null,null,null,null,null,null,null,null,null,null,null,null,null,null,null,null,null,null,null,null,null,null,null,null,null,null,null,null,null,null,null,null,null,"ABCEGHKL",{"$f":"$BB$5","v":"Elfenbeinküste"},{"$f":"$BB$19","v":"Iran"},"Katar","Haiti","Südkorea",{"$f":"$BB$26","v":"Saudi-Arabien"},{"$f":"$CE$26","v":"Ghana"},{"$f":"$CE$19","v":"Usbekistan"}]
[47,"Saudi-Arabien",null,null,null,null,"SAR",47,"RUM","Rumänien",null,null,null,null,null,null,null,null,null,null,null,null,null,null,null,null,null,null,null,null,null,null,null,null,null,null,null,null,null,null,null,null,null,null,null,null,null,null,null,null,null,null,null,null,null,null,null,null,null,null,null,null,null,null,null,null,null,null,null,null,null,null,null,null,null,null,null,null,null,null,null,null,null,null,null,null,null,null,null,null,null,null,"ABCEGIJK","Elfenbeinküste",{"$f":"$CE$12","v":"Österreich"},"Katar","Haiti","Südkorea",{"$f":"$BB$19","v":"Iran"},{"$f":"$CE$5","v":"Irak"},{"$f":"$CE$19","v":"Usbekistan"}]
[48,"Schottland",null,null,null,null,"SCO",48,"SAF","Südafrika",null,null,null,null,null,null,null,null,null,null,null,null,null,null,null,null,null,null,null,null,null,null,null,null,null,null,null,null,null,null,null,null,null,null,null,null,null,null,null,null,null,null,null,null,null,null,null,null,null,null,null,null,null,null,null,null,null,null,null,null,null,null,null,null,null,null,null,null,null,null,null,null,null,null,null,null,null,null,null,null,null,null,"ABCEGIJL","Elfenbeinküste",{"$f":"$CE$12","v":"Österreich"},"Katar","Haiti","Südkorea",{"$f":"$BB$19","v":"Iran"},{"$f":"$CE$26","v":"Ghana"},{"$f":"$CE$5","v":"Irak"}]
[49,"Schweden",null,null,null,null,"SWE",49,"SAR","Saudi-Arabien",null,null,null,null,null,null,null,null,null,null,null,null,null,null,null,null,null,null,null,null,null,null,null,null,null,null,null,null,null,null,null,null,null,null,null,null,null,null,null,null,null,null,null,null,null,null,null,null,null,null,null,null,null,null,null,null,null,null,null,null,null,null,null,null,null,null,null,null,null,null,null,null,null,null,null,null,null,null,null,null,null,null,"ABCEGIKL","Elfenbeinküste",{"$f":"$BB$19","v":"Iran"},"Katar",{"$f":"$Y$5","v":"Südkorea"},{"$f":"$CE$5","v":"Irak"},{"$f":"$Y$19","v":"Haiti"},{"$f":"$CE$26","v":"Ghana"},{"$f":"$CE$19","v":"Usbekistan"}]
[50,"Schweiz",null,null,null,null,"SCH",50,"SCH","Schweiz",null,null,null,null,null,null,null,null,null,null,null,null,null,null,null,null,null,null,null,null,null,null,null,null,null,null,null,null,null,null,null,null,null,null,null,null,null,null,null,null,null,null,null,null,null,null,null,null,null,null,null,null,null,null,null,null,null,null,null,null,null,null,null,null,null,null,null,null,null,null,null,null,null,null,null,null,null,null,null,null,null,null,"ABCEGJKL","Elfenbeinküste",{"$f":"$CE$12","v":"Österreich"},"Katar",{"$f":"$Y$19","v":"Haiti"},{"$f":"$Y$5","v":"Südkorea"},{"$f":"$BB$19","v":"Iran"},{"$f":"$CE$26","v":"Ghana"},{"$f":"$CE$19","v":"Usbekistan"}]
[51,"Senegal",null,null,null,null,"SEN",51,"SCO","Schottland",null,null,null,null,null,null,null,null,null,null,null,null,null,null,null,null,null,null,null,null,null,null,null,null,null,null,null,null,null,null,null,null,null,null,null,null,null,null,null,null,null,null,null,null,null,null,null,null,null,null,null,null,null,null,null,null,null,null,null,null,null,null,null,null,null,null,null,null,null,null,null,null,null,null,null,null,null,null,null,null,null,null,"ABCEHIJK","Elfenbeinküste",{"$f":"$CE$12","v":"Österreich"},"Katar",{"$f":"$Y$19","v":"Haiti"},{"$f":"$Y$5","v":"Südkorea"},{"$f":"$BB$26","v":"Saudi-Arabien"},{"$f":"$CE$5","v":"Irak"},{"$f":"$CE$19","v":"Usbekistan"}]
[52,"Slowakei",null,null,null,null,"SLO",52,"SEN","Senegal",null,null,null,null,null,null,null,null,null,null,null,null,null,null,null,null,null,null,null,null,null,null,null,null,null,null,null,null,null,null,null,null,null,null,null,null,null,null,null,null,null,null,null,null,null,null,null,null,null,null,null,null,null,null,null,null,null,null,null,null,null,null,null,null,null,null,null,null,null,null,null,null,null,null,null,null,null,null,null,null,null,null,"ABCEHIJL","Elfenbeinküste",{"$f":"$CE$12","v":"Österreich"},"Katar",{"$f":"$Y$19","v":"Haiti"},{"$f":"$Y$5","v":"Südkorea"},{"$f":"$BB$26","v":"Saudi-Arabien"},{"$f":"$CE$26","v":"Ghana"},{"$f":"$CE$5","v":"Irak"}]
[53,"Spanien",null,null,null,null,"SPA",53,"SLO","Slowakei",null,null,null,null,null,null,null,null,null,null,null,null,null,null,null,null,null,null,null,null,null,null,null,null,null,null,null,null,null,null,null,null,null,null,null,null,null,null,null,null,null,null,null,null,null,null,null,null,null,null,null,null,null,null,null,null,null,null,null,null,null,null,null,null,null,null,null,null,null,null,null,null,null,null,null,null,null,null,null,null,null,null,"ABCEHIKL","Elfenbeinküste",{"$f":"$CE$5","v":"Irak"},"Katar",{"$f":"$Y$19","v":"Haiti"},{"$f":"$Y$5","v":"Südkorea"},{"$f":"$BB$26","v":"Saudi-Arabien"},{"$f":"$CE$26","v":"Ghana"},{"$f":"$CE$19","v":"Usbekistan"}]
[54,"Südafrika",null,null,null,null,"SAF",54,"SPA","Spanien",null,null,null,null,null,null,null,null,null,null,null,null,null,null,null,null,null,null,null,null,null,null,null,null,null,null,null,null,null,null,null,null,null,null,null,null,null,null,null,null,null,null,null,null,null,null,null,null,null,null,null,null,null,null,null,null,null,null,null,null,null,null,null,null,null,null,null,null,null,null,null,null,null,null,null,null,null,null,null,null,null,null,"ABCEHJKL","Elfenbeinküste",{"$f":"$CE$12","v":"Österreich"},"Katar",{"$f":"$Y$19","v":"Haiti"},{"$f":"$Y$5","v":"Südkorea"},{"$f":"$BB$26","v":"Saudi-Arabien"},{"$f":"$CE$26","v":"Ghana"},{"$f":"$CE$19","v":"Usbekistan"}]
[55,"Südkorea",null,null,null,null,"KOR",55,"SUR","Suriname",null,null,null,null,null,null,null,null,null,null,null,null,null,null,null,null,null,null,null,null,null,null,null,null,null,null,null,null,null,null,null,null,null,null,null,null,null,null,null,null,null,null,null,null,null,null,null,null,null,null,null,null,null,null,null,null,null,null,null,null,null,null,null,null,null,null,null,null,null,null,null,null,null,null,null,null,null,null,null,null,null,null,"ABCEIJKL","Elfenbeinküste",{"$f":"$CE$12","v":"Österreich"},"Katar",{"$f":"$Y$5","v":"Südkorea"},{"$f":"$CE$5","v":"Irak"},{"$f":"$Y$19","v":"Haiti"},{"$f":"$CE$26","v":"Ghana"},{"$f":"$CE$19","v":"Usbekistan"}]
[56,"Suriname",null,null,null,null,"SUR",56,"SWE","Schweden",null,null,null,null,null,null,null,null,null,null,null,null,null,null,null,null,null,null,null,null,null,null,null,null,null,null,null,null,null,null,null,null,null,null,null,null,null,null,null,null,null,null,null,null,null,null,null,null,null,null,null,null,null,null,null,null,null,null,null,null,null,null,null,null,null,null,null,null,null,null,null,null,null,null,null,null,null,null,null,null,null,null,"ABCFGHIJ",{"$f":"$BB$26","v":"Saudi-Arabien"},{"$f":"$BB$19","v":"Iran"},"Katar",{"$f":"$Y$19","v":"Haiti"},{"$f":"$Y$5","v":"Südkorea"},{"$f":"$BB$12","v":"Schweden"},{"$f":"$CE$5","v":"Irak"},{"$f":"$CE$12","v":"Österreich"}]
[57,"Tschechien",null,null,null,null,"TCH",57,"TCH","Tschechien",null,null,null,null,null,null,null,null,null,null,null,null,null,null,null,null,null,null,null,null,null,null,null,null,null,null,null,null,null,null,null,null,null,null,null,null,null,null,null,null,null,null,null,null,null,null,null,null,null,null,null,null,null,null,null,null,null,null,null,null,null,null,null,null,null,null,null,null,null,null,null,null,null,null,null,null,null,null,null,null,null,null,"ABCFGHIK","Saudi-Arabien","Iran","Katar","Haiti","Südkorea","Schweden",{"$f":"$CE$5","v":"Irak"},{"$f":"$CE$19","v":"Usbekistan"}]
[58,"Tunesien",null,null,null,null,"TUN",58,"TUN","Tunesien",null,null,null,null,null,null,null,null,null,null,null,null,null,null,null,null,null,null,null,null,null,null,null,null,null,null,null,null,null,null,null,null,null,null,null,null,null,null,null,null,null,null,null,null,null,null,null,null,null,null,null,null,null,null,null,null,null,null,null,null,null,null,null,null,null,null,null,null,null,null,null,null,null,null,null,null,null,null,null,null,null,null,"ABCFGHIL","Saudi-Arabien","Iran","Katar","Haiti","Südkorea","Schweden",{"$f":"$CE$26","v":"Ghana"},{"$f":"$CE$5","v":"Irak"}]
[59,"Türkei",null,null,null,null,"TÜR",59,"TÜR","Türkei",null,null,null,null,null,null,null,null,null,null,null,null,null,null,null,null,null,null,null,null,null,null,null,null,null,null,null,null,null,null,null,null,null,null,null,null,null,null,null,null,null,null,null,null,null,null,null,null,null,null,null,null,null,null,null,null,null,null,null,null,null,null,null,null,null,null,null,null,null,null,null,null,null,null,null,null,null,null,null,null,null,null,"ABCFGHJK","Saudi-Arabien","Iran","Katar","Haiti","Südkorea","Schweden",{"$f":"$CE$12","v":"Österreich"},{"$f":"$CE$19","v":"Usbekistan"}]
[60,"Schweden",null,null,null,null,"UKR",60,"UKR","Schweden",null,null,null,null,null,null,null,null,null,null,null,null,null,null,null,null,null,null,null,null,null,null,null,null,null,null,null,null,null,null,null,null,null,null,null,null,null,null,null,null,null,null,null,null,null,null,null,null,null,null,null,null,null,null,null,null,null,null,null,null,null,null,null,null,null,null,null,null,null,null,null,null,null,null,null,null,null,null,null,null,null,null,"ABCFGHJL","Saudi-Arabien","Iran","Katar","Haiti","Südkorea","Schweden",{"$f":"$CE$26","v":"Ghana"},{"$f":"$CE$12","v":"Österreich"}]
[61,"Uruguay",null,null,null,null,"URU",61,"URU","Uruguay",null,null,null,null,null,null,null,null,null,null,null,null,null,null,null,null,null,null,null,null,null,null,null,null,null,null,null,null,null,null,null,null,null,null,null,null,null,null,null,null,null,null,null,null,null,null,null,null,null,null,null,null,null,null,null,null,null,null,null,null,null,null,null,null,null,null,null,null,null,null,null,null,null,null,null,null,null,null,null,null,null,null,"ABCFGHKL","Saudi-Arabien","Iran","Katar","Haiti","Südkorea","Schweden",{"$f":"$CE$26","v":"Ghana"},{"$f":"$CE$19","v":"Usbekistan"}]
[62,"USA",null,null,null,null,"USA",62,"USA","USA",null,null,null,null,null,null,null,null,null,null,null,null,null,null,null,null,null,null,null,null,null,null,null,null,null,null,null,null,null,null,null,null,null,null,null,null,null,null,null,null,null,null,null,null,null,null,null,null,null,null,null,null,null,null,null,null,null,null,null,null,null,null,null,null,null,null,null,null,null,null,null,null,null,null,null,null,null,null,null,null,null,null,"ABCFGIJK",{"$f":"$Y$19","v":"Haiti"},{"$f":"$CE$12","v":"Österreich"},"Katar",{"$f":"$BB$12","v":"Schweden"},"Südkorea",{"$f":"$BB$19","v":"Iran"},{"$f":"$CE$5","v":"Irak"},{"$f":"$CE$19","v":"Usbekistan"}]
[63,"Usbekistan",null,null,null,null,"USB",63,"USB","Usbekistan",null,null,null,null,null,null,null,null,null,null,null,null,null,null,null,null,null,null,null,null,null,null,null,null,null,null,null,null,null,null,null,null,null,null,null,null,null,null,null,null,null,null,null,null,null,null,null,null,null,null,null,null,null,null,null,null,null,null,null,null,null,null,null,null,null,null,null,null,null,null,null,null,null,null,null,null,null,null,null,null,null,null,"ABCFGIJL",{"$f":"$Y$19","v":"Haiti"},{"$f":"$CE$12","v":"Österreich"},"Katar",{"$f":"$BB$12","v":"Schweden"},"Südkorea",{"$f":"$BB$19","v":"Iran"},{"$f":"$CE$26","v":"Ghana"},{"$f":"$CE$5","v":"Irak"}]
[64,"Wales",null,null,null,null,"WAL",64,"WAL","Wales",null,null,null,null,null,null,null,null,null,null,null,null,null,null,null,null,null,null,null,null,null,null,null,null,null,null,null,null,null,null,null,null,null,null,null,null,null,null,null,null,null,null,null,null,null,null,null,null,null,null,null,null,null,null,null,null,null,null,null,null,null,null,null,null,null,null,null,null,null,null,null,null,null,null,null,null,null,null,null,null,null,null,"ABCFGIKL",{"$f":"$CE$5","v":"Irak"},{"$f":"$BB$19","v":"Iran"},"Katar",{"$f":"$Y$19","v":"Haiti"},"Südkorea",{"$f":"$BB$12","v":"Schweden"},{"$f":"$CE$26","v":"Ghana"},{"$f":"$CE$19","v":"Usbekistan"}]
[null,null,null,null,null,null,null,null,null,null,null,null,null,null,null,null,null,null,null,null,null,null,null,null,null,null,null,null,null,null,null,null,null,null,null,null,null,null,null,null,null,null,null,null,null,null,null,null,null,null,null,null,null,null,null,null,null,null,null,null,null,null,null,null,null,null,null,null,null,null,null,null,null,null,null,null,null,null,null,null,null,null,null,null,null,null,null,null,null,null,null,null,"ABCFGJKL",{"$f":"$Y$19","v":"Haiti"},{"$f":"$CE$12","v":"Österreich"},"Katar",{"$f":"$BB$12","v":"Schweden"},"Südkorea",{"$f":"$BB$19","v":"Iran"},{"$f":"$CE$26","v":"Ghana"},{"$f":"$CE$19","v":"Usbekistan"}]
[null,null,null,null,null,null,null,null,null,null,null,null,null,null,null,null,null,null,null,null,null,null,null,null,null,null,null,null,null,null,null,null,null,null,null,null,null,null,null,null,null,null,null,null,null,null,null,null,null,null,null,null,null,null,null,null,null,null,null,null,null,null,null,null,null,null,null,null,null,null,null,null,null,null,null,null,null,null,null,null,null,null,null,null,null,null,null,null,null,null,null,null,"ABCFHIJK",{"$f":"$BB$26","v":"Saudi-Arabien"},{"$f":"$CE$12","v":"Österreich"},"Katar",{"$f":"$Y$19","v":"Haiti"},"Südkorea",{"$f":"$BB$12","v":"Schweden"},{"$f":"$CE$5","v":"Irak"},{"$f":"$CE$19","v":"Usbekistan"}]
[null,null,null,null,null,null,null,null,null,null,null,null,null,null,null,null,null,null,null,null,null,null,null,null,null,null,null,null,null,null,null,null,null,null,null,null,null,null,null,null,null,null,null,null,null,null,null,null,null,null,null,null,null,null,null,null,null,null,null,null,null,null,null,null,null,null,null,null,null,null,null,null,null,null,null,null,null,null,null,null,null,null,null,null,null,null,null,null,null,null,null,null,"ABCFHIJL",{"$f":"$BB$26","v":"Saudi-Arabien"},{"$f":"$CE$12","v":"Österreich"},"Katar","Haiti","Südkorea",{"$f":"$BB$12","v":"Schweden"},{"$f":"$CE$26","v":"Ghana"},{"$f":"$CE$5","v":"Irak"}]
[null,null,null,null,null,null,null,null,null,null,null,null,null,null,null,null,null,null,null,null,null,null,null,null,null,null,null,null,null,null,null,null,null,null,null,null,null,null,null,null,null,null,null,null,null,null,null,null,null,null,null,null,null,null,null,null,null,null,null,null,null,null,null,null,null,null,null,null,null,null,null,null,null,null,null,null,null,null,null,null,null,null,null,null,null,null,null,null,null,null,null,null,"ABCFHIKL",{"$f":"$BB$26","v":"Saudi-Arabien"},{"$f":"$CE$5","v":"Irak"},"Katar","Haiti","Südkorea",{"$f":"$BB$12","v":"Schweden"},{"$f":"$CE$26","v":"Ghana"},{"$f":"$CE$19","v":"Usbekistan"}]
[null,null,null,null,null,null,null,null,null,null,null,null,null,null,null,null,null,null,null,null,null,null,null,null,null,null,null,null,null,null,null,null,null,null,null,null,null,null,null,null,null,null,null,null,null,null,null,null,null,null,null,null,null,null,null,null,null,null,null,null,null,null,null,null,null,null,null,null,null,null,null,null,null,null,null,null,null,null,null,null,null,null,null,null,null,null,null,null,null,null,null,null,"ABCFHJKL",{"$f":"$BB$26","v":"Saudi-Arabien"},{"$f":"$CE$12","v":"Österreich"},"Katar","Haiti","Südkorea",{"$f":"$BB$12","v":"Schweden"},{"$f":"$CE$26","v":"Ghana"},{"$f":"$CE$19","v":"Usbekistan"}]
[null,null,null,null,null,null,null,null,null,null,null,null,null,null,null,null,null,null,null,null,null,null,null,null,null,null,null,null,null,null,null,null,null,null,null,null,null,null,null,null,null,null,null,null,null,null,null,null,null,null,null,null,null,null,null,null,null,null,null,null,null,null,null,null,null,null,null,null,null,null,null,null,null,null,null,null,null,null,null,null,null,null,null,null,null,null,null,null,null,null,null,null,"ABCFIJKL",{"$f":"$CE$5","v":"Irak"},{"$f":"$CE$12","v":"Österreich"},"Katar","Haiti","Südkorea",{"$f":"$BB$12","v":"Schweden"},{"$f":"$CE$26","v":"Ghana"},{"$f":"$CE$19","v":"Usbekistan"}]
[null,null,null,null,null,null,null,null,null,null,null,null,null,null,null,null,null,null,null,null,null,null,null,null,null,null,null,null,null,null,null,null,null,null,null,null,null,null,null,null,null,null,null,null,null,null,null,null,null,null,null,null,null,null,null,null,null,null,null,null,null,null,null,null,null,null,null,null,null,null,null,null,null,null,null,null,null,null,null,null,null,null,null,null,null,null,null,null,null,null,null,null,"ABCGHIJK",{"$f":"$BB$26","v":"Saudi-Arabien"},{"$f":"$CE$12","v":"Österreich"},"Katar","Haiti","Südkorea",{"$f":"$BB$19","v":"Iran"},{"$f":"$CE$5","v":"Irak"},{"$f":"$CE$19","v":"Usbekistan"}]
[null,null,null,null,null,null,null,null,null,null,null,null,null,null,null,null,null,null,null,null,null,null,null,null,null,null,null,null,null,null,null,null,null,null,null,null,null,null,null,null,null,null,null,null,null,null,null,null,null,null,null,null,null,null,null,null,null,null,null,null,null,null,null,null,null,null,null,null,null,null,null,null,null,null,null,null,null,null,null,null,null,null,null,null,null,null,null,null,null,null,null,null,"ABCGHIJL",{"$f":"$BB$26","v":"Saudi-Arabien"},{"$f":"$CE$12","v":"Österreich"},"Katar","Haiti","Südkorea",{"$f":"$BB$19","v":"Iran"},{"$f":"$CE$26","v":"Ghana"},{"$f":"$CE$5","v":"Irak"}]
[null,null,null,null,null,null,null,null,null,null,null,null,null,null,null,null,null,null,null,null,null,null,null,null,null,null,null,null,null,null,null,null,null,null,null,null,null,null,null,null,null,null,null,null,null,null,null,null,null,null,null,null,null,null,null,null,null,null,null,null,null,null,null,null,null,null,null,null,null,null,null,null,null,null,null,null,null,null,null,null,null,null,null,null,null,null,null,null,null,null,null,null,"ABCGHIKL",{"$f":"$CE$5","v":"Irak"},{"$f":"$BB$19","v":"Iran"},"Katar","Haiti","Südkorea",{"$f":"$BB$26","v":"Saudi-Arabien"},{"$f":"$CE$26","v":"Ghana"},{"$f":"$CE$19","v":"Usbekistan"}]
[null,null,null,null,null,null,null,null,null,null,null,null,null,null,null,null,null,null,null,null,null,null,null,null,null,null,null,null,null,null,null,null,null,null,null,null,null,null,null,null,null,null,null,null,null,null,null,null,null,null,null,null,null,null,null,null,null,null,null,null,null,null,null,null,null,null,null,null,null,null,null,null,null,null,null,null,null,null,null,null,null,null,null,null,null,null,null,null,null,null,null,null,"ABCGHJKL",{"$f":"$BB$26","v":"Saudi-Arabien"},{"$f":"$CE$12","v":"Österreich"},"Katar","Haiti","Südkorea",{"$f":"$BB$19","v":"Iran"},{"$f":"$CE$26","v":"Ghana"},{"$f":"$CE$19","v":"Usbekistan"}]
[null,null,null,null,null,null,null,null,null,null,null,null,null,null,null,null,null,null,null,null,null,null,null,null,null,null,null,null,null,null,null,null,null,null,null,null,null,null,null,null,null,null,null,null,null,null,null,null,null,null,null,null,null,null,null,null,null,null,null,null,null,null,null,null,null,null,null,null,null,null,null,null,null,null,null,null,null,null,null,null,null,null,null,null,null,null,null,null,null,null,null,null,"ABCGIJKL",{"$f":"$CE$5","v":"Irak"},{"$f":"$CE$12","v":"Österreich"},"Katar","Haiti","Südkorea",{"$f":"$BB$19","v":"Iran"},{"$f":"$CE$26","v":"Ghana"},{"$f":"$CE$19","v":"Usbekistan"}]
[null,null,null,null,null,null,null,null,null,null,null,null,null,null,null,null,null,null,null,null,null,null,null,null,null,null,null,null,null,null,null,null,null,null,null,null,null,null,null,null,null,null,null,null,null,null,null,null,null,null,null,null,null,null,null,null,null,null,null,null,null,null,null,null,null,null,null,null,null,null,null,null,null,null,null,null,null,null,null,null,null,null,null,null,null,null,null,null,null,null,null,null,"ABCHIJKL",{"$f":"$CE$5","v":"Irak"},{"$f":"$CE$12","v":"Österreich"},"Katar","Haiti","Südkorea",{"$f":"$BB$26","v":"Saudi-Arabien"},{"$f":"$CE$26","v":"Ghana"},{"$f":"$CE$19","v":"Usbekistan"}]
[null,null,null,null,null,null,null,null,null,null,null,null,null,null,null,null,null,null,null,null,null,null,null,null,null,null,null,null,null,null,null,null,null,null,null,null,null,null,null,null,null,null,null,null,null,null,null,null,null,null,null,null,null,null,null,null,null,null,null,null,null,null,null,null,null,null,null,null,null,null,null,null,null,null,null,null,null,null,null,null,null,null,null,null,null,null,null,null,null,null,null,null,"ABDEFGHI",{"$f":"$BB$26","v":"Saudi-Arabien"},{"$f":"$BB$19","v":"Iran"},"Katar",{"$f":"$Y$26","v":"Australien"},"Südkorea",{"$f":"$BB$12","v":"Schweden"},{"$f":"$BB$5","v":"Elfenbeinküste"},{"$f":"$CE$5","v":"Irak"}]
[null,null,null,null,null,null,null,null,null,null,null,null,null,null,null,null,null,null,null,null,null,null,null,null,null,null,null,null,null,null,null,null,null,null,null,null,null,null,null,null,null,null,null,null,null,null,null,null,null,null,null,null,null,null,null,null,null,null,null,null,null,null,null,null,null,null,null,null,null,null,null,null,null,null,null,null,null,null,null,null,null,null,null,null,null,null,null,null,null,null,null,null,"ABDEFGHJ",{"$f":"$BB$26","v":"Saudi-Arabien"},"Iran","Katar","Australien","Südkorea","Schweden",{"$f":"$BB$5","v":"Elfenbeinküste"},{"$f":"$CE$12","v":"Österreich"}]
[null,null,null,null,null,null,null,null,null,null,null,null,null,null,null,null,null,null,null,null,null,null,null,null,null,null,null,null,null,null,null,null,null,null,null,null,null,null,null,null,null,null,null,null,null,null,null,null,null,null,null,null,null,null,null,null,null,null,null,null,null,null,null,null,null,null,null,null,null,null,null,null,null,null,null,null,null,null,null,null,null,null,null,null,null,null,null,null,null,null,null,null,"ABDEFGHK",{"$f":"$BB$26","v":"Saudi-Arabien"},"Iran",{"$f":"$Y$12","v":"Katar"},"Australien","Südkorea","Schweden",{"$f":"$BB$5","v":"Elfenbeinküste"},{"$f":"$CE$19","v":"Usbekistan"}]
[null,null,null,null,null,null,null,null,null,null,null,null,null,null,null,null,null,null,null,null,null,null,null,null,null,null,null,null,null,null,null,null,null,null,null,null,null,null,null,null,null,null,null,null,null,null,null,null,null,null,null,null,null,null,null,null,null,null,null,null,null,null,null,null,null,null,null,null,null,null,null,null,null,null,null,null,null,null,null,null,null,null,null,null,null,null,null,null,null,null,null,null,"ABDEFGHL",{"$f":"$BB$26","v":"Saudi-Arabien"},"Iran","Katar","Australien","Südkorea","Schweden",{"$f":"$CE$26","v":"Ghana"},{"$f":"$BB$5","v":"Elfenbeinküste"}]
[null,null,null,null,null,null,null,null,null,null,null,null,null,null,null,null,null,null,null,null,null,null,null,null,null,null,null,null,null,null,null,null,null,null,null,null,null,null,null,null,null,null,null,null,null,null,null,null,null,null,null,null,null,null,null,null,null,null,null,null,null,null,null,null,null,null,null,null,null,null,null,null,null,null,null,null,null,null,null,null,null,null,null,null,null,null,null,null,null,null,null,null,"ABDEFGIJ",{"$f":"$BB$5","v":"Elfenbeinküste"},"Iran","Katar","Australien","Südkorea","Schweden",{"$f":"$CE$5","v":"Irak"},{"$f":"$CE$12","v":"Österreich"}]
[null,null,null,null,null,null,null,null,null,null,null,null,null,null,null,null,null,null,null,null,null,null,null,null,null,null,null,null,null,null,null,null,null,null,null,null,null,null,null,null,null,null,null,null,null,null,null,null,null,null,null,null,null,null,null,null,null,null,null,null,null,null,null,null,null,null,null,null,null,null,null,null,null,null,null,null,null,null,null,null,null,null,null,null,null,null,null,null,null,null,null,null,"ABDEFGIK","Elfenbeinküste","Iran","Katar","Australien","Südkorea","Schweden",{"$f":"$CE$5","v":"Irak"},{"$f":"$CE$19","v":"Usbekistan"}]
[null,null,null,null,null,null,null,null,null,null,null,null,null,null,null,null,null,null,null,null,null,null,null,null,null,null,null,null,null,null,null,null,null,null,null,null,null,null,null,null,null,null,null,null,null,null,null,null,null,null,null,null,null,null,null,null,null,null,null,null,null,null,null,null,null,null,null,null,null,null,null,null,null,null,null,null,null,null,null,null,null,null,null,null,null,null,null,null,null,null,null,null,"ABDEFGIL","Elfenbeinküste","Iran","Katar","Australien","Südkorea","Schweden",{"$f":"$CE$26","v":"Ghana"},{"$f":"$CE$5","v":"Irak"}]
[null,null,null,null,null,null,null,null,null,null,null,null,null,null,null,null,null,null,null,null,null,null,null,null,null,null,null,null,null,null,null,null,null,null,null,null,null,null,null,null,null,null,null,null,null,null,null,null,null,null,null,null,null,null,null,null,null,null,null,null,null,null,null,null,null,null,null,null,null,null,null,null,null,null,null,null,null,null,null,null,null,null,null,null,null,null,null,null,null,null,null,null,"ABDEFGJK","Elfenbeinküste","Iran","Katar","Australien","Südkorea","Schweden",{"$f":"$CE$12","v":"Österreich"},{"$f":"$CE$19","v":"Usbekistan"}]
[null,null,null,null,null,null,null,null,null,null,null,null,null,null,null,null,null,null,null,null,null,null,null,null,null,null,null,null,null,null,null,null,null,null,null,null,null,null,null,null,null,null,null,null,null,null,null,null,null,null,null,null,null,null,null,null,null,null,null,null,null,null,null,null,null,null,null,null,null,null,null,null,null,null,null,null,null,null,null,null,null,null,null,null,null,null,null,null,null,null,null,null,"ABDEFGJL","Elfenbeinküste","Iran","Katar","Australien","Südkorea","Schweden",{"$f":"$CE$26","v":"Ghana"},{"$f":"$CE$12","v":"Österreich"}]
[null,null,null,null,null,null,null,null,null,null,null,null,null,null,null,null,null,null,null,null,null,null,null,null,null,null,null,null,null,null,null,null,null,null,null,null,null,null,null,null,null,null,null,null,null,null,null,null,null,null,null,null,null,null,null,null,null,null,null,null,null,null,null,null,null,null,null,null,null,null,null,null,null,null,null,null,null,null,null,null,null,null,null,null,null,null,null,null,null,null,null,null,"ABDEFGKL","Elfenbeinküste","Iran","Katar","Australien","Südkorea","Schweden",{"$f":"$CE$26","v":"Ghana"},{"$f":"$CE$19","v":"Usbekistan"}]
[null,null,null,null,null,null,null,null,null,null,null,null,null,null,null,null,null,null,null,null,null,null,null,null,null,null,null,null,null,null,null,null,null,null,null,null,null,null,null,null,null,null,null,null,null,null,null,null,null,null,null,null,null,null,null,null,null,null,null,null,null,null,null,null,null,null,null,null,null,null,null,null,null,null,null,null,null,null,null,null,null,null,null,null,null,null,null,null,null,null,null,null,"ABDEFHIJ",{"$f":"$BB$26","v":"Saudi-Arabien"},{"$f":"$CE$12","v":"Österreich"},"Katar","Australien","Südkorea","Schweden",{"$f":"$BB$5","v":"Elfenbeinküste"},{"$f":"$CE$5","v":"Irak"}]
[null,null,null,null,null,null,null,null,null,null,null,null,null,null,null,null,null,null,null,null,null,null,null,null,null,null,null,null,null,null,null,null,null,null,null,null,null,null,null,null,null,null,null,null,null,null,null,null,null,null,null,null,null,null,null,null,null,null,null,null,null,null,null,null,null,null,null,null,null,null,null,null,null,null,null,null,null,null,null,null,null,null,null,null,null,null,null,null,null,null,null,null,"ABDEFHIK","Saudi-Arabien",{"$f":"$BB$5","v":"Elfenbeinküste"},"Katar","Australien",{"$f":"$Y$5","v":"Südkorea"},"Schweden",{"$f":"$CE$5","v":"Irak"},{"$f":"$CE$19","v":"Usbekistan"}]
[null,null,null,null,null,null,null,null,null,null,null,null,null,null,null,null,null,null,null,null,null,null,null,null,null,null,null,null,null,null,null,null,null,null,null,null,null,null,null,null,null,null,null,null,null,null,null,null,null,null,null,null,null,null,null,null,null,null,null,null,null,null,null,null,null,null,null,null,null,null,null,null,null,null,null,null,null,null,null,null,null,null,null,null,null,null,null,null,null,null,null,null,"ABDEFHIL","Saudi-Arabien",{"$f":"$BB$5","v":"Elfenbeinküste"},"Katar","Australien","Südkorea","Schweden",{"$f":"$CE$26","v":"Ghana"},{"$f":"$CE$5","v":"Irak"}]
[null,null,null,null,null,null,null,null,null,null,null,null,null,null,null,null,null,null,null,null,null,null,null,null,null,null,null,null,null,null,null,null,null,null,null,null,null,null,null,null,null,null,null,null,null,null,null,null,null,null,null,null,null,null,null,null,null,null,null,null,null,null,null,null,null,null,null,null,null,null,null,null,null,null,null,null,null,null,null,null,null,null,null,null,null,null,null,null,null,null,null,null,"ABDEFHJK","Saudi-Arabien",{"$f":"$CE$12","v":"Österreich"},"Katar","Australien","Südkorea","Schweden",{"$f":"$BB$5","v":"Elfenbeinküste"},{"$f":"$CE$19","v":"Usbekistan"}]
[null,null,null,null,null,null,null,null,null,null,null,null,null,null,null,null,null,null,null,null,null,null,null,null,null,null,null,null,null,null,null,null,null,null,null,null,null,null,null,null,null,null,null,null,null,null,null,null,null,null,null,null,null,null,null,null,null,null,null,null,null,null,null,null,null,null,null,null,null,null,null,null,null,null,null,null,null,null,null,null,null,null,null,null,null,null,null,null,null,null,null,null,"ABDEFHJL","Saudi-Arabien",{"$f":"$CE$12","v":"Österreich"},"Katar","Australien","Südkorea","Schweden",{"$f":"$CE$26","v":"Ghana"},{"$f":"$BB$5","v":"Elfenbeinküste"}]
[null,null,null,null,null,null,null,null,null,null,null,null,null,null,null,null,null,null,null,null,null,null,null,null,null,null,null,null,null,null,null,null,null,null,null,null,null,null,null,null,null,null,null,null,null,null,null,null,null,null,null,null,null,null,null,null,null,null,null,null,null,null,null,null,null,null,null,null,null,null,null,null,null,null,null,null,null,null,null,null,null,null,null,null,null,null,null,null,null,null,null,null,"ABDEFHKL","Saudi-Arabien",{"$f":"$BB$5","v":"Elfenbeinküste"},"Katar","Australien","Südkorea","Schweden",{"$f":"$CE$26","v":"Ghana"},{"$f":"$CE$19","v":"Usbekistan"}]
[null,null,null,null,null,null,null,null,null,null,null,null,null,null,null,null,null,null,null,null,null,null,null,null,null,null,null,null,null,null,null,null,null,null,null,null,null,null,null,null,null,null,null,null,null,null,null,null,null,null,null,null,null,null,null,null,null,null,null,null,null,null,null,null,null,null,null,null,null,null,null,null,null,null,null,null,null,null,null,null,null,null,null,null,null,null,null,null,null,null,null,null,"ABDEFIJK",{"$f":"$BB$5","v":"Elfenbeinküste"},{"$f":"$CE$12","v":"Österreich"},"Katar","Australien","Südkorea","Schweden",{"$f":"$CE$5","v":"Irak"},{"$f":"$CE$19","v":"Usbekistan"}]
[null,null,null,null,null,null,null,null,null,null,null,null,null,null,null,null,null,null,null,null,null,null,null,null,null,null,null,null,null,null,null,null,null,null,null,null,null,null,null,null,null,null,null,null,null,null,null,null,null,null,null,null,null,null,null,null,null,null,null,null,null,null,null,null,null,null,null,null,null,null,null,null,null,null,null,null,null,null,null,null,null,null,null,null,null,null,null,null,null,null,null,null,"ABDEFIJL",{"$f":"$BB$5","v":"Elfenbeinküste"},{"$f":"$CE$12","v":"Österreich"},"Katar","Australien","Südkorea","Schweden",{"$f":"$CE$26","v":"Ghana"},{"$f":"$CE$5","v":"Irak"}]
[null,null,null,null,null,null,null,null,null,null,null,null,null,null,null,null,null,null,null,null,null,null,null,null,null,null,null,null,null,null,null,null,null,null,null,null,null,null,null,null,null,null,null,null,null,null,null,null,null,null,null,null,null,null,null,null,null,null,null,null,null,null,null,null,null,null,null,null,null,null,null,null,null,null,null,null,null,null,null,null,null,null,null,null,null,null,null,null,null,null,null,null,"ABDEFIKL",{"$f":"$BB$5","v":"Elfenbeinküste"},{"$f":"$CE$5","v":"Irak"},"Katar","Australien","Südkorea","Schweden",{"$f":"$CE$26","v":"Ghana"},{"$f":"$CE$19","v":"Usbekistan"}]
[null,null,null,null,null,null,null,null,null,null,null,null,null,null,null,null,null,null,null,null,null,null,null,null,null,null,null,null,null,null,null,null,null,null,null,null,null,null,null,null,null,null,null,null,null,null,null,null,null,null,null,null,null,null,null,null,null,null,null,null,null,null,null,null,null,null,null,null,null,null,null,null,null,null,null,null,null,null,null,null,null,null,null,null,null,null,null,null,null,null,null,null,"ABDEFJKL",{"$f":"$BB$5","v":"Elfenbeinküste"},{"$f":"$CE$12","v":"Österreich"},"Katar","Australien","Südkorea","Schweden",{"$f":"$CE$26","v":"Ghana"},{"$f":"$CE$19","v":"Usbekistan"}]
[null,null,null,null,null,null,null,null,null,null,null,null,null,null,null,null,null,null,null,null,null,null,null,null,null,null,null,null,null,null,null,null,null,null,null,null,null,null,null,null,null,null,null,null,null,null,null,null,null,null,null,null,null,null,null,null,null,null,null,null,null,null,null,null,null,null,null,null,null,null,null,null,null,null,null,null,null,null,null,null,null,null,null,null,null,null,null,null,null,null,null,null,"ABDEGHIJ",{"$f":"$BB$26","v":"Saudi-Arabien"},{"$f":"$CE$12","v":"Österreich"},"Katar","Australien","Südkorea",{"$f":"$BB$19","v":"Iran"},{"$f":"$BB$5","v":"Elfenbeinküste"},{"$f":"$CE$5","v":"Irak"}]
[null,null,null,null,null,null,null,null,null,null,null,null,null,null,null,null,null,null,null,null,null,null,null,null,null,null,null,null,null,null,null,null,null,null,null,null,null,null,null,null,null,null,null,null,null,null,null,null,null,null,null,null,null,null,null,null,null,null,null,null,null,null,null,null,null,null,null,null,null,null,null,null,null,null,null,null,null,null,null,null,null,null,null,null,null,null,null,null,null,null,null,null,"ABDEGHIK",{"$f":"$BB$5","v":"Elfenbeinküste"},{"$f":"$BB$19","v":"Iran"},"Katar","Australien","Südkorea",{"$f":"$BB$26","v":"Saudi-Arabien"},{"$f":"$CE$5","v":"Irak"},{"$f":"$CE$19","v":"Usbekistan"}]
[null,null,null,null,null,null,null,null,null,null,null,null,null,null,null,null,null,null,null,null,null,null,null,null,null,null,null,null,null,null,null,null,null,null,null,null,null,null,null,null,null,null,null,null,null,null,null,null,null,null,null,null,null,null,null,null,null,null,null,null,null,null,null,null,null,null,null,null,null,null,null,null,null,null,null,null,null,null,null,null,null,null,null,null,null,null,null,null,null,null,null,null,"ABDEGHIL",{"$f":"$BB$5","v":"Elfenbeinküste"},{"$f":"$BB$19","v":"Iran"},"Katar","Australien","Südkorea",{"$f":"$BB$26","v":"Saudi-Arabien"},{"$f":"$CE$26","v":"Ghana"},{"$f":"$CE$5","v":"Irak"}]
[null,null,null,null,null,null,null,null,null,null,null,null,null,null,null,null,null,null,null,null,null,null,null,null,null,null,null,null,null,null,null,null,null,null,null,null,null,null,null,null,null,null,null,null,null,null,null,null,null,null,null,null,null,null,null,null,null,null,null,null,null,null,null,null,null,null,null,null,null,null,null,null,null,null,null,null,null,null,null,null,null,null,null,null,null,null,null,null,null,null,null,null,"ABDEGHJK",{"$f":"$BB$26","v":"Saudi-Arabien"},{"$f":"$CE$12","v":"Österreich"},"Katar","Australien","Südkorea",{"$f":"$BB$19","v":"Iran"},{"$f":"$BB$5","v":"Elfenbeinküste"},{"$f":"$CE$19","v":"Usbekistan"}]
[null,null,null,null,null,null,null,null,null,null,null,null,null,null,null,null,null,null,null,null,null,null,null,null,null,null,null,null,null,null,null,null,null,null,null,null,null,null,null,null,null,null,null,null,null,null,null,null,null,null,null,null,null,null,null,null,null,null,null,null,null,null,null,null,null,null,null,null,null,null,null,null,null,null,null,null,null,null,null,null,null,null,null,null,null,null,null,null,null,null,null,null,"ABDEGHJL",{"$f":"$BB$26","v":"Saudi-Arabien"},{"$f":"$CE$12","v":"Österreich"},"Katar","Australien","Südkorea",{"$f":"$BB$19","v":"Iran"},{"$f":"$CE$26","v":"Ghana"},{"$f":"$BB$5","v":"Elfenbeinküste"}]
[null,null,null,null,null,null,null,null,null,null,null,null,null,null,null,null,null,null,null,null,null,null,null,null,null,null,null,null,null,null,null,null,null,null,null,null,null,null,null,null,null,null,null,null,null,null,null,null,null,null,null,null,null,null,null,null,null,null,null,null,null,null,null,null,null,null,null,null,null,null,null,null,null,null,null,null,null,null,null,null,null,null,null,null,null,null,null,null,null,null,null,null,"ABDEGHKL",{"$f":"$BB$5","v":"Elfenbeinküste"},{"$f":"$BB$19","v":"Iran"},"Katar","Australien","Südkorea",{"$f":"$BB$26","v":"Saudi-Arabien"},{"$f":"$CE$26","v":"Ghana"},{"$f":"$CE$19","v":"Usbekistan"}]
[null,null,null,null,null,null,null,null,null,null,null,null,null,null,null,null,null,null,null,null,null,null,null,null,null,null,null,null,null,null,null,null,null,null,null,null,null,null,null,null,null,null,null,null,null,null,null,null,null,null,null,null,null,null,null,null,null,null,null,null,null,null,null,null,null,null,null,null,null,null,null,null,null,null,null,null,null,null,null,null,null,null,null,null,null,null,null,null,null,null,null,null,"ABDEGIJK","Elfenbeinküste",{"$f":"$CE$12","v":"Österreich"},"Katar","Australien","Südkorea",{"$f":"$BB$19","v":"Iran"},{"$f":"$CE$5","v":"Irak"},{"$f":"$CE$19","v":"Usbekistan"}]
[null,null,null,null,null,null,null,null,null,null,null,null,null,null,null,null,null,null,null,null,null,null,null,null,null,null,null,null,null,null,null,null,null,null,null,null,null,null,null,null,null,null,null,null,null,null,null,null,null,null,null,null,null,null,null,null,null,null,null,null,null,null,null,null,null,null,null,null,null,null,null,null,null,null,null,null,null,null,null,null,null,null,null,null,null,null,null,null,null,null,null,null,"ABDEGIJL","Elfenbeinküste",{"$f":"$CE$12","v":"Österreich"},"Katar","Australien","Südkorea",{"$f":"$BB$19","v":"Iran"},{"$f":"$CE$26","v":"Ghana"},{"$f":"$CE$5","v":"Irak"}]
[null,null,null,null,null,null,null,null,null,null,null,null,null,null,null,null,null,null,null,null,null,null,null,null,null,null,null,null,null,null,null,null,null,null,null,null,null,null,null,null,null,null,null,null,null,null,null,null,null,null,null,null,null,null,null,null,null,null,null,null,null,null,null,null,null,null,null,null,null,null,null,null,null,null,null,null,null,null,null,null,null,null,null,null,null,null,null,null,null,null,null,null,"ABDEGIKL","Elfenbeinküste",{"$f":"$BB$19","v":"Iran"},"Katar",{"$f":"$Y$5","v":"Südkorea"},{"$f":"$CE$5","v":"Irak"},{"$f":"$Y$26","v":"Australien"},{"$f":"$CE$26","v":"Ghana"},{"$f":"$CE$19","v":"Usbekistan"}]
[null,null,null,null,null,null,null,null,null,null,null,null,null,null,null,null,null,null,null,null,null,null,null,null,null,null,null,null,null,null,null,null,null,null,null,null,null,null,null,null,null,null,null,null,null,null,null,null,null,null,null,null,null,null,null,null,null,null,null,null,null,null,null,null,null,null,null,null,null,null,null,null,null,null,null,null,null,null,null,null,null,null,null,null,null,null,null,null,null,null,null,null,"ABDEGJKL","Elfenbeinküste",{"$f":"$CE$12","v":"Österreich"},"Katar",{"$f":"$Y$26","v":"Australien"},{"$f":"$Y$5","v":"Südkorea"},{"$f":"$BB$19","v":"Iran"},{"$f":"$CE$26","v":"Ghana"},{"$f":"$CE$19","v":"Usbekistan"}]
[null,null,null,null,null,null,null,null,null,null,null,null,null,null,null,null,null,null,null,null,null,null,null,null,null,null,null,null,null,null,null,null,null,null,null,null,null,null,null,null,null,null,null,null,null,null,null,null,null,null,null,null,null,null,null,null,null,null,null,null,null,null,null,null,null,null,null,null,null,null,null,null,null,null,null,null,null,null,null,null,null,null,null,null,null,null,null,null,null,null,null,null,"ABDEHIJK","Elfenbeinküste",{"$f":"$CE$12","v":"Österreich"},"Katar",{"$f":"$Y$26","v":"Australien"},{"$f":"$Y$5","v":"Südkorea"},{"$f":"$BB$26","v":"Saudi-Arabien"},{"$f":"$CE$5","v":"Irak"},{"$f":"$CE$19","v":"Usbekistan"}]
[null,null,null,null,null,null,null,null,null,null,null,null,null,null,null,null,null,null,null,null,null,null,null,null,null,null,null,null,null,null,null,null,null,null,null,null,null,null,null,null,null,null,null,null,null,null,null,null,null,null,null,null,null,null,null,null,null,null,null,null,null,null,null,null,null,null,null,null,null,null,null,null,null,null,null,null,null,null,null,null,null,null,null,null,null,null,null,null,null,null,null,null,"ABDEHIJL","Elfenbeinküste",{"$f":"$CE$12","v":"Österreich"},"Katar",{"$f":"$Y$26","v":"Australien"},{"$f":"$Y$5","v":"Südkorea"},{"$f":"$BB$26","v":"Saudi-Arabien"},{"$f":"$CE$26","v":"Ghana"},{"$f":"$CE$5","v":"Irak"}]
[null,null,null,null,null,null,null,null,null,null,null,null,null,null,null,null,null,null,null,null,null,null,null,null,null,null,null,null,null,null,null,null,null,null,null,null,null,null,null,null,null,null,null,null,null,null,null,null,null,null,null,null,null,null,null,null,null,null,null,null,null,null,null,null,null,null,null,null,null,null,null,null,null,null,null,null,null,null,null,null,null,null,null,null,null,null,null,null,null,null,null,null,"ABDEHIKL","Elfenbeinküste",{"$f":"$CE$5","v":"Irak"},"Katar",{"$f":"$Y$26","v":"Australien"},{"$f":"$Y$5","v":"Südkorea"},{"$f":"$BB$26","v":"Saudi-Arabien"},{"$f":"$CE$26","v":"Ghana"},{"$f":"$CE$19","v":"Usbekistan"}]
[null,null,null,null,null,null,null,null,null,null,null,null,null,null,null,null,null,null,null,null,null,null,null,null,null,null,null,null,null,null,null,null,null,null,null,null,null,null,null,null,null,null,null,null,null,null,null,null,null,null,null,null,null,null,null,null,null,null,null,null,null,null,null,null,null,null,null,null,null,null,null,null,null,null,null,null,null,null,null,null,null,null,null,null,null,null,null,null,null,null,null,null,"ABDEHJKL","Elfenbeinküste",{"$f":"$CE$12","v":"Österreich"},"Katar",{"$f":"$Y$26","v":"Australien"},{"$f":"$Y$5","v":"Südkorea"},{"$f":"$BB$26","v":"Saudi-Arabien"},{"$f":"$CE$26","v":"Ghana"},{"$f":"$CE$19","v":"Usbekistan"}]
[null,null,null,null,null,null,null,null,null,null,null,null,null,null,null,null,null,null,null,null,null,null,null,null,null,null,null,null,null,null,null,null,null,null,null,null,null,null,null,null,null,null,null,null,null,null,null,null,null,null,null,null,null,null,null,null,null,null,null,null,null,null,null,null,null,null,null,null,null,null,null,null,null,null,null,null,null,null,null,null,null,null,null,null,null,null,null,null,null,null,null,null,"ABDEIJKL","Elfenbeinküste",{"$f":"$CE$12","v":"Österreich"},"Katar",{"$f":"$Y$5","v":"Südkorea"},{"$f":"$CE$5","v":"Irak"},{"$f":"$Y$26","v":"Australien"},{"$f":"$CE$26","v":"Ghana"},{"$f":"$CE$19","v":"Usbekistan"}]
[null,null,null,null,null,null,null,null,null,null,null,null,null,null,null,null,null,null,null,null,null,null,null,null,null,null,null,null,null,null,null,null,null,null,null,null,null,null,null,null,null,null,null,null,null,null,null,null,null,null,null,null,null,null,null,null,null,null,null,null,null,null,null,null,null,null,null,null,null,null,null,null,null,null,null,null,null,null,null,null,null,null,null,null,null,null,null,null,null,null,null,null,"ABDFGHIJ",{"$f":"$BB$26","v":"Saudi-Arabien"},{"$f":"$BB$19","v":"Iran"},"Katar",{"$f":"$Y$26","v":"Australien"},{"$f":"$Y$5","v":"Südkorea"},{"$f":"$BB$12","v":"Schweden"},{"$f":"$CE$5","v":"Irak"},{"$f":"$CE$12","v":"Österreich"}]
[null,null,null,null,null,null,null,null,null,null,null,null,null,null,null,null,null,null,null,null,null,null,null,null,null,null,null,null,null,null,null,null,null,null,null,null,null,null,null,null,null,null,null,null,null,null,null,null,null,null,null,null,null,null,null,null,null,null,null,null,null,null,null,null,null,null,null,null,null,null,null,null,null,null,null,null,null,null,null,null,null,null,null,null,null,null,null,null,null,null,null,null,"ABDFGHIK","Saudi-Arabien","Iran","Katar","Australien","Südkorea","Schweden",{"$f":"$CE$5","v":"Irak"},{"$f":"$CE$19","v":"Usbekistan"}]
[null,null,null,null,null,null,null,null,null,null,null,null,null,null,null,null,null,null,null,null,null,null,null,null,null,null,null,null,null,null,null,null,null,null,null,null,null,null,null,null,null,null,null,null,null,null,null,null,null,null,null,null,null,null,null,null,null,null,null,null,null,null,null,null,null,null,null,null,null,null,null,null,null,null,null,null,null,null,null,null,null,null,null,null,null,null,null,null,null,null,null,null,"ABDFGHIL","Saudi-Arabien","Iran","Katar","Australien","Südkorea","Schweden",{"$f":"$CE$26","v":"Ghana"},{"$f":"$CE$5","v":"Irak"}]
[null,null,null,null,null,null,null,null,null,null,null,null,null,null,null,null,null,null,null,null,null,null,null,null,null,null,null,null,null,null,null,null,null,null,null,null,null,null,null,null,null,null,null,null,null,null,null,null,null,null,null,null,null,null,null,null,null,null,null,null,null,null,null,null,null,null,null,null,null,null,null,null,null,null,null,null,null,null,null,null,null,null,null,null,null,null,null,null,null,null,null,null,"ABDFGHJK","Saudi-Arabien","Iran","Katar","Australien","Südkorea","Schweden",{"$f":"$CE$12","v":"Österreich"},{"$f":"$CE$19","v":"Usbekistan"}]
[null,null,null,null,null,null,null,null,null,null,null,null,null,null,null,null,null,null,null,null,null,null,null,null,null,null,null,null,null,null,null,null,null,null,null,null,null,null,null,null,null,null,null,null,null,null,null,null,null,null,null,null,null,null,null,null,null,null,null,null,null,null,null,null,null,null,null,null,null,null,null,null,null,null,null,null,null,null,null,null,null,null,null,null,null,null,null,null,null,null,null,null,"ABDFGHJL","Saudi-Arabien","Iran","Katar","Australien","Südkorea","Schweden",{"$f":"$CE$26","v":"Ghana"},{"$f":"$CE$12","v":"Österreich"}]
[null,null,null,null,null,null,null,null,null,null,null,null,null,null,null,null,null,null,null,null,null,null,null,null,null,null,null,null,null,null,null,null,null,null,null,null,null,null,null,null,null,null,null,null,null,null,null,null,null,null,null,null,null,null,null,null,null,null,null,null,null,null,null,null,null,null,null,null,null,null,null,null,null,null,null,null,null,null,null,null,null,null,null,null,null,null,null,null,null,null,null,null,"ABDFGHKL","Saudi-Arabien","Iran","Katar","Australien","Südkorea","Schweden",{"$f":"$CE$26","v":"Ghana"},{"$f":"$CE$19","v":"Usbekistan"}]
[null,null,null,null,null,null,null,null,null,null,null,null,null,null,null,null,null,null,null,null,null,null,null,null,null,null,null,null,null,null,null,null,null,null,null,null,null,null,null,null,null,null,null,null,null,null,null,null,null,null,null,null,null,null,null,null,null,null,null,null,null,null,null,null,null,null,null,null,null,null,null,null,null,null,null,null,null,null,null,null,null,null,null,null,null,null,null,null,null,null,null,null,"ABDFGIJK",{"$f":"$BB$12","v":"Schweden"},{"$f":"$CE$12","v":"Österreich"},"Katar","Australien","Südkorea",{"$f":"$BB$19","v":"Iran"},{"$f":"$CE$5","v":"Irak"},{"$f":"$CE$19","v":"Usbekistan"}]
[null,null,null,null,null,null,null,null,null,null,null,null,null,null,null,null,null,null,null,null,null,null,null,null,null,null,null,null,null,null,null,null,null,null,null,null,null,null,null,null,null,null,null,null,null,null,null,null,null,null,null,null,null,null,null,null,null,null,null,null,null,null,null,null,null,null,null,null,null,null,null,null,null,null,null,null,null,null,null,null,null,null,null,null,null,null,null,null,null,null,null,null,"ABDFGIJL",{"$f":"$BB$12","v":"Schweden"},{"$f":"$CE$12","v":"Österreich"},"Katar","Australien","Südkorea",{"$f":"$BB$19","v":"Iran"},{"$f":"$CE$26","v":"Ghana"},{"$f":"$CE$5","v":"Irak"}]
[null,null,null,null,null,null,null,null,null,null,null,null,null,null,null,null,null,null,null,null,null,null,null,null,null,null,null,null,null,null,null,null,null,null,null,null,null,null,null,null,null,null,null,null,null,null,null,null,null,null,null,null,null,null,null,null,null,null,null,null,null,null,null,null,null,null,null,null,null,null,null,null,null,null,null,null,null,null,null,null,null,null,null,null,null,null,null,null,null,null,null,null,"ABDFGIKL",{"$f":"$CE$5","v":"Irak"},{"$f":"$BB$19","v":"Iran"},"Katar","Australien","Südkorea",{"$f":"$BB$12","v":"Schweden"},{"$f":"$CE$26","v":"Ghana"},{"$f":"$CE$19","v":"Usbekistan"}]
[null,null,null,null,null,null,null,null,null,null,null,null,null,null,null,null,null,null,null,null,null,null,null,null,null,null,null,null,null,null,null,null,null,null,null,null,null,null,null,null,null,null,null,null,null,null,null,null,null,null,null,null,null,null,null,null,null,null,null,null,null,null,null,null,null,null,null,null,null,null,null,null,null,null,null,null,null,null,null,null,null,null,null,null,null,null,null,null,null,null,null,null,"ABDFGJKL",{"$f":"$BB$12","v":"Schweden"},{"$f":"$CE$12","v":"Österreich"},"Katar","Australien","Südkorea",{"$f":"$BB$19","v":"Iran"},{"$f":"$CE$26","v":"Ghana"},{"$f":"$CE$19","v":"Usbekistan"}]
[null,null,null,null,null,null,null,null,null,null,null,null,null,null,null,null,null,null,null,null,null,null,null,null,null,null,null,null,null,null,null,null,null,null,null,null,null,null,null,null,null,null,null,null,null,null,null,null,null,null,null,null,null,null,null,null,null,null,null,null,null,null,null,null,null,null,null,null,null,null,null,null,null,null,null,null,null,null,null,null,null,null,null,null,null,null,null,null,null,null,null,null,"ABDFHIJK",{"$f":"$BB$26","v":"Saudi-Arabien"},{"$f":"$CE$12","v":"Österreich"},"Katar","Australien","Südkorea",{"$f":"$BB$12","v":"Schweden"},{"$f":"$CE$5","v":"Irak"},{"$f":"$CE$19","v":"Usbekistan"}]
[null,null,null,null,null,null,null,null,null,null,null,null,null,null,null,null,null,null,null,null,null,null,null,null,null,null,null,null,null,null,null,null,null,null,null,null,null,null,null,null,null,null,null,null,null,null,null,null,null,null,null,null,null,null,null,null,null,null,null,null,null,null,null,null,null,null,null,null,null,null,null,null,null,null,null,null,null,null,null,null,null,null,null,null,null,null,null,null,null,null,null,null,"ABDFHIJL",{"$f":"$BB$26","v":"Saudi-Arabien"},{"$f":"$CE$12","v":"Österreich"},"Katar","Australien","Südkorea",{"$f":"$BB$12","v":"Schweden"},{"$f":"$CE$26","v":"Ghana"},{"$f":"$CE$5","v":"Irak"}]
[null,null,null,null,null,null,null,null,null,null,null,null,null,null,null,null,null,null,null,null,null,null,null,null,null,null,null,null,null,null,null,null,null,null,null,null,null,null,null,null,null,null,null,null,null,null,null,null,null,null,null,null,null,null,null,null,null,null,null,null,null,null,null,null,null,null,null,null,null,null,null,null,null,null,null,null,null,null,null,null,null,null,null,null,null,null,null,null,null,null,null,null,"ABDFHIKL",{"$f":"$BB$26","v":"Saudi-Arabien"},{"$f":"$CE$5","v":"Irak"},"Katar","Australien","Südkorea",{"$f":"$BB$12","v":"Schweden"},{"$f":"$CE$26","v":"Ghana"},{"$f":"$CE$19","v":"Usbekistan"}]
[null,null,null,null,null,null,null,null,null,null,null,null,null,null,null,null,null,null,null,null,null,null,null,null,null,null,null,null,null,null,null,null,null,null,null,null,null,null,null,null,null,null,null,null,null,null,null,null,null,null,null,null,null,null,null,null,null,null,null,null,null,null,null,null,null,null,null,null,null,null,null,null,null,null,null,null,null,null,null,null,null,null,null,null,null,null,null,null,null,null,null,null,"ABDFHJKL",{"$f":"$BB$26","v":"Saudi-Arabien"},{"$f":"$CE$12","v":"Österreich"},"Katar","Australien","Südkorea",{"$f":"$BB$12","v":"Schweden"},{"$f":"$CE$26","v":"Ghana"},{"$f":"$CE$19","v":"Usbekistan"}]
[null,null,null,null,null,null,null,null,null,null,null,null,null,null,null,null,null,null,null,null,null,null,null,null,null,null,null,null,null,null,null,null,null,null,null,null,null,null,null,null,null,null,null,null,null,null,null,null,null,null,null,null,null,null,null,null,null,null,null,null,null,null,null,null,null,null,null,null,null,null,null,null,null,null,null,null,null,null,null,null,null,null,null,null,null,null,null,null,null,null,null,null,"ABDFIJKL",{"$f":"$CE$5","v":"Irak"},{"$f":"$CE$12","v":"Österreich"},"Katar","Australien","Südkorea",{"$f":"$BB$12","v":"Schweden"},{"$f":"$CE$26","v":"Ghana"},{"$f":"$CE$19","v":"Usbekistan"}]
[null,null,null,null,null,null,null,null,null,null,null,null,null,null,null,null,null,null,null,null,null,null,null,null,null,null,null,null,null,null,null,null,null,null,null,null,null,null,null,null,null,null,null,null,null,null,null,null,null,null,null,null,null,null,null,null,null,null,null,null,null,null,null,null,null,null,null,null,null,null,null,null,null,null,null,null,null,null,null,null,null,null,null,null,null,null,null,null,null,null,null,null,"ABDGHIJK",{"$f":"$BB$26","v":"Saudi-Arabien"},{"$f":"$CE$12","v":"Österreich"},"Katar","Australien","Südkorea",{"$f":"$BB$19","v":"Iran"},{"$f":"$CE$5","v":"Irak"},{"$f":"$CE$19","v":"Usbekistan"}]
[null,null,null,null,null,null,null,null,null,null,null,null,null,null,null,null,null,null,null,null,null,null,null,null,null,null,null,null,null,null,null,null,null,null,null,null,null,null,null,null,null,null,null,null,null,null,null,null,null,null,null,null,null,null,null,null,null,null,null,null,null,null,null,null,null,null,null,null,null,null,null,null,null,null,null,null,null,null,null,null,null,null,null,null,null,null,null,null,null,null,null,null,"ABDGHIJL",{"$f":"$BB$26","v":"Saudi-Arabien"},{"$f":"$CE$12","v":"Österreich"},"Katar","Australien","Südkorea",{"$f":"$BB$19","v":"Iran"},{"$f":"$CE$26","v":"Ghana"},{"$f":"$CE$5","v":"Irak"}]
[null,null,null,null,null,null,null,null,null,null,null,null,null,null,null,null,null,null,null,null,null,null,null,null,null,null,null,null,null,null,null,null,null,null,null,null,null,null,null,null,null,null,null,null,null,null,null,null,null,null,null,null,null,null,null,null,null,null,null,null,null,null,null,null,null,null,null,null,null,null,null,null,null,null,null,null,null,null,null,null,null,null,null,null,null,null,null,null,null,null,null,null,"ABDGHIKL",{"$f":"$CE$5","v":"Irak"},{"$f":"$BB$19","v":"Iran"},"Katar","Australien","Südkorea",{"$f":"$BB$26","v":"Saudi-Arabien"},{"$f":"$CE$26","v":"Ghana"},{"$f":"$CE$19","v":"Usbekistan"}]
[null,null,null,null,null,null,null,null,null,null,null,null,null,null,null,null,null,null,null,null,null,null,null,null,null,null,null,null,null,null,null,null,null,null,null,null,null,null,null,null,null,null,null,null,null,null,null,null,null,null,null,null,null,null,null,null,null,null,null,null,null,null,null,null,null,null,null,null,null,null,null,null,null,null,null,null,null,null,null,null,null,null,null,null,null,null,null,null,null,null,null,null,"ABDGHJKL",{"$f":"$BB$26","v":"Saudi-Arabien"},{"$f":"$CE$12","v":"Österreich"},"Katar","Australien","Südkorea",{"$f":"$BB$19","v":"Iran"},{"$f":"$CE$26","v":"Ghana"},{"$f":"$CE$19","v":"Usbekistan"}]
[null,null,null,null,null,null,null,null,null,null,null,null,null,null,null,null,null,null,null,null,null,null,null,null,null,null,null,null,null,null,null,null,null,null,null,null,null,null,null,null,null,null,null,null,null,null,null,null,null,null,null,null,null,null,null,null,null,null,null,null,null,null,null,null,null,null,null,null,null,null,null,null,null,null,null,null,null,null,null,null,null,null,null,null,null,null,null,null,null,null,null,null,"ABDGIJKL",{"$f":"$CE$5","v":"Irak"},{"$f":"$CE$12","v":"Österreich"},"Katar","Australien","Südkorea",{"$f":"$BB$19","v":"Iran"},{"$f":"$CE$26","v":"Ghana"},{"$f":"$CE$19","v":"Usbekistan"}]
[null,null,null,null,null,null,null,null,null,null,null,null,null,null,null,null,null,null,null,null,null,null,null,null,null,null,null,null,null,null,null,null,null,null,null,null,null,null,null,null,null,null,null,null,null,null,null,null,null,null,null,null,null,null,null,null,null,null,null,null,null,null,null,null,null,null,null,null,null,null,null,null,null,null,null,null,null,null,null,null,null,null,null,null,null,null,null,null,null,null,null,null,"ABDHIJKL",{"$f":"$CE$5","v":"Irak"},{"$f":"$CE$12","v":"Österreich"},"Katar","Australien","Südkorea",{"$f":"$BB$26","v":"Saudi-Arabien"},{"$f":"$CE$26","v":"Ghana"},{"$f":"$CE$19","v":"Usbekistan"}]
[null,null,null,null,null,null,null,null,null,null,null,null,null,null,null,null,null,null,null,null,null,null,null,null,null,null,null,null,null,null,null,null,null,null,null,null,null,null,null,null,null,null,null,null,null,null,null,null,null,null,null,null,null,null,null,null,null,null,null,null,null,null,null,null,null,null,null,null,null,null,null,null,null,null,null,null,null,null,null,null,null,null,null,null,null,null,null,null,null,null,null,null,"ABEFGHIJ",{"$f":"$BB$26","v":"Saudi-Arabien"},{"$f":"$CE$12","v":"Österreich"},"Katar",{"$f":"$BB$12","v":"Schweden"},"Südkorea",{"$f":"$BB$19","v":"Iran"},{"$f":"$BB$5","v":"Elfenbeinküste"},{"$f":"$CE$5","v":"Irak"}]
[null,null,null,null,null,null,null,null,null,null,null,null,null,null,null,null,null,null,null,null,null,null,null,null,null,null,null,null,null,null,null,null,null,null,null,null,null,null,null,null,null,null,null,null,null,null,null,null,null,null,null,null,null,null,null,null,null,null,null,null,null,null,null,null,null,null,null,null,null,null,null,null,null,null,null,null,null,null,null,null,null,null,null,null,null,null,null,null,null,null,null,null,"ABEFGHIK",{"$f":"$BB$5","v":"Elfenbeinküste"},{"$f":"$BB$19","v":"Iran"},"Katar","Schweden","Südkorea",{"$f":"$BB$26","v":"Saudi-Arabien"},{"$f":"$CE$5","v":"Irak"},{"$f":"$CE$19","v":"Usbekistan"}]
[null,null,null,null,null,null,null,null,null,null,null,null,null,null,null,null,null,null,null,null,null,null,null,null,null,null,null,null,null,null,null,null,null,null,null,null,null,null,null,null,null,null,null,null,null,null,null,null,null,null,null,null,null,null,null,null,null,null,null,null,null,null,null,null,null,null,null,null,null,null,null,null,null,null,null,null,null,null,null,null,null,null,null,null,null,null,null,null,null,null,null,null,"ABEFGHIL",{"$f":"$BB$5","v":"Elfenbeinküste"},{"$f":"$BB$19","v":"Iran"},"Katar","Schweden","Südkorea",{"$f":"$BB$26","v":"Saudi-Arabien"},{"$f":"$CE$26","v":"Ghana"},{"$f":"$CE$5","v":"Irak"}]
[null,null,null,null,null,null,null,null,null,null,null,null,null,null,null,null,null,null,null,null,null,null,null,null,null,null,null,null,null,null,null,null,null,null,null,null,null,null,null,null,null,null,null,null,null,null,null,null,null,null,null,null,null,null,null,null,null,null,null,null,null,null,null,null,null,null,null,null,null,null,null,null,null,null,null,null,null,null,null,null,null,null,null,null,null,null,null,null,null,null,null,null,"ABEFGHJK",{"$f":"$BB$26","v":"Saudi-Arabien"},{"$f":"$CE$12","v":"Österreich"},"Katar","Schweden","Südkorea",{"$f":"$BB$19","v":"Iran"},{"$f":"$BB$5","v":"Elfenbeinküste"},{"$f":"$CE$19","v":"Usbekistan"}]
[null,null,null,null,null,null,null,null,null,null,null,null,null,null,null,null,null,null,null,null,null,null,null,null,null,null,null,null,null,null,null,null,null,null,null,null,null,null,null,null,null,null,null,null,null,null,null,null,null,null,null,null,null,null,null,null,null,null,null,null,null,null,null,null,null,null,null,null,null,null,null,null,null,null,null,null,null,null,null,null,null,null,null,null,null,null,null,null,null,null,null,null,"ABEFGHJL",{"$f":"$BB$26","v":"Saudi-Arabien"},{"$f":"$CE$12","v":"Österreich"},"Katar","Schweden","Südkorea",{"$f":"$BB$19","v":"Iran"},{"$f":"$CE$26","v":"Ghana"},{"$f":"$BB$5","v":"Elfenbeinküste"}]
[null,null,null,null,null,null,null,null,null,null,null,null,null,null,null,null,null,null,null,null,null,null,null,null,null,null,null,null,null,null,null,null,null,null,null,null,null,null,null,null,null,null,null,null,null,null,null,null,null,null,null,null,null,null,null,null,null,null,null,null,null,null,null,null,null,null,null,null,null,null,null,null,null,null,null,null,null,null,null,null,null,null,null,null,null,null,null,null,null,null,null,null,"ABEFGHKL",{"$f":"$BB$5","v":"Elfenbeinküste"},{"$f":"$BB$19","v":"Iran"},"Katar","Schweden","Südkorea",{"$f":"$BB$26","v":"Saudi-Arabien"},{"$f":"$CE$26","v":"Ghana"},{"$f":"$CE$19","v":"Usbekistan"}]
[null,null,null,null,null,null,null,null,null,null,null,null,null,null,null,null,null,null,null,null,null,null,null,null,null,null,null,null,null,null,null,null,null,null,null,null,null,null,null,null,null,null,null,null,null,null,null,null,null,null,null,null,null,null,null,null,null,null,null,null,null,null,null,null,null,null,null,null,null,null,null,null,null,null,null,null,null,null,null,null,null,null,null,null,null,null,null,null,null,null,null,null,"ABEFGIJK","Elfenbeinküste",{"$f":"$CE$12","v":"Österreich"},"Katar","Schweden","Südkorea",{"$f":"$BB$19","v":"Iran"},{"$f":"$CE$5","v":"Irak"},{"$f":"$CE$19","v":"Usbekistan"}]
[null,null,null,null,null,null,null,null,null,null,null,null,null,null,null,null,null,null,null,null,null,null,null,null,null,null,null,null,null,null,null,null,null,null,null,null,null,null,null,null,null,null,null,null,null,null,null,null,null,null,null,null,null,null,null,null,null,null,null,null,null,null,null,null,null,null,null,null,null,null,null,null,null,null,null,null,null,null,null,null,null,null,null,null,null,null,null,null,null,null,null,null,"ABEFGIJL","Elfenbeinküste",{"$f":"$CE$12","v":"Österreich"},"Katar","Schweden","Südkorea",{"$f":"$BB$19","v":"Iran"},{"$f":"$CE$26","v":"Ghana"},{"$f":"$CE$5","v":"Irak"}]
[null,null,null,null,null,null,null,null,null,null,null,null,null,null,null,null,null,null,null,null,null,null,null,null,null,null,null,null,null,null,null,null,null,null,null,null,null,null,null,null,null,null,null,null,null,null,null,null,null,null,null,null,null,null,null,null,null,null,null,null,null,null,null,null,null,null,null,null,null,null,null,null,null,null,null,null,null,null,null,null,null,null,null,null,null,null,null,null,null,null,null,null,"ABEFGIKL","Elfenbeinküste",{"$f":"$BB$19","v":"Iran"},"Katar",{"$f":"$Y$5","v":"Südkorea"},{"$f":"$CE$5","v":"Irak"},{"$f":"$BB$12","v":"Schweden"},{"$f":"$CE$26","v":"Ghana"},{"$f":"$CE$19","v":"Usbekistan"}]
[null,null,null,null,null,null,null,null,null,null,null,null,null,null,null,null,null,null,null,null,null,null,null,null,null,null,null,null,null,null,null,null,null,null,null,null,null,null,null,null,null,null,null,null,null,null,null,null,null,null,null,null,null,null,null,null,null,null,null,null,null,null,null,null,null,null,null,null,null,null,null,null,null,null,null,null,null,null,null,null,null,null,null,null,null,null,null,null,null,null,null,null,"ABEFGJKL","Elfenbeinküste",{"$f":"$CE$12","v":"Österreich"},"Katar",{"$f":"$BB$12","v":"Schweden"},{"$f":"$Y$5","v":"Südkorea"},{"$f":"$BB$19","v":"Iran"},{"$f":"$CE$26","v":"Ghana"},{"$f":"$CE$19","v":"Usbekistan"}]
[null,null,null,null,null,null,null,null,null,null,null,null,null,null,null,null,null,null,null,null,null,null,null,null,null,null,null,null,null,null,null,null,null,null,null,null,null,null,null,null,null,null,null,null,null,null,null,null,null,null,null,null,null,null,null,null,null,null,null,null,null,null,null,null,null,null,null,null,null,null,null,null,null,null,null,null,null,null,null,null,null,null,null,null,null,null,null,null,null,null,null,null,"ABEFHIJK","Elfenbeinküste",{"$f":"$CE$12","v":"Österreich"},{"$f":"$Y$12","v":"Katar"},{"$f":"$BB$12","v":"Schweden"},{"$f":"$Y$5","v":"Südkorea"},{"$f":"$BB$26","v":"Saudi-Arabien"},{"$f":"$CE$5","v":"Irak"},{"$f":"$CE$19","v":"Usbekistan"}]
[null,null,null,null,null,null,null,null,null,null,null,null,null,null,null,null,null,null,null,null,null,null,null,null,null,null,null,null,null,null,null,null,null,null,null,null,null,null,null,null,null,null,null,null,null,null,null,null,null,null,null,null,null,null,null,null,null,null,null,null,null,null,null,null,null,null,null,null,null,null,null,null,null,null,null,null,null,null,null,null,null,null,null,null,null,null,null,null,null,null,null,null,"ABEFHIJL","Elfenbeinküste",{"$f":"$CE$12","v":"Österreich"},"Katar",{"$f":"$BB$12","v":"Schweden"},{"$f":"$Y$5","v":"Südkorea"},{"$f":"$BB$26","v":"Saudi-Arabien"},{"$f":"$CE$26","v":"Ghana"},{"$f":"$CE$5","v":"Irak"}]
[null,null,null,null,null,null,null,null,null,null,null,null,null,null,null,null,null,null,null,null,null,null,null,null,null,null,null,null,null,null,null,null,null,null,null,null,null,null,null,null,null,null,null,null,null,null,null,null,null,null,null,null,null,null,null,null,null,null,null,null,null,null,null,null,null,null,null,null,null,null,null,null,null,null,null,null,null,null,null,null,null,null,null,null,null,null,null,null,null,null,null,null,"ABEFHIKL","Elfenbeinküste",{"$f":"$CE$5","v":"Irak"},"Katar",{"$f":"$BB$12","v":"Schweden"},{"$f":"$Y$5","v":"Südkorea"},{"$f":"$BB$26","v":"Saudi-Arabien"},{"$f":"$CE$26","v":"Ghana"},{"$f":"$CE$19","v":"Usbekistan"}]
[null,null,null,null,null,null,null,null,null,null,null,null,null,null,null,null,null,null,null,null,null,null,null,null,null,null,null,null,null,null,null,null,null,null,null,null,null,null,null,null,null,null,null,null,null,null,null,null,null,null,null,null,null,null,null,null,null,null,null,null,null,null,null,null,null,null,null,null,null,null,null,null,null,null,null,null,null,null,null,null,null,null,null,null,null,null,null,null,null,null,null,null,"ABEFHJKL","Elfenbeinküste",{"$f":"$CE$12","v":"Österreich"},"Katar",{"$f":"$BB$12","v":"Schweden"},{"$f":"$Y$5","v":"Südkorea"},{"$f":"$BB$26","v":"Saudi-Arabien"},{"$f":"$CE$26","v":"Ghana"},{"$f":"$CE$19","v":"Usbekistan"}]
[null,null,null,null,null,null,null,null,null,null,null,null,null,null,null,null,null,null,null,null,null,null,null,null,null,null,null,null,null,null,null,null,null,null,null,null,null,null,null,null,null,null,null,null,null,null,null,null,null,null,null,null,null,null,null,null,null,null,null,null,null,null,null,null,null,null,null,null,null,null,null,null,null,null,null,null,null,null,null,null,null,null,null,null,null,null,null,null,null,null,null,null,"ABEFIJKL","Elfenbeinküste",{"$f":"$CE$12","v":"Österreich"},"Katar",{"$f":"$Y$5","v":"Südkorea"},{"$f":"$CE$5","v":"Irak"},{"$f":"$BB$12","v":"Schweden"},{"$f":"$CE$26","v":"Ghana"},{"$f":"$CE$19","v":"Usbekistan"}]
[null,null,null,null,null,null,null,null,null,null,null,null,null,null,null,null,null,null,null,null,null,null,null,null,null,null,null,null,null,null,null,null,null,null,null,null,null,null,null,null,null,null,null,null,null,null,null,null,null,null,null,null,null,null,null,null,null,null,null,null,null,null,null,null,null,null,null,null,null,null,null,null,null,null,null,null,null,null,null,null,null,null,null,null,null,null,null,null,null,null,null,null,"ABEGHIJK","Elfenbeinküste",{"$f":"$CE$12","v":"Österreich"},"Katar","Südkorea",{"$f":"$BB$26","v":"Saudi-Arabien"},{"$f":"$BB$19","v":"Iran"},{"$f":"$CE$5","v":"Irak"},{"$f":"$CE$19","v":"Usbekistan"}]
[null,null,null,null,null,null,null,null,null,null,null,null,null,null,null,null,null,null,null,null,null,null,null,null,null,null,null,null,null,null,null,null,null,null,null,null,null,null,null,null,null,null,null,null,null,null,null,null,null,null,null,null,null,null,null,null,null,null,null,null,null,null,null,null,null,null,null,null,null,null,null,null,null,null,null,null,null,null,null,null,null,null,null,null,null,null,null,null,null,null,null,null,"ABEGHIJL","Elfenbeinküste",{"$f":"$CE$12","v":"Österreich"},"Katar","Südkorea",{"$f":"$BB$26","v":"Saudi-Arabien"},{"$f":"$BB$19","v":"Iran"},{"$f":"$CE$26","v":"Ghana"},{"$f":"$CE$5","v":"Irak"}]
[null,null,null,null,null,null,null,null,null,null,null,null,null,null,null,null,null,null,null,null,null,null,null,null,null,null,null,null,null,null,null,null,null,null,null,null,null,null,null,null,null,null,null,null,null,null,null,null,null,null,null,null,null,null,null,null,null,null,null,null,null,null,null,null,null,null,null,null,null,null,null,null,null,null,null,null,null,null,null,null,null,null,null,null,null,null,null,null,null,null,null,null,"ABEGHIKL","Elfenbeinküste",{"$f":"$BB$19","v":"Iran"},"Katar","Südkorea",{"$f":"$CE$5","v":"Irak"},{"$f":"$BB$26","v":"Saudi-Arabien"},{"$f":"$CE$26","v":"Ghana"},{"$f":"$CE$19","v":"Usbekistan"}]
[null,null,null,null,null,null,null,null,null,null,null,null,null,null,null,null,null,null,null,null,null,null,null,null,null,null,null,null,null,null,null,null,null,null,null,null,null,null,null,null,null,null,null,null,null,null,null,null,null,null,null,null,null,null,null,null,null,null,null,null,null,null,null,null,null,null,null,null,null,null,null,null,null,null,null,null,null,null,null,null,null,null,null,null,null,null,null,null,null,null,null,null,"ABEGHJKL","Elfenbeinküste",{"$f":"$CE$12","v":"Österreich"},"Katar","Südkorea",{"$f":"$BB$26","v":"Saudi-Arabien"},{"$f":"$BB$19","v":"Iran"},{"$f":"$CE$26","v":"Ghana"},{"$f":"$CE$19","v":"Usbekistan"}]
[null,null,null,null,null,null,null,null,null,null,null,null,null,null,null,null,null,null,null,null,null,null,null,null,null,null,null,null,null,null,null,null,null,null,null,null,null,null,null,null,null,null,null,null,null,null,null,null,null,null,null,null,null,null,null,null,null,null,null,null,null,null,null,null,null,null,null,null,null,null,null,null,null,null,null,null,null,null,null,null,null,null,null,null,null,null,null,null,null,null,null,null,"ABEGIJKL","Elfenbeinküste",{"$f":"$CE$12","v":"Österreich"},"Katar","Südkorea",{"$f":"$CE$5","v":"Irak"},{"$f":"$BB$19","v":"Iran"},{"$f":"$CE$26","v":"Ghana"},{"$f":"$CE$19","v":"Usbekistan"}]
[null,null,null,null,null,null,null,null,null,null,null,null,null,null,null,null,null,null,null,null,null,null,null,null,null,null,null,null,null,null,null,null,null,null,null,null,null,null,null,null,null,null,null,null,null,null,null,null,null,null,null,null,null,null,null,null,null,null,null,null,null,null,null,null,null,null,null,null,null,null,null,null,null,null,null,null,null,null,null,null,null,null,null,null,null,null,null,null,null,null,null,null,"ABEHIJKL","Elfenbeinküste",{"$f":"$CE$12","v":"Österreich"},"Katar","Südkorea",{"$f":"$CE$5","v":"Irak"},{"$f":"$BB$26","v":"Saudi-Arabien"},{"$f":"$CE$26","v":"Ghana"},{"$f":"$CE$19","v":"Usbekistan"}]
[null,null,null,null,null,null,null,null,null,null,null,null,null,null,null,null,null,null,null,null,null,null,null,null,null,null,null,null,null,null,null,null,null,null,null,null,null,null,null,null,null,null,null,null,null,null,null,null,null,null,null,null,null,null,null,null,null,null,null,null,null,null,null,null,null,null,null,null,null,null,null,null,null,null,null,null,null,null,null,null,null,null,null,null,null,null,null,null,null,null,null,null,"ABFGHIJK",{"$f":"$BB$26","v":"Saudi-Arabien"},{"$f":"$CE$12","v":"Österreich"},"Katar",{"$f":"$BB$12","v":"Schweden"},{"$f":"$Y$5","v":"Südkorea"},{"$f":"$BB$19","v":"Iran"},{"$f":"$CE$5","v":"Irak"},{"$f":"$CE$19","v":"Usbekistan"}]
[null,null,null,null,null,null,null,null,null,null,null,null,null,null,null,null,null,null,null,null,null,null,null,null,null,null,null,null,null,null,null,null,null,null,null,null,null,null,null,null,null,null,null,null,null,null,null,null,null,null,null,null,null,null,null,null,null,null,null,null,null,null,null,null,null,null,null,null,null,null,null,null,null,null,null,null,null,null,null,null,null,null,null,null,null,null,null,null,null,null,null,null,"ABFGHIJL",{"$f":"$BB$26","v":"Saudi-Arabien"},{"$f":"$CE$12","v":"Österreich"},"Katar",{"$f":"$BB$12","v":"Schweden"},{"$f":"$Y$5","v":"Südkorea"},{"$f":"$BB$19","v":"Iran"},{"$f":"$CE$26","v":"Ghana"},{"$f":"$CE$5","v":"Irak"}]
[null,null,null,null,null,null,null,null,null,null,null,null,null,null,null,null,null,null,null,null,null,null,null,null,null,null,null,null,null,null,null,null,null,null,null,null,null,null,null,null,null,null,null,null,null,null,null,null,null,null,null,null,null,null,null,null,null,null,null,null,null,null,null,null,null,null,null,null,null,null,null,null,null,null,null,null,null,null,null,null,null,null,null,null,null,null,null,null,null,null,null,null,"ABFGHIKL",{"$f":"$BB$26","v":"Saudi-Arabien"},{"$f":"$BB$19","v":"Iran"},"Katar",{"$f":"$Y$5","v":"Südkorea"},{"$f":"$CE$5","v":"Irak"},{"$f":"$BB$12","v":"Schweden"},"Ghana",{"$f":"$CE$19","v":"Usbekistan"}]
[null,null,null,null,null,null,null,null,null,null,null,null,null,null,null,null,null,null,null,null,null,null,null,null,null,null,null,null,null,null,null,null,null,null,null,null,null,null,null,null,null,null,null,null,null,null,null,null,null,null,null,null,null,null,null,null,null,null,null,null,null,null,null,null,null,null,null,null,null,null,null,null,null,null,null,null,null,null,null,null,null,null,null,null,null,null,null,null,null,null,null,null,"ABFGHJKL",{"$f":"$BB$26","v":"Saudi-Arabien"},{"$f":"$CE$12","v":"Österreich"},"Katar",{"$f":"$BB$12","v":"Schweden"},{"$f":"$Y$5","v":"Südkorea"},{"$f":"$BB$19","v":"Iran"},"Ghana",{"$f":"$CE$19","v":"Usbekistan"}]
[null,null,null,null,null,null,null,null,null,null,null,null,null,null,null,null,null,null,null,null,null,null,null,null,null,null,null,null,null,null,null,null,null,null,null,null,null,null,null,null,null,null,null,null,null,null,null,null,null,null,null,null,null,null,null,null,null,null,null,null,null,null,null,null,null,null,null,null,null,null,null,null,null,null,null,null,null,null,null,null,null,null,null,null,null,null,null,null,null,null,null,null,"ABFGIJKL",{"$f":"$CE$5","v":"Irak"},{"$f":"$CE$12","v":"Österreich"},"Katar",{"$f":"$BB$12","v":"Schweden"},{"$f":"$Y$5","v":"Südkorea"},{"$f":"$BB$19","v":"Iran"},"Ghana",{"$f":"$CE$19","v":"Usbekistan"}]
[null,null,null,null,null,null,null,null,null,null,null,null,null,null,null,null,null,null,null,null,null,null,null,null,null,null,null,null,null,null,null,null,null,null,null,null,null,null,null,null,null,null,null,null,null,null,null,null,null,null,null,null,null,null,null,null,null,null,null,null,null,null,null,null,null,null,null,null,null,null,null,null,null,null,null,null,null,null,null,null,null,null,null,null,null,null,null,null,null,null,null,null,"ABFHIJKL",{"$f":"$BB$26","v":"Saudi-Arabien"},{"$f":"$CE$12","v":"Österreich"},"Katar",{"$f":"$Y$5","v":"Südkorea"},{"$f":"$CE$5","v":"Irak"},{"$f":"$BB$12","v":"Schweden"},"Ghana",{"$f":"$CE$19","v":"Usbekistan"}]
[null,null,null,null,null,null,null,null,null,null,null,null,null,null,null,null,null,null,null,null,null,null,null,null,null,null,null,null,null,null,null,null,null,null,null,null,null,null,null,null,null,null,null,null,null,null,null,null,null,null,null,null,null,null,null,null,null,null,null,null,null,null,null,null,null,null,null,null,null,null,null,null,null,null,null,null,null,null,null,null,null,null,null,null,null,null,null,null,null,null,null,null,"ABGHIJKL","Saudi-Arabien",{"$f":"$CE$12","v":"Österreich"},"Katar",{"$f":"$Y$5","v":"Südkorea"},{"$f":"$CE$5","v":"Irak"},{"$f":"$BB$19","v":"Iran"},"Ghana",{"$f":"$CE$19","v":"Usbekistan"}]
[null,null,null,null,null,null,null,null,null,null,null,null,null,null,null,null,null,null,null,null,null,null,null,null,null,null,null,null,null,null,null,null,null,null,null,null,null,null,null,null,null,null,null,null,null,null,null,null,null,null,null,null,null,null,null,null,null,null,null,null,null,null,null,null,null,null,null,null,null,null,null,null,null,null,null,null,null,null,null,null,null,null,null,null,null,null,null,null,null,null,null,null,"ACDEFGHI","Saudi-Arabien",{"$f":"$BB$19","v":"Iran"},{"$f":"$BB$5","v":"Elfenbeinküste"},{"$f":"$Y$19","v":"Haiti"},{"$f":"$Y$5","v":"Südkorea"},{"$f":"$BB$12","v":"Schweden"},{"$f":"$Y$26","v":"Australien"},{"$f":"$CE$5","v":"Irak"}]
[null,null,null,null,null,null,null,null,null,null,null,null,null,null,null,null,null,null,null,null,null,null,null,null,null,null,null,null,null,null,null,null,null,null,null,null,null,null,null,null,null,null,null,null,null,null,null,null,null,null,null,null,null,null,null,null,null,null,null,null,null,null,null,null,null,null,null,null,null,null,null,null,null,null,null,null,null,null,null,null,null,null,null,null,null,null,null,null,null,null,null,null,"ACDEFGHJ","Saudi-Arabien","Iran",{"$f":"$CE$12","v":"Österreich"},{"$f":"$Y$19","v":"Haiti"},"Südkorea",{"$f":"$BB$12","v":"Schweden"},{"$f":"$Y$26","v":"Australien"},{"$f":"$BB$5","v":"Elfenbeinküste"}]
[null,null,null,null,null,null,null,null,null,null,null,null,null,null,null,null,null,null,null,null,null,null,null,null,null,null,null,null,null,null,null,null,null,null,null,null,null,null,null,null,null,null,null,null,null,null,null,null,null,null,null,null,null,null,null,null,null,null,null,null,null,null,null,null,null,null,null,null,null,null,null,null,null,null,null,null,null,null,null,null,null,null,null,null,null,null,null,null,null,null,null,null,"ACDEFGHK","Saudi-Arabien","Iran",{"$f":"$BB$5","v":"Elfenbeinküste"},{"$f":"$Y$19","v":"Haiti"},"Südkorea",{"$f":"$BB$12","v":"Schweden"},{"$f":"$Y$26","v":"Australien"},{"$f":"$CE$19","v":"Usbekistan"}]
[null,null,null,null,null,null,null,null,null,null,null,null,null,null,null,null,null,null,null,null,null,null,null,null,null,null,null,null,null,null,null,null,null,null,null,null,null,null,null,null,null,null,null,null,null,null,null,null,null,null,null,null,null,null,null,null,null,null,null,null,null,null,null,null,null,null,null,null,null,null,null,null,null,null,null,null,null,null,null,null,null,null,null,null,null,null,null,null,null,null,null,null,"ACDEFGHL","Saudi-Arabien","Iran",{"$f":"$BB$12","v":"Schweden"},{"$f":"$Y$19","v":"Haiti"},"Südkorea",{"$f":"$Y$26","v":"Australien"},{"$f":"$CE$26","v":"Ghana"},{"$f":"$BB$5","v":"Elfenbeinküste"}]
[null,null,null,null,null,null,null,null,null,null,null,null,null,null,null,null,null,null,null,null,null,null,null,null,null,null,null,null,null,null,null,null,null,null,null,null,null,null,null,null,null,null,null,null,null,null,null,null,null,null,null,null,null,null,null,null,null,null,null,null,null,null,null,null,null,null,null,null,null,null,null,null,null,null,null,null,null,null,null,null,null,null,null,null,null,null,null,null,null,null,null,null,"ACDEFGIJ",{"$f":"$Y$19","v":"Haiti"},"Iran",{"$f":"$CE$12","v":"Österreich"},{"$f":"$Y$26","v":"Australien"},"Südkorea",{"$f":"$BB$12","v":"Schweden"},{"$f":"$BB$5","v":"Elfenbeinküste"},{"$f":"$CE$5","v":"Irak"}]
[null,null,null,null,null,null,null,null,null,null,null,null,null,null,null,null,null,null,null,null,null,null,null,null,null,null,null,null,null,null,null,null,null,null,null,null,null,null,null,null,null,null,null,null,null,null,null,null,null,null,null,null,null,null,null,null,null,null,null,null,null,null,null,null,null,null,null,null,null,null,null,null,null,null,null,null,null,null,null,null,null,null,null,null,null,null,null,null,null,null,null,null,"ACDEFGIK","Haiti","Iran",{"$f":"$BB$5","v":"Elfenbeinküste"},"Australien","Südkorea","Schweden",{"$f":"$CE$5","v":"Irak"},{"$f":"$CE$19","v":"Usbekistan"}]
[null,null,null,null,null,null,null,null,null,null,null,null,null,null,null,null,null,null,null,null,null,null,null,null,null,null,null,null,null,null,null,null,null,null,null,null,null,null,null,null,null,null,null,null,null,null,null,null,null,null,null,null,null,null,null,null,null,null,null,null,null,null,null,null,null,null,null,null,null,null,null,null,null,null,null,null,null,null,null,null,null,null,null,null,null,null,null,null,null,null,null,null,"ACDEFGIL","Haiti","Iran",{"$f":"$BB$5","v":"Elfenbeinküste"},"Australien","Südkorea","Schweden",{"$f":"$CE$26","v":"Ghana"},{"$f":"$CE$5","v":"Irak"}]
[null,null,null,null,null,null,null,null,null,null,null,null,null,null,null,null,null,null,null,null,null,null,null,null,null,null,null,null,null,null,null,null,null,null,null,null,null,null,null,null,null,null,null,null,null,null,null,null,null,null,null,null,null,null,null,null,null,null,null,null,null,null,null,null,null,null,null,null,null,null,null,null,null,null,null,null,null,null,null,null,null,null,null,null,null,null,null,null,null,null,null,null,"ACDEFGJK","Haiti","Iran",{"$f":"$CE$12","v":"Österreich"},"Australien","Südkorea","Schweden",{"$f":"$BB$5","v":"Elfenbeinküste"},{"$f":"$CE$19","v":"Usbekistan"}]
[null,null,null,null,null,null,null,null,null,null,null,null,null,null,null,null,null,null,null,null,null,null,null,null,null,null,null,null,null,null,null,null,null,null,null,null,null,null,null,null,null,null,null,null,null,null,null,null,null,null,null,null,null,null,null,null,null,null,null,null,null,null,null,null,null,null,null,null,null,null,null,null,null,null,null,null,null,null,null,null,null,null,null,null,null,null,null,null,null,null,null,null,"ACDEFGJL","Haiti","Iran",{"$f":"$CE$12","v":"Österreich"},"Australien","Südkorea","Schweden",{"$f":"$CE$26","v":"Ghana"},{"$f":"$BB$5","v":"Elfenbeinküste"}]
[null,null,null,null,null,null,null,null,null,null,null,null,null,null,null,null,null,null,null,null,null,null,null,null,null,null,null,null,null,null,null,null,null,null,null,null,null,null,null,null,null,null,null,null,null,null,null,null,null,null,null,null,null,null,null,null,null,null,null,null,null,null,null,null,null,null,null,null,null,null,null,null,null,null,null,null,null,null,null,null,null,null,null,null,null,null,null,null,null,null,null,null,"ACDEFGKL","Haiti","Iran",{"$f":"$BB$5","v":"Elfenbeinküste"},"Australien","Südkorea","Schweden",{"$f":"$CE$26","v":"Ghana"},{"$f":"$CE$19","v":"Usbekistan"}]
[null,null,null,null,null,null,null,null,null,null,null,null,null,null,null,null,null,null,null,null,null,null,null,null,null,null,null,null,null,null,null,null,null,null,null,null,null,null,null,null,null,null,null,null,null,null,null,null,null,null,null,null,null,null,null,null,null,null,null,null,null,null,null,null,null,null,null,null,null,null,null,null,null,null,null,null,null,null,null,null,null,null,null,null,null,null,null,null,null,null,null,null,"ACDEFHIJ",{"$f":"$BB$26","v":"Saudi-Arabien"},{"$f":"$CE$12","v":"Österreich"},{"$f":"$BB$5","v":"Elfenbeinküste"},{"$f":"$Y$19","v":"Haiti"},"Südkorea","Schweden",{"$f":"$Y$26","v":"Australien"},{"$f":"$CE$5","v":"Irak"}]
[null,null,null,null,null,null,null,null,null,null,null,null,null,null,null,null,null,null,null,null,null,null,null,null,null,null,null,null,null,null,null,null,null,null,null,null,null,null,null,null,null,null,null,null,null,null,null,null,null,null,null,null,null,null,null,null,null,null,null,null,null,null,null,null,null,null,null,null,null,null,null,null,null,null,null,null,null,null,null,null,null,null,null,null,null,null,null,null,null,null,null,null,"ACDEFHIK","Saudi-Arabien",{"$f":"$BB$5","v":"Elfenbeinküste"},{"$f":"$BB$12","v":"Schweden"},"Haiti","Südkorea",{"$f":"$Y$26","v":"Australien"},{"$f":"$CE$5","v":"Irak"},{"$f":"$CE$19","v":"Usbekistan"}]
[null,null,null,null,null,null,null,null,null,null,null,null,null,null,null,null,null,null,null,null,null,null,null,null,null,null,null,null,null,null,null,null,null,null,null,null,null,null,null,null,null,null,null,null,null,null,null,null,null,null,null,null,null,null,null,null,null,null,null,null,null,null,null,null,null,null,null,null,null,null,null,null,null,null,null,null,null,null,null,null,null,null,null,null,null,null,null,null,null,null,null,null,"ACDEFHIL","Saudi-Arabien",{"$f":"$BB$5","v":"Elfenbeinküste"},{"$f":"$BB$12","v":"Schweden"},"Haiti","Südkorea",{"$f":"$Y$26","v":"Australien"},{"$f":"$CE$26","v":"Ghana"},{"$f":"$CE$5","v":"Irak"}]
[null,null,null,null,null,null,null,null,null,null,null,null,null,null,null,null,null,null,null,null,null,null,null,null,null,null,null,null,null,null,null,null,null,null,null,null,null,null,null,null,null,null,null,null,null,null,null,null,null,null,null,null,null,null,null,null,null,null,null,null,null,null,null,null,null,null,null,null,null,null,null,null,null,null,null,null,null,null,null,null,null,null,null,null,null,null,null,null,null,null,null,null,"ACDEFHJK","Saudi-Arabien",{"$f":"$CE$12","v":"Österreich"},{"$f":"$BB$5","v":"Elfenbeinküste"},"Haiti","Südkorea",{"$f":"$BB$12","v":"Schweden"},{"$f":"$Y$26","v":"Australien"},{"$f":"$CE$19","v":"Usbekistan"}]
[null,null,null,null,null,null,null,null,null,null,null,null,null,null,null,null,null,null,null,null,null,null,null,null,null,null,null,null,null,null,null,null,null,null,null,null,null,null,null,null,null,null,null,null,null,null,null,null,null,null,null,null,null,null,null,null,null,null,null,null,null,null,null,null,null,null,null,null,null,null,null,null,null,null,null,null,null,null,null,null,null,null,null,null,null,null,null,null,null,null,null,null,"ACDEFHJL","Saudi-Arabien",{"$f":"$CE$12","v":"Österreich"},{"$f":"$BB$12","v":"Schweden"},"Haiti","Südkorea",{"$f":"$Y$26","v":"Australien"},{"$f":"$CE$26","v":"Ghana"},{"$f":"$BB$5","v":"Elfenbeinküste"}]
[null,null,null,null,null,null,null,null,null,null,null,null,null,null,null,null,null,null,null,null,null,null,null,null,null,null,null,null,null,null,null,null,null,null,null,null,null,null,null,null,null,null,null,null,null,null,null,null,null,null,null,null,null,null,null,null,null,null,null,null,null,null,null,null,null,null,null,null,null,null,null,null,null,null,null,null,null,null,null,null,null,null,null,null,null,null,null,null,null,null,null,null,"ACDEFHKL","Saudi-Arabien",{"$f":"$BB$5","v":"Elfenbeinküste"},{"$f":"$BB$12","v":"Schweden"},"Haiti","Südkorea",{"$f":"$Y$26","v":"Australien"},{"$f":"$CE$26","v":"Ghana"},{"$f":"$CE$19","v":"Usbekistan"}]
[null,null,null,null,null,null,null,null,null,null,null,null,null,null,null,null,null,null,null,null,null,null,null,null,null,null,null,null,null,null,null,null,null,null,null,null,null,null,null,null,null,null,null,null,null,null,null,null,null,null,null,null,null,null,null,null,null,null,null,null,null,null,null,null,null,null,null,null,null,null,null,null,null,null,null,null,null,null,null,null,null,null,null,null,null,null,null,null,null,null,null,null,"ACDEFIJK",{"$f":"$Y$19","v":"Haiti"},{"$f":"$CE$12","v":"Österreich"},{"$f":"$BB$5","v":"Elfenbeinküste"},{"$f":"$Y$26","v":"Australien"},"Südkorea",{"$f":"$BB$12","v":"Schweden"},{"$f":"$CE$5","v":"Irak"},{"$f":"$CE$19","v":"Usbekistan"}]
[null,null,null,null,null,null,null,null,null,null,null,null,null,null,null,null,null,null,null,null,null,null,null,null,null,null,null,null,null,null,null,null,null,null,null,null,null,null,null,null,null,null,null,null,null,null,null,null,null,null,null,null,null,null,null,null,null,null,null,null,null,null,null,null,null,null,null,null,null,null,null,null,null,null,null,null,null,null,null,null,null,null,null,null,null,null,null,null,null,null,null,null,"ACDEFIJL",{"$f":"$Y$19","v":"Haiti"},{"$f":"$CE$12","v":"Österreich"},{"$f":"$BB$5","v":"Elfenbeinküste"},{"$f":"$Y$26","v":"Australien"},"Südkorea",{"$f":"$BB$12","v":"Schweden"},{"$f":"$CE$26","v":"Ghana"},{"$f":"$CE$5","v":"Irak"}]
[null,null,null,null,null,null,null,null,null,null,null,null,null,null,null,null,null,null,null,null,null,null,null,null,null,null,null,null,null,null,null,null,null,null,null,null,null,null,null,null,null,null,null,null,null,null,null,null,null,null,null,null,null,null,null,null,null,null,null,null,null,null,null,null,null,null,null,null,null,null,null,null,null,null,null,null,null,null,null,null,null,null,null,null,null,null,null,null,null,null,null,null,"ACDEFIKL",{"$f":"$Y$19","v":"Haiti"},{"$f":"$BB$5","v":"Elfenbeinküste"},{"$f":"$CE$5","v":"Irak"},{"$f":"$Y$26","v":"Australien"},"Südkorea",{"$f":"$BB$12","v":"Schweden"},{"$f":"$CE$26","v":"Ghana"},{"$f":"$CE$19","v":"Usbekistan"}]
[null,null,null,null,null,null,null,null,null,null,null,null,null,null,null,null,null,null,null,null,null,null,null,null,null,null,null,null,null,null,null,null,null,null,null,null,null,null,null,null,null,null,null,null,null,null,null,null,null,null,null,null,null,null,null,null,null,null,null,null,null,null,null,null,null,null,null,null,null,null,null,null,null,null,null,null,null,null,null,null,null,null,null,null,null,null,null,null,null,null,null,null,"ACDEFJKL",{"$f":"$Y$19","v":"Haiti"},{"$f":"$CE$12","v":"Österreich"},{"$f":"$BB$5","v":"Elfenbeinküste"},{"$f":"$Y$26","v":"Australien"},"Südkorea",{"$f":"$BB$12","v":"Schweden"},{"$f":"$CE$26","v":"Ghana"},{"$f":"$CE$19","v":"Usbekistan"}]
[null,null,null,null,null,null,null,null,null,null,null,null,null,null,null,null,null,null,null,null,null,null,null,null,null,null,null,null,null,null,null,null,null,null,null,null,null,null,null,null,null,null,null,null,null,null,null,null,null,null,null,null,null,null,null,null,null,null,null,null,null,null,null,null,null,null,null,null,null,null,null,null,null,null,null,null,null,null,null,null,null,null,null,null,null,null,null,null,null,null,null,null,"ACDEGHIJ",{"$f":"$BB$26","v":"Saudi-Arabien"},{"$f":"$BB$19","v":"Iran"},{"$f":"$CE$12","v":"Österreich"},{"$f":"$Y$19","v":"Haiti"},"Südkorea",{"$f":"$Y$26","v":"Australien"},{"$f":"$BB$5","v":"Elfenbeinküste"},{"$f":"$CE$5","v":"Irak"}]
[null,null,null,null,null,null,null,null,null,null,null,null,null,null,null,null,null,null,null,null,null,null,null,null,null,null,null,null,null,null,null,null,null,null,null,null,null,null,null,null,null,null,null,null,null,null,null,null,null,null,null,null,null,null,null,null,null,null,null,null,null,null,null,null,null,null,null,null,null,null,null,null,null,null,null,null,null,null,null,null,null,null,null,null,null,null,null,null,null,null,null,null,"ACDEGHIK","Saudi-Arabien","Iran",{"$f":"$BB$5","v":"Elfenbeinküste"},"Haiti","Südkorea","Australien",{"$f":"$CE$5","v":"Irak"},{"$f":"$CE$19","v":"Usbekistan"}]
[null,null,null,null,null,null,null,null,null,null,null,null,null,null,null,null,null,null,null,null,null,null,null,null,null,null,null,null,null,null,null,null,null,null,null,null,null,null,null,null,null,null,null,null,null,null,null,null,null,null,null,null,null,null,null,null,null,null,null,null,null,null,null,null,null,null,null,null,null,null,null,null,null,null,null,null,null,null,null,null,null,null,null,null,null,null,null,null,null,null,null,null,"ACDEGHIL","Saudi-Arabien","Iran",{"$f":"$BB$5","v":"Elfenbeinküste"},"Haiti","Südkorea","Australien",{"$f":"$CE$26","v":"Ghana"},{"$f":"$CE$5","v":"Irak"}]
[null,null,null,null,null,null,null,null,null,null,null,null,null,null,null,null,null,null,null,null,null,null,null,null,null,null,null,null,null,null,null,null,null,null,null,null,null,null,null,null,null,null,null,null,null,null,null,null,null,null,null,null,null,null,null,null,null,null,null,null,null,null,null,null,null,null,null,null,null,null,null,null,null,null,null,null,null,null,null,null,null,null,null,null,null,null,null,null,null,null,null,null,"ACDEGHJK","Saudi-Arabien","Iran",{"$f":"$CE$12","v":"Österreich"},"Haiti","Südkorea","Australien",{"$f":"$BB$5","v":"Elfenbeinküste"},{"$f":"$CE$19","v":"Usbekistan"}]
[null,null,null,null,null,null,null,null,null,null,null,null,null,null,null,null,null,null,null,null,null,null,null,null,null,null,null,null,null,null,null,null,null,null,null,null,null,null,null,null,null,null,null,null,null,null,null,null,null,null,null,null,null,null,null,null,null,null,null,null,null,null,null,null,null,null,null,null,null,null,null,null,null,null,null,null,null,null,null,null,null,null,null,null,null,null,null,null,null,null,null,null,"ACDEGHJL","Saudi-Arabien","Iran",{"$f":"$CE$12","v":"Österreich"},"Haiti","Südkorea","Australien",{"$f":"$CE$26","v":"Ghana"},{"$f":"$BB$5","v":"Elfenbeinküste"}]
[null,null,null,null,null,null,null,null,null,null,null,null,null,null,null,null,null,null,null,null,null,null,null,null,null,null,null,null,null,null,null,null,null,null,null,null,null,null,null,null,null,null,null,null,null,null,null,null,null,null,null,null,null,null,null,null,null,null,null,null,null,null,null,null,null,null,null,null,null,null,null,null,null,null,null,null,null,null,null,null,null,null,null,null,null,null,null,null,null,null,null,null,"ACDEGHKL","Saudi-Arabien","Iran",{"$f":"$BB$5","v":"Elfenbeinküste"},"Haiti","Südkorea","Australien",{"$f":"$CE$26","v":"Ghana"},{"$f":"$CE$19","v":"Usbekistan"}]
[null,null,null,null,null,null,null,null,null,null,null,null,null,null,null,null,null,null,null,null,null,null,null,null,null,null,null,null,null,null,null,null,null,null,null,null,null,null,null,null,null,null,null,null,null,null,null,null,null,null,null,null,null,null,null,null,null,null,null,null,null,null,null,null,null,null,null,null,null,null,null,null,null,null,null,null,null,null,null,null,null,null,null,null,null,null,null,null,null,null,null,null,"ACDEGIJK",{"$f":"$BB$5","v":"Elfenbeinküste"},"Iran",{"$f":"$CE$12","v":"Österreich"},"Haiti","Südkorea","Australien",{"$f":"$CE$5","v":"Irak"},{"$f":"$CE$19","v":"Usbekistan"}]
[null,null,null,null,null,null,null,null,null,null,null,null,null,null,null,null,null,null,null,null,null,null,null,null,null,null,null,null,null,null,null,null,null,null,null,null,null,null,null,null,null,null,null,null,null,null,null,null,null,null,null,null,null,null,null,null,null,null,null,null,null,null,null,null,null,null,null,null,null,null,null,null,null,null,null,null,null,null,null,null,null,null,null,null,null,null,null,null,null,null,null,null,"ACDEGIJL",{"$f":"$BB$5","v":"Elfenbeinküste"},"Iran",{"$f":"$CE$12","v":"Österreich"},"Haiti","Südkorea","Australien",{"$f":"$CE$26","v":"Ghana"},{"$f":"$CE$5","v":"Irak"}]
[null,null,null,null,null,null,null,null,null,null,null,null,null,null,null,null,null,null,null,null,null,null,null,null,null,null,null,null,null,null,null,null,null,null,null,null,null,null,null,null,null,null,null,null,null,null,null,null,null,null,null,null,null,null,null,null,null,null,null,null,null,null,null,null,null,null,null,null,null,null,null,null,null,null,null,null,null,null,null,null,null,null,null,null,null,null,null,null,null,null,null,null,"ACDEGIKL",{"$f":"$BB$5","v":"Elfenbeinküste"},"Iran",{"$f":"$CE$5","v":"Irak"},"Haiti","Südkorea","Australien",{"$f":"$CE$26","v":"Ghana"},{"$f":"$CE$19","v":"Usbekistan"}]
[null,null,null,null,null,null,null,null,null,null,null,null,null,null,null,null,null,null,null,null,null,null,null,null,null,null,null,null,null,null,null,null,null,null,null,null,null,null,null,null,null,null,null,null,null,null,null,null,null,null,null,null,null,null,null,null,null,null,null,null,null,null,null,null,null,null,null,null,null,null,null,null,null,null,null,null,null,null,null,null,null,null,null,null,null,null,null,null,null,null,null,null,"ACDEGJKL",{"$f":"$BB$5","v":"Elfenbeinküste"},"Iran",{"$f":"$CE$12","v":"Österreich"},"Haiti","Südkorea","Australien",{"$f":"$CE$26","v":"Ghana"},{"$f":"$CE$19","v":"Usbekistan"}]
[null,null,null,null,null,null,null,null,null,null,null,null,null,null,null,null,null,null,null,null,null,null,null,null,null,null,null,null,null,null,null,null,null,null,null,null,null,null,null,null,null,null,null,null,null,null,null,null,null,null,null,null,null,null,null,null,null,null,null,null,null,null,null,null,null,null,null,null,null,null,null,null,null,null,null,null,null,null,null,null,null,null,null,null,null,null,null,null,null,null,null,null,"ACDEHIJK",{"$f":"$BB$26","v":"Saudi-Arabien"},{"$f":"$CE$12","v":"Österreich"},{"$f":"$BB$5","v":"Elfenbeinküste"},"Haiti","Südkorea","Australien",{"$f":"$CE$5","v":"Irak"},{"$f":"$CE$19","v":"Usbekistan"}]
[null,null,null,null,null,null,null,null,null,null,null,null,null,null,null,null,null,null,null,null,null,null,null,null,null,null,null,null,null,null,null,null,null,null,null,null,null,null,null,null,null,null,null,null,null,null,null,null,null,null,null,null,null,null,null,null,null,null,null,null,null,null,null,null,null,null,null,null,null,null,null,null,null,null,null,null,null,null,null,null,null,null,null,null,null,null,null,null,null,null,null,null,"ACDEHIJL",{"$f":"$BB$26","v":"Saudi-Arabien"},{"$f":"$CE$12","v":"Österreich"},{"$f":"$BB$5","v":"Elfenbeinküste"},"Haiti","Südkorea","Australien",{"$f":"$CE$26","v":"Ghana"},{"$f":"$CE$5","v":"Irak"}]
[null,null,null,null,null,null,null,null,null,null,null,null,null,null,null,null,null,null,null,null,null,null,null,null,null,null,null,null,null,null,null,null,null,null,null,null,null,null,null,null,null,null,null,null,null,null,null,null,null,null,null,null,null,null,null,null,null,null,null,null,null,null,null,null,null,null,null,null,null,null,null,null,null,null,null,null,null,null,null,null,null,null,null,null,null,null,null,null,null,null,null,null,"ACDEHIKL",{"$f":"$BB$26","v":"Saudi-Arabien"},{"$f":"$BB$5","v":"Elfenbeinküste"},{"$f":"$CE$5","v":"Irak"},"Haiti",{"$f":"$Y$5","v":"Südkorea"},"Australien",{"$f":"$CE$26","v":"Ghana"},{"$f":"$CE$19","v":"Usbekistan"}]
[null,null,null,null,null,null,null,null,null,null,null,null,null,null,null,null,null,null,null,null,null,null,null,null,null,null,null,null,null,null,null,null,null,null,null,null,null,null,null,null,null,null,null,null,null,null,null,null,null,null,null,null,null,null,null,null,null,null,null,null,null,null,null,null,null,null,null,null,null,null,null,null,null,null,null,null,null,null,null,null,null,null,null,null,null,null,null,null,null,null,null,null,"ACDEHJKL",{"$f":"$BB$26","v":"Saudi-Arabien"},{"$f":"$CE$12","v":"Österreich"},{"$f":"$BB$5","v":"Elfenbeinküste"},"Haiti","Südkorea","Australien",{"$f":"$CE$26","v":"Ghana"},{"$f":"$CE$19","v":"Usbekistan"}]
[null,null,null,null,null,null,null,null,null,null,null,null,null,null,null,null,null,null,null,null,null,null,null,null,null,null,null,null,null,null,null,null,null,null,null,null,null,null,null,null,null,null,null,null,null,null,null,null,null,null,null,null,null,null,null,null,null,null,null,null,null,null,null,null,null,null,null,null,null,null,null,null,null,null,null,null,null,null,null,null,null,null,null,null,null,null,null,null,null,null,null,null,"ACDEIJKL",{"$f":"$BB$5","v":"Elfenbeinküste"},{"$f":"$CE$12","v":"Österreich"},{"$f":"$CE$5","v":"Irak"},"Haiti","Südkorea","Australien",{"$f":"$CE$26","v":"Ghana"},{"$f":"$CE$19","v":"Usbekistan"}]
[null,null,null,null,null,null,null,null,null,null,null,null,null,null,null,null,null,null,null,null,null,null,null,null,null,null,null,null,null,null,null,null,null,null,null,null,null,null,null,null,null,null,null,null,null,null,null,null,null,null,null,null,null,null,null,null,null,null,null,null,null,null,null,null,null,null,null,null,null,null,null,null,null,null,null,null,null,null,null,null,null,null,null,null,null,null,null,null,null,null,null,null,"ACDFGHIJ",{"$f":"$BB$26","v":"Saudi-Arabien"},{"$f":"$BB$19","v":"Iran"},{"$f":"$CE$12","v":"Österreich"},"Haiti","Südkorea",{"$f":"$BB$12","v":"Schweden"},{"$f":"$Y$26","v":"Australien"},{"$f":"$CE$5","v":"Irak"}]
[null,null,null,null,null,null,null,null,null,null,null,null,null,null,null,null,null,null,null,null,null,null,null,null,null,null,null,null,null,null,null,null,null,null,null,null,null,null,null,null,null,null,null,null,null,null,null,null,null,null,null,null,null,null,null,null,null,null,null,null,null,null,null,null,null,null,null,null,null,null,null,null,null,null,null,null,null,null,null,null,null,null,null,null,null,null,null,null,null,null,null,null,"ACDFGHIK",{"$f":"$BB$26","v":"Saudi-Arabien"},"Iran",{"$f":"$BB$12","v":"Schweden"},"Haiti","Südkorea",{"$f":"$Y$26","v":"Australien"},{"$f":"$CE$5","v":"Irak"},{"$f":"$CE$19","v":"Usbekistan"}]
[null,null,null,null,null,null,null,null,null,null,null,null,null,null,null,null,null,null,null,null,null,null,null,null,null,null,null,null,null,null,null,null,null,null,null,null,null,null,null,null,null,null,null,null,null,null,null,null,null,null,null,null,null,null,null,null,null,null,null,null,null,null,null,null,null,null,null,null,null,null,null,null,null,null,null,null,null,null,null,null,null,null,null,null,null,null,null,null,null,null,null,null,"ACDFGHIL",{"$f":"$BB$26","v":"Saudi-Arabien"},"Iran",{"$f":"$BB$12","v":"Schweden"},"Haiti","Südkorea",{"$f":"$Y$26","v":"Australien"},{"$f":"$CE$26","v":"Ghana"},{"$f":"$CE$5","v":"Irak"}]
[null,null,null,null,null,null,null,null,null,null,null,null,null,null,null,null,null,null,null,null,null,null,null,null,null,null,null,null,null,null,null,null,null,null,null,null,null,null,null,null,null,null,null,null,null,null,null,null,null,null,null,null,null,null,null,null,null,null,null,null,null,null,null,null,null,null,null,null,null,null,null,null,null,null,null,null,null,null,null,null,null,null,null,null,null,null,null,null,null,null,null,null,"ACDFGHJK",{"$f":"$BB$26","v":"Saudi-Arabien"},"Iran",{"$f":"$CE$12","v":"Österreich"},"Haiti","Südkorea",{"$f":"$BB$12","v":"Schweden"},{"$f":"$Y$26","v":"Australien"},{"$f":"$CE$19","v":"Usbekistan"}]
[null,null,null,null,null,null,null,null,null,null,null,null,null,null,null,null,null,null,null,null,null,null,null,null,null,null,null,null,null,null,null,null,null,null,null,null,null,null,null,null,null,null,null,null,null,null,null,null,null,null,null,null,null,null,null,null,null,null,null,null,null,null,null,null,null,null,null,null,null,null,null,null,null,null,null,null,null,null,null,null,null,null,null,null,null,null,null,null,null,null,null,null,"ACDFGHJL",{"$f":"$Y$19","v":"Haiti"},"Iran",{"$f":"$CE$12","v":"Österreich"},{"$f":"$Y$26","v":"Australien"},"Südkorea",{"$f":"$BB$12","v":"Schweden"},{"$f":"$CE$26","v":"Ghana"},{"$f":"$BB$26","v":"Saudi-Arabien"}]
[null,null,null,null,null,null,null,null,null,null,null,null,null,null,null,null,null,null,null,null,null,null,null,null,null,null,null,null,null,null,null,null,null,null,null,null,null,null,null,null,null,null,null,null,null,null,null,null,null,null,null,null,null,null,null,null,null,null,null,null,null,null,null,null,null,null,null,null,null,null,null,null,null,null,null,null,null,null,null,null,null,null,null,null,null,null,null,null,null,null,null,null,"ACDFGHKL",{"$f":"$BB$26","v":"Saudi-Arabien"},"Iran",{"$f":"$BB$12","v":"Schweden"},{"$f":"$Y$19","v":"Haiti"},"Südkorea",{"$f":"$Y$26","v":"Australien"},{"$f":"$CE$26","v":"Ghana"},{"$f":"$CE$19","v":"Usbekistan"}]
[null,null,null,null,null,null,null,null,null,null,null,null,null,null,null,null,null,null,null,null,null,null,null,null,null,null,null,null,null,null,null,null,null,null,null,null,null,null,null,null,null,null,null,null,null,null,null,null,null,null,null,null,null,null,null,null,null,null,null,null,null,null,null,null,null,null,null,null,null,null,null,null,null,null,null,null,null,null,null,null,null,null,null,null,null,null,null,null,null,null,null,null,"ACDFGIJK",{"$f":"$Y$19","v":"Haiti"},"Iran",{"$f":"$CE$12","v":"Österreich"},{"$f":"$Y$26","v":"Australien"},"Südkorea",{"$f":"$BB$12","v":"Schweden"},{"$f":"$CE$5","v":"Irak"},{"$f":"$CE$19","v":"Usbekistan"}]
[null,null,null,null,null,null,null,null,null,null,null,null,null,null,null,null,null,null,null,null,null,null,null,null,null,null,null,null,null,null,null,null,null,null,null,null,null,null,null,null,null,null,null,null,null,null,null,null,null,null,null,null,null,null,null,null,null,null,null,null,null,null,null,null,null,null,null,null,null,null,null,null,null,null,null,null,null,null,null,null,null,null,null,null,null,null,null,null,null,null,null,null,"ACDFGIJL",{"$f":"$Y$19","v":"Haiti"},"Iran",{"$f":"$CE$12","v":"Österreich"},{"$f":"$Y$26","v":"Australien"},"Südkorea",{"$f":"$BB$12","v":"Schweden"},{"$f":"$CE$26","v":"Ghana"},{"$f":"$CE$5","v":"Irak"}]
[null,null,null,null,null,null,null,null,null,null,null,null,null,null,null,null,null,null,null,null,null,null,null,null,null,null,null,null,null,null,null,null,null,null,null,null,null,null,null,null,null,null,null,null,null,null,null,null,null,null,null,null,null,null,null,null,null,null,null,null,null,null,null,null,null,null,null,null,null,null,null,null,null,null,null,null,null,null,null,null,null,null,null,null,null,null,null,null,null,null,null,null,"ACDFGIKL",{"$f":"$Y$19","v":"Haiti"},"Iran",{"$f":"$CE$5","v":"Irak"},{"$f":"$Y$26","v":"Australien"},"Südkorea",{"$f":"$BB$12","v":"Schweden"},{"$f":"$CE$26","v":"Ghana"},{"$f":"$CE$19","v":"Usbekistan"}]
[null,null,null,null,null,null,null,null,null,null,null,null,null,null,null,null,null,null,null,null,null,null,null,null,null,null,null,null,null,null,null,null,null,null,null,null,null,null,null,null,null,null,null,null,null,null,null,null,null,null,null,null,null,null,null,null,null,null,null,null,null,null,null,null,null,null,null,null,null,null,null,null,null,null,null,null,null,null,null,null,null,null,null,null,null,null,null,null,null,null,null,null,"ACDFGJKL",{"$f":"$Y$19","v":"Haiti"},"Iran",{"$f":"$CE$12","v":"Österreich"},{"$f":"$Y$26","v":"Australien"},"Südkorea",{"$f":"$BB$12","v":"Schweden"},{"$f":"$CE$26","v":"Ghana"},{"$f":"$CE$19","v":"Usbekistan"}]
[null,null,null,null,null,null,null,null,null,null,null,null,null,null,null,null,null,null,null,null,null,null,null,null,null,null,null,null,null,null,null,null,null,null,null,null,null,null,null,null,null,null,null,null,null,null,null,null,null,null,null,null,null,null,null,null,null,null,null,null,null,null,null,null,null,null,null,null,null,null,null,null,null,null,null,null,null,null,null,null,null,null,null,null,null,null,null,null,null,null,null,null,"ACDFHIJK",{"$f":"$BB$26","v":"Saudi-Arabien"},{"$f":"$CE$12","v":"Österreich"},{"$f":"$BB$12","v":"Schweden"},{"$f":"$Y$19","v":"Haiti"},"Südkorea",{"$f":"$Y$26","v":"Australien"},{"$f":"$CE$5","v":"Irak"},{"$f":"$CE$19","v":"Usbekistan"}]
[null,null,null,null,null,null,null,null,null,null,null,null,null,null,null,null,null,null,null,null,null,null,null,null,null,null,null,null,null,null,null,null,null,null,null,null,null,null,null,null,null,null,null,null,null,null,null,null,null,null,null,null,null,null,null,null,null,null,null,null,null,null,null,null,null,null,null,null,null,null,null,null,null,null,null,null,null,null,null,null,null,null,null,null,null,null,null,null,null,null,null,null,"ACDFHIJL",{"$f":"$BB$26","v":"Saudi-Arabien"},{"$f":"$CE$12","v":"Österreich"},{"$f":"$BB$12","v":"Schweden"},{"$f":"$Y$19","v":"Haiti"},"Südkorea",{"$f":"$Y$26","v":"Australien"},{"$f":"$CE$26","v":"Ghana"},{"$f":"$CE$5","v":"Irak"}]
[null,null,null,null,null,null,null,null,null,null,null,null,null,null,null,null,null,null,null,null,null,null,null,null,null,null,null,null,null,null,null,null,null,null,null,null,null,null,null,null,null,null,null,null,null,null,null,null,null,null,null,null,null,null,null,null,null,null,null,null,null,null,null,null,null,null,null,null,null,null,null,null,null,null,null,null,null,null,null,null,null,null,null,null,null,null,null,null,null,null,null,null,"ACDFHIKL",{"$f":"$BB$26","v":"Saudi-Arabien"},{"$f":"$BB$12","v":"Schweden"},{"$f":"$CE$5","v":"Irak"},{"$f":"$Y$19","v":"Haiti"},"Südkorea",{"$f":"$Y$26","v":"Australien"},{"$f":"$CE$26","v":"Ghana"},{"$f":"$CE$19","v":"Usbekistan"}]
[null,null,null,null,null,null,null,null,null,null,null,null,null,null,null,null,null,null,null,null,null,null,null,null,null,null,null,null,null,null,null,null,null,null,null,null,null,null,null,null,null,null,null,null,null,null,null,null,null,null,null,null,null,null,null,null,null,null,null,null,null,null,null,null,null,null,null,null,null,null,null,null,null,null,null,null,null,null,null,null,null,null,null,null,null,null,null,null,null,null,null,null,"ACDFHJKL",{"$f":"$BB$26","v":"Saudi-Arabien"},{"$f":"$CE$12","v":"Österreich"},{"$f":"$BB$12","v":"Schweden"},{"$f":"$Y$19","v":"Haiti"},"Südkorea",{"$f":"$Y$26","v":"Australien"},{"$f":"$CE$26","v":"Ghana"},{"$f":"$CE$19","v":"Usbekistan"}]
[null,null,null,null,null,null,null,null,null,null,null,null,null,null,null,null,null,null,null,null,null,null,null,null,null,null,null,null,null,null,null,null,null,null,null,null,null,null,null,null,null,null,null,null,null,null,null,null,null,null,null,null,null,null,null,null,null,null,null,null,null,null,null,null,null,null,null,null,null,null,null,null,null,null,null,null,null,null,null,null,null,null,null,null,null,null,null,null,null,null,null,null,"ACDFIJKL",{"$f":"$Y$19","v":"Haiti"},{"$f":"$CE$12","v":"Österreich"},{"$f":"$CE$5","v":"Irak"},{"$f":"$Y$26","v":"Australien"},"Südkorea",{"$f":"$BB$12","v":"Schweden"},{"$f":"$CE$26","v":"Ghana"},{"$f":"$CE$19","v":"Usbekistan"}]
[null,null,null,null,null,null,null,null,null,null,null,null,null,null,null,null,null,null,null,null,null,null,null,null,null,null,null,null,null,null,null,null,null,null,null,null,null,null,null,null,null,null,null,null,null,null,null,null,null,null,null,null,null,null,null,null,null,null,null,null,null,null,null,null,null,null,null,null,null,null,null,null,null,null,null,null,null,null,null,null,null,null,null,null,null,null,null,null,null,null,null,null,"ACDGHIJK",{"$f":"$BB$26","v":"Saudi-Arabien"},{"$f":"$BB$19","v":"Iran"},{"$f":"$CE$12","v":"Österreich"},{"$f":"$Y$19","v":"Haiti"},"Südkorea",{"$f":"$Y$26","v":"Australien"},{"$f":"$CE$5","v":"Irak"},{"$f":"$CE$19","v":"Usbekistan"}]
[null,null,null,null,null,null,null,null,null,null,null,null,null,null,null,null,null,null,null,null,null,null,null,null,null,null,null,null,null,null,null,null,null,null,null,null,null,null,null,null,null,null,null,null,null,null,null,null,null,null,null,null,null,null,null,null,null,null,null,null,null,null,null,null,null,null,null,null,null,null,null,null,null,null,null,null,null,null,null,null,null,null,null,null,null,null,null,null,null,null,null,null,"ACDGHIJL",{"$f":"$BB$26","v":"Saudi-Arabien"},{"$f":"$BB$19","v":"Iran"},{"$f":"$CE$12","v":"Österreich"},"Haiti","Südkorea","Australien",{"$f":"$CE$26","v":"Ghana"},{"$f":"$CE$5","v":"Irak"}]
[null,null,null,null,null,null,null,null,null,null,null,null,null,null,null,null,null,null,null,null,null,null,null,null,null,null,null,null,null,null,null,null,null,null,null,null,null,null,null,null,null,null,null,null,null,null,null,null,null,null,null,null,null,null,null,null,null,null,null,null,null,null,null,null,null,null,null,null,null,null,null,null,null,null,null,null,null,null,null,null,null,null,null,null,null,null,null,null,null,null,null,null,"ACDGHIKL",{"$f":"$BB$26","v":"Saudi-Arabien"},{"$f":"$BB$19","v":"Iran"},{"$f":"$CE$5","v":"Irak"},"Haiti","Südkorea","Australien",{"$f":"$CE$26","v":"Ghana"},{"$f":"$CE$19","v":"Usbekistan"}]
[null,null,null,null,null,null,null,null,null,null,null,null,null,null,null,null,null,null,null,null,null,null,null,null,null,null,null,null,null,null,null,null,null,null,null,null,null,null,null,null,null,null,null,null,null,null,null,null,null,null,null,null,null,null,null,null,null,null,null,null,null,null,null,null,null,null,null,null,null,null,null,null,null,null,null,null,null,null,null,null,null,null,null,null,null,null,null,null,null,null,null,null,"ACDGHJKL",{"$f":"$BB$26","v":"Saudi-Arabien"},{"$f":"$BB$19","v":"Iran"},{"$f":"$CE$12","v":"Österreich"},"Haiti","Südkorea","Australien",{"$f":"$CE$26","v":"Ghana"},{"$f":"$CE$19","v":"Usbekistan"}]
[null,null,null,null,null,null,null,null,null,null,null,null,null,null,null,null,null,null,null,null,null,null,null,null,null,null,null,null,null,null,null,null,null,null,null,null,null,null,null,null,null,null,null,null,null,null,null,null,null,null,null,null,null,null,null,null,null,null,null,null,null,null,null,null,null,null,null,null,null,null,null,null,null,null,null,null,null,null,null,null,null,null,null,null,null,null,null,null,null,null,null,null,"ACDGIJKL",{"$f":"$CE$5","v":"Irak"},{"$f":"$BB$19","v":"Iran"},{"$f":"$CE$12","v":"Österreich"},"Haiti","Südkorea","Australien",{"$f":"$CE$26","v":"Ghana"},{"$f":"$CE$19","v":"Usbekistan"}]
[null,null,null,null,null,null,null,null,null,null,null,null,null,null,null,null,null,null,null,null,null,null,null,null,null,null,null,null,null,null,null,null,null,null,null,null,null,null,null,null,null,null,null,null,null,null,null,null,null,null,null,null,null,null,null,null,null,null,null,null,null,null,null,null,null,null,null,null,null,null,null,null,null,null,null,null,null,null,null,null,null,null,null,null,null,null,null,null,null,null,null,null,"ACDHIJKL",{"$f":"$BB$26","v":"Saudi-Arabien"},{"$f":"$CE$12","v":"Österreich"},{"$f":"$CE$5","v":"Irak"},"Haiti","Südkorea","Australien",{"$f":"$CE$26","v":"Ghana"},{"$f":"$CE$19","v":"Usbekistan"}]
[null,null,null,null,null,null,null,null,null,null,null,null,null,null,null,null,null,null,null,null,null,null,null,null,null,null,null,null,null,null,null,null,null,null,null,null,null,null,null,null,null,null,null,null,null,null,null,null,null,null,null,null,null,null,null,null,null,null,null,null,null,null,null,null,null,null,null,null,null,null,null,null,null,null,null,null,null,null,null,null,null,null,null,null,null,null,null,null,null,null,null,null,"ACEFGHIJ","Saudi-Arabien",{"$f":"$BB$19","v":"Iran"},{"$f":"$CE$12","v":"Österreich"},"Haiti","Südkorea",{"$f":"$BB$12","v":"Schweden"},{"$f":"$BB$5","v":"Elfenbeinküste"},{"$f":"$CE$5","v":"Irak"}]
[null,null,null,null,null,null,null,null,null,null,null,null,null,null,null,null,null,null,null,null,null,null,null,null,null,null,null,null,null,null,null,null,null,null,null,null,null,null,null,null,null,null,null,null,null,null,null,null,null,null,null,null,null,null,null,null,null,null,null,null,null,null,null,null,null,null,null,null,null,null,null,null,null,null,null,null,null,null,null,null,null,null,null,null,null,null,null,null,null,null,null,null,"ACEFGHIK","Saudi-Arabien","Iran",{"$f":"$BB$5","v":"Elfenbeinküste"},"Haiti","Südkorea","Schweden",{"$f":"$CE$5","v":"Irak"},{"$f":"$CE$19","v":"Usbekistan"}]
[null,null,null,null,null,null,null,null,null,null,null,null,null,null,null,null,null,null,null,null,null,null,null,null,null,null,null,null,null,null,null,null,null,null,null,null,null,null,null,null,null,null,null,null,null,null,null,null,null,null,null,null,null,null,null,null,null,null,null,null,null,null,null,null,null,null,null,null,null,null,null,null,null,null,null,null,null,null,null,null,null,null,null,null,null,null,null,null,null,null,null,null,"ACEFGHIL","Saudi-Arabien","Iran",{"$f":"$BB$5","v":"Elfenbeinküste"},"Haiti","Südkorea","Schweden",{"$f":"$CE$26","v":"Ghana"},{"$f":"$CE$5","v":"Irak"}]
[null,null,null,null,null,null,null,null,null,null,null,null,null,null,null,null,null,null,null,null,null,null,null,null,null,null,null,null,null,null,null,null,null,null,null,null,null,null,null,null,null,null,null,null,null,null,null,null,null,null,null,null,null,null,null,null,null,null,null,null,null,null,null,null,null,null,null,null,null,null,null,null,null,null,null,null,null,null,null,null,null,null,null,null,null,null,null,null,null,null,null,null,"ACEFGHJK","Saudi-Arabien","Iran",{"$f":"$CE$12","v":"Österreich"},"Haiti","Südkorea","Schweden",{"$f":"$BB$5","v":"Elfenbeinküste"},{"$f":"$CE$19","v":"Usbekistan"}]
[null,null,null,null,null,null,null,null,null,null,null,null,null,null,null,null,null,null,null,null,null,null,null,null,null,null,null,null,null,null,null,null,null,null,null,null,null,null,null,null,null,null,null,null,null,null,null,null,null,null,null,null,null,null,null,null,null,null,null,null,null,null,null,null,null,null,null,null,null,null,null,null,null,null,null,null,null,null,null,null,null,null,null,null,null,null,null,null,null,null,null,null,"ACEFGHJL","Saudi-Arabien","Iran",{"$f":"$CE$12","v":"Österreich"},"Haiti","Südkorea","Schweden",{"$f":"$CE$26","v":"Ghana"},{"$f":"$BB$5","v":"Elfenbeinküste"}]
[null,null,null,null,null,null,null,null,null,null,null,null,null,null,null,null,null,null,null,null,null,null,null,null,null,null,null,null,null,null,null,null,null,null,null,null,null,null,null,null,null,null,null,null,null,null,null,null,null,null,null,null,null,null,null,null,null,null,null,null,null,null,null,null,null,null,null,null,null,null,null,null,null,null,null,null,null,null,null,null,null,null,null,null,null,null,null,null,null,null,null,null,"ACEFGHKL","Saudi-Arabien","Iran",{"$f":"$BB$5","v":"Elfenbeinküste"},"Haiti","Südkorea","Schweden",{"$f":"$CE$26","v":"Ghana"},{"$f":"$CE$19","v":"Usbekistan"}]
[null,null,null,null,null,null,null,null,null,null,null,null,null,null,null,null,null,null,null,null,null,null,null,null,null,null,null,null,null,null,null,null,null,null,null,null,null,null,null,null,null,null,null,null,null,null,null,null,null,null,null,null,null,null,null,null,null,null,null,null,null,null,null,null,null,null,null,null,null,null,null,null,null,null,null,null,null,null,null,null,null,null,null,null,null,null,null,null,null,null,null,null,"ACEFGIJK",{"$f":"$BB$5","v":"Elfenbeinküste"},"Iran",{"$f":"$CE$12","v":"Österreich"},"Haiti","Südkorea","Schweden",{"$f":"$CE$5","v":"Irak"},{"$f":"$CE$19","v":"Usbekistan"}]
[null,null,null,null,null,null,null,null,null,null,null,null,null,null,null,null,null,null,null,null,null,null,null,null,null,null,null,null,null,null,null,null,null,null,null,null,null,null,null,null,null,null,null,null,null,null,null,null,null,null,null,null,null,null,null,null,null,null,null,null,null,null,null,null,null,null,null,null,null,null,null,null,null,null,null,null,null,null,null,null,null,null,null,null,null,null,null,null,null,null,null,null,"ACEFGIJL",{"$f":"$BB$5","v":"Elfenbeinküste"},"Iran",{"$f":"$CE$12","v":"Österreich"},"Haiti","Südkorea","Schweden",{"$f":"$CE$26","v":"Ghana"},{"$f":"$CE$5","v":"Irak"}]
[null,null,null,null,null,null,null,null,null,null,null,null,null,null,null,null,null,null,null,null,null,null,null,null,null,null,null,null,null,null,null,null,null,null,null,null,null,null,null,null,null,null,null,null,null,null,null,null,null,null,null,null,null,null,null,null,null,null,null,null,null,null,null,null,null,null,null,null,null,null,null,null,null,null,null,null,null,null,null,null,null,null,null,null,null,null,null,null,null,null,null,null,"ACEFGIKL",{"$f":"$BB$5","v":"Elfenbeinküste"},"Iran",{"$f":"$CE$5","v":"Irak"},"Haiti",{"$f":"$Y$5","v":"Südkorea"},"Schweden",{"$f":"$CE$26","v":"Ghana"},{"$f":"$CE$19","v":"Usbekistan"}]
[null,null,null,null,null,null,null,null,null,null,null,null,null,null,null,null,null,null,null,null,null,null,null,null,null,null,null,null,null,null,null,null,null,null,null,null,null,null,null,null,null,null,null,null,null,null,null,null,null,null,null,null,null,null,null,null,null,null,null,null,null,null,null,null,null,null,null,null,null,null,null,null,null,null,null,null,null,null,null,null,null,null,null,null,null,null,null,null,null,null,null,null,"ACEFGJKL",{"$f":"$BB$5","v":"Elfenbeinküste"},"Iran",{"$f":"$CE$12","v":"Österreich"},"Haiti","Südkorea","Schweden",{"$f":"$CE$26","v":"Ghana"},{"$f":"$CE$19","v":"Usbekistan"}]
[null,null,null,null,null,null,null,null,null,null,null,null,null,null,null,null,null,null,null,null,null,null,null,null,null,null,null,null,null,null,null,null,null,null,null,null,null,null,null,null,null,null,null,null,null,null,null,null,null,null,null,null,null,null,null,null,null,null,null,null,null,null,null,null,null,null,null,null,null,null,null,null,null,null,null,null,null,null,null,null,null,null,null,null,null,null,null,null,null,null,null,null,"ACEFHIJK",{"$f":"$BB$26","v":"Saudi-Arabien"},{"$f":"$CE$12","v":"Österreich"},{"$f":"$BB$5","v":"Elfenbeinküste"},"Haiti","Südkorea","Schweden",{"$f":"$CE$5","v":"Irak"},{"$f":"$CE$19","v":"Usbekistan"}]
[null,null,null,null,null,null,null,null,null,null,null,null,null,null,null,null,null,null,null,null,null,null,null,null,null,null,null,null,null,null,null,null,null,null,null,null,null,null,null,null,null,null,null,null,null,null,null,null,null,null,null,null,null,null,null,null,null,null,null,null,null,null,null,null,null,null,null,null,null,null,null,null,null,null,null,null,null,null,null,null,null,null,null,null,null,null,null,null,null,null,null,null,"ACEFHIJL",{"$f":"$BB$26","v":"Saudi-Arabien"},{"$f":"$CE$12","v":"Österreich"},{"$f":"$BB$5","v":"Elfenbeinküste"},"Haiti","Südkorea","Schweden",{"$f":"$CE$26","v":"Ghana"},{"$f":"$CE$5","v":"Irak"}]
[null,null,null,null,null,null,null,null,null,null,null,null,null,null,null,null,null,null,null,null,null,null,null,null,null,null,null,null,null,null,null,null,null,null,null,null,null,null,null,null,null,null,null,null,null,null,null,null,null,null,null,null,null,null,null,null,null,null,null,null,null,null,null,null,null,null,null,null,null,null,null,null,null,null,null,null,null,null,null,null,null,null,null,null,null,null,null,null,null,null,null,null,"ACEFHIKL",{"$f":"$BB$26","v":"Saudi-Arabien"},{"$f":"$BB$5","v":"Elfenbeinküste"},{"$f":"$CE$5","v":"Irak"},"Haiti","Südkorea","Schweden",{"$f":"$CE$26","v":"Ghana"},{"$f":"$CE$19","v":"Usbekistan"}]
[null,null,null,null,null,null,null,null,null,null,null,null,null,null,null,null,null,null,null,null,null,null,null,null,null,null,null,null,null,null,null,null,null,null,null,null,null,null,null,null,null,null,null,null,null,null,null,null,null,null,null,null,null,null,null,null,null,null,null,null,null,null,null,null,null,null,null,null,null,null,null,null,null,null,null,null,null,null,null,null,null,null,null,null,null,null,null,null,null,null,null,null,"ACEFHJKL",{"$f":"$BB$26","v":"Saudi-Arabien"},{"$f":"$CE$12","v":"Österreich"},{"$f":"$BB$5","v":"Elfenbeinküste"},"Haiti","Südkorea","Schweden",{"$f":"$CE$26","v":"Ghana"},{"$f":"$CE$19","v":"Usbekistan"}]
[null,null,null,null,null,null,null,null,null,null,null,null,null,null,null,null,null,null,null,null,null,null,null,null,null,null,null,null,null,null,null,null,null,null,null,null,null,null,null,null,null,null,null,null,null,null,null,null,null,null,null,null,null,null,null,null,null,null,null,null,null,null,null,null,null,null,null,null,null,null,null,null,null,null,null,null,null,null,null,null,null,null,null,null,null,null,null,null,null,null,null,null,"ACEFIJKL",{"$f":"$BB$5","v":"Elfenbeinküste"},{"$f":"$CE$12","v":"Österreich"},{"$f":"$CE$5","v":"Irak"},"Haiti","Südkorea","Schweden",{"$f":"$CE$26","v":"Ghana"},{"$f":"$CE$19","v":"Usbekistan"}]
[null,null,null,null,null,null,null,null,null,null,null,null,null,null,null,null,null,null,null,null,null,null,null,null,null,null,null,null,null,null,null,null,null,null,null,null,null,null,null,null,null,null,null,null,null,null,null,null,null,null,null,null,null,null,null,null,null,null,null,null,null,null,null,null,null,null,null,null,null,null,null,null,null,null,null,null,null,null,null,null,null,null,null,null,null,null,null,null,null,null,null,null,"ACEGHIJK","Elfenbeinküste",{"$f":"$BB$19","v":"Iran"},{"$f":"$CE$12","v":"Österreich"},"Haiti","Südkorea",{"$f":"$BB$26","v":"Saudi-Arabien"},{"$f":"$CE$5","v":"Irak"},{"$f":"$CE$19","v":"Usbekistan"}]
[null,null,null,null,null,null,null,null,null,null,null,null,null,null,null,null,null,null,null,null,null,null,null,null,null,null,null,null,null,null,null,null,null,null,null,null,null,null,null,null,null,null,null,null,null,null,null,null,null,null,null,null,null,null,null,null,null,null,null,null,null,null,null,null,null,null,null,null,null,null,null,null,null,null,null,null,null,null,null,null,null,null,null,null,null,null,null,null,null,null,null,null,"ACEGHIJL","Elfenbeinküste",{"$f":"$BB$19","v":"Iran"},{"$f":"$CE$12","v":"Österreich"},"Haiti","Südkorea",{"$f":"$BB$26","v":"Saudi-Arabien"},{"$f":"$CE$26","v":"Ghana"},{"$f":"$CE$5","v":"Irak"}]
[null,null,null,null,null,null,null,null,null,null,null,null,null,null,null,null,null,null,null,null,null,null,null,null,null,null,null,null,null,null,null,null,null,null,null,null,null,null,null,null,null,null,null,null,null,null,null,null,null,null,null,null,null,null,null,null,null,null,null,null,null,null,null,null,null,null,null,null,null,null,null,null,null,null,null,null,null,null,null,null,null,null,null,null,null,null,null,null,null,null,null,null,"ACEGHIKL","Elfenbeinküste",{"$f":"$BB$19","v":"Iran"},{"$f":"$CE$5","v":"Irak"},"Haiti","Südkorea",{"$f":"$BB$26","v":"Saudi-Arabien"},{"$f":"$CE$26","v":"Ghana"},{"$f":"$CE$19","v":"Usbekistan"}]
[null,null,null,null,null,null,null,null,null,null,null,null,null,null,null,null,null,null,null,null,null,null,null,null,null,null,null,null,null,null,null,null,null,null,null,null,null,null,null,null,null,null,null,null,null,null,null,null,null,null,null,null,null,null,null,null,null,null,null,null,null,null,null,null,null,null,null,null,null,null,null,null,null,null,null,null,null,null,null,null,null,null,null,null,null,null,null,null,null,null,null,null,"ACEGHJKL","Elfenbeinküste",{"$f":"$BB$19","v":"Iran"},{"$f":"$CE$12","v":"Österreich"},"Haiti","Südkorea",{"$f":"$BB$26","v":"Saudi-Arabien"},{"$f":"$CE$26","v":"Ghana"},{"$f":"$CE$19","v":"Usbekistan"}]
[null,null,null,null,null,null,null,null,null,null,null,null,null,null,null,null,null,null,null,null,null,null,null,null,null,null,null,null,null,null,null,null,null,null,null,null,null,null,null,null,null,null,null,null,null,null,null,null,null,null,null,null,null,null,null,null,null,null,null,null,null,null,null,null,null,null,null,null,null,null,null,null,null,null,null,null,null,null,null,null,null,null,null,null,null,null,null,null,null,null,null,null,"ACEGIJKL","Elfenbeinküste",{"$f":"$CE$12","v":"Österreich"},{"$f":"$CE$5","v":"Irak"},"Haiti","Südkorea",{"$f":"$BB$19","v":"Iran"},{"$f":"$CE$26","v":"Ghana"},{"$f":"$CE$19","v":"Usbekistan"}]
[null,null,null,null,null,null,null,null,null,null,null,null,null,null,null,null,null,null,null,null,null,null,null,null,null,null,null,null,null,null,null,null,null,null,null,null,null,null,null,null,null,null,null,null,null,null,null,null,null,null,null,null,null,null,null,null,null,null,null,null,null,null,null,null,null,null,null,null,null,null,null,null,null,null,null,null,null,null,null,null,null,null,null,null,null,null,null,null,null,null,null,null,"ACEHIJKL","Elfenbeinküste",{"$f":"$CE$12","v":"Österreich"},{"$f":"$CE$5","v":"Irak"},"Haiti","Südkorea",{"$f":"$BB$26","v":"Saudi-Arabien"},{"$f":"$CE$26","v":"Ghana"},{"$f":"$CE$19","v":"Usbekistan"}]
[null,null,null,null,null,null,null,null,null,null,null,null,null,null,null,null,null,null,null,null,null,null,null,null,null,null,null,null,null,null,null,null,null,null,null,null,null,null,null,null,null,null,null,null,null,null,null,null,null,null,null,null,null,null,null,null,null,null,null,null,null,null,null,null,null,null,null,null,null,null,null,null,null,null,null,null,null,null,null,null,null,null,null,null,null,null,null,null,null,null,null,null,"ACFGHIJK",{"$f":"$BB$26","v":"Saudi-Arabien"},{"$f":"$BB$19","v":"Iran"},{"$f":"$CE$12","v":"Österreich"},"Haiti","Südkorea",{"$f":"$BB$12","v":"Schweden"},{"$f":"$CE$5","v":"Irak"},{"$f":"$CE$19","v":"Usbekistan"}]
[null,null,null,null,null,null,null,null,null,null,null,null,null,null,null,null,null,null,null,null,null,null,null,null,null,null,null,null,null,null,null,null,null,null,null,null,null,null,null,null,null,null,null,null,null,null,null,null,null,null,null,null,null,null,null,null,null,null,null,null,null,null,null,null,null,null,null,null,null,null,null,null,null,null,null,null,null,null,null,null,null,null,null,null,null,null,null,null,null,null,null,null,"ACFGHIJL",{"$f":"$BB$26","v":"Saudi-Arabien"},{"$f":"$BB$19","v":"Iran"},{"$f":"$CE$12","v":"Österreich"},"Haiti","Südkorea","Schweden",{"$f":"$CE$26","v":"Ghana"},{"$f":"$CE$5","v":"Irak"}]
[null,null,null,null,null,null,null,null,null,null,null,null,null,null,null,null,null,null,null,null,null,null,null,null,null,null,null,null,null,null,null,null,null,null,null,null,null,null,null,null,null,null,null,null,null,null,null,null,null,null,null,null,null,null,null,null,null,null,null,null,null,null,null,null,null,null,null,null,null,null,null,null,null,null,null,null,null,null,null,null,null,null,null,null,null,null,null,null,null,null,null,null,"ACFGHIKL",{"$f":"$BB$26","v":"Saudi-Arabien"},{"$f":"$BB$19","v":"Iran"},{"$f":"$CE$5","v":"Irak"},"Haiti","Südkorea","Schweden","Ghana",{"$f":"$CE$19","v":"Usbekistan"}]
[null,null,null,null,null,null,null,null,null,null,null,null,null,null,null,null,null,null,null,null,null,null,null,null,null,null,null,null,null,null,null,null,null,null,null,null,null,null,null,null,null,null,null,null,null,null,null,null,null,null,null,null,null,null,null,null,null,null,null,null,null,null,null,null,null,null,null,null,null,null,null,null,null,null,null,null,null,null,null,null,null,null,null,null,null,null,null,null,null,null,null,null,"ACFGHJKL",{"$f":"$BB$26","v":"Saudi-Arabien"},{"$f":"$BB$19","v":"Iran"},{"$f":"$CE$12","v":"Österreich"},"Haiti","Südkorea","Schweden","Ghana",{"$f":"$CE$19","v":"Usbekistan"}]
[null,null,null,null,null,null,null,null,null,null,null,null,null,null,null,null,null,null,null,null,null,null,null,null,null,null,null,null,null,null,null,null,null,null,null,null,null,null,null,null,null,null,null,null,null,null,null,null,null,null,null,null,null,null,null,null,null,null,null,null,null,null,null,null,null,null,null,null,null,null,null,null,null,null,null,null,null,null,null,null,null,null,null,null,null,null,null,null,null,null,null,null,"ACFGIJKL",{"$f":"$CE$5","v":"Irak"},{"$f":"$BB$19","v":"Iran"},{"$f":"$CE$12","v":"Österreich"},"Haiti","Südkorea","Schweden","Ghana",{"$f":"$CE$19","v":"Usbekistan"}]
[null,null,null,null,null,null,null,null,null,null,null,null,null,null,null,null,null,null,null,null,null,null,null,null,null,null,null,null,null,null,null,null,null,null,null,null,null,null,null,null,null,null,null,null,null,null,null,null,null,null,null,null,null,null,null,null,null,null,null,null,null,null,null,null,null,null,null,null,null,null,null,null,null,null,null,null,null,null,null,null,null,null,null,null,null,null,null,null,null,null,null,null,"ACFHIJKL",{"$f":"$BB$26","v":"Saudi-Arabien"},{"$f":"$CE$12","v":"Österreich"},{"$f":"$CE$5","v":"Irak"},"Haiti","Südkorea","Schweden","Ghana",{"$f":"$CE$19","v":"Usbekistan"}]
[null,null,null,null,null,null,null,null,null,null,null,null,null,null,null,null,null,null,null,null,null,null,null,null,null,null,null,null,null,null,null,null,null,null,null,null,null,null,null,null,null,null,null,null,null,null,null,null,null,null,null,null,null,null,null,null,null,null,null,null,null,null,null,null,null,null,null,null,null,null,null,null,null,null,null,null,null,null,null,null,null,null,null,null,null,null,null,null,null,null,null,null,"ACGHIJKL","Saudi-Arabien",{"$f":"$CE$12","v":"Österreich"},{"$f":"$CE$5","v":"Irak"},"Haiti","Südkorea",{"$f":"$BB$19","v":"Iran"},"Ghana",{"$f":"$CE$19","v":"Usbekistan"}]
[null,null,null,null,null,null,null,null,null,null,null,null,null,null,null,null,null,null,null,null,null,null,null,null,null,null,null,null,null,null,null,null,null,null,null,null,null,null,null,null,null,null,null,null,null,null,null,null,null,null,null,null,null,null,null,null,null,null,null,null,null,null,null,null,null,null,null,null,null,null,null,null,null,null,null,null,null,null,null,null,null,null,null,null,null,null,null,null,null,null,null,null,"ADEFGHIJ","Saudi-Arabien",{"$f":"$BB$19","v":"Iran"},{"$f":"$CE$12","v":"Österreich"},{"$f":"$Y$26","v":"Australien"},"Südkorea",{"$f":"$BB$12","v":"Schweden"},{"$f":"$BB$5","v":"Elfenbeinküste"},{"$f":"$CE$5","v":"Irak"}]
[null,null,null,null,null,null,null,null,null,null,null,null,null,null,null,null,null,null,null,null,null,null,null,null,null,null,null,null,null,null,null,null,null,null,null,null,null,null,null,null,null,null,null,null,null,null,null,null,null,null,null,null,null,null,null,null,null,null,null,null,null,null,null,null,null,null,null,null,null,null,null,null,null,null,null,null,null,null,null,null,null,null,null,null,null,null,null,null,null,null,null,null,"ADEFGHIK","Saudi-Arabien","Iran",{"$f":"$BB$5","v":"Elfenbeinküste"},"Australien","Südkorea","Schweden",{"$f":"$CE$5","v":"Irak"},{"$f":"$CE$19","v":"Usbekistan"}]
[null,null,null,null,null,null,null,null,null,null,null,null,null,null,null,null,null,null,null,null,null,null,null,null,null,null,null,null,null,null,null,null,null,null,null,null,null,null,null,null,null,null,null,null,null,null,null,null,null,null,null,null,null,null,null,null,null,null,null,null,null,null,null,null,null,null,null,null,null,null,null,null,null,null,null,null,null,null,null,null,null,null,null,null,null,null,null,null,null,null,null,null,"ADEFGHIL","Saudi-Arabien","Iran",{"$f":"$BB$5","v":"Elfenbeinküste"},"Australien","Südkorea","Schweden",{"$f":"$CE$26","v":"Ghana"},{"$f":"$CE$5","v":"Irak"}]
[null,null,null,null,null,null,null,null,null,null,null,null,null,null,null,null,null,null,null,null,null,null,null,null,null,null,null,null,null,null,null,null,null,null,null,null,null,null,null,null,null,null,null,null,null,null,null,null,null,null,null,null,null,null,null,null,null,null,null,null,null,null,null,null,null,null,null,null,null,null,null,null,null,null,null,null,null,null,null,null,null,null,null,null,null,null,null,null,null,null,null,null,"ADEFGHJK","Saudi-Arabien","Iran",{"$f":"$CE$12","v":"Österreich"},"Australien","Südkorea","Schweden",{"$f":"$BB$5","v":"Elfenbeinküste"},{"$f":"$CE$19","v":"Usbekistan"}]
[null,null,null,null,null,null,null,null,null,null,null,null,null,null,null,null,null,null,null,null,null,null,null,null,null,null,null,null,null,null,null,null,null,null,null,null,null,null,null,null,null,null,null,null,null,null,null,null,null,null,null,null,null,null,null,null,null,null,null,null,null,null,null,null,null,null,null,null,null,null,null,null,null,null,null,null,null,null,null,null,null,null,null,null,null,null,null,null,null,null,null,null,"ADEFGHJL","Saudi-Arabien","Iran",{"$f":"$CE$12","v":"Österreich"},"Australien","Südkorea","Schweden",{"$f":"$CE$26","v":"Ghana"},{"$f":"$BB$5","v":"Elfenbeinküste"}]
[null,null,null,null,null,null,null,null,null,null,null,null,null,null,null,null,null,null,null,null,null,null,null,null,null,null,null,null,null,null,null,null,null,null,null,null,null,null,null,null,null,null,null,null,null,null,null,null,null,null,null,null,null,null,null,null,null,null,null,null,null,null,null,null,null,null,null,null,null,null,null,null,null,null,null,null,null,null,null,null,null,null,null,null,null,null,null,null,null,null,null,null,"ADEFGHKL","Saudi-Arabien","Iran",{"$f":"$BB$5","v":"Elfenbeinküste"},"Australien","Südkorea","Schweden",{"$f":"$CE$26","v":"Ghana"},{"$f":"$CE$19","v":"Usbekistan"}]
[null,null,null,null,null,null,null,null,null,null,null,null,null,null,null,null,null,null,null,null,null,null,null,null,null,null,null,null,null,null,null,null,null,null,null,null,null,null,null,null,null,null,null,null,null,null,null,null,null,null,null,null,null,null,null,null,null,null,null,null,null,null,null,null,null,null,null,null,null,null,null,null,null,null,null,null,null,null,null,null,null,null,null,null,null,null,null,null,null,null,null,null,"ADEFGIJK",{"$f":"$BB$5","v":"Elfenbeinküste"},"Iran",{"$f":"$CE$12","v":"Österreich"},"Australien","Südkorea","Schweden",{"$f":"$CE$5","v":"Irak"},{"$f":"$CE$19","v":"Usbekistan"}]
[null,null,null,null,null,null,null,null,null,null,null,null,null,null,null,null,null,null,null,null,null,null,null,null,null,null,null,null,null,null,null,null,null,null,null,null,null,null,null,null,null,null,null,null,null,null,null,null,null,null,null,null,null,null,null,null,null,null,null,null,null,null,null,null,null,null,null,null,null,null,null,null,null,null,null,null,null,null,null,null,null,null,null,null,null,null,null,null,null,null,null,null,"ADEFGIJL",{"$f":"$BB$5","v":"Elfenbeinküste"},"Iran",{"$f":"$CE$12","v":"Österreich"},"Australien","Südkorea","Schweden",{"$f":"$CE$26","v":"Ghana"},{"$f":"$CE$5","v":"Irak"}]
[null,null,null,null,null,null,null,null,null,null,null,null,null,null,null,null,null,null,null,null,null,null,null,null,null,null,null,null,null,null,null,null,null,null,null,null,null,null,null,null,null,null,null,null,null,null,null,null,null,null,null,null,null,null,null,null,null,null,null,null,null,null,null,null,null,null,null,null,null,null,null,null,null,null,null,null,null,null,null,null,null,null,null,null,null,null,null,null,null,null,null,null,"ADEFGIKL",{"$f":"$BB$5","v":"Elfenbeinküste"},"Iran",{"$f":"$CE$5","v":"Irak"},"Australien","Südkorea","Schweden",{"$f":"$CE$26","v":"Ghana"},{"$f":"$CE$19","v":"Usbekistan"}]
[null,null,null,null,null,null,null,null,null,null,null,null,null,null,null,null,null,null,null,null,null,null,null,null,null,null,null,null,null,null,null,null,null,null,null,null,null,null,null,null,null,null,null,null,null,null,null,null,null,null,null,null,null,null,null,null,null,null,null,null,null,null,null,null,null,null,null,null,null,null,null,null,null,null,null,null,null,null,null,null,null,null,null,null,null,null,null,null,null,null,null,null,"ADEFGJKL",{"$f":"$BB$5","v":"Elfenbeinküste"},"Iran",{"$f":"$CE$12","v":"Österreich"},"Australien","Südkorea","Schweden",{"$f":"$CE$26","v":"Ghana"},{"$f":"$CE$19","v":"Usbekistan"}]
[null,null,null,null,null,null,null,null,null,null,null,null,null,null,null,null,null,null,null,null,null,null,null,null,null,null,null,null,null,null,null,null,null,null,null,null,null,null,null,null,null,null,null,null,null,null,null,null,null,null,null,null,null,null,null,null,null,null,null,null,null,null,null,null,null,null,null,null,null,null,null,null,null,null,null,null,null,null,null,null,null,null,null,null,null,null,null,null,null,null,null,null,"ADEFHIJK",{"$f":"$BB$26","v":"Saudi-Arabien"},{"$f":"$CE$12","v":"Österreich"},{"$f":"$BB$5","v":"Elfenbeinküste"},"Australien","Südkorea","Schweden",{"$f":"$CE$5","v":"Irak"},{"$f":"$CE$19","v":"Usbekistan"}]
[null,null,null,null,null,null,null,null,null,null,null,null,null,null,null,null,null,null,null,null,null,null,null,null,null,null,null,null,null,null,null,null,null,null,null,null,null,null,null,null,null,null,null,null,null,null,null,null,null,null,null,null,null,null,null,null,null,null,null,null,null,null,null,null,null,null,null,null,null,null,null,null,null,null,null,null,null,null,null,null,null,null,null,null,null,null,null,null,null,null,null,null,"ADEFHIJL",{"$f":"$BB$26","v":"Saudi-Arabien"},{"$f":"$CE$12","v":"Österreich"},{"$f":"$BB$5","v":"Elfenbeinküste"},"Australien","Südkorea","Schweden",{"$f":"$CE$26","v":"Ghana"},{"$f":"$CE$5","v":"Irak"}]
[null,null,null,null,null,null,null,null,null,null,null,null,null,null,null,null,null,null,null,null,null,null,null,null,null,null,null,null,null,null,null,null,null,null,null,null,null,null,null,null,null,null,null,null,null,null,null,null,null,null,null,null,null,null,null,null,null,null,null,null,null,null,null,null,null,null,null,null,null,null,null,null,null,null,null,null,null,null,null,null,null,null,null,null,null,null,null,null,null,null,null,null,"ADEFHIKL",{"$f":"$BB$26","v":"Saudi-Arabien"},{"$f":"$BB$5","v":"Elfenbeinküste"},{"$f":"$CE$5","v":"Irak"},"Australien",{"$f":"$Y$5","v":"Südkorea"},"Schweden",{"$f":"$CE$26","v":"Ghana"},{"$f":"$CE$19","v":"Usbekistan"}]
[null,null,null,null,null,null,null,null,null,null,null,null,null,null,null,null,null,null,null,null,null,null,null,null,null,null,null,null,null,null,null,null,null,null,null,null,null,null,null,null,null,null,null,null,null,null,null,null,null,null,null,null,null,null,null,null,null,null,null,null,null,null,null,null,null,null,null,null,null,null,null,null,null,null,null,null,null,null,null,null,null,null,null,null,null,null,null,null,null,null,null,null,"ADEFHJKL",{"$f":"$BB$26","v":"Saudi-Arabien"},{"$f":"$CE$12","v":"Österreich"},{"$f":"$BB$5","v":"Elfenbeinküste"},"Australien","Südkorea","Schweden",{"$f":"$CE$26","v":"Ghana"},{"$f":"$CE$19","v":"Usbekistan"}]
[null,null,null,null,null,null,null,null,null,null,null,null,null,null,null,null,null,null,null,null,null,null,null,null,null,null,null,null,null,null,null,null,null,null,null,null,null,null,null,null,null,null,null,null,null,null,null,null,null,null,null,null,null,null,null,null,null,null,null,null,null,null,null,null,null,null,null,null,null,null,null,null,null,null,null,null,null,null,null,null,null,null,null,null,null,null,null,null,null,null,null,null,"ADEFIJKL",{"$f":"$BB$5","v":"Elfenbeinküste"},{"$f":"$CE$12","v":"Österreich"},{"$f":"$CE$5","v":"Irak"},"Australien","Südkorea","Schweden",{"$f":"$CE$26","v":"Ghana"},{"$f":"$CE$19","v":"Usbekistan"}]
[null,null,null,null,null,null,null,null,null,null,null,null,null,null,null,null,null,null,null,null,null,null,null,null,null,null,null,null,null,null,null,null,null,null,null,null,null,null,null,null,null,null,null,null,null,null,null,null,null,null,null,null,null,null,null,null,null,null,null,null,null,null,null,null,null,null,null,null,null,null,null,null,null,null,null,null,null,null,null,null,null,null,null,null,null,null,null,null,null,null,null,null,"ADEGHIJK","Elfenbeinküste",{"$f":"$BB$19","v":"Iran"},{"$f":"$CE$12","v":"Österreich"},"Australien","Südkorea",{"$f":"$BB$26","v":"Saudi-Arabien"},{"$f":"$CE$5","v":"Irak"},{"$f":"$CE$19","v":"Usbekistan"}]
[null,null,null,null,null,null,null,null,null,null,null,null,null,null,null,null,null,null,null,null,null,null,null,null,null,null,null,null,null,null,null,null,null,null,null,null,null,null,null,null,null,null,null,null,null,null,null,null,null,null,null,null,null,null,null,null,null,null,null,null,null,null,null,null,null,null,null,null,null,null,null,null,null,null,null,null,null,null,null,null,null,null,null,null,null,null,null,null,null,null,null,null,"ADEGHIJL","Elfenbeinküste",{"$f":"$BB$19","v":"Iran"},{"$f":"$CE$12","v":"Österreich"},"Australien","Südkorea",{"$f":"$BB$26","v":"Saudi-Arabien"},{"$f":"$CE$26","v":"Ghana"},{"$f":"$CE$5","v":"Irak"}]
[null,null,null,null,null,null,null,null,null,null,null,null,null,null,null,null,null,null,null,null,null,null,null,null,null,null,null,null,null,null,null,null,null,null,null,null,null,null,null,null,null,null,null,null,null,null,null,null,null,null,null,null,null,null,null,null,null,null,null,null,null,null,null,null,null,null,null,null,null,null,null,null,null,null,null,null,null,null,null,null,null,null,null,null,null,null,null,null,null,null,null,null,"ADEGHIKL","Elfenbeinküste",{"$f":"$BB$19","v":"Iran"},{"$f":"$CE$5","v":"Irak"},"Australien","Südkorea",{"$f":"$BB$26","v":"Saudi-Arabien"},{"$f":"$CE$26","v":"Ghana"},{"$f":"$CE$19","v":"Usbekistan"}]
[null,null,null,null,null,null,null,null,null,null,null,null,null,null,null,null,null,null,null,null,null,null,null,null,null,null,null,null,null,null,null,null,null,null,null,null,null,null,null,null,null,null,null,null,null,null,null,null,null,null,null,null,null,null,null,null,null,null,null,null,null,null,null,null,null,null,null,null,null,null,null,null,null,null,null,null,null,null,null,null,null,null,null,null,null,null,null,null,null,null,null,null,"ADEGHJKL","Elfenbeinküste",{"$f":"$BB$19","v":"Iran"},{"$f":"$CE$12","v":"Österreich"},"Australien","Südkorea",{"$f":"$BB$26","v":"Saudi-Arabien"},{"$f":"$CE$26","v":"Ghana"},{"$f":"$CE$19","v":"Usbekistan"}]
[null,null,null,null,null,null,null,null,null,null,null,null,null,null,null,null,null,null,null,null,null,null,null,null,null,null,null,null,null,null,null,null,null,null,null,null,null,null,null,null,null,null,null,null,null,null,null,null,null,null,null,null,null,null,null,null,null,null,null,null,null,null,null,null,null,null,null,null,null,null,null,null,null,null,null,null,null,null,null,null,null,null,null,null,null,null,null,null,null,null,null,null,"ADEGIJKL","Elfenbeinküste",{"$f":"$CE$12","v":"Österreich"},{"$f":"$CE$5","v":"Irak"},"Australien","Südkorea",{"$f":"$BB$19","v":"Iran"},{"$f":"$CE$26","v":"Ghana"},{"$f":"$CE$19","v":"Usbekistan"}]
[null,null,null,null,null,null,null,null,null,null,null,null,null,null,null,null,null,null,null,null,null,null,null,null,null,null,null,null,null,null,null,null,null,null,null,null,null,null,null,null,null,null,null,null,null,null,null,null,null,null,null,null,null,null,null,null,null,null,null,null,null,null,null,null,null,null,null,null,null,null,null,null,null,null,null,null,null,null,null,null,null,null,null,null,null,null,null,null,null,null,null,null,"ADEHIJKL","Elfenbeinküste",{"$f":"$CE$12","v":"Österreich"},{"$f":"$CE$5","v":"Irak"},"Australien","Südkorea",{"$f":"$BB$26","v":"Saudi-Arabien"},{"$f":"$CE$26","v":"Ghana"},{"$f":"$CE$19","v":"Usbekistan"}]
[null,null,null,null,null,null,null,null,null,null,null,null,null,null,null,null,null,null,null,null,null,null,null,null,null,null,null,null,null,null,null,null,null,null,null,null,null,null,null,null,null,null,null,null,null,null,null,null,null,null,null,null,null,null,null,null,null,null,null,null,null,null,null,null,null,null,null,null,null,null,null,null,null,null,null,null,null,null,null,null,null,null,null,null,null,null,null,null,null,null,null,null,"ADFGHIJK",{"$f":"$BB$26","v":"Saudi-Arabien"},{"$f":"$BB$19","v":"Iran"},{"$f":"$CE$12","v":"Österreich"},"Australien","Südkorea",{"$f":"$BB$12","v":"Schweden"},{"$f":"$CE$5","v":"Irak"},{"$f":"$CE$19","v":"Usbekistan"}]
[null,null,null,null,null,null,null,null,null,null,null,null,null,null,null,null,null,null,null,null,null,null,null,null,null,null,null,null,null,null,null,null,null,null,null,null,null,null,null,null,null,null,null,null,null,null,null,null,null,null,null,null,null,null,null,null,null,null,null,null,null,null,null,null,null,null,null,null,null,null,null,null,null,null,null,null,null,null,null,null,null,null,null,null,null,null,null,null,null,null,null,null,"ADFGHIJL",{"$f":"$BB$26","v":"Saudi-Arabien"},{"$f":"$BB$19","v":"Iran"},{"$f":"$CE$12","v":"Österreich"},"Australien","Südkorea","Schweden",{"$f":"$CE$26","v":"Ghana"},{"$f":"$CE$5","v":"Irak"}]
[null,null,null,null,null,null,null,null,null,null,null,null,null,null,null,null,null,null,null,null,null,null,null,null,null,null,null,null,null,null,null,null,null,null,null,null,null,null,null,null,null,null,null,null,null,null,null,null,null,null,null,null,null,null,null,null,null,null,null,null,null,null,null,null,null,null,null,null,null,null,null,null,null,null,null,null,null,null,null,null,null,null,null,null,null,null,null,null,null,null,null,null,"ADFGHIKL",{"$f":"$BB$26","v":"Saudi-Arabien"},{"$f":"$BB$19","v":"Iran"},{"$f":"$CE$5","v":"Irak"},"Australien","Südkorea","Schweden","Ghana",{"$f":"$CE$19","v":"Usbekistan"}]
[null,null,null,null,null,null,null,null,null,null,null,null,null,null,null,null,null,null,null,null,null,null,null,null,null,null,null,null,null,null,null,null,null,null,null,null,null,null,null,null,null,null,null,null,null,null,null,null,null,null,null,null,null,null,null,null,null,null,null,null,null,null,null,null,null,null,null,null,null,null,null,null,null,null,null,null,null,null,null,null,null,null,null,null,null,null,null,null,null,null,null,null,"ADFGHJKL",{"$f":"$BB$26","v":"Saudi-Arabien"},{"$f":"$BB$19","v":"Iran"},{"$f":"$CE$12","v":"Österreich"},"Australien","Südkorea","Schweden","Ghana","Usbekistan"]
[null,null,null,null,null,null,null,null,null,null,null,null,null,null,null,null,null,null,null,null,null,null,null,null,null,null,null,null,null,null,null,null,null,null,null,null,null,null,null,null,null,null,null,null,null,null,null,null,null,null,null,null,null,null,null,null,null,null,null,null,null,null,null,null,null,null,null,null,null,null,null,null,null,null,null,null,null,null,null,null,null,null,null,null,null,null,null,null,null,null,null,null,"ADFGIJKL",{"$f":"$CE$5","v":"Irak"},{"$f":"$BB$19","v":"Iran"},{"$f":"$CE$12","v":"Österreich"},"Australien","Südkorea","Schweden","Ghana","Usbekistan"]
[null,null,null,null,null,null,null,null,null,null,null,null,null,null,null,null,null,null,null,null,null,null,null,null,null,null,null,null,null,null,null,null,null,null,null,null,null,null,null,null,null,null,null,null,null,null,null,null,null,null,null,null,null,null,null,null,null,null,null,null,null,null,null,null,null,null,null,null,null,null,null,null,null,null,null,null,null,null,null,null,null,null,null,null,null,null,null,null,null,null,null,null,"ADFHIJKL",{"$f":"$BB$26","v":"Saudi-Arabien"},{"$f":"$CE$12","v":"Österreich"},{"$f":"$CE$5","v":"Irak"},"Australien","Südkorea","Schweden","Ghana","Usbekistan"]
[null,null,null,null,null,null,null,null,null,null,null,null,null,null,null,null,null,null,null,null,null,null,null,null,null,null,null,null,null,null,null,null,null,null,null,null,null,null,null,null,null,null,null,null,null,null,null,null,null,null,null,null,null,null,null,null,null,null,null,null,null,null,null,null,null,null,null,null,null,null,null,null,null,null,null,null,null,null,null,null,null,null,null,null,null,null,null,null,null,null,null,null,"ADGHIJKL",{"$f":"$BB$26","v":"Saudi-Arabien"},{"$f":"$CE$12","v":"Österreich"},{"$f":"$CE$5","v":"Irak"},"Australien","Südkorea",{"$f":"$BB$19","v":"Iran"},"Ghana","Usbekistan"]
[null,null,null,null,null,null,null,null,null,null,null,null,null,null,null,null,null,null,null,null,null,null,null,null,null,null,null,null,null,null,null,null,null,null,null,null,null,null,null,null,null,null,null,null,null,null,null,null,null,null,null,null,null,null,null,null,null,null,null,null,null,null,null,null,null,null,null,null,null,null,null,null,null,null,null,null,null,null,null,null,null,null,null,null,null,null,null,null,null,null,null,null,"AEFGHIJK",{"$f":"$BB$5","v":"Elfenbeinküste"},{"$f":"$BB$19","v":"Iran"},{"$f":"$CE$12","v":"Österreich"},{"$f":"$BB$12","v":"Schweden"},"Südkorea",{"$f":"$BB$26","v":"Saudi-Arabien"},{"$f":"$CE$5","v":"Irak"},"Usbekistan"]
[null,null,null,null,null,null,null,null,null,null,null,null,null,null,null,null,null,null,null,null,null,null,null,null,null,null,null,null,null,null,null,null,null,null,null,null,null,null,null,null,null,null,null,null,null,null,null,null,null,null,null,null,null,null,null,null,null,null,null,null,null,null,null,null,null,null,null,null,null,null,null,null,null,null,null,null,null,null,null,null,null,null,null,null,null,null,null,null,null,null,null,null,"AEFGHIJL","Elfenbeinküste",{"$f":"$BB$19","v":"Iran"},{"$f":"$CE$12","v":"Österreich"},"Schweden","Südkorea",{"$f":"$BB$26","v":"Saudi-Arabien"},{"$f":"$CE$26","v":"Ghana"},{"$f":"$CE$5","v":"Irak"}]
[null,null,null,null,null,null,null,null,null,null,null,null,null,null,null,null,null,null,null,null,null,null,null,null,null,null,null,null,null,null,null,null,null,null,null,null,null,null,null,null,null,null,null,null,null,null,null,null,null,null,null,null,null,null,null,null,null,null,null,null,null,null,null,null,null,null,null,null,null,null,null,null,null,null,null,null,null,null,null,null,null,null,null,null,null,null,null,null,null,null,null,null,"AEFGHIKL","Elfenbeinküste",{"$f":"$BB$19","v":"Iran"},{"$f":"$CE$5","v":"Irak"},"Schweden","Südkorea",{"$f":"$BB$26","v":"Saudi-Arabien"},"Ghana",{"$f":"$CE$19","v":"Usbekistan"}]
[null,null,null,null,null,null,null,null,null,null,null,null,null,null,null,null,null,null,null,null,null,null,null,null,null,null,null,null,null,null,null,null,null,null,null,null,null,null,null,null,null,null,null,null,null,null,null,null,null,null,null,null,null,null,null,null,null,null,null,null,null,null,null,null,null,null,null,null,null,null,null,null,null,null,null,null,null,null,null,null,null,null,null,null,null,null,null,null,null,null,null,null,"AEFGHJKL","Elfenbeinküste",{"$f":"$BB$19","v":"Iran"},{"$f":"$CE$12","v":"Österreich"},"Schweden","Südkorea",{"$f":"$BB$26","v":"Saudi-Arabien"},"Ghana","Usbekistan"]
[null,null,null,null,null,null,null,null,null,null,null,null,null,null,null,null,null,null,null,null,null,null,null,null,null,null,null,null,null,null,null,null,null,null,null,null,null,null,null,null,null,null,null,null,null,null,null,null,null,null,null,null,null,null,null,null,null,null,null,null,null,null,null,null,null,null,null,null,null,null,null,null,null,null,null,null,null,null,null,null,null,null,null,null,null,null,null,null,null,null,null,null,"AEFGIJKL","Elfenbeinküste",{"$f":"$CE$12","v":"Österreich"},{"$f":"$CE$5","v":"Irak"},"Schweden","Südkorea",{"$f":"$BB$19","v":"Iran"},"Ghana","Usbekistan"]
[null,null,null,null,null,null,null,null,null,null,null,null,null,null,null,null,null,null,null,null,null,null,null,null,null,null,null,null,null,null,null,null,null,null,null,null,null,null,null,null,null,null,null,null,null,null,null,null,null,null,null,null,null,null,null,null,null,null,null,null,null,null,null,null,null,null,null,null,null,null,null,null,null,null,null,null,null,null,null,null,null,null,null,null,null,null,null,null,null,null,null,null,"AEFHIJKL","Elfenbeinküste",{"$f":"$CE$12","v":"Österreich"},{"$f":"$CE$5","v":"Irak"},"Schweden","Südkorea",{"$f":"$BB$26","v":"Saudi-Arabien"},"Ghana","Usbekistan"]
[null,null,null,null,null,null,null,null,null,null,null,null,null,null,null,null,null,null,null,null,null,null,null,null,null,null,null,null,null,null,null,null,null,null,null,null,null,null,null,null,null,null,null,null,null,null,null,null,null,null,null,null,null,null,null,null,null,null,null,null,null,null,null,null,null,null,null,null,null,null,null,null,null,null,null,null,null,null,null,null,null,null,null,null,null,null,null,null,null,null,null,null,"AEGHIJKL","Elfenbeinküste",{"$f":"$CE$12","v":"Österreich"},{"$f":"$CE$5","v":"Irak"},{"$f":"$Y$5","v":"Südkorea"},{"$f":"$BB$26","v":"Saudi-Arabien"},{"$f":"$BB$19","v":"Iran"},"Ghana","Usbekistan"]
[null,null,null,null,null,null,null,null,null,null,null,null,null,null,null,null,null,null,null,null,null,null,null,null,null,null,null,null,null,null,null,null,null,null,null,null,null,null,null,null,null,null,null,null,null,null,null,null,null,null,null,null,null,null,null,null,null,null,null,null,null,null,null,null,null,null,null,null,null,null,null,null,null,null,null,null,null,null,null,null,null,null,null,null,null,null,null,null,null,null,null,null,"AFGHIJKL",{"$f":"$BB$26","v":"Saudi-Arabien"},{"$f":"$CE$12","v":"Österreich"},{"$f":"$CE$5","v":"Irak"},{"$f":"$BB$12","v":"Schweden"},{"$f":"$Y$5","v":"Südkorea"},{"$f":"$BB$19","v":"Iran"},"Ghana","Usbekistan"]
[null,null,null,null,null,null,null,null,null,null,null,null,null,null,null,null,null,null,null,null,null,null,null,null,null,null,null,null,null,null,null,null,null,null,null,null,null,null,null,null,null,null,null,null,null,null,null,null,null,null,null,null,null,null,null,null,null,null,null,null,null,null,null,null,null,null,null,null,null,null,null,null,null,null,null,null,null,null,null,null,null,null,null,null,null,null,null,null,null,null,null,null,"BCDEFGHI",{"$f":"$Y$19","v":"Haiti"},{"$f":"$BB$19","v":"Iran"},{"$f":"$Y$12","v":"Katar"},{"$f":"$Y$26","v":"Australien"},{"$f":"$BB$26","v":"Saudi-Arabien"},{"$f":"$BB$12","v":"Schweden"},{"$f":"$BB$5","v":"Elfenbeinküste"},{"$f":"$CE$5","v":"Irak"}]
[null,null,null,null,null,null,null,null,null,null,null,null,null,null,null,null,null,null,null,null,null,null,null,null,null,null,null,null,null,null,null,null,null,null,null,null,null,null,null,null,null,null,null,null,null,null,null,null,null,null,null,null,null,null,null,null,null,null,null,null,null,null,null,null,null,null,null,null,null,null,null,null,null,null,null,null,null,null,null,null,null,null,null,null,null,null,null,null,null,null,null,null,"BCDEFGHJ",{"$f":"$BB$26","v":"Saudi-Arabien"},"Iran","Katar",{"$f":"$Y$19","v":"Haiti"},{"$f":"$CE$12","v":"Österreich"},"Schweden",{"$f":"$Y$26","v":"Australien"},{"$f":"$BB$5","v":"Elfenbeinküste"}]
[null,null,null,null,null,null,null,null,null,null,null,null,null,null,null,null,null,null,null,null,null,null,null,null,null,null,null,null,null,null,null,null,null,null,null,null,null,null,null,null,null,null,null,null,null,null,null,null,null,null,null,null,null,null,null,null,null,null,null,null,null,null,null,null,null,null,null,null,null,null,null,null,null,null,null,null,null,null,null,null,null,null,null,null,null,null,null,null,null,null,null,null,"BCDEFGHK",{"$f":"$Y$19","v":"Haiti"},"Iran","Katar",{"$f":"$Y$26","v":"Australien"},{"$f":"$BB$26","v":"Saudi-Arabien"},"Schweden",{"$f":"$BB$5","v":"Elfenbeinküste"},{"$f":"$CE$19","v":"Usbekistan"}]
[null,null,null,null,null,null,null,null,null,null,null,null,null,null,null,null,null,null,null,null,null,null,null,null,null,null,null,null,null,null,null,null,null,null,null,null,null,null,null,null,null,null,null,null,null,null,null,null,null,null,null,null,null,null,null,null,null,null,null,null,null,null,null,null,null,null,null,null,null,null,null,null,null,null,null,null,null,null,null,null,null,null,null,null,null,null,null,null,null,null,null,null,"BCDEFGHL","Haiti","Iran","Katar","Australien",{"$f":"$BB$26","v":"Saudi-Arabien"},"Schweden",{"$f":"$CE$26","v":"Ghana"},{"$f":"$BB$5","v":"Elfenbeinküste"}]
[null,null,null,null,null,null,null,null,null,null,null,null,null,null,null,null,null,null,null,null,null,null,null,null,null,null,null,null,null,null,null,null,null,null,null,null,null,null,null,null,null,null,null,null,null,null,null,null,null,null,null,null,null,null,null,null,null,null,null,null,null,null,null,null,null,null,null,null,null,null,null,null,null,null,null,null,null,null,null,null,null,null,null,null,null,null,null,null,null,null,null,null,"BCDEFGIJ","Haiti","Iran","Katar","Australien",{"$f":"$CE$12","v":"Österreich"},"Schweden",{"$f":"$BB$5","v":"Elfenbeinküste"},{"$f":"$CE$5","v":"Irak"}]
[null,null,null,null,null,null,null,null,null,null,null,null,null,null,null,null,null,null,null,null,null,null,null,null,null,null,null,null,null,null,null,null,null,null,null,null,null,null,null,null,null,null,null,null,null,null,null,null,null,null,null,null,null,null,null,null,null,null,null,null,null,null,null,null,null,null,null,null,null,null,null,null,null,null,null,null,null,null,null,null,null,null,null,null,null,null,null,null,null,null,null,null,"BCDEFGIK","Haiti","Iran","Katar","Australien",{"$f":"$BB$5","v":"Elfenbeinküste"},"Schweden",{"$f":"$CE$5","v":"Irak"},{"$f":"$CE$19","v":"Usbekistan"}]
[null,null,null,null,null,null,null,null,null,null,null,null,null,null,null,null,null,null,null,null,null,null,null,null,null,null,null,null,null,null,null,null,null,null,null,null,null,null,null,null,null,null,null,null,null,null,null,null,null,null,null,null,null,null,null,null,null,null,null,null,null,null,null,null,null,null,null,null,null,null,null,null,null,null,null,null,null,null,null,null,null,null,null,null,null,null,null,null,null,null,null,null,"BCDEFGIL","Haiti","Iran","Katar","Australien",{"$f":"$BB$5","v":"Elfenbeinküste"},"Schweden",{"$f":"$CE$26","v":"Ghana"},{"$f":"$CE$5","v":"Irak"}]
[null,null,null,null,null,null,null,null,null,null,null,null,null,null,null,null,null,null,null,null,null,null,null,null,null,null,null,null,null,null,null,null,null,null,null,null,null,null,null,null,null,null,null,null,null,null,null,null,null,null,null,null,null,null,null,null,null,null,null,null,null,null,null,null,null,null,null,null,null,null,null,null,null,null,null,null,null,null,null,null,null,null,null,null,null,null,null,null,null,null,null,null,"BCDEFGJK","Haiti","Iran","Katar","Australien",{"$f":"$CE$12","v":"Österreich"},"Schweden",{"$f":"$BB$5","v":"Elfenbeinküste"},{"$f":"$CE$19","v":"Usbekistan"}]
[null,null,null,null,null,null,null,null,null,null,null,null,null,null,null,null,null,null,null,null,null,null,null,null,null,null,null,null,null,null,null,null,null,null,null,null,null,null,null,null,null,null,null,null,null,null,null,null,null,null,null,null,null,null,null,null,null,null,null,null,null,null,null,null,null,null,null,null,null,null,null,null,null,null,null,null,null,null,null,null,null,null,null,null,null,null,null,null,null,null,null,null,"BCDEFGJL","Haiti","Iran","Katar","Australien",{"$f":"$CE$12","v":"Österreich"},"Schweden",{"$f":"$CE$26","v":"Ghana"},{"$f":"$BB$5","v":"Elfenbeinküste"}]
[null,null,null,null,null,null,null,null,null,null,null,null,null,null,null,null,null,null,null,null,null,null,null,null,null,null,null,null,null,null,null,null,null,null,null,null,null,null,null,null,null,null,null,null,null,null,null,null,null,null,null,null,null,null,null,null,null,null,null,null,null,null,null,null,null,null,null,null,null,null,null,null,null,null,null,null,null,null,null,null,null,null,null,null,null,null,null,null,null,null,null,null,"BCDEFGKL","Haiti","Iran","Katar","Australien",{"$f":"$BB$5","v":"Elfenbeinküste"},"Schweden",{"$f":"$CE$26","v":"Ghana"},{"$f":"$CE$19","v":"Usbekistan"}]
[null,null,null,null,null,null,null,null,null,null,null,null,null,null,null,null,null,null,null,null,null,null,null,null,null,null,null,null,null,null,null,null,null,null,null,null,null,null,null,null,null,null,null,null,null,null,null,null,null,null,null,null,null,null,null,null,null,null,null,null,null,null,null,null,null,null,null,null,null,null,null,null,null,null,null,null,null,null,null,null,null,null,null,null,null,null,null,null,null,null,null,null,"BCDEFHIJ","Haiti",{"$f":"$CE$12","v":"Österreich"},"Katar","Australien",{"$f":"$BB$26","v":"Saudi-Arabien"},"Schweden",{"$f":"$BB$5","v":"Elfenbeinküste"},{"$f":"$CE$5","v":"Irak"}]
[null,null,null,null,null,null,null,null,null,null,null,null,null,null,null,null,null,null,null,null,null,null,null,null,null,null,null,null,null,null,null,null,null,null,null,null,null,null,null,null,null,null,null,null,null,null,null,null,null,null,null,null,null,null,null,null,null,null,null,null,null,null,null,null,null,null,null,null,null,null,null,null,null,null,null,null,null,null,null,null,null,null,null,null,null,null,null,null,null,null,null,null,"BCDEFHIK","Haiti",{"$f":"$BB$5","v":"Elfenbeinküste"},"Katar","Australien","Saudi-Arabien","Schweden",{"$f":"$CE$5","v":"Irak"},{"$f":"$CE$19","v":"Usbekistan"}]
[null,null,null,null,null,null,null,null,null,null,null,null,null,null,null,null,null,null,null,null,null,null,null,null,null,null,null,null,null,null,null,null,null,null,null,null,null,null,null,null,null,null,null,null,null,null,null,null,null,null,null,null,null,null,null,null,null,null,null,null,null,null,null,null,null,null,null,null,null,null,null,null,null,null,null,null,null,null,null,null,null,null,null,null,null,null,null,null,null,null,null,null,"BCDEFHIL","Haiti",{"$f":"$BB$5","v":"Elfenbeinküste"},"Katar","Australien","Saudi-Arabien","Schweden",{"$f":"$CE$26","v":"Ghana"},{"$f":"$CE$5","v":"Irak"}]
[null,null,null,null,null,null,null,null,null,null,null,null,null,null,null,null,null,null,null,null,null,null,null,null,null,null,null,null,null,null,null,null,null,null,null,null,null,null,null,null,null,null,null,null,null,null,null,null,null,null,null,null,null,null,null,null,null,null,null,null,null,null,null,null,null,null,null,null,null,null,null,null,null,null,null,null,null,null,null,null,null,null,null,null,null,null,null,null,null,null,null,null,"BCDEFHJK","Haiti",{"$f":"$CE$12","v":"Österreich"},"Katar","Australien","Saudi-Arabien","Schweden",{"$f":"$BB$5","v":"Elfenbeinküste"},{"$f":"$CE$19","v":"Usbekistan"}]
[null,null,null,null,null,null,null,null,null,null,null,null,null,null,null,null,null,null,null,null,null,null,null,null,null,null,null,null,null,null,null,null,null,null,null,null,null,null,null,null,null,null,null,null,null,null,null,null,null,null,null,null,null,null,null,null,null,null,null,null,null,null,null,null,null,null,null,null,null,null,null,null,null,null,null,null,null,null,null,null,null,null,null,null,null,null,null,null,null,null,null,null,"BCDEFHJL","Haiti",{"$f":"$CE$12","v":"Österreich"},"Katar","Australien","Saudi-Arabien","Schweden",{"$f":"$CE$26","v":"Ghana"},{"$f":"$BB$5","v":"Elfenbeinküste"}]
[null,null,null,null,null,null,null,null,null,null,null,null,null,null,null,null,null,null,null,null,null,null,null,null,null,null,null,null,null,null,null,null,null,null,null,null,null,null,null,null,null,null,null,null,null,null,null,null,null,null,null,null,null,null,null,null,null,null,null,null,null,null,null,null,null,null,null,null,null,null,null,null,null,null,null,null,null,null,null,null,null,null,null,null,null,null,null,null,null,null,null,null,"BCDEFHKL","Haiti",{"$f":"$BB$5","v":"Elfenbeinküste"},"Katar","Australien","Saudi-Arabien","Schweden",{"$f":"$CE$26","v":"Ghana"},{"$f":"$CE$19","v":"Usbekistan"}]
[null,null,null,null,null,null,null,null,null,null,null,null,null,null,null,null,null,null,null,null,null,null,null,null,null,null,null,null,null,null,null,null,null,null,null,null,null,null,null,null,null,null,null,null,null,null,null,null,null,null,null,null,null,null,null,null,null,null,null,null,null,null,null,null,null,null,null,null,null,null,null,null,null,null,null,null,null,null,null,null,null,null,null,null,null,null,null,null,null,null,null,null,"BCDEFIJK","Haiti",{"$f":"$CE$12","v":"Österreich"},"Katar","Australien",{"$f":"$BB$5","v":"Elfenbeinküste"},"Schweden",{"$f":"$CE$5","v":"Irak"},{"$f":"$CE$19","v":"Usbekistan"}]
[null,null,null,null,null,null,null,null,null,null,null,null,null,null,null,null,null,null,null,null,null,null,null,null,null,null,null,null,null,null,null,null,null,null,null,null,null,null,null,null,null,null,null,null,null,null,null,null,null,null,null,null,null,null,null,null,null,null,null,null,null,null,null,null,null,null,null,null,null,null,null,null,null,null,null,null,null,null,null,null,null,null,null,null,null,null,null,null,null,null,null,null,"BCDEFIJL","Haiti",{"$f":"$CE$12","v":"Österreich"},"Katar","Australien",{"$f":"$BB$5","v":"Elfenbeinküste"},"Schweden",{"$f":"$CE$26","v":"Ghana"},{"$f":"$CE$5","v":"Irak"}]
[null,null,null,null,null,null,null,null,null,null,null,null,null,null,null,null,null,null,null,null,null,null,null,null,null,null,null,null,null,null,null,null,null,null,null,null,null,null,null,null,null,null,null,null,null,null,null,null,null,null,null,null,null,null,null,null,null,null,null,null,null,null,null,null,null,null,null,null,null,null,null,null,null,null,null,null,null,null,null,null,null,null,null,null,null,null,null,null,null,null,null,null,"BCDEFIKL","Haiti",{"$f":"$BB$5","v":"Elfenbeinküste"},"Katar","Australien",{"$f":"$CE$5","v":"Irak"},"Schweden",{"$f":"$CE$26","v":"Ghana"},{"$f":"$CE$19","v":"Usbekistan"}]
[null,null,null,null,null,null,null,null,null,null,null,null,null,null,null,null,null,null,null,null,null,null,null,null,null,null,null,null,null,null,null,null,null,null,null,null,null,null,null,null,null,null,null,null,null,null,null,null,null,null,null,null,null,null,null,null,null,null,null,null,null,null,null,null,null,null,null,null,null,null,null,null,null,null,null,null,null,null,null,null,null,null,null,null,null,null,null,null,null,null,null,null,"BCDEFJKL","Haiti",{"$f":"$CE$12","v":"Österreich"},"Katar","Australien",{"$f":"$BB$5","v":"Elfenbeinküste"},"Schweden",{"$f":"$CE$26","v":"Ghana"},{"$f":"$CE$19","v":"Usbekistan"}]
[null,null,null,null,null,null,null,null,null,null,null,null,null,null,null,null,null,null,null,null,null,null,null,null,null,null,null,null,null,null,null,null,null,null,null,null,null,null,null,null,null,null,null,null,null,null,null,null,null,null,null,null,null,null,null,null,null,null,null,null,null,null,null,null,null,null,null,null,null,null,null,null,null,null,null,null,null,null,null,null,null,null,null,null,null,null,null,null,null,null,null,null,"BCDEGHIJ",{"$f":"$BB$26","v":"Saudi-Arabien"},{"$f":"$BB$19","v":"Iran"},"Katar",{"$f":"$Y$19","v":"Haiti"},{"$f":"$CE$12","v":"Österreich"},{"$f":"$Y$26","v":"Australien"},{"$f":"$BB$5","v":"Elfenbeinküste"},{"$f":"$CE$5","v":"Irak"}]
[null,null,null,null,null,null,null,null,null,null,null,null,null,null,null,null,null,null,null,null,null,null,null,null,null,null,null,null,null,null,null,null,null,null,null,null,null,null,null,null,null,null,null,null,null,null,null,null,null,null,null,null,null,null,null,null,null,null,null,null,null,null,null,null,null,null,null,null,null,null,null,null,null,null,null,null,null,null,null,null,null,null,null,null,null,null,null,null,null,null,null,null,"BCDEGHIK",{"$f":"$BB$5","v":"Elfenbeinküste"},"Iran","Katar","Haiti",{"$f":"$BB$26","v":"Saudi-Arabien"},"Australien",{"$f":"$CE$5","v":"Irak"},{"$f":"$CE$19","v":"Usbekistan"}]
[null,null,null,null,null,null,null,null,null,null,null,null,null,null,null,null,null,null,null,null,null,null,null,null,null,null,null,null,null,null,null,null,null,null,null,null,null,null,null,null,null,null,null,null,null,null,null,null,null,null,null,null,null,null,null,null,null,null,null,null,null,null,null,null,null,null,null,null,null,null,null,null,null,null,null,null,null,null,null,null,null,null,null,null,null,null,null,null,null,null,null,null,"BCDEGHIL",{"$f":"$BB$5","v":"Elfenbeinküste"},"Iran","Katar","Haiti",{"$f":"$BB$26","v":"Saudi-Arabien"},"Australien",{"$f":"$CE$26","v":"Ghana"},{"$f":"$CE$5","v":"Irak"}]
[null,null,null,null,null,null,null,null,null,null,null,null,null,null,null,null,null,null,null,null,null,null,null,null,null,null,null,null,null,null,null,null,null,null,null,null,null,null,null,null,null,null,null,null,null,null,null,null,null,null,null,null,null,null,null,null,null,null,null,null,null,null,null,null,null,null,null,null,null,null,null,null,null,null,null,null,null,null,null,null,null,null,null,null,null,null,null,null,null,null,null,null,"BCDEGHJK",{"$f":"$BB$26","v":"Saudi-Arabien"},"Iran","Katar","Haiti",{"$f":"$CE$12","v":"Österreich"},"Australien",{"$f":"$BB$5","v":"Elfenbeinküste"},{"$f":"$CE$19","v":"Usbekistan"}]
[null,null,null,null,null,null,null,null,null,null,null,null,null,null,null,null,null,null,null,null,null,null,null,null,null,null,null,null,null,null,null,null,null,null,null,null,null,null,null,null,null,null,null,null,null,null,null,null,null,null,null,null,null,null,null,null,null,null,null,null,null,null,null,null,null,null,null,null,null,null,null,null,null,null,null,null,null,null,null,null,null,null,null,null,null,null,null,null,null,null,null,null,"BCDEGHJL",{"$f":"$BB$26","v":"Saudi-Arabien"},"Iran","Katar","Haiti",{"$f":"$CE$12","v":"Österreich"},"Australien",{"$f":"$CE$26","v":"Ghana"},{"$f":"$BB$5","v":"Elfenbeinküste"}]
[null,null,null,null,null,null,null,null,null,null,null,null,null,null,null,null,null,null,null,null,null,null,null,null,null,null,null,null,null,null,null,null,null,null,null,null,null,null,null,null,null,null,null,null,null,null,null,null,null,null,null,null,null,null,null,null,null,null,null,null,null,null,null,null,null,null,null,null,null,null,null,null,null,null,null,null,null,null,null,null,null,null,null,null,null,null,null,null,null,null,null,null,"BCDEGHKL",{"$f":"$BB$5","v":"Elfenbeinküste"},"Iran","Katar","Haiti",{"$f":"$BB$26","v":"Saudi-Arabien"},"Australien",{"$f":"$CE$26","v":"Ghana"},{"$f":"$CE$19","v":"Usbekistan"}]
[null,null,null,null,null,null,null,null,null,null,null,null,null,null,null,null,null,null,null,null,null,null,null,null,null,null,null,null,null,null,null,null,null,null,null,null,null,null,null,null,null,null,null,null,null,null,null,null,null,null,null,null,null,null,null,null,null,null,null,null,null,null,null,null,null,null,null,null,null,null,null,null,null,null,null,null,null,null,null,null,null,null,null,null,null,null,null,null,null,null,null,null,"BCDEGIJK","Elfenbeinküste","Iran","Katar","Haiti",{"$f":"$CE$12","v":"Österreich"},"Australien",{"$f":"$CE$5","v":"Irak"},{"$f":"$CE$19","v":"Usbekistan"}]
[null,null,null,null,null,null,null,null,null,null,null,null,null,null,null,null,null,null,null,null,null,null,null,null,null,null,null,null,null,null,null,null,null,null,null,null,null,null,null,null,null,null,null,null,null,null,null,null,null,null,null,null,null,null,null,null,null,null,null,null,null,null,null,null,null,null,null,null,null,null,null,null,null,null,null,null,null,null,null,null,null,null,null,null,null,null,null,null,null,null,null,null,"BCDEGIJL","Elfenbeinküste","Iran","Katar","Haiti",{"$f":"$CE$12","v":"Österreich"},"Australien",{"$f":"$CE$26","v":"Ghana"},{"$f":"$CE$5","v":"Irak"}]
[null,null,null,null,null,null,null,null,null,null,null,null,null,null,null,null,null,null,null,null,null,null,null,null,null,null,null,null,null,null,null,null,null,null,null,null,null,null,null,null,null,null,null,null,null,null,null,null,null,null,null,null,null,null,null,null,null,null,null,null,null,null,null,null,null,null,null,null,null,null,null,null,null,null,null,null,null,null,null,null,null,null,null,null,null,null,null,null,null,null,null,null,"BCDEGIKL","Elfenbeinküste","Iran","Katar","Haiti",{"$f":"$CE$5","v":"Irak"},"Australien",{"$f":"$CE$26","v":"Ghana"},{"$f":"$CE$19","v":"Usbekistan"}]
[null,null,null,null,null,null,null,null,null,null,null,null,null,null,null,null,null,null,null,null,null,null,null,null,null,null,null,null,null,null,null,null,null,null,null,null,null,null,null,null,null,null,null,null,null,null,null,null,null,null,null,null,null,null,null,null,null,null,null,null,null,null,null,null,null,null,null,null,null,null,null,null,null,null,null,null,null,null,null,null,null,null,null,null,null,null,null,null,null,null,null,null,"BCDEGJKL","Elfenbeinküste","Iran","Katar","Haiti",{"$f":"$CE$12","v":"Österreich"},"Australien",{"$f":"$CE$26","v":"Ghana"},{"$f":"$CE$19","v":"Usbekistan"}]
[null,null,null,null,null,null,null,null,null,null,null,null,null,null,null,null,null,null,null,null,null,null,null,null,null,null,null,null,null,null,null,null,null,null,null,null,null,null,null,null,null,null,null,null,null,null,null,null,null,null,null,null,null,null,null,null,null,null,null,null,null,null,null,null,null,null,null,null,null,null,null,null,null,null,null,null,null,null,null,null,null,null,null,null,null,null,null,null,null,null,null,null,"BCDEHIJK","Elfenbeinküste",{"$f":"$CE$12","v":"Österreich"},"Katar","Haiti",{"$f":"$BB$26","v":"Saudi-Arabien"},"Australien",{"$f":"$CE$5","v":"Irak"},{"$f":"$CE$19","v":"Usbekistan"}]
[null,null,null,null,null,null,null,null,null,null,null,null,null,null,null,null,null,null,null,null,null,null,null,null,null,null,null,null,null,null,null,null,null,null,null,null,null,null,null,null,null,null,null,null,null,null,null,null,null,null,null,null,null,null,null,null,null,null,null,null,null,null,null,null,null,null,null,null,null,null,null,null,null,null,null,null,null,null,null,null,null,null,null,null,null,null,null,null,null,null,null,null,"BCDEHIJL","Elfenbeinküste",{"$f":"$CE$12","v":"Österreich"},"Katar","Haiti",{"$f":"$BB$26","v":"Saudi-Arabien"},"Australien",{"$f":"$CE$26","v":"Ghana"},{"$f":"$CE$5","v":"Irak"}]
[null,null,null,null,null,null,null,null,null,null,null,null,null,null,null,null,null,null,null,null,null,null,null,null,null,null,null,null,null,null,null,null,null,null,null,null,null,null,null,null,null,null,null,null,null,null,null,null,null,null,null,null,null,null,null,null,null,null,null,null,null,null,null,null,null,null,null,null,null,null,null,null,null,null,null,null,null,null,null,null,null,null,null,null,null,null,null,null,null,null,null,null,"BCDEHIKL","Elfenbeinküste",{"$f":"$CE$5","v":"Irak"},{"$f":"$Y$12","v":"Katar"},"Haiti",{"$f":"$BB$26","v":"Saudi-Arabien"},"Australien",{"$f":"$CE$26","v":"Ghana"},{"$f":"$CE$19","v":"Usbekistan"}]
[null,null,null,null,null,null,null,null,null,null,null,null,null,null,null,null,null,null,null,null,null,null,null,null,null,null,null,null,null,null,null,null,null,null,null,null,null,null,null,null,null,null,null,null,null,null,null,null,null,null,null,null,null,null,null,null,null,null,null,null,null,null,null,null,null,null,null,null,null,null,null,null,null,null,null,null,null,null,null,null,null,null,null,null,null,null,null,null,null,null,null,null,"BCDEHJKL","Elfenbeinküste",{"$f":"$CE$12","v":"Österreich"},"Katar","Haiti",{"$f":"$BB$26","v":"Saudi-Arabien"},"Australien",{"$f":"$CE$26","v":"Ghana"},{"$f":"$CE$19","v":"Usbekistan"}]
[null,null,null,null,null,null,null,null,null,null,null,null,null,null,null,null,null,null,null,null,null,null,null,null,null,null,null,null,null,null,null,null,null,null,null,null,null,null,null,null,null,null,null,null,null,null,null,null,null,null,null,null,null,null,null,null,null,null,null,null,null,null,null,null,null,null,null,null,null,null,null,null,null,null,null,null,null,null,null,null,null,null,null,null,null,null,null,null,null,null,null,null,"BCDEIJKL","Elfenbeinküste",{"$f":"$CE$12","v":"Österreich"},"Katar","Haiti",{"$f":"$CE$5","v":"Irak"},"Australien",{"$f":"$CE$26","v":"Ghana"},{"$f":"$CE$19","v":"Usbekistan"}]
[null,null,null,null,null,null,null,null,null,null,null,null,null,null,null,null,null,null,null,null,null,null,null,null,null,null,null,null,null,null,null,null,null,null,null,null,null,null,null,null,null,null,null,null,null,null,null,null,null,null,null,null,null,null,null,null,null,null,null,null,null,null,null,null,null,null,null,null,null,null,null,null,null,null,null,null,null,null,null,null,null,null,null,null,null,null,null,null,null,null,null,null,"BCDFGHIJ",{"$f":"$BB$26","v":"Saudi-Arabien"},{"$f":"$BB$19","v":"Iran"},"Katar","Haiti",{"$f":"$CE$12","v":"Österreich"},{"$f":"$BB$12","v":"Schweden"},{"$f":"$Y$26","v":"Australien"},{"$f":"$CE$5","v":"Irak"}]
[null,null,null,null,null,null,null,null,null,null,null,null,null,null,null,null,null,null,null,null,null,null,null,null,null,null,null,null,null,null,null,null,null,null,null,null,null,null,null,null,null,null,null,null,null,null,null,null,null,null,null,null,null,null,null,null,null,null,null,null,null,null,null,null,null,null,null,null,null,null,null,null,null,null,null,null,null,null,null,null,null,null,null,null,null,null,null,null,null,null,null,null,"BCDFGHIK",{"$f":"$Y$19","v":"Haiti"},"Iran","Katar",{"$f":"$Y$26","v":"Australien"},{"$f":"$BB$26","v":"Saudi-Arabien"},"Schweden",{"$f":"$CE$5","v":"Irak"},{"$f":"$CE$19","v":"Usbekistan"}]
[null,null,null,null,null,null,null,null,null,null,null,null,null,null,null,null,null,null,null,null,null,null,null,null,null,null,null,null,null,null,null,null,null,null,null,null,null,null,null,null,null,null,null,null,null,null,null,null,null,null,null,null,null,null,null,null,null,null,null,null,null,null,null,null,null,null,null,null,null,null,null,null,null,null,null,null,null,null,null,null,null,null,null,null,null,null,null,null,null,null,null,null,"BCDFGHIL",{"$f":"$Y$19","v":"Haiti"},"Iran","Katar",{"$f":"$Y$26","v":"Australien"},{"$f":"$BB$26","v":"Saudi-Arabien"},"Schweden",{"$f":"$CE$26","v":"Ghana"},{"$f":"$CE$5","v":"Irak"}]
[null,null,null,null,null,null,null,null,null,null,null,null,null,null,null,null,null,null,null,null,null,null,null,null,null,null,null,null,null,null,null,null,null,null,null,null,null,null,null,null,null,null,null,null,null,null,null,null,null,null,null,null,null,null,null,null,null,null,null,null,null,null,null,null,null,null,null,null,null,null,null,null,null,null,null,null,null,null,null,null,null,null,null,null,null,null,null,null,null,null,null,null,"BCDFGHJK",{"$f":"$BB$26","v":"Saudi-Arabien"},"Iran","Katar",{"$f":"$Y$19","v":"Haiti"},{"$f":"$CE$12","v":"Österreich"},"Schweden",{"$f":"$Y$26","v":"Australien"},{"$f":"$CE$19","v":"Usbekistan"}]
[null,null,null,null,null,null,null,null,null,null,null,null,null,null,null,null,null,null,null,null,null,null,null,null,null,null,null,null,null,null,null,null,null,null,null,null,null,null,null,null,null,null,null,null,null,null,null,null,null,null,null,null,null,null,null,null,null,null,null,null,null,null,null,null,null,null,null,null,null,null,null,null,null,null,null,null,null,null,null,null,null,null,null,null,null,null,null,null,null,null,null,null,"BCDFGHJL",{"$f":"$Y$19","v":"Haiti"},"Iran","Katar",{"$f":"$Y$26","v":"Australien"},{"$f":"$BB$26","v":"Saudi-Arabien"},"Schweden",{"$f":"$CE$26","v":"Ghana"},{"$f":"$CE$12","v":"Österreich"}]
[null,null,null,null,null,null,null,null,null,null,null,null,null,null,null,null,null,null,null,null,null,null,null,null,null,null,null,null,null,null,null,null,null,null,null,null,null,null,null,null,null,null,null,null,null,null,null,null,null,null,null,null,null,null,null,null,null,null,null,null,null,null,null,null,null,null,null,null,null,null,null,null,null,null,null,null,null,null,null,null,null,null,null,null,null,null,null,null,null,null,null,null,"BCDFGHKL","Haiti","Iran","Katar","Australien",{"$f":"$BB$26","v":"Saudi-Arabien"},"Schweden",{"$f":"$CE$26","v":"Ghana"},{"$f":"$CE$19","v":"Usbekistan"}]
[null,null,null,null,null,null,null,null,null,null,null,null,null,null,null,null,null,null,null,null,null,null,null,null,null,null,null,null,null,null,null,null,null,null,null,null,null,null,null,null,null,null,null,null,null,null,null,null,null,null,null,null,null,null,null,null,null,null,null,null,null,null,null,null,null,null,null,null,null,null,null,null,null,null,null,null,null,null,null,null,null,null,null,null,null,null,null,null,null,null,null,null,"BCDFGIJK","Haiti","Iran","Katar","Australien",{"$f":"$CE$12","v":"Österreich"},"Schweden",{"$f":"$CE$5","v":"Irak"},{"$f":"$CE$19","v":"Usbekistan"}]
[null,null,null,null,null,null,null,null,null,null,null,null,null,null,null,null,null,null,null,null,null,null,null,null,null,null,null,null,null,null,null,null,null,null,null,null,null,null,null,null,null,null,null,null,null,null,null,null,null,null,null,null,null,null,null,null,null,null,null,null,null,null,null,null,null,null,null,null,null,null,null,null,null,null,null,null,null,null,null,null,null,null,null,null,null,null,null,null,null,null,null,null,"BCDFGIJL","Haiti","Iran","Katar","Australien",{"$f":"$CE$12","v":"Österreich"},"Schweden",{"$f":"$CE$26","v":"Ghana"},{"$f":"$CE$5","v":"Irak"}]
[null,null,null,null,null,null,null,null,null,null,null,null,null,null,null,null,null,null,null,null,null,null,null,null,null,null,null,null,null,null,null,null,null,null,null,null,null,null,null,null,null,null,null,null,null,null,null,null,null,null,null,null,null,null,null,null,null,null,null,null,null,null,null,null,null,null,null,null,null,null,null,null,null,null,null,null,null,null,null,null,null,null,null,null,null,null,null,null,null,null,null,null,"BCDFGIKL","Haiti","Iran","Katar","Australien",{"$f":"$CE$5","v":"Irak"},"Schweden",{"$f":"$CE$26","v":"Ghana"},{"$f":"$CE$19","v":"Usbekistan"}]
[null,null,null,null,null,null,null,null,null,null,null,null,null,null,null,null,null,null,null,null,null,null,null,null,null,null,null,null,null,null,null,null,null,null,null,null,null,null,null,null,null,null,null,null,null,null,null,null,null,null,null,null,null,null,null,null,null,null,null,null,null,null,null,null,null,null,null,null,null,null,null,null,null,null,null,null,null,null,null,null,null,null,null,null,null,null,null,null,null,null,null,null,"BCDFGJKL","Haiti","Iran","Katar","Australien",{"$f":"$CE$12","v":"Österreich"},"Schweden",{"$f":"$CE$26","v":"Ghana"},{"$f":"$CE$19","v":"Usbekistan"}]
[null,null,null,null,null,null,null,null,null,null,null,null,null,null,null,null,null,null,null,null,null,null,null,null,null,null,null,null,null,null,null,null,null,null,null,null,null,null,null,null,null,null,null,null,null,null,null,null,null,null,null,null,null,null,null,null,null,null,null,null,null,null,null,null,null,null,null,null,null,null,null,null,null,null,null,null,null,null,null,null,null,null,null,null,null,null,null,null,null,null,null,null,"BCDFHIJK","Haiti",{"$f":"$CE$12","v":"Österreich"},"Katar","Australien",{"$f":"$BB$26","v":"Saudi-Arabien"},"Schweden",{"$f":"$CE$5","v":"Irak"},{"$f":"$CE$19","v":"Usbekistan"}]
[null,null,null,null,null,null,null,null,null,null,null,null,null,null,null,null,null,null,null,null,null,null,null,null,null,null,null,null,null,null,null,null,null,null,null,null,null,null,null,null,null,null,null,null,null,null,null,null,null,null,null,null,null,null,null,null,null,null,null,null,null,null,null,null,null,null,null,null,null,null,null,null,null,null,null,null,null,null,null,null,null,null,null,null,null,null,null,null,null,null,null,null,"BCDFHIJL","Haiti",{"$f":"$CE$12","v":"Österreich"},"Katar","Australien",{"$f":"$BB$26","v":"Saudi-Arabien"},"Schweden",{"$f":"$CE$26","v":"Ghana"},{"$f":"$CE$5","v":"Irak"}]
[null,null,null,null,null,null,null,null,null,null,null,null,null,null,null,null,null,null,null,null,null,null,null,null,null,null,null,null,null,null,null,null,null,null,null,null,null,null,null,null,null,null,null,null,null,null,null,null,null,null,null,null,null,null,null,null,null,null,null,null,null,null,null,null,null,null,null,null,null,null,null,null,null,null,null,null,null,null,null,null,null,null,null,null,null,null,null,null,null,null,null,null,"BCDFHIKL","Haiti",{"$f":"$CE$5","v":"Irak"},"Katar","Australien",{"$f":"$BB$26","v":"Saudi-Arabien"},"Schweden",{"$f":"$CE$26","v":"Ghana"},{"$f":"$CE$19","v":"Usbekistan"}]
[null,null,null,null,null,null,null,null,null,null,null,null,null,null,null,null,null,null,null,null,null,null,null,null,null,null,null,null,null,null,null,null,null,null,null,null,null,null,null,null,null,null,null,null,null,null,null,null,null,null,null,null,null,null,null,null,null,null,null,null,null,null,null,null,null,null,null,null,null,null,null,null,null,null,null,null,null,null,null,null,null,null,null,null,null,null,null,null,null,null,null,null,"BCDFHJKL","Haiti",{"$f":"$CE$12","v":"Österreich"},"Katar","Australien",{"$f":"$BB$26","v":"Saudi-Arabien"},"Schweden",{"$f":"$CE$26","v":"Ghana"},{"$f":"$CE$19","v":"Usbekistan"}]
[null,null,null,null,null,null,null,null,null,null,null,null,null,null,null,null,null,null,null,null,null,null,null,null,null,null,null,null,null,null,null,null,null,null,null,null,null,null,null,null,null,null,null,null,null,null,null,null,null,null,null,null,null,null,null,null,null,null,null,null,null,null,null,null,null,null,null,null,null,null,null,null,null,null,null,null,null,null,null,null,null,null,null,null,null,null,null,null,null,null,null,null,"BCDFIJKL","Haiti",{"$f":"$CE$12","v":"Österreich"},"Katar","Australien",{"$f":"$CE$5","v":"Irak"},"Schweden",{"$f":"$CE$26","v":"Ghana"},{"$f":"$CE$19","v":"Usbekistan"}]
[null,null,null,null,null,null,null,null,null,null,null,null,null,null,null,null,null,null,null,null,null,null,null,null,null,null,null,null,null,null,null,null,null,null,null,null,null,null,null,null,null,null,null,null,null,null,null,null,null,null,null,null,null,null,null,null,null,null,null,null,null,null,null,null,null,null,null,null,null,null,null,null,null,null,null,null,null,null,null,null,null,null,null,null,null,null,null,null,null,null,null,null,"BCDGHIJK",{"$f":"$BB$26","v":"Saudi-Arabien"},{"$f":"$BB$19","v":"Iran"},"Katar",{"$f":"$Y$19","v":"Haiti"},{"$f":"$CE$12","v":"Österreich"},{"$f":"$Y$26","v":"Australien"},{"$f":"$CE$5","v":"Irak"},{"$f":"$CE$19","v":"Usbekistan"}]
[null,null,null,null,null,null,null,null,null,null,null,null,null,null,null,null,null,null,null,null,null,null,null,null,null,null,null,null,null,null,null,null,null,null,null,null,null,null,null,null,null,null,null,null,null,null,null,null,null,null,null,null,null,null,null,null,null,null,null,null,null,null,null,null,null,null,null,null,null,null,null,null,null,null,null,null,null,null,null,null,null,null,null,null,null,null,null,null,null,null,null,null,"BCDGHIJL",{"$f":"$BB$26","v":"Saudi-Arabien"},{"$f":"$BB$19","v":"Iran"},"Katar","Haiti",{"$f":"$CE$12","v":"Österreich"},"Australien",{"$f":"$CE$26","v":"Ghana"},{"$f":"$CE$5","v":"Irak"}]
[null,null,null,null,null,null,null,null,null,null,null,null,null,null,null,null,null,null,null,null,null,null,null,null,null,null,null,null,null,null,null,null,null,null,null,null,null,null,null,null,null,null,null,null,null,null,null,null,null,null,null,null,null,null,null,null,null,null,null,null,null,null,null,null,null,null,null,null,null,null,null,null,null,null,null,null,null,null,null,null,null,null,null,null,null,null,null,null,null,null,null,null,"BCDGHIKL",{"$f":"$BB$26","v":"Saudi-Arabien"},{"$f":"$BB$19","v":"Iran"},"Katar","Haiti",{"$f":"$CE$5","v":"Irak"},"Australien",{"$f":"$CE$26","v":"Ghana"},{"$f":"$CE$19","v":"Usbekistan"}]
[null,null,null,null,null,null,null,null,null,null,null,null,null,null,null,null,null,null,null,null,null,null,null,null,null,null,null,null,null,null,null,null,null,null,null,null,null,null,null,null,null,null,null,null,null,null,null,null,null,null,null,null,null,null,null,null,null,null,null,null,null,null,null,null,null,null,null,null,null,null,null,null,null,null,null,null,null,null,null,null,null,null,null,null,null,null,null,null,null,null,null,null,"BCDGHJKL",{"$f":"$BB$26","v":"Saudi-Arabien"},{"$f":"$BB$19","v":"Iran"},"Katar","Haiti",{"$f":"$CE$12","v":"Österreich"},"Australien",{"$f":"$CE$26","v":"Ghana"},{"$f":"$CE$19","v":"Usbekistan"}]
[null,null,null,null,null,null,null,null,null,null,null,null,null,null,null,null,null,null,null,null,null,null,null,null,null,null,null,null,null,null,null,null,null,null,null,null,null,null,null,null,null,null,null,null,null,null,null,null,null,null,null,null,null,null,null,null,null,null,null,null,null,null,null,null,null,null,null,null,null,null,null,null,null,null,null,null,null,null,null,null,null,null,null,null,null,null,null,null,null,null,null,null,"BCDGIJKL",{"$f":"$CE$5","v":"Irak"},{"$f":"$BB$19","v":"Iran"},"Katar","Haiti",{"$f":"$CE$12","v":"Österreich"},"Australien",{"$f":"$CE$26","v":"Ghana"},{"$f":"$CE$19","v":"Usbekistan"}]
[null,null,null,null,null,null,null,null,null,null,null,null,null,null,null,null,null,null,null,null,null,null,null,null,null,null,null,null,null,null,null,null,null,null,null,null,null,null,null,null,null,null,null,null,null,null,null,null,null,null,null,null,null,null,null,null,null,null,null,null,null,null,null,null,null,null,null,null,null,null,null,null,null,null,null,null,null,null,null,null,null,null,null,null,null,null,null,null,null,null,null,null,"BCDHIJKL",{"$f":"$BB$26","v":"Saudi-Arabien"},{"$f":"$CE$12","v":"Österreich"},"Katar","Haiti",{"$f":"$CE$5","v":"Irak"},"Australien",{"$f":"$CE$26","v":"Ghana"},{"$f":"$CE$19","v":"Usbekistan"}]
[null,null,null,null,null,null,null,null,null,null,null,null,null,null,null,null,null,null,null,null,null,null,null,null,null,null,null,null,null,null,null,null,null,null,null,null,null,null,null,null,null,null,null,null,null,null,null,null,null,null,null,null,null,null,null,null,null,null,null,null,null,null,null,null,null,null,null,null,null,null,null,null,null,null,null,null,null,null,null,null,null,null,null,null,null,null,null,null,null,null,null,null,"BCEFGHIJ",{"$f":"$BB$26","v":"Saudi-Arabien"},{"$f":"$BB$19","v":"Iran"},"Katar","Haiti",{"$f":"$CE$12","v":"Österreich"},{"$f":"$BB$12","v":"Schweden"},{"$f":"$BB$5","v":"Elfenbeinküste"},{"$f":"$CE$5","v":"Irak"}]
[null,null,null,null,null,null,null,null,null,null,null,null,null,null,null,null,null,null,null,null,null,null,null,null,null,null,null,null,null,null,null,null,null,null,null,null,null,null,null,null,null,null,null,null,null,null,null,null,null,null,null,null,null,null,null,null,null,null,null,null,null,null,null,null,null,null,null,null,null,null,null,null,null,null,null,null,null,null,null,null,null,null,null,null,null,null,null,null,null,null,null,null,"BCEFGHIK",{"$f":"$BB$5","v":"Elfenbeinküste"},"Iran","Katar","Haiti",{"$f":"$BB$26","v":"Saudi-Arabien"},"Schweden",{"$f":"$CE$5","v":"Irak"},{"$f":"$CE$19","v":"Usbekistan"}]
[null,null,null,null,null,null,null,null,null,null,null,null,null,null,null,null,null,null,null,null,null,null,null,null,null,null,null,null,null,null,null,null,null,null,null,null,null,null,null,null,null,null,null,null,null,null,null,null,null,null,null,null,null,null,null,null,null,null,null,null,null,null,null,null,null,null,null,null,null,null,null,null,null,null,null,null,null,null,null,null,null,null,null,null,null,null,null,null,null,null,null,null,"BCEFGHIL",{"$f":"$BB$5","v":"Elfenbeinküste"},"Iran","Katar","Haiti",{"$f":"$BB$26","v":"Saudi-Arabien"},"Schweden",{"$f":"$CE$26","v":"Ghana"},{"$f":"$CE$5","v":"Irak"}]
[null,null,null,null,null,null,null,null,null,null,null,null,null,null,null,null,null,null,null,null,null,null,null,null,null,null,null,null,null,null,null,null,null,null,null,null,null,null,null,null,null,null,null,null,null,null,null,null,null,null,null,null,null,null,null,null,null,null,null,null,null,null,null,null,null,null,null,null,null,null,null,null,null,null,null,null,null,null,null,null,null,null,null,null,null,null,null,null,null,null,null,null,"BCEFGHJK",{"$f":"$BB$26","v":"Saudi-Arabien"},"Iran","Katar","Haiti",{"$f":"$CE$12","v":"Österreich"},"Schweden",{"$f":"$BB$5","v":"Elfenbeinküste"},{"$f":"$CE$19","v":"Usbekistan"}]
[null,null,null,null,null,null,null,null,null,null,null,null,null,null,null,null,null,null,null,null,null,null,null,null,null,null,null,null,null,null,null,null,null,null,null,null,null,null,null,null,null,null,null,null,null,null,null,null,null,null,null,null,null,null,null,null,null,null,null,null,null,null,null,null,null,null,null,null,null,null,null,null,null,null,null,null,null,null,null,null,null,null,null,null,null,null,null,null,null,null,null,null,"BCEFGHJL",{"$f":"$BB$26","v":"Saudi-Arabien"},"Iran","Katar","Haiti",{"$f":"$CE$12","v":"Österreich"},"Schweden",{"$f":"$CE$26","v":"Ghana"},{"$f":"$BB$5","v":"Elfenbeinküste"}]
[null,null,null,null,null,null,null,null,null,null,null,null,null,null,null,null,null,null,null,null,null,null,null,null,null,null,null,null,null,null,null,null,null,null,null,null,null,null,null,null,null,null,null,null,null,null,null,null,null,null,null,null,null,null,null,null,null,null,null,null,null,null,null,null,null,null,null,null,null,null,null,null,null,null,null,null,null,null,null,null,null,null,null,null,null,null,null,null,null,null,null,null,"BCEFGHKL",{"$f":"$BB$5","v":"Elfenbeinküste"},"Iran","Katar","Haiti",{"$f":"$BB$26","v":"Saudi-Arabien"},"Schweden",{"$f":"$CE$26","v":"Ghana"},{"$f":"$CE$19","v":"Usbekistan"}]
[null,null,null,null,null,null,null,null,null,null,null,null,null,null,null,null,null,null,null,null,null,null,null,null,null,null,null,null,null,null,null,null,null,null,null,null,null,null,null,null,null,null,null,null,null,null,null,null,null,null,null,null,null,null,null,null,null,null,null,null,null,null,null,null,null,null,null,null,null,null,null,null,null,null,null,null,null,null,null,null,null,null,null,null,null,null,null,null,null,null,null,null,"BCEFGIJK","Elfenbeinküste","Iran","Katar","Haiti",{"$f":"$CE$12","v":"Österreich"},"Schweden",{"$f":"$CE$5","v":"Irak"},{"$f":"$CE$19","v":"Usbekistan"}]
[null,null,null,null,null,null,null,null,null,null,null,null,null,null,null,null,null,null,null,null,null,null,null,null,null,null,null,null,null,null,null,null,null,null,null,null,null,null,null,null,null,null,null,null,null,null,null,null,null,null,null,null,null,null,null,null,null,null,null,null,null,null,null,null,null,null,null,null,null,null,null,null,null,null,null,null,null,null,null,null,null,null,null,null,null,null,null,null,null,null,null,null,"BCEFGIJL","Elfenbeinküste","Iran","Katar","Haiti",{"$f":"$CE$12","v":"Österreich"},"Schweden",{"$f":"$CE$26","v":"Ghana"},{"$f":"$CE$5","v":"Irak"}]
[null,null,null,null,null,null,null,null,null,null,null,null,null,null,null,null,null,null,null,null,null,null,null,null,null,null,null,null,null,null,null,null,null,null,null,null,null,null,null,null,null,null,null,null,null,null,null,null,null,null,null,null,null,null,null,null,null,null,null,null,null,null,null,null,null,null,null,null,null,null,null,null,null,null,null,null,null,null,null,null,null,null,null,null,null,null,null,null,null,null,null,null,"BCEFGIKL","Elfenbeinküste","Iran",{"$f":"$Y$12","v":"Katar"},"Haiti",{"$f":"$CE$5","v":"Irak"},"Schweden",{"$f":"$CE$26","v":"Ghana"},{"$f":"$CE$19","v":"Usbekistan"}]
[null,null,null,null,null,null,null,null,null,null,null,null,null,null,null,null,null,null,null,null,null,null,null,null,null,null,null,null,null,null,null,null,null,null,null,null,null,null,null,null,null,null,null,null,null,null,null,null,null,null,null,null,null,null,null,null,null,null,null,null,null,null,null,null,null,null,null,null,null,null,null,null,null,null,null,null,null,null,null,null,null,null,null,null,null,null,null,null,null,null,null,null,"BCEFGJKL","Elfenbeinküste","Iran","Katar","Haiti",{"$f":"$CE$12","v":"Österreich"},"Schweden",{"$f":"$CE$26","v":"Ghana"},{"$f":"$CE$19","v":"Usbekistan"}]
[null,null,null,null,null,null,null,null,null,null,null,null,null,null,null,null,null,null,null,null,null,null,null,null,null,null,null,null,null,null,null,null,null,null,null,null,null,null,null,null,null,null,null,null,null,null,null,null,null,null,null,null,null,null,null,null,null,null,null,null,null,null,null,null,null,null,null,null,null,null,null,null,null,null,null,null,null,null,null,null,null,null,null,null,null,null,null,null,null,null,null,null,"BCEFHIJK","Elfenbeinküste",{"$f":"$CE$12","v":"Österreich"},"Katar","Haiti",{"$f":"$BB$26","v":"Saudi-Arabien"},"Schweden",{"$f":"$CE$5","v":"Irak"},{"$f":"$CE$19","v":"Usbekistan"}]
[null,null,null,null,null,null,null,null,null,null,null,null,null,null,null,null,null,null,null,null,null,null,null,null,null,null,null,null,null,null,null,null,null,null,null,null,null,null,null,null,null,null,null,null,null,null,null,null,null,null,null,null,null,null,null,null,null,null,null,null,null,null,null,null,null,null,null,null,null,null,null,null,null,null,null,null,null,null,null,null,null,null,null,null,null,null,null,null,null,null,null,null,"BCEFHIJL","Elfenbeinküste",{"$f":"$CE$12","v":"Österreich"},"Katar","Haiti",{"$f":"$BB$26","v":"Saudi-Arabien"},"Schweden",{"$f":"$CE$26","v":"Ghana"},{"$f":"$CE$5","v":"Irak"}]
[null,null,null,null,null,null,null,null,null,null,null,null,null,null,null,null,null,null,null,null,null,null,null,null,null,null,null,null,null,null,null,null,null,null,null,null,null,null,null,null,null,null,null,null,null,null,null,null,null,null,null,null,null,null,null,null,null,null,null,null,null,null,null,null,null,null,null,null,null,null,null,null,null,null,null,null,null,null,null,null,null,null,null,null,null,null,null,null,null,null,null,null,"BCEFHIKL","Elfenbeinküste",{"$f":"$CE$5","v":"Irak"},"Katar","Haiti",{"$f":"$BB$26","v":"Saudi-Arabien"},"Schweden",{"$f":"$CE$26","v":"Ghana"},{"$f":"$CE$19","v":"Usbekistan"}]
[null,null,null,null,null,null,null,null,null,null,null,null,null,null,null,null,null,null,null,null,null,null,null,null,null,null,null,null,null,null,null,null,null,null,null,null,null,null,null,null,null,null,null,null,null,null,null,null,null,null,null,null,null,null,null,null,null,null,null,null,null,null,null,null,null,null,null,null,null,null,null,null,null,null,null,null,null,null,null,null,null,null,null,null,null,null,null,null,null,null,null,null,"BCEFHJKL","Elfenbeinküste",{"$f":"$CE$12","v":"Österreich"},"Katar","Haiti",{"$f":"$BB$26","v":"Saudi-Arabien"},"Schweden",{"$f":"$CE$26","v":"Ghana"},{"$f":"$CE$19","v":"Usbekistan"}]
[null,null,null,null,null,null,null,null,null,null,null,null,null,null,null,null,null,null,null,null,null,null,null,null,null,null,null,null,null,null,null,null,null,null,null,null,null,null,null,null,null,null,null,null,null,null,null,null,null,null,null,null,null,null,null,null,null,null,null,null,null,null,null,null,null,null,null,null,null,null,null,null,null,null,null,null,null,null,null,null,null,null,null,null,null,null,null,null,null,null,null,null,"BCEFIJKL","Elfenbeinküste",{"$f":"$CE$12","v":"Österreich"},"Katar","Haiti",{"$f":"$CE$5","v":"Irak"},"Schweden",{"$f":"$CE$26","v":"Ghana"},{"$f":"$CE$19","v":"Usbekistan"}]
[null,null,null,null,null,null,null,null,null,null,null,null,null,null,null,null,null,null,null,null,null,null,null,null,null,null,null,null,null,null,null,null,null,null,null,null,null,null,null,null,null,null,null,null,null,null,null,null,null,null,null,null,null,null,null,null,null,null,null,null,null,null,null,null,null,null,null,null,null,null,null,null,null,null,null,null,null,null,null,null,null,null,null,null,null,null,null,null,null,null,null,null,"BCEGHIJK","Elfenbeinküste",{"$f":"$CE$12","v":"Österreich"},"Katar","Haiti",{"$f":"$BB$26","v":"Saudi-Arabien"},{"$f":"$BB$19","v":"Iran"},{"$f":"$CE$5","v":"Irak"},{"$f":"$CE$19","v":"Usbekistan"}]
[null,null,null,null,null,null,null,null,null,null,null,null,null,null,null,null,null,null,null,null,null,null,null,null,null,null,null,null,null,null,null,null,null,null,null,null,null,null,null,null,null,null,null,null,null,null,null,null,null,null,null,null,null,null,null,null,null,null,null,null,null,null,null,null,null,null,null,null,null,null,null,null,null,null,null,null,null,null,null,null,null,null,null,null,null,null,null,null,null,null,null,null,"BCEGHIJL","Elfenbeinküste",{"$f":"$CE$12","v":"Österreich"},"Katar","Haiti",{"$f":"$BB$26","v":"Saudi-Arabien"},{"$f":"$BB$19","v":"Iran"},{"$f":"$CE$26","v":"Ghana"},{"$f":"$CE$5","v":"Irak"}]
[null,null,null,null,null,null,null,null,null,null,null,null,null,null,null,null,null,null,null,null,null,null,null,null,null,null,null,null,null,null,null,null,null,null,null,null,null,null,null,null,null,null,null,null,null,null,null,null,null,null,null,null,null,null,null,null,null,null,null,null,null,null,null,null,null,null,null,null,null,null,null,null,null,null,null,null,null,null,null,null,null,null,null,null,null,null,null,null,null,null,null,null,"BCEGHIKL","Elfenbeinküste",{"$f":"$BB$19","v":"Iran"},"Katar","Haiti",{"$f":"$CE$5","v":"Irak"},{"$f":"$BB$26","v":"Saudi-Arabien"},{"$f":"$CE$26","v":"Ghana"},{"$f":"$CE$19","v":"Usbekistan"}]
[null,null,null,null,null,null,null,null,null,null,null,null,null,null,null,null,null,null,null,null,null,null,null,null,null,null,null,null,null,null,null,null,null,null,null,null,null,null,null,null,null,null,null,null,null,null,null,null,null,null,null,null,null,null,null,null,null,null,null,null,null,null,null,null,null,null,null,null,null,null,null,null,null,null,null,null,null,null,null,null,null,null,null,null,null,null,null,null,null,null,null,null,"BCEGHJKL","Elfenbeinküste",{"$f":"$CE$12","v":"Österreich"},"Katar","Haiti",{"$f":"$BB$26","v":"Saudi-Arabien"},{"$f":"$BB$19","v":"Iran"},{"$f":"$CE$26","v":"Ghana"},{"$f":"$CE$19","v":"Usbekistan"}]
[null,null,null,null,null,null,null,null,null,null,null,null,null,null,null,null,null,null,null,null,null,null,null,null,null,null,null,null,null,null,null,null,null,null,null,null,null,null,null,null,null,null,null,null,null,null,null,null,null,null,null,null,null,null,null,null,null,null,null,null,null,null,null,null,null,null,null,null,null,null,null,null,null,null,null,null,null,null,null,null,null,null,null,null,null,null,null,null,null,null,null,null,"BCEGIJKL","Elfenbeinküste",{"$f":"$CE$12","v":"Österreich"},"Katar","Haiti",{"$f":"$CE$5","v":"Irak"},{"$f":"$BB$19","v":"Iran"},{"$f":"$CE$26","v":"Ghana"},{"$f":"$CE$19","v":"Usbekistan"}]
[null,null,null,null,null,null,null,null,null,null,null,null,null,null,null,null,null,null,null,null,null,null,null,null,null,null,null,null,null,null,null,null,null,null,null,null,null,null,null,null,null,null,null,null,null,null,null,null,null,null,null,null,null,null,null,null,null,null,null,null,null,null,null,null,null,null,null,null,null,null,null,null,null,null,null,null,null,null,null,null,null,null,null,null,null,null,null,null,null,null,null,null,"BCEHIJKL","Elfenbeinküste",{"$f":"$CE$12","v":"Österreich"},"Katar","Haiti",{"$f":"$CE$5","v":"Irak"},{"$f":"$BB$26","v":"Saudi-Arabien"},{"$f":"$CE$26","v":"Ghana"},{"$f":"$CE$19","v":"Usbekistan"}]
[null,null,null,null,null,null,null,null,null,null,null,null,null,null,null,null,null,null,null,null,null,null,null,null,null,null,null,null,null,null,null,null,null,null,null,null,null,null,null,null,null,null,null,null,null,null,null,null,null,null,null,null,null,null,null,null,null,null,null,null,null,null,null,null,null,null,null,null,null,null,null,null,null,null,null,null,null,null,null,null,null,null,null,null,null,null,null,null,null,null,null,null,"BCFGHIJK",{"$f":"$BB$26","v":"Saudi-Arabien"},{"$f":"$BB$19","v":"Iran"},"Katar","Haiti",{"$f":"$CE$12","v":"Österreich"},{"$f":"$BB$12","v":"Schweden"},{"$f":"$CE$5","v":"Irak"},{"$f":"$CE$19","v":"Usbekistan"}]
[null,null,null,null,null,null,null,null,null,null,null,null,null,null,null,null,null,null,null,null,null,null,null,null,null,null,null,null,null,null,null,null,null,null,null,null,null,null,null,null,null,null,null,null,null,null,null,null,null,null,null,null,null,null,null,null,null,null,null,null,null,null,null,null,null,null,null,null,null,null,null,null,null,null,null,null,null,null,null,null,null,null,null,null,null,null,null,null,null,null,null,null,"BCFGHIJL",{"$f":"$BB$26","v":"Saudi-Arabien"},{"$f":"$BB$19","v":"Iran"},"Katar","Haiti",{"$f":"$CE$12","v":"Österreich"},"Schweden",{"$f":"$CE$26","v":"Ghana"},{"$f":"$CE$5","v":"Irak"}]
[null,null,null,null,null,null,null,null,null,null,null,null,null,null,null,null,null,null,null,null,null,null,null,null,null,null,null,null,null,null,null,null,null,null,null,null,null,null,null,null,null,null,null,null,null,null,null,null,null,null,null,null,null,null,null,null,null,null,null,null,null,null,null,null,null,null,null,null,null,null,null,null,null,null,null,null,null,null,null,null,null,null,null,null,null,null,null,null,null,null,null,null,"BCFGHIKL",{"$f":"$BB$26","v":"Saudi-Arabien"},{"$f":"$BB$19","v":"Iran"},"Katar","Haiti",{"$f":"$CE$5","v":"Irak"},"Schweden","Ghana",{"$f":"$CE$19","v":"Usbekistan"}]
[null,null,null,null,null,null,null,null,null,null,null,null,null,null,null,null,null,null,null,null,null,null,null,null,null,null,null,null,null,null,null,null,null,null,null,null,null,null,null,null,null,null,null,null,null,null,null,null,null,null,null,null,null,null,null,null,null,null,null,null,null,null,null,null,null,null,null,null,null,null,null,null,null,null,null,null,null,null,null,null,null,null,null,null,null,null,null,null,null,null,null,null,"BCFGHJKL",{"$f":"$BB$26","v":"Saudi-Arabien"},{"$f":"$BB$19","v":"Iran"},"Katar","Haiti",{"$f":"$CE$12","v":"Österreich"},"Schweden","Ghana",{"$f":"$CE$19","v":"Usbekistan"}]
[null,null,null,null,null,null,null,null,null,null,null,null,null,null,null,null,null,null,null,null,null,null,null,null,null,null,null,null,null,null,null,null,null,null,null,null,null,null,null,null,null,null,null,null,null,null,null,null,null,null,null,null,null,null,null,null,null,null,null,null,null,null,null,null,null,null,null,null,null,null,null,null,null,null,null,null,null,null,null,null,null,null,null,null,null,null,null,null,null,null,null,null,"BCFGIJKL",{"$f":"$CE$5","v":"Irak"},{"$f":"$BB$19","v":"Iran"},"Katar","Haiti",{"$f":"$CE$12","v":"Österreich"},"Schweden","Ghana",{"$f":"$CE$19","v":"Usbekistan"}]
[null,null,null,null,null,null,null,null,null,null,null,null,null,null,null,null,null,null,null,null,null,null,null,null,null,null,null,null,null,null,null,null,null,null,null,null,null,null,null,null,null,null,null,null,null,null,null,null,null,null,null,null,null,null,null,null,null,null,null,null,null,null,null,null,null,null,null,null,null,null,null,null,null,null,null,null,null,null,null,null,null,null,null,null,null,null,null,null,null,null,null,null,"BCFHIJKL",{"$f":"$BB$26","v":"Saudi-Arabien"},{"$f":"$CE$12","v":"Österreich"},"Katar","Haiti",{"$f":"$CE$5","v":"Irak"},"Schweden","Ghana",{"$f":"$CE$19","v":"Usbekistan"}]
[null,null,null,null,null,null,null,null,null,null,null,null,null,null,null,null,null,null,null,null,null,null,null,null,null,null,null,null,null,null,null,null,null,null,null,null,null,null,null,null,null,null,null,null,null,null,null,null,null,null,null,null,null,null,null,null,null,null,null,null,null,null,null,null,null,null,null,null,null,null,null,null,null,null,null,null,null,null,null,null,null,null,null,null,null,null,null,null,null,null,null,null,"BCGHIJKL",{"$f":"$BB$26","v":"Saudi-Arabien"},{"$f":"$CE$12","v":"Österreich"},"Katar","Haiti",{"$f":"$CE$5","v":"Irak"},{"$f":"$BB$19","v":"Iran"},"Ghana",{"$f":"$CE$19","v":"Usbekistan"}]
[null,null,null,null,null,null,null,null,null,null,null,null,null,null,null,null,null,null,null,null,null,null,null,null,null,null,null,null,null,null,null,null,null,null,null,null,null,null,null,null,null,null,null,null,null,null,null,null,null,null,null,null,null,null,null,null,null,null,null,null,null,null,null,null,null,null,null,null,null,null,null,null,null,null,null,null,null,null,null,null,null,null,null,null,null,null,null,null,null,null,null,null,"BDEFGHIJ",{"$f":"$BB$26","v":"Saudi-Arabien"},{"$f":"$BB$19","v":"Iran"},"Katar",{"$f":"$Y$26","v":"Australien"},{"$f":"$CE$12","v":"Österreich"},{"$f":"$BB$12","v":"Schweden"},{"$f":"$BB$5","v":"Elfenbeinküste"},{"$f":"$CE$5","v":"Irak"}]
[null,null,null,null,null,null,null,null,null,null,null,null,null,null,null,null,null,null,null,null,null,null,null,null,null,null,null,null,null,null,null,null,null,null,null,null,null,null,null,null,null,null,null,null,null,null,null,null,null,null,null,null,null,null,null,null,null,null,null,null,null,null,null,null,null,null,null,null,null,null,null,null,null,null,null,null,null,null,null,null,null,null,null,null,null,null,null,null,null,null,null,null,"BDEFGHIK",{"$f":"$BB$5","v":"Elfenbeinküste"},"Iran","Katar","Australien",{"$f":"$BB$26","v":"Saudi-Arabien"},"Schweden",{"$f":"$CE$5","v":"Irak"},{"$f":"$CE$19","v":"Usbekistan"}]
[null,null,null,null,null,null,null,null,null,null,null,null,null,null,null,null,null,null,null,null,null,null,null,null,null,null,null,null,null,null,null,null,null,null,null,null,null,null,null,null,null,null,null,null,null,null,null,null,null,null,null,null,null,null,null,null,null,null,null,null,null,null,null,null,null,null,null,null,null,null,null,null,null,null,null,null,null,null,null,null,null,null,null,null,null,null,null,null,null,null,null,null,"BDEFGHIL",{"$f":"$BB$5","v":"Elfenbeinküste"},"Iran","Katar","Australien",{"$f":"$BB$26","v":"Saudi-Arabien"},"Schweden",{"$f":"$CE$26","v":"Ghana"},{"$f":"$CE$5","v":"Irak"}]
[null,null,null,null,null,null,null,null,null,null,null,null,null,null,null,null,null,null,null,null,null,null,null,null,null,null,null,null,null,null,null,null,null,null,null,null,null,null,null,null,null,null,null,null,null,null,null,null,null,null,null,null,null,null,null,null,null,null,null,null,null,null,null,null,null,null,null,null,null,null,null,null,null,null,null,null,null,null,null,null,null,null,null,null,null,null,null,null,null,null,null,null,"BDEFGHJK",{"$f":"$BB$26","v":"Saudi-Arabien"},"Iran","Katar","Australien",{"$f":"$CE$12","v":"Österreich"},"Schweden",{"$f":"$BB$5","v":"Elfenbeinküste"},{"$f":"$CE$19","v":"Usbekistan"}]
[null,null,null,null,null,null,null,null,null,null,null,null,null,null,null,null,null,null,null,null,null,null,null,null,null,null,null,null,null,null,null,null,null,null,null,null,null,null,null,null,null,null,null,null,null,null,null,null,null,null,null,null,null,null,null,null,null,null,null,null,null,null,null,null,null,null,null,null,null,null,null,null,null,null,null,null,null,null,null,null,null,null,null,null,null,null,null,null,null,null,null,null,"BDEFGHJL",{"$f":"$BB$26","v":"Saudi-Arabien"},"Iran","Katar","Australien",{"$f":"$CE$12","v":"Österreich"},"Schweden",{"$f":"$CE$26","v":"Ghana"},{"$f":"$BB$5","v":"Elfenbeinküste"}]
[null,null,null,null,null,null,null,null,null,null,null,null,null,null,null,null,null,null,null,null,null,null,null,null,null,null,null,null,null,null,null,null,null,null,null,null,null,null,null,null,null,null,null,null,null,null,null,null,null,null,null,null,null,null,null,null,null,null,null,null,null,null,null,null,null,null,null,null,null,null,null,null,null,null,null,null,null,null,null,null,null,null,null,null,null,null,null,null,null,null,null,null,"BDEFGHKL",{"$f":"$BB$5","v":"Elfenbeinküste"},"Iran","Katar","Australien",{"$f":"$BB$26","v":"Saudi-Arabien"},"Schweden",{"$f":"$CE$26","v":"Ghana"},{"$f":"$CE$19","v":"Usbekistan"}]
[null,null,null,null,null,null,null,null,null,null,null,null,null,null,null,null,null,null,null,null,null,null,null,null,null,null,null,null,null,null,null,null,null,null,null,null,null,null,null,null,null,null,null,null,null,null,null,null,null,null,null,null,null,null,null,null,null,null,null,null,null,null,null,null,null,null,null,null,null,null,null,null,null,null,null,null,null,null,null,null,null,null,null,null,null,null,null,null,null,null,null,null,"BDEFGIJK","Elfenbeinküste","Iran","Katar","Australien",{"$f":"$CE$12","v":"Österreich"},"Schweden",{"$f":"$CE$5","v":"Irak"},{"$f":"$CE$19","v":"Usbekistan"}]
[null,null,null,null,null,null,null,null,null,null,null,null,null,null,null,null,null,null,null,null,null,null,null,null,null,null,null,null,null,null,null,null,null,null,null,null,null,null,null,null,null,null,null,null,null,null,null,null,null,null,null,null,null,null,null,null,null,null,null,null,null,null,null,null,null,null,null,null,null,null,null,null,null,null,null,null,null,null,null,null,null,null,null,null,null,null,null,null,null,null,null,null,"BDEFGIJL","Elfenbeinküste","Iran","Katar","Australien",{"$f":"$CE$12","v":"Österreich"},"Schweden",{"$f":"$CE$26","v":"Ghana"},{"$f":"$CE$5","v":"Irak"}]
[null,null,null,null,null,null,null,null,null,null,null,null,null,null,null,null,null,null,null,null,null,null,null,null,null,null,null,null,null,null,null,null,null,null,null,null,null,null,null,null,null,null,null,null,null,null,null,null,null,null,null,null,null,null,null,null,null,null,null,null,null,null,null,null,null,null,null,null,null,null,null,null,null,null,null,null,null,null,null,null,null,null,null,null,null,null,null,null,null,null,null,null,"BDEFGIKL","Elfenbeinküste","Iran","Katar","Australien",{"$f":"$CE$5","v":"Irak"},"Schweden",{"$f":"$CE$26","v":"Ghana"},{"$f":"$CE$19","v":"Usbekistan"}]
[null,null,null,null,null,null,null,null,null,null,null,null,null,null,null,null,null,null,null,null,null,null,null,null,null,null,null,null,null,null,null,null,null,null,null,null,null,null,null,null,null,null,null,null,null,null,null,null,null,null,null,null,null,null,null,null,null,null,null,null,null,null,null,null,null,null,null,null,null,null,null,null,null,null,null,null,null,null,null,null,null,null,null,null,null,null,null,null,null,null,null,null,"BDEFGJKL","Elfenbeinküste","Iran","Katar","Australien",{"$f":"$CE$12","v":"Österreich"},"Schweden",{"$f":"$CE$26","v":"Ghana"},{"$f":"$CE$19","v":"Usbekistan"}]
[null,null,null,null,null,null,null,null,null,null,null,null,null,null,null,null,null,null,null,null,null,null,null,null,null,null,null,null,null,null,null,null,null,null,null,null,null,null,null,null,null,null,null,null,null,null,null,null,null,null,null,null,null,null,null,null,null,null,null,null,null,null,null,null,null,null,null,null,null,null,null,null,null,null,null,null,null,null,null,null,null,null,null,null,null,null,null,null,null,null,null,null,"BDEFHIJK","Elfenbeinküste",{"$f":"$CE$12","v":"Österreich"},"Katar","Australien",{"$f":"$BB$26","v":"Saudi-Arabien"},"Schweden",{"$f":"$CE$5","v":"Irak"},{"$f":"$CE$19","v":"Usbekistan"}]
[null,null,null,null,null,null,null,null,null,null,null,null,null,null,null,null,null,null,null,null,null,null,null,null,null,null,null,null,null,null,null,null,null,null,null,null,null,null,null,null,null,null,null,null,null,null,null,null,null,null,null,null,null,null,null,null,null,null,null,null,null,null,null,null,null,null,null,null,null,null,null,null,null,null,null,null,null,null,null,null,null,null,null,null,null,null,null,null,null,null,null,null,"BDEFHIJL","Elfenbeinküste",{"$f":"$CE$12","v":"Österreich"},"Katar","Australien",{"$f":"$BB$26","v":"Saudi-Arabien"},"Schweden",{"$f":"$CE$26","v":"Ghana"},{"$f":"$CE$5","v":"Irak"}]
[null,null,null,null,null,null,null,null,null,null,null,null,null,null,null,null,null,null,null,null,null,null,null,null,null,null,null,null,null,null,null,null,null,null,null,null,null,null,null,null,null,null,null,null,null,null,null,null,null,null,null,null,null,null,null,null,null,null,null,null,null,null,null,null,null,null,null,null,null,null,null,null,null,null,null,null,null,null,null,null,null,null,null,null,null,null,null,null,null,null,null,null,"BDEFHIKL","Elfenbeinküste",{"$f":"$CE$5","v":"Irak"},{"$f":"$Y$12","v":"Katar"},"Australien",{"$f":"$BB$26","v":"Saudi-Arabien"},"Schweden",{"$f":"$CE$26","v":"Ghana"},{"$f":"$CE$19","v":"Usbekistan"}]
[null,null,null,null,null,null,null,null,null,null,null,null,null,null,null,null,null,null,null,null,null,null,null,null,null,null,null,null,null,null,null,null,null,null,null,null,null,null,null,null,null,null,null,null,null,null,null,null,null,null,null,null,null,null,null,null,null,null,null,null,null,null,null,null,null,null,null,null,null,null,null,null,null,null,null,null,null,null,null,null,null,null,null,null,null,null,null,null,null,null,null,null,"BDEFHJKL","Elfenbeinküste",{"$f":"$CE$12","v":"Österreich"},"Katar","Australien",{"$f":"$BB$26","v":"Saudi-Arabien"},"Schweden",{"$f":"$CE$26","v":"Ghana"},{"$f":"$CE$19","v":"Usbekistan"}]
[null,null,null,null,null,null,null,null,null,null,null,null,null,null,null,null,null,null,null,null,null,null,null,null,null,null,null,null,null,null,null,null,null,null,null,null,null,null,null,null,null,null,null,null,null,null,null,null,null,null,null,null,null,null,null,null,null,null,null,null,null,null,null,null,null,null,null,null,null,null,null,null,null,null,null,null,null,null,null,null,null,null,null,null,null,null,null,null,null,null,null,null,"BDEFIJKL","Elfenbeinküste",{"$f":"$CE$12","v":"Österreich"},"Katar","Australien",{"$f":"$CE$5","v":"Irak"},"Schweden",{"$f":"$CE$26","v":"Ghana"},{"$f":"$CE$19","v":"Usbekistan"}]
[null,null,null,null,null,null,null,null,null,null,null,null,null,null,null,null,null,null,null,null,null,null,null,null,null,null,null,null,null,null,null,null,null,null,null,null,null,null,null,null,null,null,null,null,null,null,null,null,null,null,null,null,null,null,null,null,null,null,null,null,null,null,null,null,null,null,null,null,null,null,null,null,null,null,null,null,null,null,null,null,null,null,null,null,null,null,null,null,null,null,null,null,"BDEGHIJK","Elfenbeinküste",{"$f":"$CE$12","v":"Österreich"},"Katar","Australien",{"$f":"$BB$26","v":"Saudi-Arabien"},{"$f":"$BB$19","v":"Iran"},{"$f":"$CE$5","v":"Irak"},{"$f":"$CE$19","v":"Usbekistan"}]
[null,null,null,null,null,null,null,null,null,null,null,null,null,null,null,null,null,null,null,null,null,null,null,null,null,null,null,null,null,null,null,null,null,null,null,null,null,null,null,null,null,null,null,null,null,null,null,null,null,null,null,null,null,null,null,null,null,null,null,null,null,null,null,null,null,null,null,null,null,null,null,null,null,null,null,null,null,null,null,null,null,null,null,null,null,null,null,null,null,null,null,null,"BDEGHIJL","Elfenbeinküste",{"$f":"$CE$12","v":"Österreich"},"Katar","Australien",{"$f":"$BB$26","v":"Saudi-Arabien"},{"$f":"$BB$19","v":"Iran"},{"$f":"$CE$26","v":"Ghana"},{"$f":"$CE$5","v":"Irak"}]
[null,null,null,null,null,null,null,null,null,null,null,null,null,null,null,null,null,null,null,null,null,null,null,null,null,null,null,null,null,null,null,null,null,null,null,null,null,null,null,null,null,null,null,null,null,null,null,null,null,null,null,null,null,null,null,null,null,null,null,null,null,null,null,null,null,null,null,null,null,null,null,null,null,null,null,null,null,null,null,null,null,null,null,null,null,null,null,null,null,null,null,null,"BDEGHIKL","Elfenbeinküste",{"$f":"$BB$19","v":"Iran"},"Katar","Australien",{"$f":"$CE$5","v":"Irak"},{"$f":"$BB$26","v":"Saudi-Arabien"},{"$f":"$CE$26","v":"Ghana"},{"$f":"$CE$19","v":"Usbekistan"}]
[null,null,null,null,null,null,null,null,null,null,null,null,null,null,null,null,null,null,null,null,null,null,null,null,null,null,null,null,null,null,null,null,null,null,null,null,null,null,null,null,null,null,null,null,null,null,null,null,null,null,null,null,null,null,null,null,null,null,null,null,null,null,null,null,null,null,null,null,null,null,null,null,null,null,null,null,null,null,null,null,null,null,null,null,null,null,null,null,null,null,null,null,"BDEGHJKL","Elfenbeinküste",{"$f":"$CE$12","v":"Österreich"},"Katar","Australien",{"$f":"$BB$26","v":"Saudi-Arabien"},{"$f":"$BB$19","v":"Iran"},{"$f":"$CE$26","v":"Ghana"},{"$f":"$CE$19","v":"Usbekistan"}]
[null,null,null,null,null,null,null,null,null,null,null,null,null,null,null,null,null,null,null,null,null,null,null,null,null,null,null,null,null,null,null,null,null,null,null,null,null,null,null,null,null,null,null,null,null,null,null,null,null,null,null,null,null,null,null,null,null,null,null,null,null,null,null,null,null,null,null,null,null,null,null,null,null,null,null,null,null,null,null,null,null,null,null,null,null,null,null,null,null,null,null,null,"BDEGIJKL","Elfenbeinküste",{"$f":"$CE$12","v":"Österreich"},"Katar","Australien",{"$f":"$CE$5","v":"Irak"},{"$f":"$BB$19","v":"Iran"},{"$f":"$CE$26","v":"Ghana"},{"$f":"$CE$19","v":"Usbekistan"}]
[null,null,null,null,null,null,null,null,null,null,null,null,null,null,null,null,null,null,null,null,null,null,null,null,null,null,null,null,null,null,null,null,null,null,null,null,null,null,null,null,null,null,null,null,null,null,null,null,null,null,null,null,null,null,null,null,null,null,null,null,null,null,null,null,null,null,null,null,null,null,null,null,null,null,null,null,null,null,null,null,null,null,null,null,null,null,null,null,null,null,null,null,"BDEHIJKL","Elfenbeinküste",{"$f":"$CE$12","v":"Österreich"},"Katar","Australien",{"$f":"$CE$5","v":"Irak"},{"$f":"$BB$26","v":"Saudi-Arabien"},{"$f":"$CE$26","v":"Ghana"},{"$f":"$CE$19","v":"Usbekistan"}]
[null,null,null,null,null,null,null,null,null,null,null,null,null,null,null,null,null,null,null,null,null,null,null,null,null,null,null,null,null,null,null,null,null,null,null,null,null,null,null,null,null,null,null,null,null,null,null,null,null,null,null,null,null,null,null,null,null,null,null,null,null,null,null,null,null,null,null,null,null,null,null,null,null,null,null,null,null,null,null,null,null,null,null,null,null,null,null,null,null,null,null,null,"BDFGHIJK",{"$f":"$BB$26","v":"Saudi-Arabien"},{"$f":"$BB$19","v":"Iran"},"Katar","Australien",{"$f":"$CE$12","v":"Österreich"},{"$f":"$BB$12","v":"Schweden"},{"$f":"$CE$5","v":"Irak"},{"$f":"$CE$19","v":"Usbekistan"}]
[null,null,null,null,null,null,null,null,null,null,null,null,null,null,null,null,null,null,null,null,null,null,null,null,null,null,null,null,null,null,null,null,null,null,null,null,null,null,null,null,null,null,null,null,null,null,null,null,null,null,null,null,null,null,null,null,null,null,null,null,null,null,null,null,null,null,null,null,null,null,null,null,null,null,null,null,null,null,null,null,null,null,null,null,null,null,null,null,null,null,null,null,"BDFGHIJL",{"$f":"$BB$26","v":"Saudi-Arabien"},{"$f":"$BB$19","v":"Iran"},"Katar","Australien",{"$f":"$CE$12","v":"Österreich"},"Schweden",{"$f":"$CE$26","v":"Ghana"},{"$f":"$CE$5","v":"Irak"}]
[null,null,null,null,null,null,null,null,null,null,null,null,null,null,null,null,null,null,null,null,null,null,null,null,null,null,null,null,null,null,null,null,null,null,null,null,null,null,null,null,null,null,null,null,null,null,null,null,null,null,null,null,null,null,null,null,null,null,null,null,null,null,null,null,null,null,null,null,null,null,null,null,null,null,null,null,null,null,null,null,null,null,null,null,null,null,null,null,null,null,null,null,"BDFGHIKL",{"$f":"$BB$26","v":"Saudi-Arabien"},{"$f":"$BB$19","v":"Iran"},"Katar","Australien",{"$f":"$CE$5","v":"Irak"},"Schweden","Ghana",{"$f":"$CE$19","v":"Usbekistan"}]
[null,null,null,null,null,null,null,null,null,null,null,null,null,null,null,null,null,null,null,null,null,null,null,null,null,null,null,null,null,null,null,null,null,null,null,null,null,null,null,null,null,null,null,null,null,null,null,null,null,null,null,null,null,null,null,null,null,null,null,null,null,null,null,null,null,null,null,null,null,null,null,null,null,null,null,null,null,null,null,null,null,null,null,null,null,null,null,null,null,null,null,null,"BDFGHJKL",{"$f":"$BB$26","v":"Saudi-Arabien"},{"$f":"$BB$19","v":"Iran"},"Katar","Australien",{"$f":"$CE$12","v":"Österreich"},"Schweden","Ghana","Usbekistan"]
[null,null,null,null,null,null,null,null,null,null,null,null,null,null,null,null,null,null,null,null,null,null,null,null,null,null,null,null,null,null,null,null,null,null,null,null,null,null,null,null,null,null,null,null,null,null,null,null,null,null,null,null,null,null,null,null,null,null,null,null,null,null,null,null,null,null,null,null,null,null,null,null,null,null,null,null,null,null,null,null,null,null,null,null,null,null,null,null,null,null,null,null,"BDFGIJKL",{"$f":"$CE$5","v":"Irak"},{"$f":"$BB$19","v":"Iran"},"Katar","Australien",{"$f":"$CE$12","v":"Österreich"},"Schweden","Ghana","Usbekistan"]
[null,null,null,null,null,null,null,null,null,null,null,null,null,null,null,null,null,null,null,null,null,null,null,null,null,null,null,null,null,null,null,null,null,null,null,null,null,null,null,null,null,null,null,null,null,null,null,null,null,null,null,null,null,null,null,null,null,null,null,null,null,null,null,null,null,null,null,null,null,null,null,null,null,null,null,null,null,null,null,null,null,null,null,null,null,null,null,null,null,null,null,null,"BDFHIJKL",{"$f":"$BB$26","v":"Saudi-Arabien"},{"$f":"$CE$12","v":"Österreich"},"Katar","Australien",{"$f":"$CE$5","v":"Irak"},"Schweden","Ghana","Usbekistan"]
[null,null,null,null,null,null,null,null,null,null,null,null,null,null,null,null,null,null,null,null,null,null,null,null,null,null,null,null,null,null,null,null,null,null,null,null,null,null,null,null,null,null,null,null,null,null,null,null,null,null,null,null,null,null,null,null,null,null,null,null,null,null,null,null,null,null,null,null,null,null,null,null,null,null,null,null,null,null,null,null,null,null,null,null,null,null,null,null,null,null,null,null,"BDGHIJKL",{"$f":"$BB$26","v":"Saudi-Arabien"},{"$f":"$CE$12","v":"Österreich"},"Katar","Australien",{"$f":"$CE$5","v":"Irak"},{"$f":"$BB$19","v":"Iran"},"Ghana","Usbekistan"]
[null,null,null,null,null,null,null,null,null,null,null,null,null,null,null,null,null,null,null,null,null,null,null,null,null,null,null,null,null,null,null,null,null,null,null,null,null,null,null,null,null,null,null,null,null,null,null,null,null,null,null,null,null,null,null,null,null,null,null,null,null,null,null,null,null,null,null,null,null,null,null,null,null,null,null,null,null,null,null,null,null,null,null,null,null,null,null,null,null,null,null,null,"BEFGHIJK",{"$f":"$BB$5","v":"Elfenbeinküste"},{"$f":"$CE$12","v":"Österreich"},"Katar",{"$f":"$BB$12","v":"Schweden"},{"$f":"$BB$26","v":"Saudi-Arabien"},{"$f":"$BB$19","v":"Iran"},{"$f":"$CE$5","v":"Irak"},"Usbekistan"]
[null,null,null,null,null,null,null,null,null,null,null,null,null,null,null,null,null,null,null,null,null,null,null,null,null,null,null,null,null,null,null,null,null,null,null,null,null,null,null,null,null,null,null,null,null,null,null,null,null,null,null,null,null,null,null,null,null,null,null,null,null,null,null,null,null,null,null,null,null,null,null,null,null,null,null,null,null,null,null,null,null,null,null,null,null,null,null,null,null,null,null,null,"BEFGHIJL","Elfenbeinküste",{"$f":"$CE$12","v":"Österreich"},"Katar","Schweden",{"$f":"$BB$26","v":"Saudi-Arabien"},{"$f":"$BB$19","v":"Iran"},{"$f":"$CE$26","v":"Ghana"},{"$f":"$CE$5","v":"Irak"}]
[null,null,null,null,null,null,null,null,null,null,null,null,null,null,null,null,null,null,null,null,null,null,null,null,null,null,null,null,null,null,null,null,null,null,null,null,null,null,null,null,null,null,null,null,null,null,null,null,null,null,null,null,null,null,null,null,null,null,null,null,null,null,null,null,null,null,null,null,null,null,null,null,null,null,null,null,null,null,null,null,null,null,null,null,null,null,null,null,null,null,null,null,"BEFGHIKL","Elfenbeinküste",{"$f":"$BB$19","v":"Iran"},"Katar","Schweden",{"$f":"$CE$5","v":"Irak"},{"$f":"$BB$26","v":"Saudi-Arabien"},"Ghana",{"$f":"$CE$19","v":"Usbekistan"}]
[null,null,null,null,null,null,null,null,null,null,null,null,null,null,null,null,null,null,null,null,null,null,null,null,null,null,null,null,null,null,null,null,null,null,null,null,null,null,null,null,null,null,null,null,null,null,null,null,null,null,null,null,null,null,null,null,null,null,null,null,null,null,null,null,null,null,null,null,null,null,null,null,null,null,null,null,null,null,null,null,null,null,null,null,null,null,null,null,null,null,null,null,"BEFGHJKL","Elfenbeinküste",{"$f":"$CE$12","v":"Österreich"},"Katar","Schweden",{"$f":"$BB$26","v":"Saudi-Arabien"},{"$f":"$BB$19","v":"Iran"},"Ghana","Usbekistan"]
[null,null,null,null,null,null,null,null,null,null,null,null,null,null,null,null,null,null,null,null,null,null,null,null,null,null,null,null,null,null,null,null,null,null,null,null,null,null,null,null,null,null,null,null,null,null,null,null,null,null,null,null,null,null,null,null,null,null,null,null,null,null,null,null,null,null,null,null,null,null,null,null,null,null,null,null,null,null,null,null,null,null,null,null,null,null,null,null,null,null,null,null,"BEFGIJKL","Elfenbeinküste",{"$f":"$CE$12","v":"Österreich"},"Katar","Schweden",{"$f":"$CE$5","v":"Irak"},{"$f":"$BB$19","v":"Iran"},"Ghana","Usbekistan"]
[null,null,null,null,null,null,null,null,null,null,null,null,null,null,null,null,null,null,null,null,null,null,null,null,null,null,null,null,null,null,null,null,null,null,null,null,null,null,null,null,null,null,null,null,null,null,null,null,null,null,null,null,null,null,null,null,null,null,null,null,null,null,null,null,null,null,null,null,null,null,null,null,null,null,null,null,null,null,null,null,null,null,null,null,null,null,null,null,null,null,null,null,"BEFHIJKL","Elfenbeinküste",{"$f":"$CE$12","v":"Österreich"},"Katar","Schweden",{"$f":"$CE$5","v":"Irak"},{"$f":"$BB$26","v":"Saudi-Arabien"},"Ghana","Usbekistan"]
[null,null,null,null,null,null,null,null,null,null,null,null,null,null,null,null,null,null,null,null,null,null,null,null,null,null,null,null,null,null,null,null,null,null,null,null,null,null,null,null,null,null,null,null,null,null,null,null,null,null,null,null,null,null,null,null,null,null,null,null,null,null,null,null,null,null,null,null,null,null,null,null,null,null,null,null,null,null,null,null,null,null,null,null,null,null,null,null,null,null,null,null,"BEGHIJKL","Elfenbeinküste",{"$f":"$CE$12","v":"Österreich"},{"$f":"$CE$5","v":"Irak"},{"$f":"$Y$12","v":"Katar"},{"$f":"$BB$26","v":"Saudi-Arabien"},{"$f":"$BB$19","v":"Iran"},"Ghana","Usbekistan"]
[null,null,null,null,null,null,null,null,null,null,null,null,null,null,null,null,null,null,null,null,null,null,null,null,null,null,null,null,null,null,null,null,null,null,null,null,null,null,null,null,null,null,null,null,null,null,null,null,null,null,null,null,null,null,null,null,null,null,null,null,null,null,null,null,null,null,null,null,null,null,null,null,null,null,null,null,null,null,null,null,null,null,null,null,null,null,null,null,null,null,null,null,"BFGHIJKL",{"$f":"$BB$26","v":"Saudi-Arabien"},{"$f":"$CE$12","v":"Österreich"},{"$f":"$Y$12","v":"Katar"},{"$f":"$BB$12","v":"Schweden"},{"$f":"$CE$5","v":"Irak"},{"$f":"$BB$19","v":"Iran"},"Ghana","Usbekistan"]
[null,null,null,null,null,null,null,null,null,null,null,null,null,null,null,null,null,null,null,null,null,null,null,null,null,null,null,null,null,null,null,null,null,null,null,null,null,null,null,null,null,null,null,null,null,null,null,null,null,null,null,null,null,null,null,null,null,null,null,null,null,null,null,null,null,null,null,null,null,null,null,null,null,null,null,null,null,null,null,null,null,null,null,null,null,null,null,null,null,null,null,null,"CDEFGHIJ",{"$f":"$Y$19","v":"Haiti"},{"$f":"$BB$19","v":"Iran"},{"$f":"$CE$12","v":"Österreich"},{"$f":"$Y$26","v":"Australien"},{"$f":"$BB$26","v":"Saudi-Arabien"},{"$f":"$BB$12","v":"Schweden"},{"$f":"$BB$5","v":"Elfenbeinküste"},{"$f":"$CE$5","v":"Irak"}]
[null,null,null,null,null,null,null,null,null,null,null,null,null,null,null,null,null,null,null,null,null,null,null,null,null,null,null,null,null,null,null,null,null,null,null,null,null,null,null,null,null,null,null,null,null,null,null,null,null,null,null,null,null,null,null,null,null,null,null,null,null,null,null,null,null,null,null,null,null,null,null,null,null,null,null,null,null,null,null,null,null,null,null,null,null,null,null,null,null,null,null,null,"CDEFGHIK","Haiti","Iran",{"$f":"$BB$5","v":"Elfenbeinküste"},"Australien","Saudi-Arabien","Schweden",{"$f":"$CE$5","v":"Irak"},{"$f":"$CE$19","v":"Usbekistan"}]
[null,null,null,null,null,null,null,null,null,null,null,null,null,null,null,null,null,null,null,null,null,null,null,null,null,null,null,null,null,null,null,null,null,null,null,null,null,null,null,null,null,null,null,null,null,null,null,null,null,null,null,null,null,null,null,null,null,null,null,null,null,null,null,null,null,null,null,null,null,null,null,null,null,null,null,null,null,null,null,null,null,null,null,null,null,null,null,null,null,null,null,null,"CDEFGHIL","Haiti","Iran",{"$f":"$BB$5","v":"Elfenbeinküste"},"Australien","Saudi-Arabien","Schweden",{"$f":"$CE$26","v":"Ghana"},{"$f":"$CE$5","v":"Irak"}]
[null,null,null,null,null,null,null,null,null,null,null,null,null,null,null,null,null,null,null,null,null,null,null,null,null,null,null,null,null,null,null,null,null,null,null,null,null,null,null,null,null,null,null,null,null,null,null,null,null,null,null,null,null,null,null,null,null,null,null,null,null,null,null,null,null,null,null,null,null,null,null,null,null,null,null,null,null,null,null,null,null,null,null,null,null,null,null,null,null,null,null,null,"CDEFGHJK","Haiti","Iran",{"$f":"$CE$12","v":"Österreich"},"Australien","Saudi-Arabien","Schweden",{"$f":"$BB$5","v":"Elfenbeinküste"},{"$f":"$CE$19","v":"Usbekistan"}]
[null,null,null,null,null,null,null,null,null,null,null,null,null,null,null,null,null,null,null,null,null,null,null,null,null,null,null,null,null,null,null,null,null,null,null,null,null,null,null,null,null,null,null,null,null,null,null,null,null,null,null,null,null,null,null,null,null,null,null,null,null,null,null,null,null,null,null,null,null,null,null,null,null,null,null,null,null,null,null,null,null,null,null,null,null,null,null,null,null,null,null,null,"CDEFGHJL","Haiti","Iran",{"$f":"$CE$12","v":"Österreich"},"Australien","Saudi-Arabien","Schweden",{"$f":"$CE$26","v":"Ghana"},{"$f":"$BB$5","v":"Elfenbeinküste"}]
[null,null,null,null,null,null,null,null,null,null,null,null,null,null,null,null,null,null,null,null,null,null,null,null,null,null,null,null,null,null,null,null,null,null,null,null,null,null,null,null,null,null,null,null,null,null,null,null,null,null,null,null,null,null,null,null,null,null,null,null,null,null,null,null,null,null,null,null,null,null,null,null,null,null,null,null,null,null,null,null,null,null,null,null,null,null,null,null,null,null,null,null,"CDEFGHKL","Haiti","Iran",{"$f":"$BB$5","v":"Elfenbeinküste"},"Australien","Saudi-Arabien","Schweden",{"$f":"$CE$26","v":"Ghana"},{"$f":"$CE$19","v":"Usbekistan"}]
[null,null,null,null,null,null,null,null,null,null,null,null,null,null,null,null,null,null,null,null,null,null,null,null,null,null,null,null,null,null,null,null,null,null,null,null,null,null,null,null,null,null,null,null,null,null,null,null,null,null,null,null,null,null,null,null,null,null,null,null,null,null,null,null,null,null,null,null,null,null,null,null,null,null,null,null,null,null,null,null,null,null,null,null,null,null,null,null,null,null,null,null,"CDEFGIJK","Haiti","Iran","Elfenbeinküste","Australien",{"$f":"$CE$12","v":"Österreich"},"Schweden",{"$f":"$CE$5","v":"Irak"},{"$f":"$CE$19","v":"Usbekistan"}]
[null,null,null,null,null,null,null,null,null,null,null,null,null,null,null,null,null,null,null,null,null,null,null,null,null,null,null,null,null,null,null,null,null,null,null,null,null,null,null,null,null,null,null,null,null,null,null,null,null,null,null,null,null,null,null,null,null,null,null,null,null,null,null,null,null,null,null,null,null,null,null,null,null,null,null,null,null,null,null,null,null,null,null,null,null,null,null,null,null,null,null,null,"CDEFGIJL","Haiti","Iran","Elfenbeinküste","Australien",{"$f":"$CE$12","v":"Österreich"},"Schweden",{"$f":"$CE$26","v":"Ghana"},{"$f":"$CE$5","v":"Irak"}]
[null,null,null,null,null,null,null,null,null,null,null,null,null,null,null,null,null,null,null,null,null,null,null,null,null,null,null,null,null,null,null,null,null,null,null,null,null,null,null,null,null,null,null,null,null,null,null,null,null,null,null,null,null,null,null,null,null,null,null,null,null,null,null,null,null,null,null,null,null,null,null,null,null,null,null,null,null,null,null,null,null,null,null,null,null,null,null,null,null,null,null,null,"CDEFGIKL","Haiti","Iran","Elfenbeinküste","Australien",{"$f":"$CE$5","v":"Irak"},"Schweden",{"$f":"$CE$26","v":"Ghana"},{"$f":"$CE$19","v":"Usbekistan"}]
[null,null,null,null,null,null,null,null,null,null,null,null,null,null,null,null,null,null,null,null,null,null,null,null,null,null,null,null,null,null,null,null,null,null,null,null,null,null,null,null,null,null,null,null,null,null,null,null,null,null,null,null,null,null,null,null,null,null,null,null,null,null,null,null,null,null,null,null,null,null,null,null,null,null,null,null,null,null,null,null,null,null,null,null,null,null,null,null,null,null,null,null,"CDEFGJKL","Haiti","Iran","Elfenbeinküste","Australien",{"$f":"$CE$12","v":"Österreich"},"Schweden",{"$f":"$CE$26","v":"Ghana"},{"$f":"$CE$19","v":"Usbekistan"}]
[null,null,null,null,null,null,null,null,null,null,null,null,null,null,null,null,null,null,null,null,null,null,null,null,null,null,null,null,null,null,null,null,null,null,null,null,null,null,null,null,null,null,null,null,null,null,null,null,null,null,null,null,null,null,null,null,null,null,null,null,null,null,null,null,null,null,null,null,null,null,null,null,null,null,null,null,null,null,null,null,null,null,null,null,null,null,null,null,null,null,null,null,"CDEFHIJK","Haiti",{"$f":"$CE$12","v":"Österreich"},"Elfenbeinküste","Australien",{"$f":"$BB$26","v":"Saudi-Arabien"},"Schweden",{"$f":"$CE$5","v":"Irak"},{"$f":"$CE$19","v":"Usbekistan"}]
[null,null,null,null,null,null,null,null,null,null,null,null,null,null,null,null,null,null,null,null,null,null,null,null,null,null,null,null,null,null,null,null,null,null,null,null,null,null,null,null,null,null,null,null,null,null,null,null,null,null,null,null,null,null,null,null,null,null,null,null,null,null,null,null,null,null,null,null,null,null,null,null,null,null,null,null,null,null,null,null,null,null,null,null,null,null,null,null,null,null,null,null,"CDEFHIJL","Haiti",{"$f":"$CE$12","v":"Österreich"},"Elfenbeinküste","Australien",{"$f":"$BB$26","v":"Saudi-Arabien"},"Schweden",{"$f":"$CE$26","v":"Ghana"},{"$f":"$CE$5","v":"Irak"}]
[null,null,null,null,null,null,null,null,null,null,null,null,null,null,null,null,null,null,null,null,null,null,null,null,null,null,null,null,null,null,null,null,null,null,null,null,null,null,null,null,null,null,null,null,null,null,null,null,null,null,null,null,null,null,null,null,null,null,null,null,null,null,null,null,null,null,null,null,null,null,null,null,null,null,null,null,null,null,null,null,null,null,null,null,null,null,null,null,null,null,null,null,"CDEFHIKL","Haiti",{"$f":"$BB$5","v":"Elfenbeinküste"},{"$f":"$CE$5","v":"Irak"},"Australien",{"$f":"$BB$26","v":"Saudi-Arabien"},"Schweden",{"$f":"$CE$26","v":"Ghana"},{"$f":"$CE$19","v":"Usbekistan"}]
[null,null,null,null,null,null,null,null,null,null,null,null,null,null,null,null,null,null,null,null,null,null,null,null,null,null,null,null,null,null,null,null,null,null,null,null,null,null,null,null,null,null,null,null,null,null,null,null,null,null,null,null,null,null,null,null,null,null,null,null,null,null,null,null,null,null,null,null,null,null,null,null,null,null,null,null,null,null,null,null,null,null,null,null,null,null,null,null,null,null,null,null,"CDEFHJKL","Haiti",{"$f":"$CE$12","v":"Österreich"},{"$f":"$BB$5","v":"Elfenbeinküste"},"Australien",{"$f":"$BB$26","v":"Saudi-Arabien"},"Schweden",{"$f":"$CE$26","v":"Ghana"},{"$f":"$CE$19","v":"Usbekistan"}]
[null,null,null,null,null,null,null,null,null,null,null,null,null,null,null,null,null,null,null,null,null,null,null,null,null,null,null,null,null,null,null,null,null,null,null,null,null,null,null,null,null,null,null,null,null,null,null,null,null,null,null,null,null,null,null,null,null,null,null,null,null,null,null,null,null,null,null,null,null,null,null,null,null,null,null,null,null,null,null,null,null,null,null,null,null,null,null,null,null,null,null,null,"CDEFIJKL","Haiti",{"$f":"$CE$12","v":"Österreich"},{"$f":"$BB$5","v":"Elfenbeinküste"},"Australien",{"$f":"$CE$5","v":"Irak"},"Schweden",{"$f":"$CE$26","v":"Ghana"},{"$f":"$CE$19","v":"Usbekistan"}]
[null,null,null,null,null,null,null,null,null,null,null,null,null,null,null,null,null,null,null,null,null,null,null,null,null,null,null,null,null,null,null,null,null,null,null,null,null,null,null,null,null,null,null,null,null,null,null,null,null,null,null,null,null,null,null,null,null,null,null,null,null,null,null,null,null,null,null,null,null,null,null,null,null,null,null,null,null,null,null,null,null,null,null,null,null,null,null,null,null,null,null,null,"CDEGHIJK",{"$f":"$BB$5","v":"Elfenbeinküste"},{"$f":"$BB$19","v":"Iran"},{"$f":"$CE$12","v":"Österreich"},{"$f":"$Y$19","v":"Haiti"},{"$f":"$BB$26","v":"Saudi-Arabien"},{"$f":"$Y$26","v":"Australien"},{"$f":"$CE$5","v":"Irak"},{"$f":"$CE$19","v":"Usbekistan"}]
[null,null,null,null,null,null,null,null,null,null,null,null,null,null,null,null,null,null,null,null,null,null,null,null,null,null,null,null,null,null,null,null,null,null,null,null,null,null,null,null,null,null,null,null,null,null,null,null,null,null,null,null,null,null,null,null,null,null,null,null,null,null,null,null,null,null,null,null,null,null,null,null,null,null,null,null,null,null,null,null,null,null,null,null,null,null,null,null,null,null,null,null,"CDEGHIJL","Elfenbeinküste",{"$f":"$BB$19","v":"Iran"},{"$f":"$CE$12","v":"Österreich"},"Haiti",{"$f":"$BB$26","v":"Saudi-Arabien"},"Australien",{"$f":"$CE$26","v":"Ghana"},{"$f":"$CE$5","v":"Irak"}]
[null,null,null,null,null,null,null,null,null,null,null,null,null,null,null,null,null,null,null,null,null,null,null,null,null,null,null,null,null,null,null,null,null,null,null,null,null,null,null,null,null,null,null,null,null,null,null,null,null,null,null,null,null,null,null,null,null,null,null,null,null,null,null,null,null,null,null,null,null,null,null,null,null,null,null,null,null,null,null,null,null,null,null,null,null,null,null,null,null,null,null,null,"CDEGHIKL","Elfenbeinküste",{"$f":"$BB$19","v":"Iran"},{"$f":"$CE$5","v":"Irak"},"Haiti",{"$f":"$BB$26","v":"Saudi-Arabien"},"Australien",{"$f":"$CE$26","v":"Ghana"},{"$f":"$CE$19","v":"Usbekistan"}]
[null,null,null,null,null,null,null,null,null,null,null,null,null,null,null,null,null,null,null,null,null,null,null,null,null,null,null,null,null,null,null,null,null,null,null,null,null,null,null,null,null,null,null,null,null,null,null,null,null,null,null,null,null,null,null,null,null,null,null,null,null,null,null,null,null,null,null,null,null,null,null,null,null,null,null,null,null,null,null,null,null,null,null,null,null,null,null,null,null,null,null,null,"CDEGHJKL","Elfenbeinküste",{"$f":"$BB$19","v":"Iran"},{"$f":"$CE$12","v":"Österreich"},"Haiti",{"$f":"$BB$26","v":"Saudi-Arabien"},"Australien",{"$f":"$CE$26","v":"Ghana"},{"$f":"$CE$19","v":"Usbekistan"}]
[null,null,null,null,null,null,null,null,null,null,null,null,null,null,null,null,null,null,null,null,null,null,null,null,null,null,null,null,null,null,null,null,null,null,null,null,null,null,null,null,null,null,null,null,null,null,null,null,null,null,null,null,null,null,null,null,null,null,null,null,null,null,null,null,null,null,null,null,null,null,null,null,null,null,null,null,null,null,null,null,null,null,null,null,null,null,null,null,null,null,null,null,"CDEGIJKL","Elfenbeinküste",{"$f":"$BB$19","v":"Iran"},{"$f":"$CE$5","v":"Irak"},"Haiti",{"$f":"$CE$12","v":"Österreich"},"Australien",{"$f":"$CE$26","v":"Ghana"},{"$f":"$CE$19","v":"Usbekistan"}]
[null,null,null,null,null,null,null,null,null,null,null,null,null,null,null,null,null,null,null,null,null,null,null,null,null,null,null,null,null,null,null,null,null,null,null,null,null,null,null,null,null,null,null,null,null,null,null,null,null,null,null,null,null,null,null,null,null,null,null,null,null,null,null,null,null,null,null,null,null,null,null,null,null,null,null,null,null,null,null,null,null,null,null,null,null,null,null,null,null,null,null,null,"CDEHIJKL","Elfenbeinküste",{"$f":"$CE$12","v":"Österreich"},{"$f":"$CE$5","v":"Irak"},"Haiti",{"$f":"$BB$26","v":"Saudi-Arabien"},"Australien",{"$f":"$CE$26","v":"Ghana"},{"$f":"$CE$19","v":"Usbekistan"}]
[null,null,null,null,null,null,null,null,null,null,null,null,null,null,null,null,null,null,null,null,null,null,null,null,null,null,null,null,null,null,null,null,null,null,null,null,null,null,null,null,null,null,null,null,null,null,null,null,null,null,null,null,null,null,null,null,null,null,null,null,null,null,null,null,null,null,null,null,null,null,null,null,null,null,null,null,null,null,null,null,null,null,null,null,null,null,null,null,null,null,null,null,"CDFGHIJK",{"$f":"$Y$19","v":"Haiti"},{"$f":"$BB$19","v":"Iran"},{"$f":"$CE$12","v":"Österreich"},{"$f":"$Y$26","v":"Australien"},{"$f":"$BB$26","v":"Saudi-Arabien"},{"$f":"$BB$12","v":"Schweden"},{"$f":"$CE$5","v":"Irak"},{"$f":"$CE$19","v":"Usbekistan"}]
[null,null,null,null,null,null,null,null,null,null,null,null,null,null,null,null,null,null,null,null,null,null,null,null,null,null,null,null,null,null,null,null,null,null,null,null,null,null,null,null,null,null,null,null,null,null,null,null,null,null,null,null,null,null,null,null,null,null,null,null,null,null,null,null,null,null,null,null,null,null,null,null,null,null,null,null,null,null,null,null,null,null,null,null,null,null,null,null,null,null,null,null,"CDFGHIJL","Haiti",{"$f":"$BB$19","v":"Iran"},{"$f":"$CE$12","v":"Österreich"},"Australien",{"$f":"$BB$26","v":"Saudi-Arabien"},"Schweden",{"$f":"$CE$26","v":"Ghana"},{"$f":"$CE$5","v":"Irak"}]
[null,null,null,null,null,null,null,null,null,null,null,null,null,null,null,null,null,null,null,null,null,null,null,null,null,null,null,null,null,null,null,null,null,null,null,null,null,null,null,null,null,null,null,null,null,null,null,null,null,null,null,null,null,null,null,null,null,null,null,null,null,null,null,null,null,null,null,null,null,null,null,null,null,null,null,null,null,null,null,null,null,null,null,null,null,null,null,null,null,null,null,null,"CDFGHIKL","Haiti",{"$f":"$BB$19","v":"Iran"},{"$f":"$CE$5","v":"Irak"},"Australien",{"$f":"$BB$26","v":"Saudi-Arabien"},"Schweden","Ghana",{"$f":"$CE$19","v":"Usbekistan"}]
[null,null,null,null,null,null,null,null,null,null,null,null,null,null,null,null,null,null,null,null,null,null,null,null,null,null,null,null,null,null,null,null,null,null,null,null,null,null,null,null,null,null,null,null,null,null,null,null,null,null,null,null,null,null,null,null,null,null,null,null,null,null,null,null,null,null,null,null,null,null,null,null,null,null,null,null,null,null,null,null,null,null,null,null,null,null,null,null,null,null,null,null,"CDFGHJKL","Haiti",{"$f":"$BB$19","v":"Iran"},{"$f":"$CE$12","v":"Österreich"},"Australien",{"$f":"$BB$26","v":"Saudi-Arabien"},"Schweden","Ghana","Usbekistan"]
[null,null,null,null,null,null,null,null,null,null,null,null,null,null,null,null,null,null,null,null,null,null,null,null,null,null,null,null,null,null,null,null,null,null,null,null,null,null,null,null,null,null,null,null,null,null,null,null,null,null,null,null,null,null,null,null,null,null,null,null,null,null,null,null,null,null,null,null,null,null,null,null,null,null,null,null,null,null,null,null,null,null,null,null,null,null,null,null,null,null,null,null,"CDFGIJKL","Haiti",{"$f":"$BB$19","v":"Iran"},{"$f":"$CE$5","v":"Irak"},"Australien",{"$f":"$CE$12","v":"Österreich"},"Schweden","Ghana","Usbekistan"]
[null,null,null,null,null,null,null,null,null,null,null,null,null,null,null,null,null,null,null,null,null,null,null,null,null,null,null,null,null,null,null,null,null,null,null,null,null,null,null,null,null,null,null,null,null,null,null,null,null,null,null,null,null,null,null,null,null,null,null,null,null,null,null,null,null,null,null,null,null,null,null,null,null,null,null,null,null,null,null,null,null,null,null,null,null,null,null,null,null,null,null,null,"CDFHIJKL","Haiti",{"$f":"$CE$12","v":"Österreich"},{"$f":"$CE$5","v":"Irak"},"Australien",{"$f":"$BB$26","v":"Saudi-Arabien"},"Schweden","Ghana","Usbekistan"]
[null,null,null,null,null,null,null,null,null,null,null,null,null,null,null,null,null,null,null,null,null,null,null,null,null,null,null,null,null,null,null,null,null,null,null,null,null,null,null,null,null,null,null,null,null,null,null,null,null,null,null,null,null,null,null,null,null,null,null,null,null,null,null,null,null,null,null,null,null,null,null,null,null,null,null,null,null,null,null,null,null,null,null,null,null,null,null,null,null,null,null,null,"CDGHIJKL",{"$f":"$BB$26","v":"Saudi-Arabien"},{"$f":"$BB$19","v":"Iran"},{"$f":"$CE$5","v":"Irak"},{"$f":"$Y$19","v":"Haiti"},{"$f":"$CE$12","v":"Österreich"},{"$f":"$Y$26","v":"Australien"},"Ghana","Usbekistan"]
[null,null,null,null,null,null,null,null,null,null,null,null,null,null,null,null,null,null,null,null,null,null,null,null,null,null,null,null,null,null,null,null,null,null,null,null,null,null,null,null,null,null,null,null,null,null,null,null,null,null,null,null,null,null,null,null,null,null,null,null,null,null,null,null,null,null,null,null,null,null,null,null,null,null,null,null,null,null,null,null,null,null,null,null,null,null,null,null,null,null,null,null,"CEFGHIJK",{"$f":"$BB$5","v":"Elfenbeinküste"},"Iran",{"$f":"$CE$12","v":"Österreich"},"Haiti",{"$f":"$BB$26","v":"Saudi-Arabien"},{"$f":"$BB$12","v":"Schweden"},{"$f":"$CE$5","v":"Irak"},"Usbekistan"]
[null,null,null,null,null,null,null,null,null,null,null,null,null,null,null,null,null,null,null,null,null,null,null,null,null,null,null,null,null,null,null,null,null,null,null,null,null,null,null,null,null,null,null,null,null,null,null,null,null,null,null,null,null,null,null,null,null,null,null,null,null,null,null,null,null,null,null,null,null,null,null,null,null,null,null,null,null,null,null,null,null,null,null,null,null,null,null,null,null,null,null,null,"CEFGHIJL","Elfenbeinküste","Iran",{"$f":"$CE$12","v":"Österreich"},"Haiti",{"$f":"$BB$26","v":"Saudi-Arabien"},"Schweden",{"$f":"$CE$26","v":"Ghana"},{"$f":"$CE$5","v":"Irak"}]
[null,null,null,null,null,null,null,null,null,null,null,null,null,null,null,null,null,null,null,null,null,null,null,null,null,null,null,null,null,null,null,null,null,null,null,null,null,null,null,null,null,null,null,null,null,null,null,null,null,null,null,null,null,null,null,null,null,null,null,null,null,null,null,null,null,null,null,null,null,null,null,null,null,null,null,null,null,null,null,null,null,null,null,null,null,null,null,null,null,null,null,null,"CEFGHIKL","Elfenbeinküste","Iran",{"$f":"$CE$5","v":"Irak"},"Haiti",{"$f":"$BB$26","v":"Saudi-Arabien"},"Schweden","Ghana",{"$f":"$CE$19","v":"Usbekistan"}]
[null,null,null,null,null,null,null,null,null,null,null,null,null,null,null,null,null,null,null,null,null,null,null,null,null,null,null,null,null,null,null,null,null,null,null,null,null,null,null,null,null,null,null,null,null,null,null,null,null,null,null,null,null,null,null,null,null,null,null,null,null,null,null,null,null,null,null,null,null,null,null,null,null,null,null,null,null,null,null,null,null,null,null,null,null,null,null,null,null,null,null,null,"CEFGHJKL","Elfenbeinküste","Iran",{"$f":"$CE$12","v":"Österreich"},"Haiti",{"$f":"$BB$26","v":"Saudi-Arabien"},"Schweden","Ghana","Usbekistan"]
[null,null,null,null,null,null,null,null,null,null,null,null,null,null,null,null,null,null,null,null,null,null,null,null,null,null,null,null,null,null,null,null,null,null,null,null,null,null,null,null,null,null,null,null,null,null,null,null,null,null,null,null,null,null,null,null,null,null,null,null,null,null,null,null,null,null,null,null,null,null,null,null,null,null,null,null,null,null,null,null,null,null,null,null,null,null,null,null,null,null,null,null,"CEFGIJKL","Elfenbeinküste","Iran",{"$f":"$CE$5","v":"Irak"},"Haiti",{"$f":"$CE$12","v":"Österreich"},"Schweden","Ghana","Usbekistan"]
[null,null,null,null,null,null,null,null,null,null,null,null,null,null,null,null,null,null,null,null,null,null,null,null,null,null,null,null,null,null,null,null,null,null,null,null,null,null,null,null,null,null,null,null,null,null,null,null,null,null,null,null,null,null,null,null,null,null,null,null,null,null,null,null,null,null,null,null,null,null,null,null,null,null,null,null,null,null,null,null,null,null,null,null,null,null,null,null,null,null,null,null,"CEFHIJKL","Elfenbeinküste",{"$f":"$CE$12","v":"Österreich"},{"$f":"$CE$5","v":"Irak"},"Haiti",{"$f":"$BB$26","v":"Saudi-Arabien"},"Schweden","Ghana","Usbekistan"]
[null,null,null,null,null,null,null,null,null,null,null,null,null,null,null,null,null,null,null,null,null,null,null,null,null,null,null,null,null,null,null,null,null,null,null,null,null,null,null,null,null,null,null,null,null,null,null,null,null,null,null,null,null,null,null,null,null,null,null,null,null,null,null,null,null,null,null,null,null,null,null,null,null,null,null,null,null,null,null,null,null,null,null,null,null,null,null,null,null,null,null,null,"CEGHIJKL","Elfenbeinküste",{"$f":"$CE$12","v":"Österreich"},{"$f":"$CE$5","v":"Irak"},"Haiti",{"$f":"$BB$26","v":"Saudi-Arabien"},{"$f":"$BB$19","v":"Iran"},"Ghana","Usbekistan"]
[null,null,null,null,null,null,null,null,null,null,null,null,null,null,null,null,null,null,null,null,null,null,null,null,null,null,null,null,null,null,null,null,null,null,null,null,null,null,null,null,null,null,null,null,null,null,null,null,null,null,null,null,null,null,null,null,null,null,null,null,null,null,null,null,null,null,null,null,null,null,null,null,null,null,null,null,null,null,null,null,null,null,null,null,null,null,null,null,null,null,null,null,"CFGHIJKL",{"$f":"$BB$26","v":"Saudi-Arabien"},{"$f":"$BB$19","v":"Iran"},{"$f":"$CE$5","v":"Irak"},"Haiti",{"$f":"$CE$12","v":"Österreich"},{"$f":"$BB$12","v":"Schweden"},"Ghana","Usbekistan"]
[null,null,null,null,null,null,null,null,null,null,null,null,null,null,null,null,null,null,null,null,null,null,null,null,null,null,null,null,null,null,null,null,null,null,null,null,null,null,null,null,null,null,null,null,null,null,null,null,null,null,null,null,null,null,null,null,null,null,null,null,null,null,null,null,null,null,null,null,null,null,null,null,null,null,null,null,null,null,null,null,null,null,null,null,null,null,null,null,null,null,null,null,"DEFGHIJK",{"$f":"$BB$5","v":"Elfenbeinküste"},"Iran",{"$f":"$CE$12","v":"Österreich"},{"$f":"$Y$26","v":"Australien"},{"$f":"$BB$26","v":"Saudi-Arabien"},"Schweden",{"$f":"$CE$5","v":"Irak"},"Usbekistan"]
[null,null,null,null,null,null,null,null,null,null,null,null,null,null,null,null,null,null,null,null,null,null,null,null,null,null,null,null,null,null,null,null,null,null,null,null,null,null,null,null,null,null,null,null,null,null,null,null,null,null,null,null,null,null,null,null,null,null,null,null,null,null,null,null,null,null,null,null,null,null,null,null,null,null,null,null,null,null,null,null,null,null,null,null,null,null,null,null,null,null,null,null,"DEFGHIJL","Elfenbeinküste","Iran",{"$f":"$CE$12","v":"Österreich"},"Australien",{"$f":"$BB$26","v":"Saudi-Arabien"},"Schweden",{"$f":"$CE$26","v":"Ghana"},{"$f":"$CE$5","v":"Irak"}]
[null,null,null,null,null,null,null,null,null,null,null,null,null,null,null,null,null,null,null,null,null,null,null,null,null,null,null,null,null,null,null,null,null,null,null,null,null,null,null,null,null,null,null,null,null,null,null,null,null,null,null,null,null,null,null,null,null,null,null,null,null,null,null,null,null,null,null,null,null,null,null,null,null,null,null,null,null,null,null,null,null,null,null,null,null,null,null,null,null,null,null,null,"DEFGHIKL","Elfenbeinküste","Iran",{"$f":"$CE$5","v":"Irak"},"Australien",{"$f":"$BB$26","v":"Saudi-Arabien"},"Schweden","Ghana",{"$f":"$CE$19","v":"Usbekistan"}]
[null,null,null,null,null,null,null,null,null,null,null,null,null,null,null,null,null,null,null,null,null,null,null,null,null,null,null,null,null,null,null,null,null,null,null,null,null,null,null,null,null,null,null,null,null,null,null,null,null,null,null,null,null,null,null,null,null,null,null,null,null,null,null,null,null,null,null,null,null,null,null,null,null,null,null,null,null,null,null,null,null,null,null,null,null,null,null,null,null,null,null,null,"DEFGHJKL","Elfenbeinküste","Iran",{"$f":"$CE$12","v":"Österreich"},"Australien",{"$f":"$BB$26","v":"Saudi-Arabien"},"Schweden","Ghana","Usbekistan"]
[null,null,null,null,null,null,null,null,null,null,null,null,null,null,null,null,null,null,null,null,null,null,null,null,null,null,null,null,null,null,null,null,null,null,null,null,null,null,null,null,null,null,null,null,null,null,null,null,null,null,null,null,null,null,null,null,null,null,null,null,null,null,null,null,null,null,null,null,null,null,null,null,null,null,null,null,null,null,null,null,null,null,null,null,null,null,null,null,null,null,null,null,"DEFGIJKL","Elfenbeinküste","Iran",{"$f":"$CE$5","v":"Irak"},"Australien",{"$f":"$CE$12","v":"Österreich"},"Schweden","Ghana","Usbekistan"]
[null,null,null,null,null,null,null,null,null,null,null,null,null,null,null,null,null,null,null,null,null,null,null,null,null,null,null,null,null,null,null,null,null,null,null,null,null,null,null,null,null,null,null,null,null,null,null,null,null,null,null,null,null,null,null,null,null,null,null,null,null,null,null,null,null,null,null,null,null,null,null,null,null,null,null,null,null,null,null,null,null,null,null,null,null,null,null,null,null,null,null,null,"DEFHIJKL","Elfenbeinküste",{"$f":"$CE$12","v":"Österreich"},"Irak","Australien",{"$f":"$BB$26","v":"Saudi-Arabien"},"Schweden","Ghana","Usbekistan"]
[null,null,null,null,null,null,null,null,null,null,null,null,null,null,null,null,null,null,null,null,null,null,null,null,null,null,null,null,null,null,null,null,null,null,null,null,null,null,null,null,null,null,null,null,null,null,null,null,null,null,null,null,null,null,null,null,null,null,null,null,null,null,null,null,null,null,null,null,null,null,null,null,null,null,null,null,null,null,null,null,null,null,null,null,null,null,null,null,null,null,null,null,"DEGHIJKL","Elfenbeinküste",{"$f":"$CE$12","v":"Österreich"},"Irak","Australien",{"$f":"$BB$26","v":"Saudi-Arabien"},{"$f":"$BB$19","v":"Iran"},"Ghana","Usbekistan"]
[null,null,null,null,null,null,null,null,null,null,null,null,null,null,null,null,null,null,null,null,null,null,null,null,null,null,null,null,null,null,null,null,null,null,null,null,null,null,null,null,null,null,null,null,null,null,null,null,null,null,null,null,null,null,null,null,null,null,null,null,null,null,null,null,null,null,null,null,null,null,null,null,null,null,null,null,null,null,null,null,null,null,null,null,null,null,null,null,null,null,null,null,"DFGHIJKL",{"$f":"$BB$26","v":"Saudi-Arabien"},{"$f":"$BB$19","v":"Iran"},"Irak","Australien",{"$f":"$CE$12","v":"Österreich"},{"$f":"$BB$12","v":"Schweden"},"Ghana","Usbekistan"]
[null,null,null,null,null,null,null,null,null,null,null,null,null,null,null,null,null,null,null,null,null,null,null,null,null,null,null,null,null,null,null,null,null,null,null,null,null,null,null,null,null,null,null,null,null,null,null,null,null,null,null,null,null,null,null,null,null,null,null,null,null,null,null,null,null,null,null,null,null,null,null,null,null,null,null,null,null,null,null,null,null,null,null,null,null,null,null,null,null,null,null,null,"EFGHIJKL",{"$f":"$BB$5","v":"Elfenbeinküste"},{"$f":"$CE$12","v":"Österreich"},"Irak",{"$f":"$BB$12","v":"Schweden"},{"$f":"$BB$26","v":"Saudi-Arabien"},{"$f":"$BB$19","v":"Iran"},"Ghana","Usbekistan"]
[null,null,null,null,null,null,null,null,null,null,null,null,null,null,null,null,null,null,null,null,null,null,null,null,null,null,null,null,null,null,null,null,null,null,null,null,null,null,null,null,null,null,null,null,null,null,null,null,null,null,null,null,null,null,null,null,null,null,null,null,null,null,null,null,null,null,null,null,null,null,null,null,null,null,null,null,null,null,null,null,null,null,null,null,null,null,null,null,null,null,null,null,"EFGHIJKL",{"$f":"$BB$5","v":"Elfenbeinküste"},{"$f":"$CE$12","v":"Österreich"},"Irak",{"$f":"$BB$12","v":"Schweden"},{"$f":"$BB$26","v":"Saudi-Arabien"},{"$f":"$BB$19","v":"Iran"},"Ghana","Usbekistan"]

{"sheet":"KO-Runde 073-088","index":4,"n_rows":17,"n_cols":13,"rows_kept":17,"cut":false,"hidden":false,"merged":[[0,4,0,6],[0,7,0,9]]}
["Spiele 73-88   (chronologisch)","Anstoßzeit","Ortszeit","Spiel-Nr.","Spielpaarungen / Gruppen",null,null,"Ergebnis",null,null,"Austragungsort / Stadion","K.O.-Runde","Live-TV Übertragungsrechte"]
["2026-06-28T21:00:00",46201.875,"2026-06-28T12:00:00",73,{"$f":"IF('Vorrunde (Tabellen)'!$L$5=\"\",\"2. Gruppe A\",'Vorrunde (Tabellen)'!$Y$4)","v":"2. Gruppe A"},"-",{"$f":"IF('Vorrunde (Tabellen)'!$L$5=\"\",\"2. Gruppe B\",'Vorrunde (Tabellen)'!$Y$11)","v":"2. Gruppe B"},null,":",null,"USA / SoFi Stadium (Los Angeles)","Sechzehntelfinale","voraussichtlich ARD und Magenta"]
["2026-06-29T19:00:00",46202.791666666664,"2026-06-29T12:00:00",76,{"$f":"IF('Vorrunde (Tabellen)'!$L$5=\"\",\"1. Gruppe C\",'Vorrunde (Tabellen)'!$Y$17)","v":"1. Gruppe C"},"-",{"$f":"IF('Vorrunde (Tabellen)'!$L$5=\"\",\"2. Gruppe F\",'Vorrunde (Tabellen)'!$BB$11)","v":"2. Gruppe F"},null,":",null,"USA / NRG Stadium (Houston)","Sechzehntelfinale","voraussichtlich ZDF und Magenta"]
["2026-06-29T22:30:00",46202.9375,"2026-06-29T16:30:00",74,{"$f":"IF('Vorrunde (Tabellen)'!$L$5=\"\",\"1. Gruppe E\",'Vorrunde (Tabellen)'!$BB$3)","v":"1. Gruppe E"},"-",{"$f":"IF('Vorrunde (Tabellen)'!$L$5=\"\",\"3. Gruppe A/B/C/D/F\",VLOOKUP('Vorrunde (Tabellen)'!$K$34,'Vorrunde (Tabellen)'!$CO$2:$CW$497,5))","v":"3. Gruppe A/B/C/D/F"},null,":",null,"USA / Gillette Stadium (Boston)","Sechzehntelfinale","voraussichtlich ZDF und Magenta"]
["2026-06-30T03:00:00",46203.125,"2026-06-29T19:00:00",75,{"$f":"IF('Vorrunde (Tabellen)'!$L$5=\"\",\"1. Gruppe F\",'Vorrunde (Tabellen)'!$BB$10)","v":"1. Gruppe F"},"-",{"$f":"IF('Vorrunde (Tabellen)'!$L$5=\"\",\"2. Gruppe C\",'Vorrunde (Tabellen)'!$Y$18)","v":"2. Gruppe C"},null,":",null,"Mexiko / Estadio BBVA (Monterrey)","Sechzehntelfinale","voraussichtlich nur bei MagentaTV"]
["2026-06-30T19:00:00",46203.791666666664,"2026-06-30T12:00:00",78,{"$f":"IF('Vorrunde (Tabellen)'!$L$5=\"\",\"2. Gruppe E\",'Vorrunde (Tabellen)'!$BB$4)","v":"2. Gruppe E"},"-",{"$f":"IF('Vorrunde (Tabellen)'!$L$5=\"\",\"2. Gruppe I\",'Vorrunde (Tabellen)'!$CE$4)","v":"2. Gruppe I"},null,":",null,"USA / AT&T Stadium (Dallas)","Sechzehntelfinale","voraussichtlich ARD und Magenta"]
["2026-06-30T23:00:00",46203.958333333336,"2026-06-30T17:00:00",77,{"$f":"IF('Vorrunde (Tabellen)'!$L$5=\"\",\"1. Gruppe I\",'Vorrunde (Tabellen)'!$CE$3)","v":"1. Gruppe I"},"-",{"$f":"IF('Vorrunde (Tabellen)'!$L$5=\"\",\"3. Gruppe C/D/F/G/H\",VLOOKUP('Vorrunde (Tabellen)'!$K$34,'Vorrunde (Tabellen)'!$CO$2:$CW$497,7))","v":"3. Gruppe C/D/F/G/H"},null,":",null,"USA / MetLife Stadium (New York/New Jersey)","Sechzehntelfinale","voraussichtlich ARD und Magenta"]
["2026-07-01T03:00:00",46204.125,"2026-06-30T19:00:00",79,{"$f":"IF('Vorrunde (Tabellen)'!$L$5=\"\",\"1. Gruppe A\",'Vorrunde (Tabellen)'!$Y$3)","v":"1. Gruppe A"},"-",{"$f":"IF('Vorrunde (Tabellen)'!$L$5=\"\",\"3. Gruppe C/E/F/H/I\",VLOOKUP('Vorrunde (Tabellen)'!$K$34,'Vorrunde (Tabellen)'!$CO$2:$CW$497,2))","v":"3. Gruppe C/E/F/H/I"},null,":",null,"Mexiko / Azteca (Mexico City)","Sechzehntelfinale","voraussichtlich nur bei MagentaTV"]
["2026-07-01T18:00:00",46204.75,"2026-07-01T12:00:00",80,{"$f":"IF('Vorrunde (Tabellen)'!$L$5=\"\",\"1. Gruppe L\",'Vorrunde (Tabellen)'!$CE$24)","v":"1. Gruppe L"},"-",{"$f":"IF('Vorrunde (Tabellen)'!$L$5=\"\",\"3. Gruppe E/H/I/J/K\",VLOOKUP('Vorrunde (Tabellen)'!$K$34,'Vorrunde (Tabellen)'!$CO$2:$CW$497,9))","v":"3. Gruppe E/H/I/J/K"},null,":",null,"USA / Mercedes-Benz Stadium (Atlanta)","Sechzehntelfinale","voraussichtlich ZDF und Magenta"]
["2026-07-01T22:00:00",46204.916666666664,"2026-07-01T13:00:00",82,{"$f":"IF('Vorrunde (Tabellen)'!$L$5=\"\",\"1. Gruppe G\",'Vorrunde (Tabellen)'!$BB$17)","v":"1. Gruppe G"},"-",{"$f":"IF('Vorrunde (Tabellen)'!$L$5=\"\",\"3. Gruppe A/E/H/I/J\",VLOOKUP('Vorrunde (Tabellen)'!$K$34,'Vorrunde (Tabellen)'!$CO$2:$CW$497,6))","v":"3. Gruppe A/E/H/I/J"},null,":",null,"USA / Lumen Field (Seattle)","Sechzehntelfinale","voraussichtlich ZDF und Magenta"]
["2026-07-02T02:00:00",46205.083333333336,"2026-07-01T17:00:00",81,{"$f":"IF('Vorrunde (Tabellen)'!$L$5=\"\",\"1. Gruppe D\",'Vorrunde (Tabellen)'!$Y$24)","v":"1. Gruppe D"},"-",{"$f":"IF('Vorrunde (Tabellen)'!$L$5=\"\",\"3. Gruppe B/E/F/I/J\",VLOOKUP('Vorrunde (Tabellen)'!$K$34,'Vorrunde (Tabellen)'!$CO$2:$CW$497,4))","v":"3. Gruppe B/E/F/I/J"},null,":",null,"USA / Levi's Stadium (San Francisco Bay Area)","Sechzehntelfinale","voraussichtlich nur bei MagentaTV"]
["2026-07-02T21:00:00",46205.875,"2026-07-02T12:00:00",84,{"$f":"IF('Vorrunde (Tabellen)'!$L$5=\"\",\"1. Gruppe H\",'Vorrunde (Tabellen)'!$BB$24)","v":"1. Gruppe H"},"-",{"$f":"IF('Vorrunde (Tabellen)'!$L$5=\"\",\"2. Gruppe J\",'Vorrunde (Tabellen)'!$CE$11)","v":"2. Gruppe J"},null,":",null,"USA / SoFi Stadium (Los Angeles)","Sechzehntelfinale","voraussichtlich ARD und Magenta"]
["2026-07-03T01:00:00",46206.041666666664,"2026-07-02T19:00:00",83,{"$f":"IF('Vorrunde (Tabellen)'!$L$5=\"\",\"2. Gruppe K\",'Vorrunde (Tabellen)'!$CE$18)","v":"2. Gruppe K"},"-",{"$f":"IF('Vorrunde (Tabellen)'!$L$5=\"\",\"2. Gruppe L\",'Vorrunde (Tabellen)'!$CE$25)","v":"2. Gruppe L"},null,":",null,"Kanada / BMO Field (Toronto)","Sechzehntelfinale","voraussichtlich nur bei MagentaTV"]
["2026-07-03T05:00:00",46206.208333333336,"2026-07-02T20:00:00",85,{"$f":"IF('Vorrunde (Tabellen)'!$L$5=\"\",\"1. Gruppe B\",'Vorrunde (Tabellen)'!$Y$10)","v":"1. Gruppe B"},"-",{"$f":"IF('Vorrunde (Tabellen)'!$L$5=\"\",\"3. Gruppe E/F/G/I/J\",VLOOKUP('Vorrunde (Tabellen)'!$K$34,'Vorrunde (Tabellen)'!$CO$2:$CW$497,3))","v":"3. Gruppe E/F/G/I/J"},null,":",null,"Kanada / BC Place Stadium (Vancouver)","Sechzehntelfinale","voraussichtlich nur bei MagentaTV"]
["2026-07-03T20:00:00",46206.833333333336,"2026-07-03T13:00:00",88,{"$f":"IF('Vorrunde (Tabellen)'!$L$5=\"\",\"2. Gruppe D\",'Vorrunde (Tabellen)'!$Y$25)","v":"2. Gruppe D"},"-",{"$f":"IF('Vorrunde (Tabellen)'!$L$5=\"\",\"2. Gruppe G\",'Vorrunde (Tabellen)'!$BB$18)","v":"2. Gruppe G"},null,":",null,"USA / AT&T Stadium (Dallas)","Sechzehntelfinale","voraussichtlich ZDF und Magenta"]
["2026-07-04",46207,"2026-07-03T18:00:00",86,{"$f":"IF('Vorrunde (Tabellen)'!$L$5=\"\",\"1. Gruppe J\",'Vorrunde (Tabellen)'!$CE$10)","v":"1. Gruppe J"},"-",{"$f":"IF('Vorrunde (Tabellen)'!$L$5=\"\",\"2. Gruppe H\",'Vorrunde (Tabellen)'!$BB$25)","v":"2. Gruppe H"},null,":",null,"USA / Hard Rock Stadium (Miami)","Sechzehntelfinale","voraussichtlich ZDF und Magenta"]
["2026-07-04T03:30:00",46207.145833333336,"2026-07-03T20:30:00",87,{"$f":"IF('Vorrunde (Tabellen)'!$L$5=\"\",\"1. Gruppe K\",'Vorrunde (Tabellen)'!$CE$17)","v":"1. Gruppe K"},"-",{"$f":"IF('Vorrunde (Tabellen)'!$L$5=\"\",\"3. Gruppe D/E/I/J/L\",VLOOKUP('Vorrunde (Tabellen)'!$K$34,'Vorrunde (Tabellen)'!$CO$2:$CW$497,8))","v":"3. Gruppe D/E/I/J/L"},null,":",null,"USA / Arrowhead Stadium (Kansas City)","Sechzehntelfinale","voraussichtlich nur bei MagentaTV"]

{"sheet":"KO-Runde 089-104","index":5,"n_rows":19,"n_cols":13,"rows_kept":19,"cut":false,"hidden":false,"merged":[[0,4,0,6],[0,7,0,9],[18,3,18,4],[18,5,18,9]]}
["Spiele 89-104   (chronologisch)","Anstoßzeit","Ortszeit","Spiel-Nr.","Spielpaarungen / Gruppen",null,null,"Ergebnis",null,null,"Austragungsort / Stadion","K.O.-Runde","Live-TV Übertragungsrechte"]
["2026-07-04T19:00:00",46207.791666666664,"2026-07-04T12:00:00",90,{"$f":"IF('KO-Runde 073-088'!$H$2>'KO-Runde 073-088'!$J$2,'KO-Runde 073-088'!$E$2,IF('KO-Runde 073-088'!$J$2>'KO-Runde 073-088'!$H$2,'KO-Runde 073-088'!$G$2,\"Sieger Spiel 73\"))","v":"Sieger Spiel 73"},"-",{"$f":"IF('KO-Runde 073-088'!$H$5>'KO-Runde 073-088'!$J$5,'KO-Runde 073-088'!$E$5,IF('KO-Runde 073-088'!$J$5>'KO-Runde 073-088'!$H$5,'KO-Runde 073-088'!$G$5,\"Sieger Spiel 75\"))","v":"Sieger Spiel 75"},null,":",null,"USA / NRG Stadium (Houston)","Achtelfinale","voraussichtlich ARD und Magenta"]
["2026-07-04T23:00:00",46207.958333333336,"2026-07-04T17:00:00",89,{"$f":"IF('KO-Runde 073-088'!$H$4>'KO-Runde 073-088'!$J$4,'KO-Runde 073-088'!$E$4,IF('KO-Runde 073-088'!$J$4>'KO-Runde 073-088'!$H$4,'KO-Runde 073-088'!$G$4,\"Sieger Spiel 74\"))","v":"Sieger Spiel 74"},"-",{"$f":"IF('KO-Runde 073-088'!$H$7>'KO-Runde 073-088'!$J$7,'KO-Runde 073-088'!$E$7,IF('KO-Runde 073-088'!$J$7>'KO-Runde 073-088'!$H$7,'KO-Runde 073-088'!$G$7,\"Sieger Spiel 77\"))","v":"Sieger Spiel 77"},null,":",null,"USA / Lincoln Financial Field (Philadelphia)","Achtelfinale","voraussichtlich ARD und Magenta"]
["2026-07-05T22:00:00",46208.916666666664,"2026-07-05T16:00:00",91,{"$f":"IF('KO-Runde 073-088'!$H$3>'KO-Runde 073-088'!$J$3,'KO-Runde 073-088'!$E$3,IF('KO-Runde 073-088'!$J$3>'KO-Runde 073-088'!$H$3,'KO-Runde 073-088'!$G$3,\"Sieger Spiel 76\"))","v":"Sieger Spiel 76"},"-",{"$f":"IF('KO-Runde 073-088'!$H$6>'KO-Runde 073-088'!$J$6,'KO-Runde 073-088'!$E$6,IF('KO-Runde 073-088'!$J$6>'KO-Runde 073-088'!$H$6,'KO-Runde 073-088'!$G$6,\"Sieger Spiel 78\"))","v":"Sieger Spiel 78"},null,":",null,"USA / MetLife Stadium (New York/New Jersey)","Achtelfinale","voraussichtlich nur bei MagentaTV"]
["2026-07-06T02:00:00",46209.083333333336,"2026-07-05T18:00:00",92,{"$f":"IF('KO-Runde 073-088'!$H$8>'KO-Runde 073-088'!$J$8,'KO-Runde 073-088'!$E$8,IF('KO-Runde 073-088'!$J$8>'KO-Runde 073-088'!$H$8,'KO-Runde 073-088'!$G$8,\"Sieger Spiel 79\"))","v":"Sieger Spiel 79"},"-",{"$f":"IF('KO-Runde 073-088'!$H$9>'KO-Runde 073-088'!$J$9,'KO-Runde 073-088'!$E$9,IF('KO-Runde 073-088'!$J$9>'KO-Runde 073-088'!$H$9,'KO-Runde 073-088'!$G$9,\"Sieger Spiel 80\"))","v":"Sieger Spiel 80"},null,":",null,"Mexiko / Azteca (Mexico City)","Achtelfinale","voraussichtlich nur bei MagentaTV"]
["2026-07-06T21:00:00",46209.875,"2026-07-06T14:00:00",93,{"$f":"IF('KO-Runde 073-088'!$H$13>'KO-Runde 073-088'!$J$13,'KO-Runde 073-088'!$E$13,IF('KO-Runde 073-088'!$J$13>'KO-Runde 073-088'!$H$13,'KO-Runde 073-088'!$G$13,\"Sieger Spiel 83\"))","v":"Sieger Spiel 83"},"-",{"$f":"IF('KO-Runde 073-088'!$H$12>'KO-Runde 073-088'!$J$12,'KO-Runde 073-088'!$E$12,IF('KO-Runde 073-088'!$J$12>'KO-Runde 073-088'!$H$12,'KO-Runde 073-088'!$G$12,\"Sieger Spiel 84\"))","v":"Sieger Spiel 84"},null,":",null,"USA / AT&T Stadium (Dallas)","Achtelfinale","voraussichtlich ZDF und Magenta"]
["2026-07-07T02:00:00",46210.083333333336,"2026-07-06T17:00:00",94,{"$f":"IF('KO-Runde 073-088'!$H$11>'KO-Runde 073-088'!$J$11,'KO-Runde 073-088'!$E$11,IF('KO-Runde 073-088'!$J$11>'KO-Runde 073-088'!$H$11,'KO-Runde 073-088'!$G$11,\"Sieger Spiel 81\"))","v":"Sieger Spiel 81"},"-",{"$f":"IF('KO-Runde 073-088'!$H$10>'KO-Runde 073-088'!$J$10,'KO-Runde 073-088'!$E$10,IF('KO-Runde 073-088'!$J$10>'KO-Runde 073-088'!$H$10,'KO-Runde 073-088'!$G$10,\"Sieger Spiel 82\"))","v":"Sieger Spiel 82"},null,":",null,"USA / Lumen Field (Seattle)","Achtelfinale","voraussichtlich nur bei MagentaTV"]
["2026-07-07T18:00:00",46210.75,"2026-07-07T12:00:00",95,{"$f":"IF('KO-Runde 073-088'!$H$16>'KO-Runde 073-088'!$J$16,'KO-Runde 073-088'!$E$16,IF('KO-Runde 073-088'!$J$16>'KO-Runde 073-088'!$H$16,'KO-Runde 073-088'!$G$16,\"Sieger Spiel 86\"))","v":"Sieger Spiel 86"},"-",{"$f":"IF('KO-Runde 073-088'!$H$15>'KO-Runde 073-088'!$J$15,'KO-Runde 073-088'!$E$15,IF('KO-Runde 073-088'!$J$15>'KO-Runde 073-088'!$H$15,'KO-Runde 073-088'!$G$15,\"Sieger Spiel 88\"))","v":"Sieger Spiel 88"},null,":",null,"USA / Mercedes-Benz Stadium (Atlanta)","Achtelfinale","voraussichtlich ARD und Magenta"]
["2026-07-07T22:00:00",46210.916666666664,"2026-07-07T13:00:00",96,{"$f":"IF('KO-Runde 073-088'!$H$14>'KO-Runde 073-088'!$J$14,'KO-Runde 073-088'!$E$14,IF('KO-Runde 073-088'!$J$14>'KO-Runde 073-088'!$H$14,'KO-Runde 073-088'!$G$14,\"Sieger Spiel 85\"))","v":"Sieger Spiel 85"},"-",{"$f":"IF('KO-Runde 073-088'!$H$17>'KO-Runde 073-088'!$J$17,'KO-Runde 073-088'!$E$17,IF('KO-Runde 073-088'!$J$17>'KO-Runde 073-088'!$H$17,'KO-Runde 073-088'!$G$17,\"Sieger Spiel 87\"))","v":"Sieger Spiel 87"},null,":",null,"Kanada / BC Place Stadium (Vancouver)","Achtelfinale","voraussichtlich nur bei MagentaTV"]
["2026-07-09T22:00:00",46212.916666666664,"2026-07-09T16:00:00",97,{"$f":"IF($H$3>$J$3,$E$3,IF($J$3>$H$3,G$3,\"Sieger Spiel 89\"))","v":"Sieger Spiel 89"},"-",{"$f":"IF($H$2>$J$2,$E$2,IF($J$2>$H$2,G$2,\"Sieger Spiel 90\"))","v":"Sieger Spiel 90"},null,":",null,"USA / Gillette Stadium (Boston)","Viertelfinale","voraussichtlich ZDF und Magenta"]
["2026-07-10T21:00:00",46213.875,"2026-07-10T12:00:00",98,{"$f":"IF($H$6>$J$6,$E$6,IF($J$6>$H$6,G$6,\"Sieger Spiel 93\"))","v":"Sieger Spiel 93"},"-",{"$f":"IF($H$7>$J$7,$E$7,IF($J$7>$H$7,G$7,\"Sieger Spiel 94\"))","v":"Sieger Spiel 94"},null,":",null,"USA / SoFi Stadium (Los Angeles)","Viertelfinale","voraussichtlich ARD und Magenta"]
["2026-07-11T23:00:00",46214.958333333336,"2026-07-11T17:00:00",99,{"$f":"IF($H$4>$J$4,$E$4,IF($J$4>$H$4,G$4,\"Sieger Spiel 91\"))","v":"Sieger Spiel 91"},"-",{"$f":"IF($H$5>$J$5,$E$5,IF($J$5>$H$5,G$5,\"Sieger Spiel 92\"))","v":"Sieger Spiel 92"},null,":",null,"USA / Hard Rock Stadium (Miami)","Viertelfinale","voraussichtlich nur bei MagentaTV"]
["2026-07-12T03:00:00",46215.125,"2026-07-11T20:00:00",100,{"$f":"IF($H$8>$J$8,$E$8,IF($J$8>$H$8,G$8,\"Sieger Spiel 95\"))","v":"Sieger Spiel 95"},"-",{"$f":"IF($H$9>$J$9,$E$9,IF($J$9>$H$9,G$9,\"Sieger Spiel 96\"))","v":"Sieger Spiel 96"},null,":",null,"USA / Arrowhead Stadium (Kansas City)","Viertelfinale","voraussichtlich nur bei MagentaTV"]
["2026-07-14T21:00:00",46217.875,"2026-07-14T14:00:00",101,{"$f":"IF($H$10>$J$10,$E$10,IF($J$10>$H$10,G$10,\"Sieger Spiel 97\"))","v":"Sieger Spiel 97"},"-",{"$f":"IF($H$11>$J$11,$E$11,IF($J$11>$H$11,G$11,\"Sieger Spiel 98\"))","v":"Sieger Spiel 98"},null,":",null,"USA / AT&T Stadium (Dallas)","Halbfinale","voraussichtlich ARD und Magenta"]
["2026-07-15T21:00:00",46218.875,"2026-07-15T15:00:00",102,{"$f":"IF($H$12>$J$12,$E$12,IF($J$12>$H$12,G$12,\"Sieger Spiel 99\"))","v":"Sieger Spiel 99"},"-",{"$f":"IF($H$13>$J$13,$E$13,IF($J$13>$H$13,G$13,\"Sieger Spiel 100\"))","v":"Sieger Spiel 100"},null,":",null,"USA / Mercedes-Benz Stadium (Atlanta)","Halbfinale","voraussichtlich ZDF und Magenta"]
["2026-07-18T23:00:00",46221.958333333336,"2026-07-18T17:00:00",103,{"$f":"IF($H$14>$J$14,$G$14,IF($J$14>$H$14,E$14,\"Verlierer Spiel 101\"))","v":"Verlierer Spiel 101"},"-",{"$f":"IF($H$15>$J$15,$G$15,IF($J$15>$H$15,E$15,\"Verlierer Spiel 102\"))","v":"Verlierer Spiel 102"},null,":",null,"USA / Hard Rock Stadium (Miami)","Spiel um Platz 3","MagentaTV (Telekom) exklusiv"]
["2026-07-19T21:00:00",46222.875,"2026-07-19T15:00:00",104,{"$f":"IF($H$14>$J$14,$E$14,IF($J$14>$H$14,G$14,\"Sieger Spiel 101\"))","v":"Sieger Spiel 101"},"-",{"$f":"IF($H$15>$J$15,$E$15,IF($J$15>$H$15,G$15,\"Sieger Spiel 102\"))","v":"Sieger Spiel 102"},null,":",null,"USA / MetLife Stadium (New York/New Jersey)","Endspiel","ZDF und MagentaTV"]
[]
[null,null,null,"Weltmeister 2026 :",null,{"$f":"IF($H$17>$J$17,$E$17,IF($J$17>$H$17,$G$17,\"\"))","v":""}]

{"sheet":"Tippmodus","index":6,"n_rows":40,"n_cols":12,"rows_kept":40,"cut":false,"hidden":false,"merged":[[38,0,38,2],[38,6,38,12],[39,0,39,2],[39,6,39,12],[36,2,36,10],[33,11,33,13],[34,11,34,13],[35,11,35,13],[35,2,35,10],[36,11,36,13],[33,2,33,10],[34,2,34,10],[32,11,32,13],[23,6,23,12],[25,0,25,2],[25,6,25,10],[25,11,25,13],[26,0,26,2],[26,6,26,10],[26,11,26,13],[27,6,27,13],[28,3,28,5],[28,6,28,13],[31,11,31,13],[30,11,30,13],[30,2,30,10],[31,2,31,10],[32,2,32,10],[22,6,22,12],[14,0,14,2],[14,3,14,13],[15,0,15,2],[15,3,15,13],[17,0,17,2],[17,6,17,12],[18,0,18,2],[18,6,18,12],[19,6,19,12],[20,6,20,12],[21,6,21,12],[12,0,12,2],[12,3,12,13],[0,0,0,13],[2,0,2,2],[3,0,3,2],[3,3,3,13],[5,0,5,2],[5,3,5,13],[6,0,6,2],[6,3,6,13],[8,0,9,2],[9,3,9,13],[11,0,11,2]]}
["Teilnahmeinformationen und Auswertungsmodus"]
[]
["Beginn und Ende der"]
["Weltmeisterschaft",null,null,"vom  11. Juni  2026  bis  19. Juli  2026"]
[]
["Wo gibt es die",null,null,"bei Tilo Schott      oder      Online unter der Adresse :"]
["Tipp - Formulare  ?",null,null,"https://sv-ehringshausen.de/wm-tipprunde-2026/"]
[]
["Was kostet der Einsatz  ?"]
[null,null,null,"14  EURO   ( für jeden abgegebenen Tipp-Schein )"]
[]
["Letzter Abgabetermin"]
["für die  Tipp - Formulare",null,null,"2026-06-10"]
[]
["Abgabeort",null,null,"per eMail an die Adresse :"]
["der  Tipp - Formulare",null,null,"tilo.schott@dwd.de"]
[]
["Was muß ich",null,null,null,null,"1.","alle Ergebnisse der Vorrundenspiele"]
["tippen  ?",null,null,null,null,"2.","die Mannschaften, die sich für die weiteren"]
[null,null,null,null,null,null,"Finalrunden ( Sechzehntelfinale bis Endspiel )"]
[null,null,null,null,null,null,"qualifizieren"]
[null,null,null,null,null,null,"( die Zusammenstellung der Spielpaarungen"]
[null,null,null,null,null,null,"  für die einzelnen Finalrunden muß  nicht  die"]
[null,null,null,null,null,null,"  Folge der getippten Vorrundenspiele sein )"]
[]
["Der Auswertungsmodus",null,null,null,null,"1.","für jedes exakt richtige Ergebnis",null,null,null,null,"3 Punkte"]
["für die WM - Tipprunde",null,null,null,null,"2.","für die richtige Ergebnis-Tendenz",null,null,null,null,"2 Punkte"]
[null,null,null,null,null,null,"( wenn man z. B. bei einem 0 : 0 ein 2 : 2 getippt hat )"]
[null,null,null,"oder",null,null,"( wenn man z. B. bei einem 3 : 0 ein 3 : 2 getippt hat )"]
[]
[null,"3.  ","für jede richtig getippte Mannschaft im Sechzehntelfinale",null,null,null,null,null,null,null,null,"3 Punkte"]
[null,"4.  ","für jede richtig getippte Mannschaft im Achtelfinale",null,null,null,null,null,null,null,null,"4 Punkte"]
[null,"5.  ","für jede richtig getippte Mannschaft im Viertelfinale",null,null,null,null,null,null,null,null,"5 Punkte"]
[null,"6.  ","für jede richtig getippte Mannschaft im Halbfinale",null,null,null,null,null,null,null,null,"6 Punkte"]
[null,"7.  ","für jedes richtig getippte Team im Spiel um Platz 3",null,null,null,null,null,null,null,null,"1 Punkt"]
[null,"8.  ","für jeden richtig getippten Endspielteilnehmer",null,null,null,null,null,null,null,null,"7 Punkte"]
[null,"9.  ","für den richtig getippten Weltmeister 2026",null,null,null,null,null,null,null,null,"8 Punkte"]
[]
["Gewinnverteilung",null,null,null,null,null,"1. Platz = 30 %, 2. Platz = 25 %, 3. Platz = 20 %"]
["vom Gesamteinsatz",null,null,null,null,null,"4. Platz = 15 %, 5. Platz = 10 %"]

{"sheet":"Teilnehmer - Austragungsorte","index":7,"n_rows":0,"n_cols":0,"rows_kept":0,"cut":false,"hidden":false,"merged":[[4,16,4,17]]}